Workbook

Sheet REGIÃO
B2: RESUMO DA REGIÃO
B3: Todos | C3: BDI SERVICO | D3: BDI INSUMO | E3: QUANTIDADE POÇOS PARCIALMENTE REVESTIDO | F3: PREÇO UNIT | G3: PREÇO TOTAL | H3: QUANTIDADE POÇOS TOTALMENTE REVESTIDO | I3: PREÇO UNIT | J3: PREÇO TOTAL
B4: GOIÁS | C4: ='BDI-SERVICOS'!D22 -> 0.2378 | D4: ='BDI-FORNECIMENTO'!C28 -> 0.146920122 | E4: 108 | F4: ='Orçamento Sintético - GO - P'!L2 -> 119706.7842 | G4: =F4*E4 -> 12928332.69 | H4: 42 | I4: ='Orçamento Sintético - GO - T'!L2 -> 187085.3433 | J4: =I4*H4 -> 7857584.42 | L4: =J4+G4 -> 20785917.11
B5: TOCANTINS | C5: ='BDI-SERVICOS'!D22 -> 0.2378 | D5: ='BDI-FORNECIMENTO'!C28 -> 0.146920122 | E5: 69 | F5: ='Orçamento Sintético - TO - P'!L2 -> 118890.3935 | G5: =F5*E5 -> 8203437.15 | H5: 81 | I5: ='Orçamento Sintético - TO - T'!L2 -> 187195.154 | J5: =I5*H5 -> 15162807.47 | L5: =J5+G5 -> 23366244.62
B6: DISTRITO FEDERAL | C6: ='BDI-SERVICOS'!D22 -> 0.2378 | D6: ='BDI-FORNECIMENTO'!C28 -> 0.146920122 | E6: 35 | F6: ='Orçamento Sintético - DF - P'!L2 -> 125320.3303 | G6: 4386211.56 | H6: 15 | I6: ='Orçamento Sintético - DF - T'!L2 -> 189996.182 | J6: 2849942.73 | L6: 7236154.29
B7: MINAS GERAIS | C7: ='BDI-SERVICOS'!D22 -> 0.2378 | D7: ='BDI-FORNECIMENTO'!C28 -> 0.146920122 | E7: 44 | F7: ='Orçamento Sintético - MG - P'!L2 -> 118119.5807 | G7: 5197261.55 | H7: 6 | I7: ='Orçamento Sintético - MG - T'!L2 -> 187718.1567 | J7: 1126308.94 | L7: 6323570.49
B9: DATABASE DO ORÇAMENTO: SETEMBRO/2025 - NÃO DESONERADO | H9: TOTAL REGIAO | I9: =(SUM(G4:G7)+SUM(J4:J7)) -> 57711886.51

Sheet CAPA GO
B7: EXECUÇÃO DE SERVIÇOS DE PERFURAÇÃO E INSTALAÇÃO DE POÇOS TUBULARES EM GOIÁS

Sheet Planilha Resumo GO
B2: OBJETO: EXECUÇÃO DE SERVIÇOS DE PERFURAÇÃO E INSTALAÇÃO DE POÇOS TUBULARES EM MUNICÍPIOS LOCALIZADOS NO GOIÁS, NA ÁREA DE ATUAÇÃO DA CODEVASF
B3: PLANILHA ORÇAMENTÁRIA ESTIMATIVA GERAL
B4: DATABASE DO ORÇAMENTO: SETEMBRO/2025 - NÃO DESONERADO
B5: PLANILHA RESUMIDA - Grupo 1 GOIÁS
B6: ITEM | C6: DISCRIMINAÇÃO | D6: UND | E6: Quantidade de Poços | F6: PREÇO UNITÁRIO | G6: TOTAL
B7: 1 | C7: Perfuração e instalação de poço tubular parcialmente revestido, instalado com sistema fotovoltaico, bomba submersa, reservatório e bebedouro para animais. | D7: un | E7: ='Orçamento Sintético - GO - P'!H2 -> 108 | F7: ='Orçamento Sintético - GO - P'!L2 -> 119706.7842 | G7: =F7*E7 -> 12928332.69
B8: 2 | C8: Perfuração e instalação de poços poço tubular totalmente revestido, instalado com sistema fotovoltaico, bomba submersa, reservatório e bebedouro para animais. | D8: un | E8: ='Orçamento Sintético - GO - T'!H2 -> 42 | F8: ='Orçamento Sintético - GO - T'!L2 -> 187085.3433 | G8: =F8*E8 -> 7857584.42
B9: TOTAL GERAL ESTIMADO GRUPO | D9: un | E9: =E7+E8 -> 150 | G9: =SUM(G8+G7) -> 20785917.11
B13: Base de Preços Consultados | E13: SBC 09/2025 SINAPI 08/2025 SICRO 04/2025 ORSE 06/2025 CPOS/CDHU 06/2025 EMBASA 06/2025 SEINFRA 028 SIURB 01/2025
B15: Encargos Sociais | E15: Não Desonerado: Horista: 108,84% Mensalista: 67,24%

Sheet Orçamento Sintético - GO - P
C1: OBJETO: EXECUÇÃO DE SERVIÇOS DE PERFURAÇÃO E INSTALAÇÃO DE POÇOS TUBULARES EM MUNICÍPIOS LOCALIZADOS NO GOIÁS, NA ÁREA DE ATUAÇÃO DA CODEVASF | H1: Quantidade de Poços | I1: BDI SERVIÇO | J1: BDI INSUMO | K1: Total | L1: Preço Unitário Por Poço | M1: Desconto
H2: 108 | I2: 0.2378 | J2: 0.1469 | K2: =SUM(K4+K8+K12+K17+K23+K26+K28+K30+K32+K40+K42+K48+K51) -> 12928332.69 | L2: =K2/H2 -> 119706.7842 | M2: 0
A3: Item | B3: Código | C3: Banco | D3: TIPO | E3: Descrição. | F3: un. | G3: Mem. calc. | H3: Quanti. | I3: Valor Unit | J3: Valor Unit com BDI | K3: Total | L3: Peso (%)
A4: 1 | E4: Serviços preliminares. | K4: =SUM(K5:K7) -> 153962.68 | L4: =K4/$K$2 -> 0.01190893549
A5: 1.1 | B5: COMPOSIÇÃO - 1 | C5: Próprio | D5: Serviço | E5: Administração local da obra - poço parcialmente revestido. | F5: un. | G5: 1 | H5: =G5*$H$2 -> 108 | I5: =VLOOKUP(B5,'Orçamento Analítico - GO - P'!B:J,8,0)*(1-$M$2) -> 213.6765 | J5: =ROUND(I5*(1+$I$2),2) -> 264.49 | K5: =ROUND(J5*H5,2) -> 28564.92 | L5: =K5/$K$2 -> 0.002209482126
A6: 1.2 | B6: COMPOSIÇÃO - 2 | C6: Próprio | D6: Serviço | E6: Serviço de locação geológica de campo com relatório hidro geológico e perfil construtivo e geológico esperado. relatório de viabilidade de implantação das estruturas e vistorias preliminares. | F6: un. | G6: 1 | H6: =G6*$H$2 -> 108 | I6: =VLOOKUP(B6,'Orçamento Analítico - GO - P'!B:J,8,0)*(1-$M$2) -> 602.65 | J6: =ROUND(I6*(1+$I$2),2) -> 745.96 | K6: =ROUND(J6*H6,2) -> 80563.68 | L6: =K6/$K$2 -> 0.006231559934
A7: 1.3 | B7: 103689 | C7: SINAPI | D7: Serviço | E7: Fornecimento e instalação de placa de obra com chapa galvanizada e estrutura de madeira. . | F7: m² | G7: 0.72 | H7: =G7*$H$2 -> 77.76 | I7: =VLOOKUP(B7,'Orçamento Analítico - GO - P'!B:J,8,0)*(1-$M$2) -> 465.8 | J7: =ROUND(I7*(1+$I$2),2) -> 576.57 | K7: 44834.08 | L7: 0.00346789343
A8: 2 | E8: Mobilizaçâo e desmobilizaçâo equipes perfuraçâo e instalação. | K8: =SUM(K9:K11) -> 266328 | L8: =K8/$K$2 -> 0.02060033621
A9: 2.1 | B9: COMPOSIÇÃO - 3 | C9: Próprio | D9: Serviço | E9: Transporte de comboio perfuração. | F9: km | G9: 150 | H9: =G9*$H$2 -> 16200 | I9: =VLOOKUP(B9,'Orçamento Analítico - GO - P'!B:J,8,0)*(1-$M$2) -> 4.7499326 | J9: =ROUND(I9*(1+$I$2),2) -> 5.88 | K9: 95256 | L9: =K9/$K$2 -> 0.007368003461
A10: 2.2 | B10: COMPOSIÇÃO - 4 | C10: Próprio | D10: Serviço | E10: Transporte de comboio instalação. | F10: km | G10: 150 | H10: =G10*$H$2 -> 16200 | I10: =VLOOKUP(B10,'Orçamento Analítico - GO - P'!B:J,8,0)*(1-$M$2) -> 5.9336256 | J10: =ROUND(I10*(1+$I$2),2) -> 7.34 | K10: 118908 | L10: 0.009197473708
A11: 2.3 | B11: COMPOSIÇÃO - 5 | C11: Próprio | D11: Serviço | E11: Transporte de equipe teste de vazão. | F11: km | G11: 150 | H11: 16200 | I11: =VLOOKUP(B11,'Orçamento Analítico - GO - P'!B:J,8,0)*(1-$M$2) -> 2.604457 | J11: =ROUND(I11*(1+$I$2),2) -> 3.22 | K11: 52164 | L11: 0.004034859038
A12: 3 | E12: Perfuração e completação de poço tubular. | K12: =SUM(K13:K16) -> 3039205.97 | L12: =K12/$K$2 -> 0.2350810459
A13: 3.1 | B13: 5048 | C13: ORSE | D13: Serviço | E13: Perfuraçao em rocha cristalina - rocha cristalina alterada / compacta dn 6" (poço até 120m). | F13: m | G13: 90 | H13: =G13*$H$2 -> 9720 | I13: =VLOOKUP(B13,'Orçamento Analítico - GO - P'!B:J,8,0)*(1-$M$2) -> 125.23 | J13: =ROUND(I13*(1+$I$2),2) -> 155.01 | K13: =ROUND(J13*H13,2) -> 1506697.2 | L13: 0.116542267
A14: 3.2 | B14: 5057 | C14: ORSE | D14: Serviço | E14: Perfuração rocha sedimentar sedimento / camadas inconsolidadas dn 12.1/2" - poço até 150m. | F14: m | G14: 30 | H14: =G14*$H$2 -> 3240 | I14: =VLOOKUP(B14,'Orçamento Analítico - GO - P'!B:J,8,0)*(1-$M$2) -> 247.66 | J14: =ROUND(I14*(1+$I$2),2) -> 306.55 | K14: =ROUND(J14*H14,2) -> 993222 | L14: 0.07682521976
A15: 3.3 | B15: COMPOSIÇÃO - 6 | C15: Próprio | D15: Serviço | E15: Serviço de lançamento cimentação anelar, incluso materiais. | F15: m³ | G15: 1.6 | H15: =G15*$H$2 -> 172.8 | I15: =VLOOKUP(B15,'Orçamento Analítico - GO - P'!B:J,8,0)*(1-$M$2) -> 521.34 | J15: =ROUND(I15*(1+$I$2),2) -> 645.31 | K15: =ROUND(J15*H15,2) -> 111509.57 | L15: 0.008625208886
A16: 3.4 | B16: 9854 | C16: SINAPI | D16: Insumo | E16: Tubo pvc de revestimento geomecanico nervurado standard, dn = 154 mm, comprimento = 2 m. | F16: m | G16: 30 | H16: =G16*$H$2 -> 3240 | I16: =VLOOKUP(B16,'Orçamento Analítico - GO - P'!B:J,8,0)*(1-$M$2) -> 115.12 | J16: =ROUND(I16*(1+$J$2),2) -> 132.03 | K16: =ROUND(J16*H16,2) -> 427777.2 | L16: 0.03308835023
A17: 4 | E17: Pós perfuração. | K17: =SUM(K18:K22) -> 1284535.8 | L17: =K17/$K$2 -> 0.09935819497
A18: 4.1 | B18: 6305 | C18: ORSE | D18: Serviço | E18: Desenvolvimento com compressor 250psi / 750cfm. | F18: h | G18: 2 | H18: =G18*$H$2 -> 216 | I18: =VLOOKUP(B18,'Orçamento Analítico - GO - P'!B:J,8,0)*(1-$M$2) -> 411.16 | J18: =ROUND(I18*(1+$I$2),2) -> 508.93 | K18: =ROUND(J18*H18,2) -> 109928.88 | L18: 0.008502943313
A19: 4.2 | B19: COMPOSIÇÃO - 7 | C19: Próprio | D19: Serviço | E19: Inspeção ótica em poço tubular câmera com rotação de 360º, visada lateral, com fonte própria de luz, entregue vídeo em cores e marcação de profundidades. | F19: m | G19: 120 | H19: =G19*$H$2 -> 12960 | I19: =VLOOKUP(B19,'Orçamento Analítico - GO - P'!B:J,8,0)*(1-$M$2) -> 9.64046 | J19: =ROUND(I19*(1+$I$2),2) -> 11.93 | K19: =ROUND(J19*H19,2) -> 154612.8 | L19: 0.01195922194
A20: 4.3 | B20: COMPOSIÇÃO - 8 | C20: Próprio | D20: Serviço | E20: Serviço de coleta e análise físico-química e bacteriológica. | F20: un. | G20: 1 | H20: 108 | I20: =VLOOKUP(B20,'Orçamento Analítico - GO - P'!B:J,8,0)*(1-$M$2) -> 621.19 | J20: 768.91 | K20: 83042.28 | L20: 0.006423278391
A21: 4.4 | B21: 24.80.22 | C21: EMBASA | D21: Serviço | E21: (REVISADA) DESENVOLVIMENTO OU TESTE COM BOMBA SUBMERSA - UEB1 NO SEDIMENTO COM VAZAO < 60M3 (Ensaio de bombeamento poço tubular incluso materiais e grupo gerador) | F21: h | G21: 24 | H21: 2592 | I21: =VLOOKUP(B21,'Orçamento Analítico - GO - P'!B:J,8,0)*(1-$M$2) -> 263.27 | J21: 325.88 | K21: 844680.96 | L21: 0.06533564538
A22: 4.5 | B22: COMPOSIÇÃO - 9 | C22: Próprio | D22: Serviço | E22: Serviço de instalação de laje sanitária com dimensões (1,5x1,5x0,3) metros , incluso material. | F22: un. | G22: 1 | H22: 108 | I22: =VLOOKUP(B22,'Orçamento Analítico - GO - P'!B:J,8,0)*(1-$M$2) -> 690.228 | J22: 854.36 | K22: 92270.88 | L22: 0.007137105937
A23: 5 | E23: Reservação. | K23: =SUM(K24:K25) -> 2324730.46 | L23: =K23/$K$2 -> 0.1798167262
A24: 5.1 | B24: COMPOSIÇÃO - 10 | C24: Próprio | D24: Serviço | E24: Fornecimento e instalação de reservatório e base elevada 10 m³. | F24: un. | G24: 0.8 | H24: 86.4 | I24: =VLOOKUP(B24,'Orçamento Analítico - GO - P'!B:J,8,0)*(1-$M$2) -> 19616.62188 | J24: 24281.45 | K24: 2097917.28 | L24: 0.1622728414
A25: 5.2 | B25: COMPOSIÇÃO - 11 | C25: Próprio | D25: Serviço | E25: Fornecimento e execução de reservatório apoiado de 5 m³. | F25: un. | G25: 0.2 | H25: 21.6 | I25: =VLOOKUP(B25,'Orçamento Analítico - GO - P'!B:J,8,0)*(1-$M$2) -> 8483.2843 | J25: 10500.61 | K25: 226813.18 | L25: 0.01754388485
A26: 6 | E26: Bebedouro. | K26: =SUM(K27:K27) -> 269058.24 | L26: =K26/$K$2 -> 0.02081151889
A27: 6.1 | B27: COMPOSIÇÃO - 12 | C27: Próprio | D27: Serviço | E27: Serviço de execução do bebedouro em concreto armado, incluso materiais. | F27: un. | G27: 1 | H27: 108 | I27: =VLOOKUP(B27,'Orçamento Analítico - GO - P'!B:J,8,0)*(1-$M$2) -> 2012.6652 | J27: 2491.28 | K27: 269058.24 | L27: 0.02081151889
A28: 7 | E28: Chafariz. | K28: =SUM(K29:K29) -> 126585.72 | L28: =K28/$K$2 -> 0.00979134147
A29: 7.1 | B29: COMPOSIÇÃO - 13 | C29: Próprio | D29: Serviço | E29: Fornecimento de material e instalação do chafariz. | F29: un. | G29: 1 | H29: 108 | I29: =VLOOKUP(B29,'Orçamento Analítico - GO - P'!B:J,8,0)*(1-$M$2) -> 946.9160855 | J29: 1172.09 | K29: 126585.72 | L29: 0.00979134147
A30: 8 | E30: Cavalete. | K30: =SUM(K31:K31) -> 308750.4 | L30: =K30/$K$2 -> 0.02388168741
A31: 8.1 | B31: COMPOSIÇÃO - 14 | C31: Próprio | D31: Serviço | E31: Fornecimento de conexões e instalação do cavalete com hidrômetro e clorador de pastilhas. | F31: un. | G31: 1 | H31: 108 | I31: =VLOOKUP(B31,'Orçamento Analítico - GO - P'!B:J,8,0)*(1-$M$2) -> 2309.58 | J31: 2858.8 | K31: 308750.4 | L31: 0.02388168741
A32: 9 | E32: Instalações hidráulicas. | K32: =SUM(K33:K39) -> 1902229.17 | L32: =K32/$K$2 -> 0.147136465
A33: 9.1 | B33: COMPOSIÇÃO - 15 | C33: Próprio | D33: Serviço | E33: Instalação da rede adutora poço-reservatório-bebedouro em pn80 e dn50mm. | F33: m | G33: 400 | H33: 43200 | I33: =VLOOKUP(B33,'Orçamento Analítico - GO - P'!B:J,8,0)*(1-$M$2) -> 6.45 | J33: 7.98 | K33: 344736 | L33: 0.02666515538
A34: 9.2 | B34: 9875 | C34: SINAPI | D34: Insumo | E34: TUBO PVC, SOLDAVEL, DE 50 MM, AGUA FRIA (NBR-5648) | F34: m | G34: 400 | H34: =G34*H2 -> 43200 | I34: =VLOOKUP(B34,'Orçamento Analítico - GO - P'!B:J,8,0)*(1-$M$2) -> 17.21 | J34: =ROUND(I34*(1+$J$2),2) -> 19.74 | K34: =J34*H34 -> 852768 | L34: 0.06596117384
A35: 9.3 | B35: COMPOSIÇÃO - 16 | C35: Próprio | D35: Serviço | E35: Montagem hidráulica do equipamento de bombeamento. | F35: un. | G35: 1 | H35: 108 | I35: =VLOOKUP(B35,'Orçamento Analítico - GO - P'!B:J,8,0)*(1-$M$2) -> 160.74 | J35: 198.96 | K35: 21487.68 | L35: =K35/$K$2 -> 0.001662061189
A36: 9.4 | B36: 38200 | C36: SINAPI | D36: Insumo | E36: Corda de poliamida 12 mm tipo bombeiro, para trabalho em altura. | F36: 100m | G36: 0.93 | H36: 100.44 | I36: =VLOOKUP(B36,'Orçamento Analítico - GO - P'!B:J,8,0)*(1-$M$2) -> 348.48 | J36: =ROUND(I36*(1+$J$2),2) -> 399.67 | K36: 40142.85 | L36: 0.003105029161
A37: 9.5 | B37: 9860 | C37: SINAPI | D37: Insumo | E37: Tubo pvc, roscavel, 2", para agua fria predial. | F37: m | G37: 90 | H37: 9720 | I37: =VLOOKUP(B37,'Orçamento Analítico - GO - P'!B:J,8,0)*(1-$M$2) -> 49.99 | J37: =ROUND(I37*(1+$J$2),2) -> 57.33 | K37: 557247.6 | L37: 0.04310282024
A38: 9.6 | B38: 3912 | C38: SINAPI | D38: Insumo | E38: Luva de ferro galvanizado, com rosca bsp, de 2". | F38: un. | G38: 16 | H38: 1728 | I38: =VLOOKUP(B38,'Orçamento Analítico - GO - P'!B:J,8,0)*(1-$M$2) -> 36.61 | J38: =ROUND(I38*(1+$J$2),2) -> 41.99 | K38: 72558.72 | L38: 0.005612380323
A39: 9.7 | B39: 5128 | C39: ORSE | D39: Insumo | E39: Tampa de poço galvanizada em 6" un. | F39: un. | G39: 1 | H39: 108 | I39: =VLOOKUP(B39,'Orçamento Analítico - GO - P'!B:J,8,0)*(1-$M$2) -> 107.28 | J39: =ROUND(I39*(1+$J$2),2) -> 123.04 | K39: 13288.32 | L39: 0.001027844837
A40: 10 | E40: Estrutura de fixação para módulos fotovoltáicos. | K40: =SUM(K41:K41) -> 137494.37 | L40: 0.01063512003
A41: 10.1 | B41: COMPOSIÇÃO - 17 | C41: Próprio | D41: Serviço | E41: Serviço de fixação de estruturas para os módulos fotovoltaicos e suportes de concreto, incluso materiais. | F41: m² | G41: 10.12 | H41: =G41*$H$2 -> 1092.96 | I41: =VLOOKUP(B41,'Orçamento Analítico - GO - P'!B:J,8,0)*(1-$M$2) -> 101.629992 | J41: =ROUND(I41*(1+$I$2),2) -> 125.8 | K41: =ROUND(J41*H41,2) -> 137494.37 | L41: =K41/$K$2 -> 0.01063512003
A42: 11 | E42: Instalações elétricas e bóia elétrica. | K42: =SUM(K43:K47) -> 1551309.84 | L42: =K42/$K$2 -> 0.1199930321
A43: 11.1 | B43: COMPOSIÇÃO - 18 | C43: Próprio | D43: Serviço | E43: Montagem e instalação elétrica do kit de bombeamento e sistema fotovoltaico inclusive sistema de aterramento. | F43: un. | G43: 1 | H43: =G43*$H$2 -> 108 | I43: =VLOOKUP(B43,'Orçamento Analítico - GO - P'!B:J,8,0)*(1-$M$2) -> 983.311 | J43: =ROUND(I43*(1+$I$2),2) -> 1217.14 | K43: =ROUND(J43*H43,2) -> 131451.12 | L43: =K43/$K$2 -> 0.0101676777
A44: 11.2 | B44: 34622 | C44: SINAPI | D44: Insumo | E44: Fornecimento de cabo flexivel pvc 750 v, 3 condutores de 6,0 mm2. | F44: m | G44: 105 | H44: 11340 | I44: =VLOOKUP(B44,'Orçamento Analítico - GO - P'!B:J,8,0)*(1-$M$2) -> 22.34 | J44: =ROUND(I44*(1+$J$2),2) -> 25.62 | K44: 290530.8 | L44: 0.02247241055
A45: 11.3 | B45: COMPOSIÇÃO - 19 | C45: Próprio | D45: Serviço | E45: Fornecimento e instalação de automático de bóia superior e inferior. | F45: un. | G45: 1 | H45: =G45*$H$2 -> 108 | I45: =VLOOKUP(B45,'Orçamento Analítico - GO - P'!B:J,8,0)*(1-$M$2) -> 56.6075 | J45: =ROUND(I45*(1+$I$2),2) -> 70.07 | K45: =ROUND(J45*H45,2) -> 7567.56 | L45: 0.0005853469416
A46: 11.4 | B46: 39257 | C46: SINAPI | D46: Insumo | E46: Cabo multipolar de cobre, flexivel, classe 4 ou 5, isolacao em hepr, cobertura em pvc-st2, antichama bwf-b, 0,6/1 kv, 3 condutores de 1,5 mm2. | F46: m | G46: 200 | H46: 21600 | I46: =VLOOKUP(B46,'Orçamento Analítico - GO - P'!B:J,8,0)*(1-$M$2) -> 6.07 | J46: =ROUND(I46*(1+$J$2),2) -> 6.96 | K46: 150336 | L46: 0.01162841362
A47: 11.5 | B47: COTAÇÃO-001 | C47: Próprio | D47: Insumo | E47: Fornecimento de kit de bombeamento fotovoltaico, incluindo uma bomba cc de 1500w com controladora de carga externa, caixa de proteção metálica, módulos fotovoltaicos compatíveis com a geração de 2200wp além de componentes elétricos necessários para interligação dos painéis, como cabos, conectores mc4 e presilhas de fixação. | F47: un. | G47: 1 | H47: =G47*$H$2 -> 108 | I47: =VLOOKUP(B47,'Orçamento Analítico - GO - P'!B:J,8,0)*(1-$M$2) -> 7842.59 | J47: =ROUND(I47*(1+$J$2),2) -> 8994.67 | K47: =ROUND(J47*H47,2) -> 971424.36 | L47: =K47/$K$2 -> 0.07513918332
A48: 12 | E48: Urbanização. | K48: =SUM(K49:K50) -> 405134.46 | L48: =K48/$K$2 -> 0.03133694574
A49: 12.1 | B49: COMPOSIÇÃO - 20 | C49: Próprio | D49: Serviço | E49: Cerca com mourões de concreto de 15x15cm, espaçados de 3m e cravados a 0,5m, escoras de 10x10cm nos cantos, e 9 fios de arame de aço ovalado 15x17. | F49: m | G49: 28 | H49: =G49*$H$2 -> 3024 | I49: =VLOOKUP(B49,'Orçamento Analítico - GO - P'!B:J,8,0)*(1-$M$2) -> 88.632856 | J49: =ROUND(I49*(1+$I$2),2) -> 109.71 | K49: =ROUND(J49*H49,2) -> 331763.04 | L49: =K49/$K$2 -> 0.02566170348
A50: 12.2 | B50: COMPOSIÇÃO - 21 | C50: Próprio | D50: Serviço | E50: Serviço de instalação de portão de ferro com suporte e batedor conforme projeto, incluso material. | F50: m² | G50: 1.5 | H50: 162 | I50: =VLOOKUP(B50,'Orçamento Analítico - GO - P'!B:J,8,0)*(1-$M$2) -> 365.90216 | J50: 452.91 | K50: 73371.42 | L50: =K50/$K$2 -> 0.005675242257
A51: 13 | E51: Outros serviços e insumos excepcionais. | K51: =SUM(K52:K59) -> 1159007.58 | L51: =K51/$K$2 -> 0.08964865059
A52: 13.1 | B52: COMPOSIÇÃO - 22 | C52: Próprio | D52: Serviço | E52: Fornecimento e instalação do pré filtro para revestimento interno. | F52: m³ | G52: 1.212 | H52: =G52*$H$2 -> 130.896 | I52: =VLOOKUP(B52,'Orçamento Analítico - GO - P'!B:J,8,0)*(1-$M$2) -> 1655.01 | J52: =ROUND(I52*(1+$I$2),2) -> 2048.57 | K52: =ROUND(J52*H52,2) -> 268149.62 | L52: =K52/$K$2 -> 0.02074123759
A53: 13.2 | B53: COMPOSIÇÃO - 23 | C53: Próprio | D53: Serviço | E53: Execução de tamponamento conforme especificação. | F53: m³ | G53: 0.24 | H53: 25.92 | I53: =VLOOKUP(B53,'Orçamento Analítico - GO - P'!B:J,8,0)*(1-$M$2) -> 647.58 | J53: 801.57 | K53: 20776.69 | L53: 0.001607066472
A54: 13.3 | B54: COMPOSIÇÃO - 24 | C54: Próprio | D54: Serviço | E54: Fornecimento e instalação do filtro para revestimento interno ø 4 1/2". | F54: m | G54: 0.6 | H54: 64.8 | I54: =VLOOKUP(B54,'Orçamento Analítico - GO - P'!B:J,8,0)*(1-$M$2) -> 127.9865 | J54: 158.42 | K54: 10265.62 | L54: 0.0007940405191
A55: 13.4 | B55: COMPOSIÇÃO - 25 | C55: Próprio | D55: Serviço | E55: Fornecimento e instalação do revestimento interno ø 4 1/2". | F55: m | G55: 34.8 | H55: 3758.4 | I55: =VLOOKUP(B55,'Orçamento Analítico - GO - P'!B:J,8,0)*(1-$M$2) -> 118.4365 | J55: 146.6 | K55: 550981.44 | L55: 0.04261813594
A56: 13.5 | B56: M3929 | C56: SICRO3 | D56: Insumo | E56: Tubo em aço-carbono - e = 3,00 mm e d = 150 mm (6"). | F56: m | G56: 9 | H56: 972 | I56: =VLOOKUP(B56,'Orçamento Analítico - GO - P'!B:J,8,0)*(1-$M$2) -> 148.57 | J56: =ROUND(I56*(1+$J$2),2) -> 170.39 | K56: 165619.08 | L56: 0.01281055214
A57: 13.6 | B57: 5108 | C57: Orse | D57: Insumo | E57: Revestimento tubo liso aço sch-40 em 8" | F57: m | G57: 6 | H57: 648 | I57: =VLOOKUP(B57,'Orçamento Analítico - GO - P'!B:J,8,0)*(1-$M$2) -> 164.55 | J57: =ROUND(I57*(1+$J$2),2) -> 188.72 | K57: 122290.56 | L57: 0.009459113014
A58: 13.7 | B58: M039706073 | C58: EMBASA | D58: Insumo | E58: Filtro nold em aço galvanizado dn 6". | F58: m | G58: 0.04 | H58: 4.32 | I58: =VLOOKUP(B58,'Orçamento Analítico - GO - P'!B:J,8,0)*(1-$M$2) -> 835.86 | J58: =ROUND(I58*(1+$J$2),2) -> 958.65 | K58: 4141.37 | L58: 0.0003203328766
A59: 13.8 | B59: COMPOSIÇÃO - 26 | C59: Próprio | D59: Serviço | E59: Limpeza manual , remoção de cerca, capina e instalação dos equipamentos (área do poço, painéis solares, bebedouro e reservatório). | F59: m² | G59: 70 | H59: =G59*$H$2 -> 7560 | I59: =VLOOKUP(B59,'Orçamento Analítico - GO - P'!B:J,8,0)*(1-$M$2) -> 1.7936 | J59: =ROUND(I59*(1+$I$2),2) -> 2.22 | K59: =ROUND(J59*H59,2) -> 16783.2 | L59: =K59/$K$2 -> 0.001298172038

Sheet Orçamento Analítico - GO - P
C1: OBJETO: EXECUÇÃO DE SERVIÇOS DE PERFURAÇÃO E INSTALAÇÃO DE POÇOS TUBULARES EM MUNICÍPIOS LOCALIZADOS NO GOIÁS, NA ÁREA DE ATUAÇÃO DA CODEVASF
A4: PLANILHA ANALÍTICA - POÇO PARCIALMENTE REVESTIDO - GOIÁS
A5: 1 | D5: Serviços preliminares.
A6: 1 | D6: SERVIÇOS PRELIMINARES | J6: 1457.27
A7: 1.1 | B7: Código | C7: Banco | D7: Descrição | E7: Tipo | G7: Und | H7: Quant. | I7: Valor Unit | J7: Total
A8: Composição | B8: COMPOSIÇÃO - 1 | C8: Próprio | D8: Administração Local da Obra - Poço Parcialmente Revestido | E8: CANT - CANTEIRO DE OBRAS | G8: un | H8: 1 | I8: =SUM(J9:J10) -> 213.6765 | J8: =I8*H8 -> 213.6765
A9: Composição Auxiliar | B9: 12710 | C9: SBC | D9: DESPESAS GERAIS DE MANUTENCAO CANTEIRO DE OBRAS | E9: INSTALACOES PROVISORIAS | G9: MES | H9: 0.03 | I9: =IF(C9="SINAPI", IF( IF(A9="Insumo", VLOOKUP(B9,'SINAPI INSUMOS'!B:F,5,0), VLOOKUP(B9,'SINAPI COMP'!B:F,4,0))=0,VLOOKUP(B9,'OUTRAS BASES'!C:D,2,0),IF(A9="Insumo", VLOOKUP(B9,'SINAPI INSUMOS'!B:F,5,0),VLOOKUP(B9,'SINAPI COMP'!B:F,4,0))), VLOOKUP(B9,'OUTRAS BASES'!C:D,2,0)) -> 910.61 | J9: =I9*H9 -> 27.3183
A10: Composição Auxiliar | B10: 100321 | C10: SINAPI | D10: TÉCNICO EM SEGURANÇA DO TRABALHO COM ENCARGOS COMPLEMENTARES | E10: Livro SINAPI: Cálculos e Parâmetros | G10: MES | H10: 0.03 | I10: =IF(C10="SINAPI", IF( IF(A10="Insumo", VLOOKUP(B10,'SINAPI INSUMOS'!B:F,5,0), VLOOKUP(B10,'SINAPI COMP'!B:F,4,0))=0,VLOOKUP(B10,'OUTRAS BASES'!C:D,2,0),IF(A10="Insumo", VLOOKUP(B10,'SINAPI INSUMOS'!B:F,5,0),VLOOKUP(B10,'SINAPI COMP'!B:F,4,0))), VLOOKUP(B10,'OUTRAS BASES'!C:D,2,0)) -> 6211.94 | J10: =I10*H10 -> 186.3582
A15: 1.2 | B15: Código | C15: Banco | D15: Descrição | E15: Tipo | G15: Und | H15: Quant. | I15: Valor Unit | J15: Total
A16: Composição | B16: COMPOSIÇÃO - 2 | C16: Próprio | D16: Serviço de locação Geológica de campo com relatório hidro geológico e perfil construtivo e geológico esperado. Relatório de Viabilidade de implantação das estruturas e vistorias preliminares | E16: SERT - SERVIÇOS TÉCNICOS | G16: un | H16: 1 | I16: =SUM(J17:J19) -> 602.65 | J16: =I16*H16 -> 602.65
A17: Composição Auxiliar | B17: 30.01.45 | C17: EMBASA | D17: GEOLOGO SENIOR | E17: 3001 | G17: hora | H17: 5 | I17: =IF(C17="SINAPI", IF( IF(A17="Insumo", VLOOKUP(B17,'SINAPI INSUMOS'!B:F,5,0), VLOOKUP(B17,'SINAPI COMP'!B:F,4,0))=0,VLOOKUP(B17,'OUTRAS BASES'!C:D,2,0),IF(A17="Insumo", VLOOKUP(B17,'SINAPI INSUMOS'!B:F,5,0),VLOOKUP(B17,'SINAPI COMP'!B:F,4,0))), VLOOKUP(B17,'OUTRAS BASES'!C:D,2,0)) -> 99.88 | J17: =I17*H17 -> 499.4
A18: Insumo | B18: 5896 | C18: ORSE | D18: Veículo tipo sedan ou pick-up capacidade 0,6 ton h | E18: Equipamento | G18: h | H18: 5 | I18: =IF(C18="SINAPI", IF( IF(A18="Insumo", VLOOKUP(B18,'SINAPI INSUMOS'!B:F,5,0), VLOOKUP(B18,'SINAPI COMP'!B:F,4,0))=0,VLOOKUP(B18,'OUTRAS BASES'!C:D,2,0),IF(A18="Insumo", VLOOKUP(B18,'SINAPI INSUMOS'!B:F,5,0),VLOOKUP(B18,'SINAPI COMP'!B:F,4,0))), VLOOKUP(B18,'OUTRAS BASES'!C:D,2,0)) -> 8.33 | J18: =I18*H18 -> 41.65
A19: Insumo | B19: 4222 | C19: SINAPI | D19: GASOLINA COMUM | E19: Material | G19: L | H19: 10 | I19: =IF(C19="SINAPI", IF( IF(A19="Insumo", VLOOKUP(B19,'SINAPI INSUMOS'!B:F,5,0), VLOOKUP(B19,'SINAPI COMP'!B:F,4,0))=0,VLOOKUP(B19,'OUTRAS BASES'!C:D,2,0),IF(A19="Insumo", VLOOKUP(B19,'SINAPI INSUMOS'!B:F,5,0),VLOOKUP(B19,'SINAPI COMP'!B:F,4,0))), VLOOKUP(B19,'OUTRAS BASES'!C:D,2,0)) -> 6.16 | J19: =I19*H19 -> 61.6
A24: 1.3 | B24: Código | C24: Banco | D24: Descrição | E24: Tipo | G24: Und | H24: Quant. | I24: Valor Unit | J24: Total
A25: Composição | B25: 103689 | C25: SINAPI | D25: FORNECIMENTO E INSTALAÇÃO DE PLACA DE OBRA COM CHAPA GALVANIZADA E ESTRUTURA DE MADEIRA. AF_03/2022_PS | E25: Sinalização Vertical Viária | G25: m² | H25: 1 | I25: =IF(C25="SINAPI", IF( IF(A25="Insumo", VLOOKUP(B25,'SINAPI INSUMOS'!B:F,5,0), VLOOKUP(B25,'SINAPI COMP'!B:F,4,0))=0,VLOOKUP(B25,'OUTRAS BASES'!C:D,2,0),IF(A25="Insumo", VLOOKUP(B25,'SINAPI INSUMOS'!B:F,5,0),VLOOKUP(B25,'SINAPI COMP'!B:F,4,0))), VLOOKUP(B25,'OUTRAS BASES'!C:D,2,0)) -> 465.8 | J25: =I25*H25 -> 465.8
A26: Composição Auxiliar | B26: 102234 | C26: SINAPI | D26: PINTURA IMUNIZANTE PARA MADEIRA, 2 DEMÃOS. AF_01/2021 | E26: Pintura em Madeira | G26: m² | H26: 0.5 | I26: =IF(C26="SINAPI", IF( IF(A26="Insumo", VLOOKUP(B26,'SINAPI INSUMOS'!B:F,5,0), VLOOKUP(B26,'SINAPI COMP'!B:F,4,0))=0,VLOOKUP(B26,'OUTRAS BASES'!C:D,2,0),IF(A26="Insumo", VLOOKUP(B26,'SINAPI INSUMOS'!B:F,5,0),VLOOKUP(B26,'SINAPI COMP'!B:F,4,0))), VLOOKUP(B26,'OUTRAS BASES'!C:D,2,0)) -> 23.09 | J26: =I26*H26 -> 11.545
A27: Composição Auxiliar | B27: 88262 | C27: SINAPI | D27: CARPINTEIRO DE FORMAS COM ENCARGOS COMPLEMENTARES | E27: Livro SINAPI: Cálculos e Parâmetros | G27: H | H27: 0.3729 | I27: =IF(C27="SINAPI", IF( IF(A27="Insumo", VLOOKUP(B27,'SINAPI INSUMOS'!B:F,5,0), VLOOKUP(B27,'SINAPI COMP'!B:F,4,0))=0,VLOOKUP(B27,'OUTRAS BASES'!C:D,2,0),IF(A27="Insumo", VLOOKUP(B27,'SINAPI INSUMOS'!B:F,5,0),VLOOKUP(B27,'SINAPI COMP'!B:F,4,0))), VLOOKUP(B27,'OUTRAS BASES'!C:D,2,0)) -> 31.69 | J27: 11.817201
A28: Composição Auxiliar | B28: 88316 | C28: SINAPI | D28: SERVENTE COM ENCARGOS COMPLEMENTARES | E28: Livro SINAPI: Cálculos e Parâmetros | G28: H | H28: 1.1186 | I28: =IF(C28="SINAPI", IF( IF(A28="Insumo", VLOOKUP(B28,'SINAPI INSUMOS'!B:F,5,0), VLOOKUP(B28,'SINAPI COMP'!B:F,4,0))=0,VLOOKUP(B28,'OUTRAS BASES'!C:D,2,0),IF(A28="Insumo", VLOOKUP(B28,'SINAPI INSUMOS'!B:F,5,0),VLOOKUP(B28,'SINAPI COMP'!B:F,4,0))), VLOOKUP(B28,'OUTRAS BASES'!C:D,2,0)) -> 22.42 | J28: 25.079012
A29: Insumo | B29: 4509 | C29: SINAPI | D29: SARRAFO *2,5 X 10* CM EM PINUS, MISTA OU EQUIVALENTE DA REGIAO - BRUTA | E29: Material | G29: M | H29: 3.2083 | I29: =IF(C29="SINAPI", IF( IF(A29="Insumo", VLOOKUP(B29,'SINAPI INSUMOS'!B:F,5,0), VLOOKUP(B29,'SINAPI COMP'!B:F,4,0))=0,VLOOKUP(B29,'OUTRAS BASES'!C:D,2,0),IF(A29="Insumo", VLOOKUP(B29,'SINAPI INSUMOS'!B:F,5,0),VLOOKUP(B29,'SINAPI COMP'!B:F,4,0))), VLOOKUP(B29,'OUTRAS BASES'!C:D,2,0)) -> 5.2 | J29: 16.68316
A30: Insumo | B30: 4813 | C30: SINAPI | D30: PLACA DE OBRA (PARA CONSTRUCAO CIVIL) EM CHAPA GALVANIZADA *N. 22*, ADESIVADA, DE *2,4 X 1,2* M (SEM POSTES PARA FIXACAO) | E30: Material | G30: m² | H30: 1 | I30: =IF(C30="SINAPI", IF( IF(A30="Insumo", VLOOKUP(B30,'SINAPI INSUMOS'!B:F,5,0), VLOOKUP(B30,'SINAPI COMP'!B:F,4,0))=0,VLOOKUP(B30,'OUTRAS BASES'!C:D,2,0),IF(A30="Insumo", VLOOKUP(B30,'SINAPI INSUMOS'!B:F,5,0),VLOOKUP(B30,'SINAPI COMP'!B:F,4,0))), VLOOKUP(B30,'OUTRAS BASES'!C:D,2,0)) -> 400 | J30: 400
A31: Insumo | B31: 5065 | C31: SINAPI | D31: PREGO DE ACO POLIDO COM CABECA 10 X 10 (7/8 X 17) | E31: Material | G31: KG | H31: 0.0113 | I31: =IF(C31="SINAPI", IF( IF(A31="Insumo", VLOOKUP(B31,'SINAPI INSUMOS'!B:F,5,0), VLOOKUP(B31,'SINAPI COMP'!B:F,4,0))=0,VLOOKUP(B31,'OUTRAS BASES'!C:D,2,0),IF(A31="Insumo", VLOOKUP(B31,'SINAPI INSUMOS'!B:F,5,0),VLOOKUP(B31,'SINAPI COMP'!B:F,4,0))), VLOOKUP(B31,'OUTRAS BASES'!C:D,2,0)) -> 38.6 | J31: 0.43618
A32: Insumo | B32: 5069 | C32: SINAPI | D32: PREGO DE ACO POLIDO COM CABECA 17 X 27 (2 1/2 X 11) | E32: Material | G32: KG | H32: 0.0132 | I32: =IF(C32="SINAPI", IF( IF(A32="Insumo", VLOOKUP(B32,'SINAPI INSUMOS'!B:F,5,0), VLOOKUP(B32,'SINAPI COMP'!B:F,4,0))=0,VLOOKUP(B32,'OUTRAS BASES'!C:D,2,0),IF(A32="Insumo", VLOOKUP(B32,'SINAPI INSUMOS'!B:F,5,0),VLOOKUP(B32,'SINAPI COMP'!B:F,4,0))), VLOOKUP(B32,'OUTRAS BASES'!C:D,2,0)) -> 20.68 | J32: 0.272976
A37: 2 | D37: MOBILIZAÇÂO E DESMOBILIZAÇÂO EQUIPES PERFURAÇÂO E INSTALAÇÃO | J37: 2554.5
A38: 2.1 | B38: Código | C38: Banco | D38: Descrição | E38: Tipo | G38: Und | H38: Quant. | I38: Valor Unit | J38: Total
A39: Composição | B39: COMPOSIÇÃO - 3 | C39: Próprio | D39: Transporte de Comboio Perfuração | E39: TRAN - TRANSPORTES, CARGAS E DESCARGAS | G39: km | H39: 1 | I39: =SUM(J40:J41) -> 4.7499326 | J39: =I39*H39 -> 4.7499326
A40: Composição Auxiliar | B40: 5824 | C40: SINAPI | D40: CAMINHÃO TOCO, PBT 16.000 KG, CARGA ÚTIL MÁX. 10.685 KG, DIST. ENTRE EIXOS 4,8 M, POTÊNCIA 189 CV, INCLUSIVE CARROCERIA FIXA ABERTA DE MADEIRA P/ TRANSPORTE GERAL DE CARGA SECA, DIMEN. APROX. 2,5 X 7,00 X 0,50 M - CHP DIURNO. AF_06/2014 | E40: Custos Horários Produtivo e Improdutivo dos Equipamentos | G40: CHP | H40: 0.01666 | I40: =IF(C40="SINAPI", IF( IF(A40="Insumo", VLOOKUP(B40,'SINAPI INSUMOS'!B:F,5,0), VLOOKUP(B40,'SINAPI COMP'!B:F,4,0))=0,VLOOKUP(B40,'OUTRAS BASES'!C:D,2,0),IF(A40="Insumo", VLOOKUP(B40,'SINAPI INSUMOS'!B:F,5,0),VLOOKUP(B40,'SINAPI COMP'!B:F,4,0))), VLOOKUP(B40,'OUTRAS BASES'!C:D,2,0)) -> 219.76 | J40: =I40*H40 -> 3.6612016
A41: Composição Auxiliar | B41: 5826 | C41: SINAPI | D41: CAMINHÃO TOCO, PBT 16.000 KG, CARGA ÚTIL MÁX. 10.685 KG, DIST. ENTRE EIXOS 4,8 M, POTÊNCIA 189 CV, INCLUSIVE CARROCERIA FIXA ABERTA DE MADEIRA P/ TRANSPORTE GERAL DE CARGA SECA, DIMEN. APROX. 2,5 X 7,00 X 0,50 M - CHI DIURNO. AF_06/2014 | E41: Custos Horários Produtivo e Improdutivo dos Equipamentos | G41: CHI | H41: 0.01666 | I41: =IF(C41="SINAPI", IF( IF(A41="Insumo", VLOOKUP(B41,'SINAPI INSUMOS'!B:F,5,0), VLOOKUP(B41,'SINAPI COMP'!B:F,4,0))=0,VLOOKUP(B41,'OUTRAS BASES'!C:D,2,0),IF(A41="Insumo", VLOOKUP(B41,'SINAPI INSUMOS'!B:F,5,0),VLOOKUP(B41,'SINAPI COMP'!B:F,4,0))), VLOOKUP(B41,'OUTRAS BASES'!C:D,2,0)) -> 65.35 | J41: 1.088731
A46: 2.2 | B46: Código | C46: Banco | D46: Descrição | E46: Tipo | G46: Und | H46: Quant. | I46: Valor Unit | J46: Total
A47: Composição | B47: COMPOSIÇÃO - 4 | C47: Próprio | D47: Transporte de Comboio Instalação | E47: TRAN - TRANSPORTES, CARGAS E DESCARGAS | G47: km | H47: 1 | I47: =SUM(J48:J49) -> 5.9336256 | J47: =I47*H47 -> 5.9336256
A48: Composição Auxiliar | B48: 5928 | C48: SINAPI | D48: GUINDAUTO HIDRÁULICO, CAPACIDADE MÁXIMA DE CARGA 6200 KG, MOMENTO MÁXIMO DE CARGA 11,7 TM, ALCANCE MÁXIMO HORIZONTAL 9,70 M, INCLUSIVE CAMINHÃO TOCO PBT 16.000 KG, POTÊNCIA DE 189 CV - CHP DIURNO. AF_06/2014 | E48: Custos Horários Produtivo e Improdutivo dos Equipamentos | G48: CHP | H48: 0.01666 | I48: =IF(C48="SINAPI", IF( IF(A48="Insumo", VLOOKUP(B48,'SINAPI INSUMOS'!B:F,5,0), VLOOKUP(B48,'SINAPI COMP'!B:F,4,0))=0,VLOOKUP(B48,'OUTRAS BASES'!C:D,2,0),IF(A48="Insumo", VLOOKUP(B48,'SINAPI INSUMOS'!B:F,5,0),VLOOKUP(B48,'SINAPI COMP'!B:F,4,0))), VLOOKUP(B48,'OUTRAS BASES'!C:D,2,0)) -> 279.76 | J48: =I48*H48 -> 4.6608016
A49: Composição Auxiliar | B49: 5930 | C49: SINAPI | D49: GUINDAUTO HIDRÁULICO, CAPACIDADE MÁXIMA DE CARGA 6200 KG, MOMENTO MÁXIMO DE CARGA 11,7 TM, ALCANCE MÁXIMO HORIZONTAL 9,70 M, INCLUSIVE CAMINHÃO TOCO PBT 16.000 KG, POTÊNCIA DE 189 CV - CHI DIURNO. AF_06/2014 | E49: Custos Horários Produtivo e Improdutivo dos Equipamentos | G49: CHI | H49: 0.01666 | I49: =IF(C49="SINAPI", IF( IF(A49="Insumo", VLOOKUP(B49,'SINAPI INSUMOS'!B:F,5,0), VLOOKUP(B49,'SINAPI COMP'!B:F,4,0))=0,VLOOKUP(B49,'OUTRAS BASES'!C:D,2,0),IF(A49="Insumo", VLOOKUP(B49,'SINAPI INSUMOS'!B:F,5,0),VLOOKUP(B49,'SINAPI COMP'!B:F,4,0))), VLOOKUP(B49,'OUTRAS BASES'!C:D,2,0)) -> 76.4 | J49: 1.272824
A54: 2.3 | B54: Código | C54: Banco | D54: Descrição | E54: Tipo | G54: Und | H54: Quant. | I54: Valor Unit | J54: Total
A55: Composição | B55: COMPOSIÇÃO - 5 | C55: Próprio | D55: Transporte de Equipe Teste de Vazão | E55: TRAN - TRANSPORTES, CARGAS E DESCARGAS | G55: km | H55: 1 | I55: =SUM(J56:J57) -> 2.604457 | J55: =I55*H55 -> 2.604457
A56: Composição Auxiliar | B56: 73467 | C56: SINAPI | D56: CAMINHÃO TOCO, PBT 14.300 KG, CARGA ÚTIL MÁX. 9.710 KG, DIST. ENTRE EIXOS 3,56 M, POTÊNCIA 185 CV, INCLUSIVE CARROCERIA FIXA ABERTA DE MADEIRA P/ TRANSPORTE GERAL DE CARGA SECA, DIMEN. APROX. 2,50 X 6,50 X 0,50 M - CHP DIURNO. AF_06/2014 | E56: Custos Horários Produtivo e Improdutivo dos Equipamentos | G56: CHP | H56: 0.0083 | I56: =IF(C56="SINAPI", IF( IF(A56="Insumo", VLOOKUP(B56,'SINAPI INSUMOS'!B:F,5,0), VLOOKUP(B56,'SINAPI COMP'!B:F,4,0))=0,VLOOKUP(B56,'OUTRAS BASES'!C:D,2,0),IF(A56="Insumo", VLOOKUP(B56,'SINAPI INSUMOS'!B:F,5,0),VLOOKUP(B56,'SINAPI COMP'!B:F,4,0))), VLOOKUP(B56,'OUTRAS BASES'!C:D,2,0)) -> 251.36 | J56: =I56*H56 -> 2.086288
A57: Composição Auxiliar | B57: 91395 | C57: SINAPI | D57: CAMINHÃO TOCO, PBT 14.300 KG, CARGA ÚTIL MÁX. 9.710 KG, DIST. ENTRE EIXOS 3,56 M, POTÊNCIA 185 CV, INCLUSIVE CARROCERIA FIXA ABERTA DE MADEIRA P/ TRANSPORTE GERAL DE CARGA SECA, DIMEN. APROX. 2,50 X 6,50 X 0,50 M - CHI DIURNO. AF_06/2014 | E57: Custos Horários Produtivo e Improdutivo dos Equipamentos | G57: CHI | H57: 0.0083 | I57: =IF(C57="SINAPI", IF( IF(A57="Insumo", VLOOKUP(B57,'SINAPI INSUMOS'!B:F,5,0), VLOOKUP(B57,'SINAPI COMP'!B:F,4,0))=0,VLOOKUP(B57,'OUTRAS BASES'!C:D,2,0),IF(A57="Insumo", VLOOKUP(B57,'SINAPI INSUMOS'!B:F,5,0),VLOOKUP(B57,'SINAPI COMP'!B:F,4,0))), VLOOKUP(B57,'OUTRAS BASES'!C:D,2,0)) -> 62.43 | J57: 0.518169
A62: 3 | D62: PERFURAÇÃO E COMPLETAÇÃO DE POÇO TUBULAR | J62: 32678.51
A63: 3.1 | B63: Código | C63: Banco | D63: Descrição | E63: Tipo | G63: Und | H63: Quant. | I63: Valor Unit | J63: Total
A64: Insumo | B64: 5048 | C64: ORSE | D64: Perfuraçao em rocha cristalina - rocha cristalina alterada / compacta dn 6" (poço até 120m) | E64: Serviços | G64: m | H64: 1 | I64: =IF(C64="SINAPI", IF( IF(A64="Insumo", VLOOKUP(B64,'SINAPI INSUMOS'!B:F,5,0), VLOOKUP(B64,'SINAPI COMP'!B:F,4,0))=0,VLOOKUP(B64,'OUTRAS BASES'!C:D,2,0),IF(A64="Insumo", VLOOKUP(B64,'SINAPI INSUMOS'!B:F,5,0),VLOOKUP(B64,'SINAPI COMP'!B:F,4,0))), VLOOKUP(B64,'OUTRAS BASES'!C:D,2,0)) -> 125.23 | J64: =I64*H64 -> 125.23
A69: 3.2 | B69: Código | C69: Banco | D69: Descrição | E69: Tipo | G69: Und | H69: Quant. | I69: Valor Unit | J69: Total
A70: Insumo | B70: 5057 | C70: ORSE | D70: Perfuração rocha sedimentar sedimento / Camadas inconsolidadas DN 12.1/2" - Poço até 150 m (Perfuração rotopneumática Ø 12 1/2" | E70: Serviços | G70: m | H70: 1 | I70: =IF(C70="SINAPI", IF( IF(A70="Insumo", VLOOKUP(B70,'SINAPI INSUMOS'!B:F,5,0), VLOOKUP(B70,'SINAPI COMP'!B:F,4,0))=0,VLOOKUP(B70,'OUTRAS BASES'!C:D,2,0),IF(A70="Insumo", VLOOKUP(B70,'SINAPI INSUMOS'!B:F,5,0),VLOOKUP(B70,'SINAPI COMP'!B:F,4,0))), VLOOKUP(B70,'OUTRAS BASES'!C:D,2,0)) -> 247.66 | J70: =I70*H70 -> 247.66
A75: 3.3 | B75: Código | C75: Banco | D75: Descrição | E75: Tipo | G75: Und | H75: Quant. | I75: Valor Unit | J75: Total
A76: Composição | B76: COMPOSIÇÃO - 6 | C76: Próprio | D76: Serviço de lançamento cimentação anelar, incluso materiais. | E76: SEDI - SERVIÇOS DIVERSOS | G76: m³ | H76: 1 | I76: =SUM(J77) -> 521.34 | J76: =I76*H76 -> 521.34
A77: Composição Auxiliar | B77: 1903 | C77: ORSE | D77: Argamassa cimento e areia traço t-1 (1:3) - 1 saco cimento 50kg / 3 padiolas areia dim. 0.35 x 0.45 x 0.23 m - Confecção mecânica e transporte | E77: Argamassas | G77: m³ | H77: 1 | I77: =IF(C77="SINAPI", IF( IF(A77="Insumo", VLOOKUP(B77,'SINAPI INSUMOS'!B:F,5,0), VLOOKUP(B77,'SINAPI COMP'!B:F,4,0))=0,VLOOKUP(B77,'OUTRAS BASES'!C:D,2,0),IF(A77="Insumo", VLOOKUP(B77,'SINAPI INSUMOS'!B:F,5,0),VLOOKUP(B77,'SINAPI COMP'!B:F,4,0))), VLOOKUP(B77,'OUTRAS BASES'!C:D,2,0)) -> 521.34 | J77: =I77*H77 -> 521.34
A82: 3.4 | B82: Código | C82: Banco | D82: Descrição | E82: Tipo | G82: Und | H82: Quant. | I82: Valor Unit | J82: Total
A83: Insumo | B83: 9854 | C83: SINAPI | D83: TUBO PVC DE REVESTIMENTO GEOMECANICO NERVURADO STANDARD, DN = 154 MM, COMPRIMENTO = 2 M | E83: Material | G83: M | H83: 1 | I83: =IF(C83="SINAPI", IF( IF(A83="Insumo", VLOOKUP(B83,'SINAPI INSUMOS'!B:F,5,0), VLOOKUP(B83,'SINAPI COMP'!B:F,4,0))=0,VLOOKUP(B83,'OUTRAS BASES'!C:D,2,0),IF(A83="Insumo", VLOOKUP(B83,'SINAPI INSUMOS'!B:F,5,0),VLOOKUP(B83,'SINAPI COMP'!B:F,4,0))), VLOOKUP(B83,'OUTRAS BASES'!C:D,2,0)) -> 115.12 | J83: =I83*H83 -> 115.12
A88: 4 | D88: PÓS PERFURAÇÃO | J88: 11829.03
A89: 4.1 | B89: Código | C89: Banco | D89: Descrição | E89: Tipo | G89: Und | H89: Quant. | I89: Valor Unit | J89: Total
A90: Composição | B90: 6305 | C90: ORSE | D90: Desenvolvimento com Compressor 250psi / 750cfm | E90: Conversão InfoWOrca | G90: h | H90: 1 | I90: =IF(C90="SINAPI", IF( IF(A90="Insumo", VLOOKUP(B90,'SINAPI INSUMOS'!B:F,5,0), VLOOKUP(B90,'SINAPI COMP'!B:F,4,0))=0,VLOOKUP(B90,'OUTRAS BASES'!C:D,2,0),IF(A90="Insumo", VLOOKUP(B90,'SINAPI INSUMOS'!B:F,5,0),VLOOKUP(B90,'SINAPI COMP'!B:F,4,0))), VLOOKUP(B90,'OUTRAS BASES'!C:D,2,0)) -> 411.16 | J90: =I90*H90 -> 411.16
A91: Insumo | B91: 5030 | C91: ORSE | D91: Desenvolvimento com compressor 250psi - 750cfm h | E91: Serviços | G91: h | H91: 1 | I91: =IF(C91="SINAPI", IF( IF(A91="Insumo", VLOOKUP(B91,'SINAPI INSUMOS'!B:F,5,0), VLOOKUP(B91,'SINAPI COMP'!B:F,4,0))=0,VLOOKUP(B91,'OUTRAS BASES'!C:D,2,0),IF(A91="Insumo", VLOOKUP(B91,'SINAPI INSUMOS'!B:F,5,0),VLOOKUP(B91,'SINAPI COMP'!B:F,4,0))), VLOOKUP(B91,'OUTRAS BASES'!C:D,2,0)) -> 411.16 | J91: =I91*H91 -> 411.16
A96: 4.2 | B96: Código | C96: Banco | D96: Descrição | E96: Tipo | G96: Und | H96: Quant. | I96: Valor Unit | J96: Total
A97: Composição | B97: COMPOSIÇÃO - 7 | C97: Próprio | D97: Inspeção ótica em poço tubular câmera com rotação de 360º, visada lateral, com fonte própria de luz, entregue vídeo em cores e marcação de profundidades. | E97: SEES - SERVIÇOS ESPECIAIS | G97: m | H97: 1 | I97: =SUM(J98:J99) -> 9.64046 | J97: =I97*H97 -> 9.64046
A98: Insumo | B98: H020050004 | C98: EMBASA | D98: APARELHO DE PERFILAGEM OPTICA | E98: Material | G98: M | H98: 1 | I98: =IF(C98="SINAPI", IF( IF(A98="Insumo", VLOOKUP(B98,'SINAPI INSUMOS'!B:F,5,0), VLOOKUP(B98,'SINAPI COMP'!B:F,4,0))=0,VLOOKUP(B98,'OUTRAS BASES'!C:D,2,0),IF(A98="Insumo", VLOOKUP(B98,'SINAPI INSUMOS'!B:F,5,0),VLOOKUP(B98,'SINAPI COMP'!B:F,4,0))), VLOOKUP(B98,'OUTRAS BASES'!C:D,2,0)) -> 4.4 | J98: =I98*H98 -> 4.4
A99: Insumo | B99: B590000022 | C99: EMBASA | D99: TECNICO MEDIO | E99: Mão de Obra | G99: H | H99: 0.0835 | I99: =IF(C99="SINAPI", IF( IF(A99="Insumo", VLOOKUP(B99,'SINAPI INSUMOS'!B:F,5,0), VLOOKUP(B99,'SINAPI COMP'!B:F,4,0))=0,VLOOKUP(B99,'OUTRAS BASES'!C:D,2,0),IF(A99="Insumo", VLOOKUP(B99,'SINAPI INSUMOS'!B:F,5,0),VLOOKUP(B99,'SINAPI COMP'!B:F,4,0))), VLOOKUP(B99,'OUTRAS BASES'!C:D,2,0)) -> 62.76 | J99: 5.24046
A104: 4.3 | B104: Código | C104: Banco | D104: Descrição | E104: Tipo | G104: Und | H104: Quant. | I104: Valor Unit | J104: Total
A105: Composição | B105: COMPOSIÇÃO - 8 | C105: Próprio | D105: Serviço de coleta e Análise Físico-Química e Bacteriológica | E105: SEDI - SERVIÇOS DIVERSOS | G105: un | H105: 1 | I105: =SUM(J106:J107) -> 621.19 | J105: =I105*H105 -> 621.19
A106: Composição Auxiliar | B106: 6312 | C106: ORSE | D106: Análise Físico-química da Água | E106: Conversão InfoWOrca | G106: un | H106: 1 | I106: =IF(C106="SINAPI", IF( IF(A106="Insumo", VLOOKUP(B106,'SINAPI INSUMOS'!B:F,5,0), VLOOKUP(B106,'SINAPI COMP'!B:F,4,0))=0,VLOOKUP(B106,'OUTRAS BASES'!C:D,2,0),IF(A106="Insumo", VLOOKUP(B106,'SINAPI INSUMOS'!B:F,5,0),VLOOKUP(B106,'SINAPI COMP'!B:F,4,0))), VLOOKUP(B106,'OUTRAS BASES'!C:D,2,0)) -> 565.21 | J106: =I106*H106 -> 565.21
A107: Composição Auxiliar | B107: 6313 | C107: ORSE | D107: Análise Bacteriológica da Água | E107: Conversão InfoWOrca | G107: un | H107: 1 | I107: =IF(C107="SINAPI", IF( IF(A107="Insumo", VLOOKUP(B107,'SINAPI INSUMOS'!B:F,5,0), VLOOKUP(B107,'SINAPI COMP'!B:F,4,0))=0,VLOOKUP(B107,'OUTRAS BASES'!C:D,2,0),IF(A107="Insumo", VLOOKUP(B107,'SINAPI INSUMOS'!B:F,5,0),VLOOKUP(B107,'SINAPI COMP'!B:F,4,0))), VLOOKUP(B107,'OUTRAS BASES'!C:D,2,0)) -> 55.98 | J107: 55.98
A112: 4.4 | B112: Código | C112: Banco | D112: Descrição | E112: Tipo | G112: Und | H112: Quant. | I112: Valor Unit | J112: Total
A113: Composição | B113: 24.80.22 | C113: EMBASA | D113: (REVISADA) DESENVOLVIMENTO OU TESTE COM BOMBA SUBMERSA - UEB1 NO SEDIMENTO COM VAZAO < 60M3 (Ensaio de bombeamento poço tubular incluso materiais e grupo gerador) | E113: 2480 | G113: H | H113: 1 | I113: =IF(C113="SINAPI", IF( IF(A113="Insumo", VLOOKUP(B113,'SINAPI INSUMOS'!B:F,5,0), VLOOKUP(B113,'SINAPI COMP'!B:F,4,0))=0,VLOOKUP(B113,'OUTRAS BASES'!C:D,2,0),IF(A113="Insumo", VLOOKUP(B113,'SINAPI INSUMOS'!B:F,5,0),VLOOKUP(B113,'SINAPI COMP'!B:F,4,0))), VLOOKUP(B113,'OUTRAS BASES'!C:D,2,0)) -> 263.27 | J113: =I113*H113 -> 263.27
A114: Composição Auxiliar | B114: 24.00.15 | C114: EMBASA | D114: EQUIPE (3 PROFISSIONAIS CAMPO) - BOMBEIO | E114: 2400 | G114: H | H114: 1 | I114: =IF(C114="SINAPI", IF( IF(A114="Insumo", VLOOKUP(B114,'SINAPI INSUMOS'!B:F,5,0), VLOOKUP(B114,'SINAPI COMP'!B:F,4,0))=0,VLOOKUP(B114,'OUTRAS BASES'!C:D,2,0),IF(A114="Insumo", VLOOKUP(B114,'SINAPI INSUMOS'!B:F,5,0),VLOOKUP(B114,'SINAPI COMP'!B:F,4,0))), VLOOKUP(B114,'OUTRAS BASES'!C:D,2,0)) -> 198.35 | J114: =I114*H114 -> 198.35
A115: Insumo | B115: H020050001 | C115: EMBASA | D115: UNIDADE DE ENSAIO E BOMBEAMENTO - UEB1 ATE 150M3 NO SEDIMENTO | E115: Material | G115: H | H115: 1 | I115: =IF(C115="SINAPI", IF( IF(A115="Insumo", VLOOKUP(B115,'SINAPI INSUMOS'!B:F,5,0), VLOOKUP(B115,'SINAPI COMP'!B:F,4,0))=0,VLOOKUP(B115,'OUTRAS BASES'!C:D,2,0),IF(A115="Insumo", VLOOKUP(B115,'SINAPI INSUMOS'!B:F,5,0),VLOOKUP(B115,'SINAPI COMP'!B:F,4,0))), VLOOKUP(B115,'OUTRAS BASES'!C:D,2,0)) -> 64.92 | J115: =I115*H115 -> 64.92
A120: 4.5 | B120: Código | C120: Banco | D120: Descrição | E120: Tipo | G120: Und | H120: Quant. | I120: Valor Unit | J120: Total
A121: Composição | B121: COMPOSIÇÃO - 9 | C121: Próprio | D121: Serviço de instalação de laje sanitária com dimensões (1,5x1,5x0,3) metros , incluso material. | E121: SEDI - SERVIÇOS DIVERSOS | G121: un | H121: 1 | I121: =SUM(J122:J125) -> 690.228 | J121: =I121*H121 -> 690.228
A122: Composição Auxiliar | B122: 92522 | C122: SINAPI | D122: MONTAGEM E DESMONTAGEM DE FÔRMA DE LAJE MACIÇA, PÉ-DIREITO SIMPLES, EM CHAPA DE MADEIRA COMPENSADA RESINADA, 8 UTILIZAÇÕES. AF_09/2020 | E122: Fôrmas para Estruturas de Concreto Armado | G122: m² | H122: 1.8 | I122: =IF(C122="SINAPI", IF( IF(A122="Insumo", VLOOKUP(B122,'SINAPI INSUMOS'!B:F,5,0), VLOOKUP(B122,'SINAPI COMP'!B:F,4,0))=0,VLOOKUP(B122,'OUTRAS BASES'!C:D,2,0),IF(A122="Insumo", VLOOKUP(B122,'SINAPI INSUMOS'!B:F,5,0),VLOOKUP(B122,'SINAPI COMP'!B:F,4,0))), VLOOKUP(B122,'OUTRAS BASES'!C:D,2,0)) -> 50.01 | J122: =I122*H122 -> 90.018
A123: Composição Auxiliar | B123: 93358 | C123: SINAPI | D123: ESCAVAÇÃO MANUAL DE VALA COM PROFUNDIDADE MENOR OU IGUAL A 1,30 M. AF_02/2021 | E123: Escavação de Valas | G123: m³ | H123: 0.225 | I123: =IF(C123="SINAPI", IF( IF(A123="Insumo", VLOOKUP(B123,'SINAPI INSUMOS'!B:F,5,0), VLOOKUP(B123,'SINAPI COMP'!B:F,4,0))=0,VLOOKUP(B123,'OUTRAS BASES'!C:D,2,0),IF(A123="Insumo", VLOOKUP(B123,'SINAPI INSUMOS'!B:F,5,0),VLOOKUP(B123,'SINAPI COMP'!B:F,4,0))), VLOOKUP(B123,'OUTRAS BASES'!C:D,2,0)) -> 88.68 | J123: 19.953
A124: Composição Auxiliar | B124: 94975 | C124: SINAPI | D124: CONCRETO FCK = 15MPA, TRAÇO 1:3,4:3,5 (EM MASSA SECA DE CIMENTO/ AREIA MÉDIA/ BRITA 1) - PREPARO MANUAL. AF_05/2021 | E124: Produção de Concreto | G124: m³ | H124: 0.675 | I124: =IF(C124="SINAPI", IF( IF(A124="Insumo", VLOOKUP(B124,'SINAPI INSUMOS'!B:F,5,0), VLOOKUP(B124,'SINAPI COMP'!B:F,4,0))=0,VLOOKUP(B124,'OUTRAS BASES'!C:D,2,0),IF(A124="Insumo", VLOOKUP(B124,'SINAPI INSUMOS'!B:F,5,0),VLOOKUP(B124,'SINAPI COMP'!B:F,4,0))), VLOOKUP(B124,'OUTRAS BASES'!C:D,2,0)) -> 534.97 | J124: 361.10475
A125: Composição Auxiliar | B125: 103670 | C125: SINAPI | D125: LANÇAMENTO COM USO DE BALDES, ADENSAMENTO E ACABAMENTO DE CONCRETO EM ESTRUTURAS. AF_02/2022 | E125: Concretagem para Estruturas de Concreto Armado | G125: m³ | H125: 0.675 | I125: =IF(C125="SINAPI", IF( IF(A125="Insumo", VLOOKUP(B125,'SINAPI INSUMOS'!B:F,5,0), VLOOKUP(B125,'SINAPI COMP'!B:F,4,0))=0,VLOOKUP(B125,'OUTRAS BASES'!C:D,2,0),IF(A125="Insumo", VLOOKUP(B125,'SINAPI INSUMOS'!B:F,5,0),VLOOKUP(B125,'SINAPI COMP'!B:F,4,0))), VLOOKUP(B125,'OUTRAS BASES'!C:D,2,0)) -> 324.67 | J125: 219.15225
A130: 5 | D130: RESERVAÇÃO | J130: 27328.66
A131: 5.1 | B131: Código | C131: Banco | D131: Descrição | E131: Tipo | G131: Und | H131: Quant. | I131: Valor Unit | J131: Total
A132: Composição | B132: COMPOSIÇÃO - 10 | C132: Próprio | D132: Fornecimento e instalação de reservatório e base elevada 10 m³ | E132: ASTU - ASSENTAMENTO DE TUBOS E PECAS | G132: un | H132: 1 | I132: =SUM(J133:J154) -> 19616.62188 | J132: =I132*H132 -> 19616.62188
A133: Composição Auxiliar | B133: 92759 | C133: SINAPI | D133: ARMAÇÃO DE PILAR OU VIGA DE ESTRUTURA CONVENCIONAL DE CONCRETO ARMADO UTILIZANDO AÇO CA-60 DE 5,0 MM - MONTAGEM. AF_06/2022 | E133: Armação para Estruturas de Concreto Armado | G133: KG | H133: 17.2 | I133: =IF(C133="SINAPI", IF( IF(A133="Insumo", VLOOKUP(B133,'SINAPI INSUMOS'!B:F,5,0), VLOOKUP(B133,'SINAPI COMP'!B:F,4,0))=0,VLOOKUP(B133,'OUTRAS BASES'!C:D,2,0),IF(A133="Insumo", VLOOKUP(B133,'SINAPI INSUMOS'!B:F,5,0),VLOOKUP(B133,'SINAPI COMP'!B:F,4,0))), VLOOKUP(B133,'OUTRAS BASES'!C:D,2,0)) -> 13.78 | J133: =I133*H133 -> 237.016
A134: Composição Auxiliar | B134: 92761 | C134: SINAPI | D134: ARMAÇÃO DE PILAR OU VIGA DE ESTRUTURA CONVENCIONAL DE CONCRETO ARMADO UTILIZANDO AÇO CA-50 DE 8,0 MM - MONTAGEM. AF_06/2022 | E134: Armação para Estruturas de Concreto Armado | G134: KG | H134: 30.4 | I134: =IF(C134="SINAPI", IF( IF(A134="Insumo", VLOOKUP(B134,'SINAPI INSUMOS'!B:F,5,0), VLOOKUP(B134,'SINAPI COMP'!B:F,4,0))=0,VLOOKUP(B134,'OUTRAS BASES'!C:D,2,0),IF(A134="Insumo", VLOOKUP(B134,'SINAPI INSUMOS'!B:F,5,0),VLOOKUP(B134,'SINAPI COMP'!B:F,4,0))), VLOOKUP(B134,'OUTRAS BASES'!C:D,2,0)) -> 11.5 | J134: 349.6
A135: Composição Auxiliar | B135: 92768 | C135: SINAPI | D135: ARMAÇÃO DE LAJE DE ESTRUTURA CONVENCIONAL DE CONCRETO ARMADO UTILIZANDO AÇO CA-60 DE 5,0 MM - MONTAGEM. AF_06/2022 | E135: Armação para Estruturas de Concreto Armado | G135: KG | H135: 11.9 | I135: =IF(C135="SINAPI", IF( IF(A135="Insumo", VLOOKUP(B135,'SINAPI INSUMOS'!B:F,5,0), VLOOKUP(B135,'SINAPI COMP'!B:F,4,0))=0,VLOOKUP(B135,'OUTRAS BASES'!C:D,2,0),IF(A135="Insumo", VLOOKUP(B135,'SINAPI INSUMOS'!B:F,5,0),VLOOKUP(B135,'SINAPI COMP'!B:F,4,0))), VLOOKUP(B135,'OUTRAS BASES'!C:D,2,0)) -> 13.14 | J135: 156.366
A136: Composição Auxiliar | B136: 92770 | C136: SINAPI | D136: ARMAÇÃO DE LAJE DE ESTRUTURA CONVENCIONAL DE CONCRETO ARMADO UTILIZANDO AÇO CA-50 DE 8,0 MM - MONTAGEM. AF_06/2022 | E136: Armação para Estruturas de Concreto Armado | G136: KG | H136: 48 | I136: =IF(C136="SINAPI", IF( IF(A136="Insumo", VLOOKUP(B136,'SINAPI INSUMOS'!B:F,5,0), VLOOKUP(B136,'SINAPI COMP'!B:F,4,0))=0,VLOOKUP(B136,'OUTRAS BASES'!C:D,2,0),IF(A136="Insumo", VLOOKUP(B136,'SINAPI INSUMOS'!B:F,5,0),VLOOKUP(B136,'SINAPI COMP'!B:F,4,0))), VLOOKUP(B136,'OUTRAS BASES'!C:D,2,0)) -> 10.93 | J136: 524.64
A137: Composição Auxiliar | B137: 93358 | C137: SINAPI | D137: ESCAVAÇÃO MANUAL DE VALA COM PROFUNDIDADE MENOR OU IGUAL A 1,30 M. AF_02/2021 | E137: Escavação de Valas | G137: m³ | H137: 5.2 | I137: =IF(C137="SINAPI", IF( IF(A137="Insumo", VLOOKUP(B137,'SINAPI INSUMOS'!B:F,5,0), VLOOKUP(B137,'SINAPI COMP'!B:F,4,0))=0,VLOOKUP(B137,'OUTRAS BASES'!C:D,2,0),IF(A137="Insumo", VLOOKUP(B137,'SINAPI INSUMOS'!B:F,5,0),VLOOKUP(B137,'SINAPI COMP'!B:F,4,0))), VLOOKUP(B137,'OUTRAS BASES'!C:D,2,0)) -> 88.68 | J137: 461.136
A138: Composição Auxiliar | B138: 92763 | C138: SINAPI | D138: ARMAÇÃO DE PILAR OU VIGA DE ESTRUTURA CONVENCIONAL DE CONCRETO ARMADO UTILIZANDO AÇO CA-50 DE 12,5 MM - MONTAGEM. AF_06/2022 | E138: Armação para Estruturas de Concreto Armado | G138: KG | H138: 118.4 | I138: =IF(C138="SINAPI", IF( IF(A138="Insumo", VLOOKUP(B138,'SINAPI INSUMOS'!B:F,5,0), VLOOKUP(B138,'SINAPI COMP'!B:F,4,0))=0,VLOOKUP(B138,'OUTRAS BASES'!C:D,2,0),IF(A138="Insumo", VLOOKUP(B138,'SINAPI INSUMOS'!B:F,5,0),VLOOKUP(B138,'SINAPI COMP'!B:F,4,0))), VLOOKUP(B138,'OUTRAS BASES'!C:D,2,0)) -> 8.47 | J138: 1002.848
A139: Composição Auxiliar | B139: 94970 | C139: SINAPI | D139: CONCRETO FCK = 20MPA, TRAÇO 1:2,7:3 (EM MASSA SECA DE CIMENTO/ AREIA MÉDIA/ BRITA 1) - PREPARO MECÂNICO COM BETONEIRA 600 L. AF_05/2021 | E139: Produção de Concreto | G139: m³ | H139: 4.89 | I139: =IF(C139="SINAPI", IF( IF(A139="Insumo", VLOOKUP(B139,'SINAPI INSUMOS'!B:F,5,0), VLOOKUP(B139,'SINAPI COMP'!B:F,4,0))=0,VLOOKUP(B139,'OUTRAS BASES'!C:D,2,0),IF(A139="Insumo", VLOOKUP(B139,'SINAPI INSUMOS'!B:F,5,0),VLOOKUP(B139,'SINAPI COMP'!B:F,4,0))), VLOOKUP(B139,'OUTRAS BASES'!C:D,2,0)) -> 497.73 | J139: 2433.8997
A140: Composição Auxiliar | B140: 103670 | C140: SINAPI | D140: LANÇAMENTO COM USO DE BALDES, ADENSAMENTO E ACABAMENTO DE CONCRETO EM ESTRUTURAS. AF_02/2022 | E140: Concretagem para Estruturas de Concreto Armado | G140: m³ | H140: 6.85 | I140: =IF(C140="SINAPI", IF( IF(A140="Insumo", VLOOKUP(B140,'SINAPI INSUMOS'!B:F,5,0), VLOOKUP(B140,'SINAPI COMP'!B:F,4,0))=0,VLOOKUP(B140,'OUTRAS BASES'!C:D,2,0),IF(A140="Insumo", VLOOKUP(B140,'SINAPI INSUMOS'!B:F,5,0),VLOOKUP(B140,'SINAPI COMP'!B:F,4,0))), VLOOKUP(B140,'OUTRAS BASES'!C:D,2,0)) -> 324.67 | J140: 2223.9895
A141: Composição Auxiliar | B141: 84651 | C141: SINAPI | D141: PINTURA COM TINTA IMPERMEAVEL MINERAL EM PO, DUAS DEMAOS | E141: PINT - PINTURAS | G141: m² | H141: 28.27 | I141: =IF(C141="SINAPI", IF( IF(A141="Insumo", VLOOKUP(B141,'SINAPI INSUMOS'!B:F,5,0), VLOOKUP(B141,'SINAPI COMP'!B:F,4,0))=0,VLOOKUP(B141,'OUTRAS BASES'!C:D,2,0),IF(A141="Insumo", VLOOKUP(B141,'SINAPI INSUMOS'!B:F,5,0),VLOOKUP(B141,'SINAPI COMP'!B:F,4,0))), VLOOKUP(B141,'OUTRAS BASES'!C:D,2,0)) -> 14.844 | J141: 419.63988
A142: Composição Auxiliar | B142: 90776 | C142: SINAPI | D142: ENCARREGADO GERAL COM ENCARGOS COMPLEMENTARES | E142: Livro SINAPI: Cálculos e Parâmetros | G142: H | H142: 1 | I142: =IF(C142="SINAPI", IF( IF(A142="Insumo", VLOOKUP(B142,'SINAPI INSUMOS'!B:F,5,0), VLOOKUP(B142,'SINAPI COMP'!B:F,4,0))=0,VLOOKUP(B142,'OUTRAS BASES'!C:D,2,0),IF(A142="Insumo", VLOOKUP(B142,'SINAPI INSUMOS'!B:F,5,0),VLOOKUP(B142,'SINAPI COMP'!B:F,4,0))), VLOOKUP(B142,'OUTRAS BASES'!C:D,2,0)) -> 37.19 | J142: 37.19
A143: Composição Auxiliar | B143: 102482 | C143: SINAPI | D143: CONCRETO FCK = 25MPA, TRAÇO 1:2,2:2,5 (EM MASSA SECA DE CIMENTO/ AREIA MÉDIA/ SEIXO ROLADO) - PREPARO MECÂNICO COM BETONEIRA 600 L. AF_05/2021 | E143: Produção de Concreto | G143: m³ | H143: 1.96 | I143: =IF(C143="SINAPI", IF( IF(A143="Insumo", VLOOKUP(B143,'SINAPI INSUMOS'!B:F,5,0), VLOOKUP(B143,'SINAPI COMP'!B:F,4,0))=0,VLOOKUP(B143,'OUTRAS BASES'!C:D,2,0),IF(A143="Insumo", VLOOKUP(B143,'SINAPI INSUMOS'!B:F,5,0),VLOOKUP(B143,'SINAPI COMP'!B:F,4,0))), VLOOKUP(B143,'OUTRAS BASES'!C:D,2,0)) -> 703.04 | J143: 1377.9584
A144: Composição Auxiliar | B144: 92263 | C144: SINAPI | D144: FABRICAÇÃO DE FÔRMA PARA PILARES E ESTRUTURAS SIMILARES, EM CHAPA DE MADEIRA COMPENSADA RESINADA, E = 17 MM. AF_09/2020 | E144: Fôrmas para Estruturas de Concreto Armado | G144: m² | H144: 25.19 | I144: =IF(C144="SINAPI", IF( IF(A144="Insumo", VLOOKUP(B144,'SINAPI INSUMOS'!B:F,5,0), VLOOKUP(B144,'SINAPI COMP'!B:F,4,0))=0,VLOOKUP(B144,'OUTRAS BASES'!C:D,2,0),IF(A144="Insumo", VLOOKUP(B144,'SINAPI INSUMOS'!B:F,5,0),VLOOKUP(B144,'SINAPI COMP'!B:F,4,0))), VLOOKUP(B144,'OUTRAS BASES'!C:D,2,0)) -> 212.41 | J144: 5350.6079
A145: Composição Auxiliar | B145: 88267 | C145: SINAPI | D145: ENCANADOR OU BOMBEIRO HIDRÁULICO COM ENCARGOS COMPLEMENTARES | E145: Livro SINAPI: Cálculos e Parâmetros | G145: H | H145: 4 | I145: =IF(C145="SINAPI", IF( IF(A145="Insumo", VLOOKUP(B145,'SINAPI INSUMOS'!B:F,5,0), VLOOKUP(B145,'SINAPI COMP'!B:F,4,0))=0,VLOOKUP(B145,'OUTRAS BASES'!C:D,2,0),IF(A145="Insumo", VLOOKUP(B145,'SINAPI INSUMOS'!B:F,5,0),VLOOKUP(B145,'SINAPI COMP'!B:F,4,0))), VLOOKUP(B145,'OUTRAS BASES'!C:D,2,0)) -> 31.42 | J145: 125.68
A146: Composição Auxiliar | B146: 88248 | C146: SINAPI | D146: AUXILIAR DE ENCANADOR OU BOMBEIRO HIDRÁULICO COM ENCARGOS COMPLEMENTARES | E146: Livro SINAPI: Cálculos e Parâmetros | G146: H | H146: 4 | I146: =IF(C146="SINAPI", IF( IF(A146="Insumo", VLOOKUP(B146,'SINAPI INSUMOS'!B:F,5,0), VLOOKUP(B146,'SINAPI COMP'!B:F,4,0))=0,VLOOKUP(B146,'OUTRAS BASES'!C:D,2,0),IF(A146="Insumo", VLOOKUP(B146,'SINAPI INSUMOS'!B:F,5,0),VLOOKUP(B146,'SINAPI COMP'!B:F,4,0))), VLOOKUP(B146,'OUTRAS BASES'!C:D,2,0)) -> 22.16 | J146: 88.64
A147: Insumo | B147: 3146 | C147: SINAPI | D147: FITA VEDA ROSCA EM ROLOS DE 18 MM X 10 M (L X C) | E147: Material | G147: UN | H147: 0.18 | I147: =IF(C147="SINAPI", IF( IF(A147="Insumo", VLOOKUP(B147,'SINAPI INSUMOS'!B:F,5,0), VLOOKUP(B147,'SINAPI COMP'!B:F,4,0))=0,VLOOKUP(B147,'OUTRAS BASES'!C:D,2,0),IF(A147="Insumo", VLOOKUP(B147,'SINAPI INSUMOS'!B:F,5,0),VLOOKUP(B147,'SINAPI COMP'!B:F,4,0))), VLOOKUP(B147,'OUTRAS BASES'!C:D,2,0)) -> 3.05 | J147: 0.549
A148: Insumo | B148: 37106 | C148: SINAPI | D148: CAIXA D'AGUA / RESERVATORIO EM POLIESTER REFORCADO COM FIBRA DE VIDRO, 10000 LITROS, COM TAMPA | E148: Material | G148: UN | H148: 1 | I148: =IF(C148="SINAPI", IF( IF(A148="Insumo", VLOOKUP(B148,'SINAPI INSUMOS'!B:F,5,0), VLOOKUP(B148,'SINAPI COMP'!B:F,4,0))=0,VLOOKUP(B148,'OUTRAS BASES'!C:D,2,0),IF(A148="Insumo", VLOOKUP(B148,'SINAPI INSUMOS'!B:F,5,0),VLOOKUP(B148,'SINAPI COMP'!B:F,4,0))), VLOOKUP(B148,'OUTRAS BASES'!C:D,2,0)) -> 4566.37 | J148: 4566.37
A149: Insumo | B149: 14073 | C149: ORSE | D149: CURVA 90º PVC D=50MM, LINHA IRRIGA-LF, TIGRE OU SIMILAR | E149: Material | G149: UM | H149: 3 | I149: =IF(C149="SINAPI", IF( IF(A149="Insumo", VLOOKUP(B149,'SINAPI INSUMOS'!B:F,5,0), VLOOKUP(B149,'SINAPI COMP'!B:F,4,0))=0,VLOOKUP(B149,'OUTRAS BASES'!C:D,2,0),IF(A149="Insumo", VLOOKUP(B149,'SINAPI INSUMOS'!B:F,5,0),VLOOKUP(B149,'SINAPI COMP'!B:F,4,0))), VLOOKUP(B149,'OUTRAS BASES'!C:D,2,0)) -> 8.1 | J149: 24.3
A150: Insumo | B150: 14068 | C150: ORSE | D150: Tubo PVC para irrigação LF PN 80 Ø 50mm, linha Irriga-LF, Tigre ou similar | E150: Material | G150: UN | H150: 15.2 | I150: =IF(C150="SINAPI", IF( IF(A150="Insumo", VLOOKUP(B150,'SINAPI INSUMOS'!B:F,5,0), VLOOKUP(B150,'SINAPI COMP'!B:F,4,0))=0,VLOOKUP(B150,'OUTRAS BASES'!C:D,2,0),IF(A150="Insumo", VLOOKUP(B150,'SINAPI INSUMOS'!B:F,5,0),VLOOKUP(B150,'SINAPI COMP'!B:F,4,0))), VLOOKUP(B150,'OUTRAS BASES'!C:D,2,0)) -> 9.27 | J150: 140.904
A151: Insumo | B151: 1434 | C151: ORSE | D151: Luva pvc rigido roscavel d=2 " | E151: Material | G151: UN | H151: 1 | I151: =IF(C151="SINAPI", IF( IF(A151="Insumo", VLOOKUP(B151,'SINAPI INSUMOS'!B:F,5,0), VLOOKUP(B151,'SINAPI COMP'!B:F,4,0))=0,VLOOKUP(B151,'OUTRAS BASES'!C:D,2,0),IF(A151="Insumo", VLOOKUP(B151,'SINAPI INSUMOS'!B:F,5,0),VLOOKUP(B151,'SINAPI COMP'!B:F,4,0))), VLOOKUP(B151,'OUTRAS BASES'!C:D,2,0)) -> 28.58 | J151: 28.58
A152: Insumo | B152: 90 | C152: ORSE | D152: Adaptador curto, pvc rigido soldavel, c/ bolsa e rosca p/ registro, d= 50mm x 1 1/2” | E152: Material | G152: UN | H152: 1 | I152: =IF(C152="SINAPI", IF( IF(A152="Insumo", VLOOKUP(B152,'SINAPI INSUMOS'!B:F,5,0), VLOOKUP(B152,'SINAPI COMP'!B:F,4,0))=0,VLOOKUP(B152,'OUTRAS BASES'!C:D,2,0),IF(A152="Insumo", VLOOKUP(B152,'SINAPI INSUMOS'!B:F,5,0),VLOOKUP(B152,'SINAPI COMP'!B:F,4,0))), VLOOKUP(B152,'OUTRAS BASES'!C:D,2,0)) -> 4.2 | J152: 4.2
A153: Insumo | B153: 99 | C153: SINAPI | D153: ADAPTADOR PVC SOLDAVEL, COM FLANGE E ANEL DE VEDACAO, 50 MM X 1 1/2", PARA CAIXA D'AGUA | E153: Material | G153: UN | H153: 2 | I153: =IF(C153="SINAPI", IF( IF(A153="Insumo", VLOOKUP(B153,'SINAPI INSUMOS'!B:F,5,0), VLOOKUP(B153,'SINAPI COMP'!B:F,4,0))=0,VLOOKUP(B153,'OUTRAS BASES'!C:D,2,0),IF(A153="Insumo", VLOOKUP(B153,'SINAPI INSUMOS'!B:F,5,0),VLOOKUP(B153,'SINAPI COMP'!B:F,4,0))), VLOOKUP(B153,'OUTRAS BASES'!C:D,2,0)) -> 29.24 | J153: 58.48
A154: Insumo | B154: 119 | C154: SINAPI | D154: ADESIVO PLASTICO PARA PVC, BISNAGA COM 75 GR | E154: Material | G154: UN | H154: 0.45 | I154: =IF(C154="SINAPI", IF( IF(A154="Insumo", VLOOKUP(B154,'SINAPI INSUMOS'!B:F,5,0), VLOOKUP(B154,'SINAPI COMP'!B:F,4,0))=0,VLOOKUP(B154,'OUTRAS BASES'!C:D,2,0),IF(A154="Insumo", VLOOKUP(B154,'SINAPI INSUMOS'!B:F,5,0),VLOOKUP(B154,'SINAPI COMP'!B:F,4,0))), VLOOKUP(B154,'OUTRAS BASES'!C:D,2,0)) -> 8.95 | J154: 4.0275
A159: 5.2 | B159: Código | C159: Banco | D159: Descrição | E159: Tipo | G159: Und | H159: Quant. | I159: Valor Unit | J159: Total
A160: Composição | B160: COMPOSIÇÃO - 11 | C160: Próprio | D160: Fornecimento e execução de reservatório apoiado de 5 m³ | E160: SEDI - SERVIÇOS DIVERSOS | G160: un | H160: 1 | I160: =SUM(J161:J170) -> 8483.2843 | J160: =I160*H160 -> 8483.2843
A161: Composição Auxiliar | B161: 88309 | C161: SINAPI | D161: PEDREIRO COM ENCARGOS COMPLEMENTARES | E161: Livro SINAPI: Cálculos e Parâmetros | G161: H | H161: 3 | I161: =IF(C161="SINAPI", IF( IF(A161="Insumo", VLOOKUP(B161,'SINAPI INSUMOS'!B:F,5,0), VLOOKUP(B161,'SINAPI COMP'!B:F,4,0))=0,VLOOKUP(B161,'OUTRAS BASES'!C:D,2,0),IF(A161="Insumo", VLOOKUP(B161,'SINAPI INSUMOS'!B:F,5,0),VLOOKUP(B161,'SINAPI COMP'!B:F,4,0))), VLOOKUP(B161,'OUTRAS BASES'!C:D,2,0)) -> 32.15 | J161: =I161*H161 -> 96.45
A162: Composição Auxiliar | B162: 88316 | C162: SINAPI | D162: SERVENTE COM ENCARGOS COMPLEMENTARES | E162: Livro SINAPI: Cálculos e Parâmetros | G162: H | H162: 3 | I162: =IF(C162="SINAPI", IF( IF(A162="Insumo", VLOOKUP(B162,'SINAPI INSUMOS'!B:F,5,0), VLOOKUP(B162,'SINAPI COMP'!B:F,4,0))=0,VLOOKUP(B162,'OUTRAS BASES'!C:D,2,0),IF(A162="Insumo", VLOOKUP(B162,'SINAPI INSUMOS'!B:F,5,0),VLOOKUP(B162,'SINAPI COMP'!B:F,4,0))), VLOOKUP(B162,'OUTRAS BASES'!C:D,2,0)) -> 22.42 | J162: 67.26
A163: Composição Auxiliar | B163: 102617 | C163: SINAPI | D163: CAIXA D´ÁGUA EM POLIÉSTER REFORÇADO COM FIBRA DE VIDRO, 5000 LITROS - FORNECIMENTO E INSTALAÇÃO. AF_06/2021 | E163: Caixas de Água para Edificações | G163: UN | H163: 1 | I163: =IF(C163="SINAPI", IF( IF(A163="Insumo", VLOOKUP(B163,'SINAPI INSUMOS'!B:F,5,0), VLOOKUP(B163,'SINAPI COMP'!B:F,4,0))=0,VLOOKUP(B163,'OUTRAS BASES'!C:D,2,0),IF(A163="Insumo", VLOOKUP(B163,'SINAPI INSUMOS'!B:F,5,0),VLOOKUP(B163,'SINAPI COMP'!B:F,4,0))), VLOOKUP(B163,'OUTRAS BASES'!C:D,2,0)) -> 3219.02 | J163: 3219.02
A164: Composição Auxiliar | B164: 92767 | C164: SINAPI | D164: ARMAÇÃO DE LAJE DE UMA ESTRUTURA CONVENCIONAL DE CONCRETO ARMADO UTILIZANDO AÇO CA-60 DE 4,2 MM - MONTAGEM. AF_12/2015 | E164: FUES - FUNDAÇÕES E ESTRUTURAS | G164: KG | H164: 3.04 | I164: =IF(C164="SINAPI", IF( IF(A164="Insumo", VLOOKUP(B164,'SINAPI INSUMOS'!B:F,5,0), VLOOKUP(B164,'SINAPI COMP'!B:F,4,0))=0,VLOOKUP(B164,'OUTRAS BASES'!C:D,2,0),IF(A164="Insumo", VLOOKUP(B164,'SINAPI INSUMOS'!B:F,5,0),VLOOKUP(B164,'SINAPI COMP'!B:F,4,0))), VLOOKUP(B164,'OUTRAS BASES'!C:D,2,0)) -> 15.33 | J164: 46.6032
A165: Composição Auxiliar | B165: 104917 | C165: SINAPI | D165: ARMAÇAO DE SAPATA ISOLADA, VIGA BALDRAME E SAPATA CORRIDA UTILIZANDO AÇO CA-50 DE 6,3 MM - MONTAGEM AD_01/2024 | E165: FUES - FUNDAÇÕES E ESTRUTURAS | G165: KG | H165: 9.3 | I165: =IF(C165="SINAPI", IF( IF(A165="Insumo", VLOOKUP(B165,'SINAPI INSUMOS'!B:F,5,0), VLOOKUP(B165,'SINAPI COMP'!B:F,4,0))=0,VLOOKUP(B165,'OUTRAS BASES'!C:D,2,0),IF(A165="Insumo", VLOOKUP(B165,'SINAPI INSUMOS'!B:F,5,0),VLOOKUP(B165,'SINAPI COMP'!B:F,4,0))), VLOOKUP(B165,'OUTRAS BASES'!C:D,2,0)) -> 15 | J165: 139.5
A166: Composição Auxiliar | B166: 92760 | C166: SINAPI | D166: ARMAÇÃO DE PILAR OU VIGA DE ESTRTURA CONVENCIONAL DE CONCRETO ARMADO UTILIZANDO AÇO CA-50 DE 6,3 MM - MONTAGEM. AF_12/2015 | E166: FUES - FUNDAÇÕES E ESTRUTURAS | G166: KG | H166: 16.3 | I166: =IF(C166="SINAPI", IF( IF(A166="Insumo", VLOOKUP(B166,'SINAPI INSUMOS'!B:F,5,0), VLOOKUP(B166,'SINAPI COMP'!B:F,4,0))=0,VLOOKUP(B166,'OUTRAS BASES'!C:D,2,0),IF(A166="Insumo", VLOOKUP(B166,'SINAPI INSUMOS'!B:F,5,0),VLOOKUP(B166,'SINAPI COMP'!B:F,4,0))), VLOOKUP(B166,'OUTRAS BASES'!C:D,2,0)) -> 12.57 | J166: 204.891
A167: Composição Auxiliar | B167: 94964 | C167: SINAPI | D167: CONCRETO FCK = 20MPA, TRAÇO 1:2,7:3 (EM MASSA SECA DE CIMENTO/ AREIA MÉDIA/ BRITA 1) - PREPARO MECÂNICO COM BETONEIRA 400 L. AF_05/2021 | E167: Produção de Concreto | G167: m³ | H167: 1.56 | I167: =IF(C167="SINAPI", IF( IF(A167="Insumo", VLOOKUP(B167,'SINAPI INSUMOS'!B:F,5,0), VLOOKUP(B167,'SINAPI COMP'!B:F,4,0))=0,VLOOKUP(B167,'OUTRAS BASES'!C:D,2,0),IF(A167="Insumo", VLOOKUP(B167,'SINAPI INSUMOS'!B:F,5,0),VLOOKUP(B167,'SINAPI COMP'!B:F,4,0))), VLOOKUP(B167,'OUTRAS BASES'!C:D,2,0)) -> 510.38 | J167: 796.1928
A168: Composição Auxiliar | B168: 84651 | C168: SINAPI | D168: PINTURA COM TINTA IMPERMEAVEL MINERAL EM PO, DUAS DEMAOS | E168: PINT - PINTURAS | G168: m² | H168: 7.85 | I168: =IF(C168="SINAPI", IF( IF(A168="Insumo", VLOOKUP(B168,'SINAPI INSUMOS'!B:F,5,0), VLOOKUP(B168,'SINAPI COMP'!B:F,4,0))=0,VLOOKUP(B168,'OUTRAS BASES'!C:D,2,0),IF(A168="Insumo", VLOOKUP(B168,'SINAPI INSUMOS'!B:F,5,0),VLOOKUP(B168,'SINAPI COMP'!B:F,4,0))), VLOOKUP(B168,'OUTRAS BASES'!C:D,2,0)) -> 14.844 | J168: 116.5254
A169: Composição Auxiliar | B169: 92263 | C169: SINAPI | D169: FABRICAÇÃO DE FÔRMA PARA PILARES E ESTRUTURAS SIMILARES, EM CHAPA DE MADEIRA COMPENSADA RESINADA, E = 17 MM. AF_09/2020 | E169: FUES - FUNDAÇÕES E ESTRUTURAS | G169: KG | H169: 16.99 | I169: =IF(C169="SINAPI", IF( IF(A169="Insumo", VLOOKUP(B169,'SINAPI INSUMOS'!B:F,5,0), VLOOKUP(B169,'SINAPI COMP'!B:F,4,0))=0,VLOOKUP(B169,'OUTRAS BASES'!C:D,2,0),IF(A169="Insumo", VLOOKUP(B169,'SINAPI INSUMOS'!B:F,5,0),VLOOKUP(B169,'SINAPI COMP'!B:F,4,0))), VLOOKUP(B169,'OUTRAS BASES'!C:D,2,0)) -> 212.41 | J169: 3608.8459
A170: Composição Auxiliar | B170: 92770 | C170: SINAPI | D170: ARMAÇÃO DE LAJE DE UMA ESTRUTURA CONVENCIONAL DE CONCRETO ARMADO UTILIZANDO AÇO CA-50 DE 8,0 MM - MONTAGEM. AF_06/2022 | E170: FUES - FUNDAÇÕES E ESTRUTURAS | G170: KG | H170: 17.2 | I170: =IF(C170="SINAPI", IF( IF(A170="Insumo", VLOOKUP(B170,'SINAPI INSUMOS'!B:F,5,0), VLOOKUP(B170,'SINAPI COMP'!B:F,4,0))=0,VLOOKUP(B170,'OUTRAS BASES'!C:D,2,0),IF(A170="Insumo", VLOOKUP(B170,'SINAPI INSUMOS'!B:F,5,0),VLOOKUP(B170,'SINAPI COMP'!B:F,4,0))), VLOOKUP(B170,'OUTRAS BASES'!C:D,2,0)) -> 10.93 | J170: 187.996
A175: 6 | D175: BEBEDOURO | J175: 2091.74
A176: 6.1 | B176: Código | C176: Banco | D176: Descrição | E176: Tipo | G176: Und | H176: Quant. | I176: Valor Unit | J176: Total
A177: Composição | B177: COMPOSIÇÃO - 12 | C177: Próprio | D177: Serviço de execução do bebedouro em concreto armado, incluso materiais. | E177: SEDI - SERVIÇOS DIVERSOS | G177: un | H177: 1 | I177: =SUM(J178:J183) -> 2012.6652 | J177: =I177*H177 -> 2012.6652
A178: Composição Auxiliar | B178: 92916 | C178: SINAPI | D178: ARMAÇÃODE ESTRUTURAS DIVERSAS DE CONCRETO ARMADO, EXCETO VIGA, PILARES, LAJES E FUNDAÇÕES, UTILIZANDO AÇO CA-50 DE 6,3 MM - MONTAGEM. AF_06/2022 | E178: Armação para Estruturas de Concreto Armado | G178: KG | H178: 6 | I178: =IF(C178="SINAPI", IF( IF(A178="Insumo", VLOOKUP(B178,'SINAPI INSUMOS'!B:F,5,0), VLOOKUP(B178,'SINAPI COMP'!B:F,4,0))=0,VLOOKUP(B178,'OUTRAS BASES'!C:D,2,0),IF(A178="Insumo", VLOOKUP(B178,'SINAPI INSUMOS'!B:F,5,0),VLOOKUP(B178,'SINAPI COMP'!B:F,4,0))), VLOOKUP(B178,'OUTRAS BASES'!C:D,2,0)) -> 14.83 | J178: =I178*H178 -> 88.98
A179: Composição Auxiliar | B179: 92915 | C179: SINAPI | D179: ARMAÇÃODE ESTRUTURAS DIVERSAS DE CONCRETO ARMADO, EXCETO VIGA, PILARES, LAJES E FUNDAÇÕES, UTILIZANDO AÇO CA-60 DE 5,0 MM - MONTAGEM. AF_06/2022 | E179: Armação para Estruturas de Concreto Armado | G179: KG | H179: 13 | I179: =IF(C179="SINAPI", IF( IF(A179="Insumo", VLOOKUP(B179,'SINAPI INSUMOS'!B:F,5,0), VLOOKUP(B179,'SINAPI COMP'!B:F,4,0))=0,VLOOKUP(B179,'OUTRAS BASES'!C:D,2,0),IF(A179="Insumo", VLOOKUP(B179,'SINAPI INSUMOS'!B:F,5,0),VLOOKUP(B179,'SINAPI COMP'!B:F,4,0))), VLOOKUP(B179,'OUTRAS BASES'!C:D,2,0)) -> 16.85 | J179: 219.05
A180: Composição Auxiliar | B180: 92921 | C180: SINAPI | D180: ARMAÇÃODE ESTRUTURAS DIVERSAS DE CONCRETO ARMADO, EXCETO VIGA, PILARES, LAJES E FUNDAÇÕES, UTILIZANDO AÇO CA-50 DE 12,5 MM - MONTAGEM. AF_06/2022 | E180: Armação para Estruturas de Concreto Armado | G180: KG | H180: 12 | I180: =IF(C180="SINAPI", IF( IF(A180="Insumo", VLOOKUP(B180,'SINAPI INSUMOS'!B:F,5,0), VLOOKUP(B180,'SINAPI COMP'!B:F,4,0))=0,VLOOKUP(B180,'OUTRAS BASES'!C:D,2,0),IF(A180="Insumo", VLOOKUP(B180,'SINAPI INSUMOS'!B:F,5,0),VLOOKUP(B180,'SINAPI COMP'!B:F,4,0))), VLOOKUP(B180,'OUTRAS BASES'!C:D,2,0)) -> 9.21 | J180: 110.52
A181: Composição Auxiliar | B181: 94971 | C181: SINAPI | D181: CONCRETO FCK = 25MPA, TRAÇO 1:2,3:2:2,7(EM MASSA SECA DE CIMENTO, AREIA MÉDIA, BRITA 1) - PREPARO MECÂNICO COM BETONEIRA 600l. AF_05/2021 | E181: Produção de concreto | G181: m³ | H181: 0.374 | I181: =IF(C181="SINAPI", IF( IF(A181="Insumo", VLOOKUP(B181,'SINAPI INSUMOS'!B:F,5,0), VLOOKUP(B181,'SINAPI COMP'!B:F,4,0))=0,VLOOKUP(B181,'OUTRAS BASES'!C:D,2,0),IF(A181="Insumo", VLOOKUP(B181,'SINAPI INSUMOS'!B:F,5,0),VLOOKUP(B181,'SINAPI COMP'!B:F,4,0))), VLOOKUP(B181,'OUTRAS BASES'!C:D,2,0)) -> 520.4 | J181: 194.6296
A182: Composição Auxiliar | B182: 92263 | C182: SINAPI | D182: FABRICAÇÃO DE FÔRMA PARA PILARES E ESTRUTURAS SIMILARES, EM CHAPA DE MADEIRA COMPENSADA RESINADA, E = 17 MM. AF_09/2020 | E182: FUES - FUNDAÇÕES E ESTRUTURAS | G182: m² | H182: 6.21 | I182: =IF(C182="SINAPI", IF( IF(A182="Insumo", VLOOKUP(B182,'SINAPI INSUMOS'!B:F,5,0), VLOOKUP(B182,'SINAPI COMP'!B:F,4,0))=0,VLOOKUP(B182,'OUTRAS BASES'!C:D,2,0),IF(A182="Insumo", VLOOKUP(B182,'SINAPI INSUMOS'!B:F,5,0),VLOOKUP(B182,'SINAPI COMP'!B:F,4,0))), VLOOKUP(B182,'OUTRAS BASES'!C:D,2,0)) -> 212.41 | J182: 1319.0661
A183: Composição Auxiliar | B183: 15.07.09 | C183: EMBASA | D183: PINTURA LÁTEX ACRÍLICA, APLICAÇÃO MANUAL EM DUAS DEMÃOS | E183: EDIFICAÇÕES | G183: m² | H183: 6.21 | I183: =IF(C183="SINAPI", IF( IF(A183="Insumo", VLOOKUP(B183,'SINAPI INSUMOS'!B:F,5,0), VLOOKUP(B183,'SINAPI COMP'!B:F,4,0))=0,VLOOKUP(B183,'OUTRAS BASES'!C:D,2,0),IF(A183="Insumo", VLOOKUP(B183,'SINAPI INSUMOS'!B:F,5,0),VLOOKUP(B183,'SINAPI COMP'!B:F,4,0))), VLOOKUP(B183,'OUTRAS BASES'!C:D,2,0)) -> 12.95 | J183: 80.4195
A188: 7 | D188: CHAFARIZ | J188: 1347.39
A189: 7.1 | B189: Código | C189: Banco | D189: Descrição | E189: Tipo | G189: Und | H189: Quant. | I189: Valor Unit | J189: Total
A190: Composição | B190: COMPOSIÇÃO - 13 | C190: Próprio | D190: Fornecimento de material e instalação do chafariz | E190: ASTU - ASSENTAMENTO DE TUBOS E PECAS | G190: un | H190: 1 | I190: =SUM(J191:J209) -> 946.9160855 | J190: =I190*H190 -> 946.9160855
A191: Composição Auxiliar | B191: 88267 | C191: SINAPI | D191: ENCANADOR OU BOMBEIRO HIDRÁULICO COM ENCARGOS COMPLEMENTARES | E191: Livro SINAPI: Cálculos e Parâmetros | G191: H | H191: 2 | I191: =IF(C191="SINAPI", IF( IF(A191="Insumo", VLOOKUP(B191,'SINAPI INSUMOS'!B:F,5,0), VLOOKUP(B191,'SINAPI COMP'!B:F,4,0))=0,VLOOKUP(B191,'OUTRAS BASES'!C:D,2,0),IF(A191="Insumo", VLOOKUP(B191,'SINAPI INSUMOS'!B:F,5,0),VLOOKUP(B191,'SINAPI COMP'!B:F,4,0))), VLOOKUP(B191,'OUTRAS BASES'!C:D,2,0)) -> 31.42 | J191: =I191*H191 -> 62.84
A192: Composição Auxiliar | B192: 88248 | C192: SINAPI | D192: AUXILIAR DE ENCANADOR OU BOMBEIRO HIDRÁULICO COM ENCARGOS COMPLEMENTARES | E192: Livro SINAPI: Cálculos e Parâmetros | G192: H | H192: 2 | I192: =IF(C192="SINAPI", IF( IF(A192="Insumo", VLOOKUP(B192,'SINAPI INSUMOS'!B:F,5,0), VLOOKUP(B192,'SINAPI COMP'!B:F,4,0))=0,VLOOKUP(B192,'OUTRAS BASES'!C:D,2,0),IF(A192="Insumo", VLOOKUP(B192,'SINAPI INSUMOS'!B:F,5,0),VLOOKUP(B192,'SINAPI COMP'!B:F,4,0))), VLOOKUP(B192,'OUTRAS BASES'!C:D,2,0)) -> 22.16 | J192: 44.32
A193: Composição Auxiliar | B193: 93358 | C193: SINAPI | D193: ESCAVAÇÃO MANUAL DE VALA COM PROFUNDIDADE MENOR OU IGUAL A 1,30 M. AF_02/2021 | E193: Escavação de Valas | G193: m³ | H193: 0.0785398 | I193: =IF(C193="SINAPI", IF( IF(A193="Insumo", VLOOKUP(B193,'SINAPI INSUMOS'!B:F,5,0), VLOOKUP(B193,'SINAPI COMP'!B:F,4,0))=0,VLOOKUP(B193,'OUTRAS BASES'!C:D,2,0),IF(A193="Insumo", VLOOKUP(B193,'SINAPI INSUMOS'!B:F,5,0),VLOOKUP(B193,'SINAPI COMP'!B:F,4,0))), VLOOKUP(B193,'OUTRAS BASES'!C:D,2,0)) -> 88.68 | J193: 6.964909464
A194: Composição Auxiliar | B194: 96533 | C194: SINAPI | D194: FABRICAÇÃO, MONTAGEM E DESMONTAGEM DE FÔRMA PARA VIGA BALDRAME, EM MADEIRA SERRADA, E=25 MM, 4 UTILIZAÇÕES. AF_01/2024 | E194: FUES - FUNDAÇÕES E ESTRUTURAS | G194: m² | H194: 0.628 | I194: =IF(C194="SINAPI", IF( IF(A194="Insumo", VLOOKUP(B194,'SINAPI INSUMOS'!B:F,5,0), VLOOKUP(B194,'SINAPI COMP'!B:F,4,0))=0,VLOOKUP(B194,'OUTRAS BASES'!C:D,2,0),IF(A194="Insumo", VLOOKUP(B194,'SINAPI INSUMOS'!B:F,5,0),VLOOKUP(B194,'SINAPI COMP'!B:F,4,0))), VLOOKUP(B194,'OUTRAS BASES'!C:D,2,0)) -> 107.12 | J194: 67.27136
A195: Composição Auxiliar | B195: 94963 | C195: SINAPI | D195: CONCRETO FCK = 15MPA, TRAÇO 1:3,4:3,5 (EM MASSA SECA DE CIMENTO/ AREIA MÉDIA/ BRITA 1) - PREPARO MANUAL. AF_05/2021 | E195: Produção de Concreto | G195: m³ | H195: 0.157 | I195: =IF(C195="SINAPI", IF( IF(A195="Insumo", VLOOKUP(B195,'SINAPI INSUMOS'!B:F,5,0), VLOOKUP(B195,'SINAPI COMP'!B:F,4,0))=0,VLOOKUP(B195,'OUTRAS BASES'!C:D,2,0),IF(A195="Insumo", VLOOKUP(B195,'SINAPI INSUMOS'!B:F,5,0),VLOOKUP(B195,'SINAPI COMP'!B:F,4,0))), VLOOKUP(B195,'OUTRAS BASES'!C:D,2,0)) -> 473.22 | J195: 74.29554
A196: Composição Auxiliar | B196: 87904 | C196: SINAPI | D196: CHAPISCO APLICADO EM ALVENARIA (COM PRESENÇA DE VÃOS) E ESTRUTURAS DE CONCRETO DE FACHADA, COM COLHER DE PEDREIRO. ARGAMASSA TRAÇO 1:3 COM PREPARO MANUAL. AF_10/2022 | E196: Chapisco | G196: m² | H196: 0.314 | I196: =IF(C196="SINAPI", IF( IF(A196="Insumo", VLOOKUP(B196,'SINAPI INSUMOS'!B:F,5,0), VLOOKUP(B196,'SINAPI COMP'!B:F,4,0))=0,VLOOKUP(B196,'OUTRAS BASES'!C:D,2,0),IF(A196="Insumo", VLOOKUP(B196,'SINAPI INSUMOS'!B:F,5,0),VLOOKUP(B196,'SINAPI COMP'!B:F,4,0))), VLOOKUP(B196,'OUTRAS BASES'!C:D,2,0)) -> 9.38 | J196: 2.94532
A197: Composição Auxiliar | B197: 87529 | C197: SINAPI | D197: MASSA ÚNICA, EM ARGAMASSA TRAÇO 1:2:8, PREPARO MECÂNICO, APLICADA MANUALMENTE EM PAREDES INTERNAS DE AMBIENTES COM ÁREA ENTRE 5M² E 10M², E = 17,5MM, COM TALISCAS. AF_03/2024 | E197: Massa Única Interna | G197: m² | H197: 0.314 | I197: =IF(C197="SINAPI", IF( IF(A197="Insumo", VLOOKUP(B197,'SINAPI INSUMOS'!B:F,5,0), VLOOKUP(B197,'SINAPI COMP'!B:F,4,0))=0,VLOOKUP(B197,'OUTRAS BASES'!C:D,2,0),IF(A197="Insumo", VLOOKUP(B197,'SINAPI INSUMOS'!B:F,5,0),VLOOKUP(B197,'SINAPI COMP'!B:F,4,0))), VLOOKUP(B197,'OUTRAS BASES'!C:D,2,0)) -> 40.21 | J197: 12.62594
A198: Composição Auxiliar | B198: 84651 | C198: SINAPI | D198: PINTURA COM TINTA IMPERMEAVEL MINERAL EM PO, DUAS DEMAOS | E198: PINT - PINTURAS | G198: m² | H198: 0.314 | I198: =IF(C198="SINAPI", IF( IF(A198="Insumo", VLOOKUP(B198,'SINAPI INSUMOS'!B:F,5,0), VLOOKUP(B198,'SINAPI COMP'!B:F,4,0))=0,VLOOKUP(B198,'OUTRAS BASES'!C:D,2,0),IF(A198="Insumo", VLOOKUP(B198,'SINAPI INSUMOS'!B:F,5,0),VLOOKUP(B198,'SINAPI COMP'!B:F,4,0))), VLOOKUP(B198,'OUTRAS BASES'!C:D,2,0)) -> 14.844 | J198: 4.661016
A199: Insumo | B199: 765 | C199: SINAPI | D199: BUCHA DE REDUCAO DE FERRO GALVANIZADO, COM ROSCA BSP, DE 1" X 3/4" | E199: Material | G199: UN | H199: 2 | I199: =IF(C199="SINAPI", IF( IF(A199="Insumo", VLOOKUP(B199,'SINAPI INSUMOS'!B:F,5,0), VLOOKUP(B199,'SINAPI COMP'!B:F,4,0))=0,VLOOKUP(B199,'OUTRAS BASES'!C:D,2,0),IF(A199="Insumo", VLOOKUP(B199,'SINAPI INSUMOS'!B:F,5,0),VLOOKUP(B199,'SINAPI COMP'!B:F,4,0))), VLOOKUP(B199,'OUTRAS BASES'!C:D,2,0)) -> 10.43 | J199: 20.86
A200: Insumo | B200: 9887 | C200: SINAPI | D200: UNIAO DE FERRO GALVANIZADO, COM ROSCA BSP, COM ASSENTO PLANO, DE 2" | E200: Material | G200: UN | H200: 2 | I200: =IF(C200="SINAPI", IF( IF(A200="Insumo", VLOOKUP(B200,'SINAPI INSUMOS'!B:F,5,0), VLOOKUP(B200,'SINAPI COMP'!B:F,4,0))=0,VLOOKUP(B200,'OUTRAS BASES'!C:D,2,0),IF(A200="Insumo", VLOOKUP(B200,'SINAPI INSUMOS'!B:F,5,0),VLOOKUP(B200,'SINAPI COMP'!B:F,4,0))), VLOOKUP(B200,'OUTRAS BASES'!C:D,2,0)) -> 106.17 | J200: 212.34
A201: Insumo | B201: 21013 | C201: SINAPI | D201: TUBO ACO GALVANIZADO COM COSTURA, CLASSE LEVE, DN 50 MM ( 2"), E = 3,00 MM, *4,40* KG/M (NBR 5580) | E201: Material | G201: M | H201: 1.8 | I201: =IF(C201="SINAPI", IF( IF(A201="Insumo", VLOOKUP(B201,'SINAPI INSUMOS'!B:F,5,0), VLOOKUP(B201,'SINAPI COMP'!B:F,4,0))=0,VLOOKUP(B201,'OUTRAS BASES'!C:D,2,0),IF(A201="Insumo", VLOOKUP(B201,'SINAPI INSUMOS'!B:F,5,0),VLOOKUP(B201,'SINAPI COMP'!B:F,4,0))), VLOOKUP(B201,'OUTRAS BASES'!C:D,2,0)) -> 67.19 | J201: 120.942
A202: Insumo | B202: 6298 | C202: SINAPI | D202: TE DE FERRO GALVANIZADO, DE 2" | E202: Material | G202: UN | H202: 1 | I202: =IF(C202="SINAPI", IF( IF(A202="Insumo", VLOOKUP(B202,'SINAPI INSUMOS'!B:F,5,0), VLOOKUP(B202,'SINAPI COMP'!B:F,4,0))=0,VLOOKUP(B202,'OUTRAS BASES'!C:D,2,0),IF(A202="Insumo", VLOOKUP(B202,'SINAPI INSUMOS'!B:F,5,0),VLOOKUP(B202,'SINAPI COMP'!B:F,4,0))), VLOOKUP(B202,'OUTRAS BASES'!C:D,2,0)) -> 69.15 | J202: 69.15
A203: Insumo | B203: 3471 | C203: SINAPI | D203: COTOVELO 90 GRAUS DE FERRO GALVANIZADO, COM ROSCA BSP, DE 2" | E203: Material | G203: UN | H203: 1 | I203: =IF(C203="SINAPI", IF( IF(A203="Insumo", VLOOKUP(B203,'SINAPI INSUMOS'!B:F,5,0), VLOOKUP(B203,'SINAPI COMP'!B:F,4,0))=0,VLOOKUP(B203,'OUTRAS BASES'!C:D,2,0),IF(A203="Insumo", VLOOKUP(B203,'SINAPI INSUMOS'!B:F,5,0),VLOOKUP(B203,'SINAPI COMP'!B:F,4,0))), VLOOKUP(B203,'OUTRAS BASES'!C:D,2,0)) -> 52.01 | J203: 52.01
A204: Insumo | B204: 113 | C204: SINAPI | D204: ADAPTADOR PVC SOLDAVEL CURTO COM BOLSA E ROSCA, 60 MM X 2", PARA AGUA FRIA | E204: Material | G204: UN | H204: 1 | I204: =IF(C204="SINAPI", IF( IF(A204="Insumo", VLOOKUP(B204,'SINAPI INSUMOS'!B:F,5,0), VLOOKUP(B204,'SINAPI COMP'!B:F,4,0))=0,VLOOKUP(B204,'OUTRAS BASES'!C:D,2,0),IF(A204="Insumo", VLOOKUP(B204,'SINAPI INSUMOS'!B:F,5,0),VLOOKUP(B204,'SINAPI COMP'!B:F,4,0))), VLOOKUP(B204,'OUTRAS BASES'!C:D,2,0)) -> 12.45 | J204: 12.45
A205: Insumo | B205: 818 | C205: SINAPI | D205: BUCHA DE REDUCAO DE PVC, SOLDAVEL, CURTA, COM 60 X 50 MM, PARA AGUA FRIA PREDIAL | E205: Material | G205: UN | H205: 1 | I205: =IF(C205="SINAPI", IF( IF(A205="Insumo", VLOOKUP(B205,'SINAPI INSUMOS'!B:F,5,0), VLOOKUP(B205,'SINAPI COMP'!B:F,4,0))=0,VLOOKUP(B205,'OUTRAS BASES'!C:D,2,0),IF(A205="Insumo", VLOOKUP(B205,'SINAPI INSUMOS'!B:F,5,0),VLOOKUP(B205,'SINAPI COMP'!B:F,4,0))), VLOOKUP(B205,'OUTRAS BASES'!C:D,2,0)) -> 7.6 | J205: 7.6
A206: Insumo | B206: 7604 | C206: SINAPI | D206: TORNEIRA METALICA CROMADA PARA TANQUE / JARDIM, SEM BICO , CANO LONGO, DE PAREDE, PADRAO POPULAR / USO GERAL, 1/2 " OU 3/4 " (REF 1126) | E206: Material | G206: UN | H206: 2 | I206: =IF(C206="SINAPI", IF( IF(A206="Insumo", VLOOKUP(B206,'SINAPI INSUMOS'!B:F,5,0), VLOOKUP(B206,'SINAPI COMP'!B:F,4,0))=0,VLOOKUP(B206,'OUTRAS BASES'!C:D,2,0),IF(A206="Insumo", VLOOKUP(B206,'SINAPI INSUMOS'!B:F,5,0),VLOOKUP(B206,'SINAPI COMP'!B:F,4,0))), VLOOKUP(B206,'OUTRAS BASES'!C:D,2,0)) -> 52.86 | J206: 105.72
A207: Insumo | B207: 119 | C207: SINAPI | D207: ADESIVO PLASTICO PARA PVC, BISNAGA COM 75 GR | E207: Material | G207: UN | H207: 1 | I207: =IF(C207="SINAPI", IF( IF(A207="Insumo", VLOOKUP(B207,'SINAPI INSUMOS'!B:F,5,0), VLOOKUP(B207,'SINAPI COMP'!B:F,4,0))=0,VLOOKUP(B207,'OUTRAS BASES'!C:D,2,0),IF(A207="Insumo", VLOOKUP(B207,'SINAPI INSUMOS'!B:F,5,0),VLOOKUP(B207,'SINAPI COMP'!B:F,4,0))), VLOOKUP(B207,'OUTRAS BASES'!C:D,2,0)) -> 8.95 | J207: 8.95
A208: Insumo | B208: 3146 | C208: SINAPI | D208: FITA VEDA ROSCA EM ROLOS DE 18 MM X 10 M (L X C) | E208: Material | G208: UN | H208: 1 | I208: =IF(C208="SINAPI", IF( IF(A208="Insumo", VLOOKUP(B208,'SINAPI INSUMOS'!B:F,5,0), VLOOKUP(B208,'SINAPI COMP'!B:F,4,0))=0,VLOOKUP(B208,'OUTRAS BASES'!C:D,2,0),IF(A208="Insumo", VLOOKUP(B208,'SINAPI INSUMOS'!B:F,5,0),VLOOKUP(B208,'SINAPI COMP'!B:F,4,0))), VLOOKUP(B208,'OUTRAS BASES'!C:D,2,0)) -> 3.05 | J208: 3.05
A209: Insumo | B209: 771 | C209: SINAPI | D209: BUCHA DE REDUCAO DE FERRO GALVANIZADO, COM ROSCA BSP, DE 2" X 1" | E209: Material | G209: UN | H209: 2 | I209: =IF(C209="SINAPI", IF( IF(A209="Insumo", VLOOKUP(B209,'SINAPI INSUMOS'!B:F,5,0), VLOOKUP(B209,'SINAPI COMP'!B:F,4,0))=0,VLOOKUP(B209,'OUTRAS BASES'!C:D,2,0),IF(A209="Insumo", VLOOKUP(B209,'SINAPI INSUMOS'!B:F,5,0),VLOOKUP(B209,'SINAPI COMP'!B:F,4,0))), VLOOKUP(B209,'OUTRAS BASES'!C:D,2,0)) -> 28.96 | J209: 57.92
A214: 8 | D214: CAVALETE | J214: 1981.82
A215: 8.1 | B215: Código | C215: Banco | D215: Descrição | E215: Tipo | G215: Und | H215: Quant. | I215: Valor Unit | J215: Total
A216: Composição | B216: COMPOSIÇÃO - 14 | C216: Próprio | D216: Fornecimento de conexões e Instalação do Cavalete com hidrômetro e clorador de pastilhas | E216: INHI - INSTALAÇÕES HIDROS SANITÁRIAS | G216: un | H216: 1 | I216: =SUM(J217:J234) -> 2309.58 | J216: =I216*H216 -> 2309.58
A217: Composição Auxiliar | B217: 88248 | C217: SINAPI | D217: AUXILIAR DE ENCANADOR OU BOMBEIRO HIDRÁULICO COM ENCARGOS COMPLEMENTARES | E217: Livro SINAPI: Cálculos e Parâmetros | G217: H | H217: 3 | I217: =IF(C217="SINAPI", IF( IF(A217="Insumo", VLOOKUP(B217,'SINAPI INSUMOS'!B:F,5,0), VLOOKUP(B217,'SINAPI COMP'!B:F,4,0))=0,VLOOKUP(B217,'OUTRAS BASES'!C:D,2,0),IF(A217="Insumo", VLOOKUP(B217,'SINAPI INSUMOS'!B:F,5,0),VLOOKUP(B217,'SINAPI COMP'!B:F,4,0))), VLOOKUP(B217,'OUTRAS BASES'!C:D,2,0)) -> 22.16 | J217: =I217*H217 -> 66.48
A218: Insumo | B218: 9860/SINAPI | C218: ORSE | D218: TUBO PVC, ROSCAVEL, 2", PARA AGUA FRIA PREDIAL | E218: Tubos e Conexões de PVC Rígido Roscável | G218: m | H218: 1.5 | I218: =IF(C218="SINAPI", IF( IF(A218="Insumo", VLOOKUP(B218,'SINAPI INSUMOS'!B:F,5,0), VLOOKUP(B218,'SINAPI COMP'!B:F,4,0))=0,VLOOKUP(B218,'OUTRAS BASES'!C:D,2,0),IF(A218="Insumo", VLOOKUP(B218,'SINAPI INSUMOS'!B:F,5,0),VLOOKUP(B218,'SINAPI COMP'!B:F,4,0))), VLOOKUP(B218,'OUTRAS BASES'!C:D,2,0)) -> 42.22 | J218: =I218*H218 -> 63.33
A219: Insumo | B219: 11831 | C219: SINAPI | D219: TORNEIRA PLASTICA PARA TANQUE 1/2 " OU 3/4 " COM BICO PARA MANGUEIRA | E219: Material | G219: UN | H219: 1 | I219: =IF(C219="SINAPI", IF( IF(A219="Insumo", VLOOKUP(B219,'SINAPI INSUMOS'!B:F,5,0), VLOOKUP(B219,'SINAPI COMP'!B:F,4,0))=0,VLOOKUP(B219,'OUTRAS BASES'!C:D,2,0),IF(A219="Insumo", VLOOKUP(B219,'SINAPI INSUMOS'!B:F,5,0),VLOOKUP(B219,'SINAPI COMP'!B:F,4,0))), VLOOKUP(B219,'OUTRAS BASES'!C:D,2,0)) -> 15.3 | J219: 15.3
A220: Insumo | B220: 9569 | C220: ORSE | D220: Adaptador pvc BSxRM d= 35mm x 1 1/2", linha Irriga-LF, Tigre ou similar un | E220: Material | G220: un | H220: 1 | I220: =IF(C220="SINAPI", IF( IF(A220="Insumo", VLOOKUP(B220,'SINAPI INSUMOS'!B:F,5,0), VLOOKUP(B220,'SINAPI COMP'!B:F,4,0))=0,VLOOKUP(B220,'OUTRAS BASES'!C:D,2,0),IF(A220="Insumo", VLOOKUP(B220,'SINAPI INSUMOS'!B:F,5,0),VLOOKUP(B220,'SINAPI COMP'!B:F,4,0))), VLOOKUP(B220,'OUTRAS BASES'!C:D,2,0)) -> 3.04 | J220: 3.04
A221: Insumo | B221: 3939 | C221: SINAPI | D221: LUVA DE FERRO GALVANIZADO, COM ROSCA BSP, DE 1 1/2" | E221: Material | G221: UN | H221: 1 | I221: =IF(C221="SINAPI", IF( IF(A221="Insumo", VLOOKUP(B221,'SINAPI INSUMOS'!B:F,5,0), VLOOKUP(B221,'SINAPI COMP'!B:F,4,0))=0,VLOOKUP(B221,'OUTRAS BASES'!C:D,2,0),IF(A221="Insumo", VLOOKUP(B221,'SINAPI INSUMOS'!B:F,5,0),VLOOKUP(B221,'SINAPI COMP'!B:F,4,0))), VLOOKUP(B221,'OUTRAS BASES'!C:D,2,0)) -> 23.91 | J221: 23.91
A222: Insumo | B222: 1798 | C222: SINAPI | D222: CURVA 90 GRAUS DE FERRO GALVANIZADO, COM ROSCA BSP MACHO, DE 2" | E222: Material | G222: UN | H222: 1 | I222: =IF(C222="SINAPI", IF( IF(A222="Insumo", VLOOKUP(B222,'SINAPI INSUMOS'!B:F,5,0), VLOOKUP(B222,'SINAPI COMP'!B:F,4,0))=0,VLOOKUP(B222,'OUTRAS BASES'!C:D,2,0),IF(A222="Insumo", VLOOKUP(B222,'SINAPI INSUMOS'!B:F,5,0),VLOOKUP(B222,'SINAPI COMP'!B:F,4,0))), VLOOKUP(B222,'OUTRAS BASES'!C:D,2,0)) -> 133.27 | J222: 133.27
A223: Insumo | B223: 9887 | C223: SINAPI | D223: UNIAO DE FERRO GALVANIZADO, COM ROSCA BSP, COM ASSENTO PLANO, DE 2" | E223: Material | G223: UN | H223: 1 | I223: =IF(C223="SINAPI", IF( IF(A223="Insumo", VLOOKUP(B223,'SINAPI INSUMOS'!B:F,5,0), VLOOKUP(B223,'SINAPI COMP'!B:F,4,0))=0,VLOOKUP(B223,'OUTRAS BASES'!C:D,2,0),IF(A223="Insumo", VLOOKUP(B223,'SINAPI INSUMOS'!B:F,5,0),VLOOKUP(B223,'SINAPI COMP'!B:F,4,0))), VLOOKUP(B223,'OUTRAS BASES'!C:D,2,0)) -> 106.17 | J223: 106.17
A224: Insumo | B224: 00004181/SINAPI | C224: ORSE | D224: Niple de ferro galvanizado, com rosca bsp, de 2" | E224: Material | G224: un | H224: 2 | I224: =IF(C224="SINAPI", IF( IF(A224="Insumo", VLOOKUP(B224,'SINAPI INSUMOS'!B:F,5,0), VLOOKUP(B224,'SINAPI COMP'!B:F,4,0))=0,VLOOKUP(B224,'OUTRAS BASES'!C:D,2,0),IF(A224="Insumo", VLOOKUP(B224,'SINAPI INSUMOS'!B:F,5,0),VLOOKUP(B224,'SINAPI COMP'!B:F,4,0))), VLOOKUP(B224,'OUTRAS BASES'!C:D,2,0)) -> 36.64 | J224: 73.28
A225: Insumo | B225: 6028 | C225: SINAPI | D225: REGISTRO GAVETA BRUTO EM LATAO FORJADO, BITOLA 2 " (REF 1509) | E225: Material | G225: UN | H225: 1 | I225: =IF(C225="SINAPI", IF( IF(A225="Insumo", VLOOKUP(B225,'SINAPI INSUMOS'!B:F,5,0), VLOOKUP(B225,'SINAPI COMP'!B:F,4,0))=0,VLOOKUP(B225,'OUTRAS BASES'!C:D,2,0),IF(A225="Insumo", VLOOKUP(B225,'SINAPI INSUMOS'!B:F,5,0),VLOOKUP(B225,'SINAPI COMP'!B:F,4,0))), VLOOKUP(B225,'OUTRAS BASES'!C:D,2,0)) -> 118.62 | J225: 118.62
A226: Insumo | B226: 12775 | C226: SINAPI | D226: HIDROMETRO MULTIJATO / MEDIDOR DE AGUA, DN 1", VAZAO MAXIMA DE 7 M3/H, PARA AGUA POTAVEL FRIA, RELOJOARIA PLANA, CLASSE B, HORIZONTAL (SEM CONEXOES) | E226: Material | G226: UN | H226: 1 | I226: =IF(C226="SINAPI", IF( IF(A226="Insumo", VLOOKUP(B226,'SINAPI INSUMOS'!B:F,5,0), VLOOKUP(B226,'SINAPI COMP'!B:F,4,0))=0,VLOOKUP(B226,'OUTRAS BASES'!C:D,2,0),IF(A226="Insumo", VLOOKUP(B226,'SINAPI INSUMOS'!B:F,5,0),VLOOKUP(B226,'SINAPI COMP'!B:F,4,0))), VLOOKUP(B226,'OUTRAS BASES'!C:D,2,0)) -> 420.58 | J226: 420.58
A227: Insumo | B227: 771 | C227: SINAPI | D227: BUCHA DE REDUCAO DE FERRO GALVANIZADO, COM ROSCA BSP, DE 2" X 1" | E227: Material | G227: UN | H227: 2 | I227: =IF(C227="SINAPI", IF( IF(A227="Insumo", VLOOKUP(B227,'SINAPI INSUMOS'!B:F,5,0), VLOOKUP(B227,'SINAPI COMP'!B:F,4,0))=0,VLOOKUP(B227,'OUTRAS BASES'!C:D,2,0),IF(A227="Insumo", VLOOKUP(B227,'SINAPI INSUMOS'!B:F,5,0),VLOOKUP(B227,'SINAPI COMP'!B:F,4,0))), VLOOKUP(B227,'OUTRAS BASES'!C:D,2,0)) -> 28.96 | J227: 57.92
A228: Insumo | B228: 6305 | C228: SINAPI | D228: TE DE REDUCAO DE FERRO GALVANIZADO, COM ROSCA BSP, DE 2" X 1" | E228: Material | G228: UN | H228: 1 | I228: =IF(C228="SINAPI", IF( IF(A228="Insumo", VLOOKUP(B228,'SINAPI INSUMOS'!B:F,5,0), VLOOKUP(B228,'SINAPI COMP'!B:F,4,0))=0,VLOOKUP(B228,'OUTRAS BASES'!C:D,2,0),IF(A228="Insumo", VLOOKUP(B228,'SINAPI INSUMOS'!B:F,5,0),VLOOKUP(B228,'SINAPI COMP'!B:F,4,0))), VLOOKUP(B228,'OUTRAS BASES'!C:D,2,0)) -> 411.16 | J228: 411.16
A229: Insumo | B229: 764 | C229: SINAPI | D229: BUCHA DE REDUCAO DE FERRO GALVANIZADO, COM ROSCA BSP, DE 1" X 1/2" | E229: Material | G229: UN | H229: 1 | I229: =IF(C229="SINAPI", IF( IF(A229="Insumo", VLOOKUP(B229,'SINAPI INSUMOS'!B:F,5,0), VLOOKUP(B229,'SINAPI COMP'!B:F,4,0))=0,VLOOKUP(B229,'OUTRAS BASES'!C:D,2,0),IF(A229="Insumo", VLOOKUP(B229,'SINAPI INSUMOS'!B:F,5,0),VLOOKUP(B229,'SINAPI COMP'!B:F,4,0))), VLOOKUP(B229,'OUTRAS BASES'!C:D,2,0)) -> 109.89 | J229: 109.89
A230: Insumo | B230: 5128 | C230: ORSE | D230: Tampa de poço galvanizada em 6" | E230: Material | G230: UN | H230: 1 | I230: =IF(C230="SINAPI", IF( IF(A230="Insumo", VLOOKUP(B230,'SINAPI INSUMOS'!B:F,5,0), VLOOKUP(B230,'SINAPI COMP'!B:F,4,0))=0,VLOOKUP(B230,'OUTRAS BASES'!C:D,2,0),IF(A230="Insumo", VLOOKUP(B230,'SINAPI INSUMOS'!B:F,5,0),VLOOKUP(B230,'SINAPI COMP'!B:F,4,0))), VLOOKUP(B230,'OUTRAS BASES'!C:D,2,0)) -> 107.28 | J230: 107.28
A231: Insumo | B231: 1160 | C231: ORSE | D231: Joelho 45° ferro galvanizado d=2" | E231: Material | G231: UN | H231: 2 | I231: =IF(C231="SINAPI", IF( IF(A231="Insumo", VLOOKUP(B231,'SINAPI INSUMOS'!B:F,5,0), VLOOKUP(B231,'SINAPI COMP'!B:F,4,0))=0,VLOOKUP(B231,'OUTRAS BASES'!C:D,2,0),IF(A231="Insumo", VLOOKUP(B231,'SINAPI INSUMOS'!B:F,5,0),VLOOKUP(B231,'SINAPI COMP'!B:F,4,0))), VLOOKUP(B231,'OUTRAS BASES'!C:D,2,0)) -> 54.39 | J231: 108.78
A232: Insumo | B232: 53688 | C232: SBC | D232: VALVULA DE RETENCAO HORIZONTAL EM LATAO, ROSCA BSP 2" | E232: Material | G232: UN | H232: 1 | I232: =IF(C232="SINAPI", IF( IF(A232="Insumo", VLOOKUP(B232,'SINAPI INSUMOS'!B:F,5,0), VLOOKUP(B232,'SINAPI COMP'!B:F,4,0))=0,VLOOKUP(B232,'OUTRAS BASES'!C:D,2,0),IF(A232="Insumo", VLOOKUP(B232,'SINAPI INSUMOS'!B:F,5,0),VLOOKUP(B232,'SINAPI COMP'!B:F,4,0))), VLOOKUP(B232,'OUTRAS BASES'!C:D,2,0)) -> 192.66 | J232: 192.66
A233: Insumo | B233: 4194 | C233: SINAPI | D233: NIPLE DE REDUCAO DE FERRO GALVANIZADO, COM ROSCA BSP, DE 2" X 1 1/2" | E233: Material | G233: UN | H233: 1 | I233: =IF(C233="SINAPI", IF( IF(A233="Insumo", VLOOKUP(B233,'SINAPI INSUMOS'!B:F,5,0), VLOOKUP(B233,'SINAPI COMP'!B:F,4,0))=0,VLOOKUP(B233,'OUTRAS BASES'!C:D,2,0),IF(A233="Insumo", VLOOKUP(B233,'SINAPI INSUMOS'!B:F,5,0),VLOOKUP(B233,'SINAPI COMP'!B:F,4,0))), VLOOKUP(B233,'OUTRAS BASES'!C:D,2,0)) -> 46.94 | J233: 46.94
A234: Insumo | B234: 12464 | C234: ORSE | D234: Clorador dosador de cloro de pastilhas automático | E234: Material | G234: un | H234: 1 | I234: =IF(C234="SINAPI", IF( IF(A234="Insumo", VLOOKUP(B234,'SINAPI INSUMOS'!B:F,5,0), VLOOKUP(B234,'SINAPI COMP'!B:F,4,0))=0,VLOOKUP(B234,'OUTRAS BASES'!C:D,2,0),IF(A234="Insumo", VLOOKUP(B234,'SINAPI INSUMOS'!B:F,5,0),VLOOKUP(B234,'SINAPI COMP'!B:F,4,0))), VLOOKUP(B234,'OUTRAS BASES'!C:D,2,0)) -> 250.97 | J234: 250.97
A239: 9 | D239: INSTALAÇÕES HIDRÁULICAS | J239: 23142
A240: 9.1 | B240: Código | C240: Banco | D240: Descrição | E240: Tipo | G240: Und | H240: Quant. | I240: Valor Unit | J240: Total
A241: Composição | B241: COMPOSIÇÃO - 15 | C241: Próprio | D241: Instalação da rede adutora poço-reservatório-bebedouro em PN80 e DN50MM | E241: SEDI - SERVIÇOS DIVERSOS | G241: m | H241: 1 | I241: =SUM(J242:J244) -> 6.45 | J241: =I241*H241 -> 6.45
A242: Composição Auxiliar | B242: 88316 | C242: SINAPI | D242: SERVENTE COM ENCARGOS COMPLEMENTARES | E242: Livro SINAPI: Cálculos e Parâmetros | G242: H | H242: 0.05 | I242: =IF(C242="SINAPI", IF( IF(A242="Insumo", VLOOKUP(B242,'SINAPI INSUMOS'!B:F,5,0), VLOOKUP(B242,'SINAPI COMP'!B:F,4,0))=0,VLOOKUP(B242,'OUTRAS BASES'!C:D,2,0),IF(A242="Insumo", VLOOKUP(B242,'SINAPI INSUMOS'!B:F,5,0),VLOOKUP(B242,'SINAPI COMP'!B:F,4,0))), VLOOKUP(B242,'OUTRAS BASES'!C:D,2,0)) -> 22.42 | J242: =I242*H242 -> 1.121
A243: Composição Auxiliar | B243: 93358 | C243: SINAPI | D243: ESCAVAÇÃO MANUAL DE VALA COM PROFUNDIDADE MENOR OU IGUAL A 1,30 M. AF_02/2021 | E243: Escavação de Valas | G243: m³ | H243: 0.05 | I243: =IF(C243="SINAPI", IF( IF(A243="Insumo", VLOOKUP(B243,'SINAPI INSUMOS'!B:F,5,0), VLOOKUP(B243,'SINAPI COMP'!B:F,4,0))=0,VLOOKUP(B243,'OUTRAS BASES'!C:D,2,0),IF(A243="Insumo", VLOOKUP(B243,'SINAPI INSUMOS'!B:F,5,0),VLOOKUP(B243,'SINAPI COMP'!B:F,4,0))), VLOOKUP(B243,'OUTRAS BASES'!C:D,2,0)) -> 88.68 | J243: 4.434
A244: Insumo | B244: 119 | C244: SINAPI | D244: ADESIVO PLASTICO PARA PVC, BISNAGA COM 75 GR | E244: Material | G244: UN | H244: 0.1 | I244: =IF(C244="SINAPI", IF( IF(A244="Insumo", VLOOKUP(B244,'SINAPI INSUMOS'!B:F,5,0), VLOOKUP(B244,'SINAPI COMP'!B:F,4,0))=0,VLOOKUP(B244,'OUTRAS BASES'!C:D,2,0),IF(A244="Insumo", VLOOKUP(B244,'SINAPI INSUMOS'!B:F,5,0),VLOOKUP(B244,'SINAPI COMP'!B:F,4,0))), VLOOKUP(B244,'OUTRAS BASES'!C:D,2,0)) -> 8.95 | J244: 0.895
A246: 9.2 | B246: Código | C246: Banco | D246: Descrição | E246: Tipo | G246: Und | H246: Quant. | I246: Valor Unit | J246: Total
A247: Insumo | B247: 9875 | C247: SINAPI | D247: TUBO PVC, SOLDAVEL, DE 50 MM, AGUA FRIA (NBR-5648) | E247: MATERIAL | G247: un | H247: 1 | I247: =IF(C247="SINAPI", IF( IF(A247="Insumo", VLOOKUP(B247,'SINAPI INSUMOS'!B:F,5,0), VLOOKUP(B247,'SINAPI COMP'!B:F,4,0))=0,VLOOKUP(B247,'OUTRAS BASES'!C:D,2,0),IF(A247="Insumo", VLOOKUP(B247,'SINAPI INSUMOS'!B:F,5,0),VLOOKUP(B247,'SINAPI COMP'!B:F,4,0))), VLOOKUP(B247,'OUTRAS BASES'!C:D,2,0)) -> 17.21 | J247: =I247*H247 -> 17.21
A252: 9.3 | B252: Código | C252: Banco | D252: Descrição | E252: Tipo | G252: Und | H252: Quant. | I252: Valor Unit | J252: Total
A253: Composição | B253: COMPOSIÇÃO - 16 | C253: Próprio | D253: Montagem hidráulica do equipamento de bombeamento | E253: INHI - INSTALAÇÕES HIDROS SANITÁRIAS | G253: un | H253: 1 | I253: =SUM(J254:J255) -> 160.74 | J253: =I253*H253 -> 160.74
A254: Composição Auxiliar | B254: 88267 | C254: SINAPI | D254: ENCANADOR OU BOMBEIRO HIDRÁULICO COM ENCARGOS COMPLEMENTARES | E254: Livro SINAPI: Cálculos e Parâmetros | G254: H | H254: 3 | I254: =IF(C254="SINAPI", IF( IF(A254="Insumo", VLOOKUP(B254,'SINAPI INSUMOS'!B:F,5,0), VLOOKUP(B254,'SINAPI COMP'!B:F,4,0))=0,VLOOKUP(B254,'OUTRAS BASES'!C:D,2,0),IF(A254="Insumo", VLOOKUP(B254,'SINAPI INSUMOS'!B:F,5,0),VLOOKUP(B254,'SINAPI COMP'!B:F,4,0))), VLOOKUP(B254,'OUTRAS BASES'!C:D,2,0)) -> 31.42 | J254: =I254*H254 -> 94.26
A255: Composição Auxiliar | B255: 88248 | C255: SINAPI | D255: AUXILIAR DE ENCANADOR OU BOMBEIRO HIDRÁULICO COM ENCARGOS COMPLEMENTARES | E255: Livro SINAPI: Cálculos e Parâmetros | G255: H | H255: 3 | I255: =IF(C255="SINAPI", IF( IF(A255="Insumo", VLOOKUP(B255,'SINAPI INSUMOS'!B:F,5,0), VLOOKUP(B255,'SINAPI COMP'!B:F,4,0))=0,VLOOKUP(B255,'OUTRAS BASES'!C:D,2,0),IF(A255="Insumo", VLOOKUP(B255,'SINAPI INSUMOS'!B:F,5,0),VLOOKUP(B255,'SINAPI COMP'!B:F,4,0))), VLOOKUP(B255,'OUTRAS BASES'!C:D,2,0)) -> 22.16 | J255: 66.48
A260: 9.4 | B260: Código | C260: Banco | D260: Descrição | E260: Tipo | G260: Und | H260: Quant. | I260: Valor Unit | J260: Total
A261: Insumo | B261: 38200 | C261: SINAPI | D261: CORDA DE POLIAMIDA 12 MM TIPO BOMBEIRO, PARA TRABALHO EM ALTURA | E261: Material | G261: 100M | H261: 1 | I261: =IF(C261="SINAPI", IF( IF(A261="Insumo", VLOOKUP(B261,'SINAPI INSUMOS'!B:F,5,0), VLOOKUP(B261,'SINAPI COMP'!B:F,4,0))=0,VLOOKUP(B261,'OUTRAS BASES'!C:D,2,0),IF(A261="Insumo", VLOOKUP(B261,'SINAPI INSUMOS'!B:F,5,0),VLOOKUP(B261,'SINAPI COMP'!B:F,4,0))), VLOOKUP(B261,'OUTRAS BASES'!C:D,2,0)) -> 348.48 | J261: =I261*H261 -> 348.48
A266: 9.5 | B266: Código | C266: Banco | D266: Descrição | E266: Tipo | G266: Und | H266: Quant. | I266: Valor Unit | J266: Total
A267: Insumo | B267: 9860 | C267: SINAPI | D267: TUBO PVC, ROSCAVEL, 2", PARA AGUA FRIA PREDIAL | E267: Material | G267: M | H267: 1 | I267: =IF(C267="SINAPI", IF( IF(A267="Insumo", VLOOKUP(B267,'SINAPI INSUMOS'!B:F,5,0), VLOOKUP(B267,'SINAPI COMP'!B:F,4,0))=0,VLOOKUP(B267,'OUTRAS BASES'!C:D,2,0),IF(A267="Insumo", VLOOKUP(B267,'SINAPI INSUMOS'!B:F,5,0),VLOOKUP(B267,'SINAPI COMP'!B:F,4,0))), VLOOKUP(B267,'OUTRAS BASES'!C:D,2,0)) -> 49.99 | J267: =I267*H267 -> 49.99
A272: 9.6 | B272: Código | C272: Banco | D272: Descrição | E272: Tipo | G272: Und | H272: Quant. | I272: Valor Unit | J272: Total
A273: Insumo | B273: 3912 | C273: SINAPI | D273: LUVA DE FERRO GALVANIZADO, COM ROSCA BSP, DE 2" | E273: Material | G273: UN | H273: 1 | I273: =IF(C273="SINAPI", IF( IF(A273="Insumo", VLOOKUP(B273,'SINAPI INSUMOS'!B:F,5,0), VLOOKUP(B273,'SINAPI COMP'!B:F,4,0))=0,VLOOKUP(B273,'OUTRAS BASES'!C:D,2,0),IF(A273="Insumo", VLOOKUP(B273,'SINAPI INSUMOS'!B:F,5,0),VLOOKUP(B273,'SINAPI COMP'!B:F,4,0))), VLOOKUP(B273,'OUTRAS BASES'!C:D,2,0)) -> 36.61 | J273: =I273*H273 -> 36.61
A278: 9.7 | B278: Código | C278: Banco | D278: Descrição | E278: Tipo | G278: Und | H278: Quant. | I278: Valor Unit | J278: Total
A279: Insumo | B279: 5128 | C279: ORSE | D279: Tampa de poço galvanizada em 6" un | E279: Serviços | G279: un | H279: 1 | I279: =IF(C279="SINAPI", IF( IF(A279="Insumo", VLOOKUP(B279,'SINAPI INSUMOS'!B:F,5,0), VLOOKUP(B279,'SINAPI COMP'!B:F,4,0))=0,VLOOKUP(B279,'OUTRAS BASES'!C:D,2,0),IF(A279="Insumo", VLOOKUP(B279,'SINAPI INSUMOS'!B:F,5,0),VLOOKUP(B279,'SINAPI COMP'!B:F,4,0))), VLOOKUP(B279,'OUTRAS BASES'!C:D,2,0)) -> 107.28 | J279: =I279*H279 -> 107.28
A284: 10 | D284: ESTRUTURA DE FIXAÇÃO PARA MÓDULOS FOTOVOLTÁICOS
A285: 10.1 | B285: Código | C285: Banco | D285: Descrição | E285: Tipo | G285: Und | H285: Quant. | I285: Valor Unit | J285: Total
A286: Composição | B286: COMPOSIÇÃO - 17 | C286: Próprio | D286: Serviço de fixação de estruturas para os módulos fotovoltaicos e suportes de concreto, incluso materiais. | E286: SEDI - SERVIÇOS DIVERSOS | G286: m² | H286: 1 | I286: =SUM(J287:J289) -> 101.629992 | J286: =I286*H286 -> 101.629992
A287: Composição Auxiliar | B287: 94975 | C287: SINAPI | D287: CONCRETO FCK = 15MPA, TRAÇO 1:3,4:3,5 (EM MASSA SECA DE CIMENTO/ AREIA MÉDIA/ BRITA 1) - PREPARO MANUAL. AF_05/2021 | E287: Produção de Concreto | G287: m³ | H287: 0.09 | I287: =IF(C287="SINAPI", IF( IF(A287="Insumo", VLOOKUP(B287,'SINAPI INSUMOS'!B:F,5,0), VLOOKUP(B287,'SINAPI COMP'!B:F,4,0))=0,VLOOKUP(B287,'OUTRAS BASES'!C:D,2,0),IF(A287="Insumo", VLOOKUP(B287,'SINAPI INSUMOS'!B:F,5,0),VLOOKUP(B287,'SINAPI COMP'!B:F,4,0))), VLOOKUP(B287,'OUTRAS BASES'!C:D,2,0)) -> 534.97 | J287: =I287*H287 -> 48.1473
A288: Composição Auxiliar | B288: 96522 | C288: SINAPI | D288: ESCAVAÇÃO MANUAL PARA BLOCO DE COROAMENTO OU SAPATA (SEM ESCAVAÇÃO PARA COLOCAÇÃO DE FÔRMAS). AF_01/2024 | E288: Fundações Rasas (Blocos, Sapatas, Vigas Baldrame) | G288: m³ | H288: 0.0062 | I288: =IF(C288="SINAPI", IF( IF(A288="Insumo", VLOOKUP(B288,'SINAPI INSUMOS'!B:F,5,0), VLOOKUP(B288,'SINAPI COMP'!B:F,4,0))=0,VLOOKUP(B288,'OUTRAS BASES'!C:D,2,0),IF(A288="Insumo", VLOOKUP(B288,'SINAPI INSUMOS'!B:F,5,0),VLOOKUP(B288,'SINAPI COMP'!B:F,4,0))), VLOOKUP(B288,'OUTRAS BASES'!C:D,2,0)) -> 153.66 | J288: 0.952692
A289: Insumo | B289: 4183 | C289: SBC | D289: ESTRUTURA METALICA EM TESOURAS OU TRELICAS, VÃO LIVRE DE 12M, FORNECIMENTO E MONTAGEM | E289: Material | G289: m² | H289: 1 | I289: =IF(C289="SINAPI", IF( IF(A289="Insumo", VLOOKUP(B289,'SINAPI INSUMOS'!B:F,5,0), VLOOKUP(B289,'SINAPI COMP'!B:F,4,0))=0,VLOOKUP(B289,'OUTRAS BASES'!C:D,2,0),IF(A289="Insumo", VLOOKUP(B289,'SINAPI INSUMOS'!B:F,5,0),VLOOKUP(B289,'SINAPI COMP'!B:F,4,0))), VLOOKUP(B289,'OUTRAS BASES'!C:D,2,0)) -> 52.53 | J289: 52.53
A294: 11 | D294: INSTALAÇÕES ELÉTRICAS E BÓIA ELÉTRICA
A295: 11.1 | B295: Código | C295: Banco | D295: Descrição | E295: Tipo | G295: Und | H295: Quant. | I295: Valor Unit | J295: Total
A296: Composição | B296: COMPOSIÇÃO - 18 | C296: Próprio | D296: Montagem e instalação elétrica do kit de bombeamento e sistema fotovoltaico inclusive sistema de aterramento. | E296: INEL - INSTALAÇÃO ELÉTRICA/ELETRIFICAÇÃO E ILUMINAÇÃO EXTERNA | G296: un | H296: 1 | I296: =SUM(J297:J307) -> 983.311 | J296: =I296*H296 -> 983.311
A297: Composição Auxiliar | B297: 88247 | C297: SINAPI | D297: AUXILIAR DE ELETRICISTA COM ENCARGOS COMPLEMENTARES | E297: Livro SINAPI: Cálculos e Parâmetros | G297: H | H297: 8 | I297: =IF(C297="SINAPI", IF( IF(A297="Insumo", VLOOKUP(B297,'SINAPI INSUMOS'!B:F,5,0), VLOOKUP(B297,'SINAPI COMP'!B:F,4,0))=0,VLOOKUP(B297,'OUTRAS BASES'!C:D,2,0),IF(A297="Insumo", VLOOKUP(B297,'SINAPI INSUMOS'!B:F,5,0),VLOOKUP(B297,'SINAPI COMP'!B:F,4,0))), VLOOKUP(B297,'OUTRAS BASES'!C:D,2,0)) -> 23.13 | J297: =I297*H297 -> 185.04
A298: Insumo | B298: 20111 | C298: SINAPI | D298: FITA ISOLANTE ADESIVA ANTICHAMA, USO ATE 750 V, EM ROLO DE 19 MM X 20 M | E298: Material | G298: UN | H298: 1 | I298: =IF(C298="SINAPI", IF( IF(A298="Insumo", VLOOKUP(B298,'SINAPI INSUMOS'!B:F,5,0), VLOOKUP(B298,'SINAPI COMP'!B:F,4,0))=0,VLOOKUP(B298,'OUTRAS BASES'!C:D,2,0),IF(A298="Insumo", VLOOKUP(B298,'SINAPI INSUMOS'!B:F,5,0),VLOOKUP(B298,'SINAPI COMP'!B:F,4,0))), VLOOKUP(B298,'OUTRAS BASES'!C:D,2,0)) -> 9.01 | J298: =I298*H298 -> 9.01
A299: Insumo | B299: 2674 | C299: SINAPI | D299: FORNECIMENTO DE ELETRODUTO DE PVC RIGIDO ROSCAVEL DE 3/4 ", SEM LUVA | E299: Material | G299: M | H299: 15 | I299: =IF(C299="SINAPI", IF( IF(A299="Insumo", VLOOKUP(B299,'SINAPI INSUMOS'!B:F,5,0), VLOOKUP(B299,'SINAPI COMP'!B:F,4,0))=0,VLOOKUP(B299,'OUTRAS BASES'!C:D,2,0),IF(A299="Insumo", VLOOKUP(B299,'SINAPI INSUMOS'!B:F,5,0),VLOOKUP(B299,'SINAPI COMP'!B:F,4,0))), VLOOKUP(B299,'OUTRAS BASES'!C:D,2,0)) -> 3.62 | J299: 54.3
A300: Insumo | B300: 12034 | C300: SINAPI | D300: FORNECIMENTO DE CURVA 180 GRAUS, DE PVC RIGIDO ROSCAVEL, DE 3/4", PARA ELETRODUTO | E300: Material | G300: UN | H300: 1 | I300: =IF(C300="SINAPI", IF( IF(A300="Insumo", VLOOKUP(B300,'SINAPI INSUMOS'!B:F,5,0), VLOOKUP(B300,'SINAPI COMP'!B:F,4,0))=0,VLOOKUP(B300,'OUTRAS BASES'!C:D,2,0),IF(A300="Insumo", VLOOKUP(B300,'SINAPI INSUMOS'!B:F,5,0),VLOOKUP(B300,'SINAPI COMP'!B:F,4,0))), VLOOKUP(B300,'OUTRAS BASES'!C:D,2,0)) -> 2.99 | J300: 2.99
A301: Insumo | B301: 39272 | C301: SINAPI | D301: FORNECIMENTO DE CURVA 90 GRAUS, CURTA, DE PVC RIGIDO ROSCAVEL, DE 3/4", PARA ELETRODUTO | E301: Material | G301: UN | H301: 2 | I301: =IF(C301="SINAPI", IF( IF(A301="Insumo", VLOOKUP(B301,'SINAPI INSUMOS'!B:F,5,0), VLOOKUP(B301,'SINAPI COMP'!B:F,4,0))=0,VLOOKUP(B301,'OUTRAS BASES'!C:D,2,0),IF(A301="Insumo", VLOOKUP(B301,'SINAPI INSUMOS'!B:F,5,0),VLOOKUP(B301,'SINAPI COMP'!B:F,4,0))), VLOOKUP(B301,'OUTRAS BASES'!C:D,2,0)) -> 1.63 | J301: 3.26
A302: Insumo | B302: 3379 | C302: SINAPI | D302: HASTE DE ATERRAMENTO EM ACO COM 3,00 M DE COMPRIMENTO E DN = 5/8", REVESTIDA COM BAIXA CAMADA DE COBRE, SEM CONECTOR | E302: Material | G302: UN | H302: 0.66 | I302: =IF(C302="SINAPI", IF( IF(A302="Insumo", VLOOKUP(B302,'SINAPI INSUMOS'!B:F,5,0), VLOOKUP(B302,'SINAPI COMP'!B:F,4,0))=0,VLOOKUP(B302,'OUTRAS BASES'!C:D,2,0),IF(A302="Insumo", VLOOKUP(B302,'SINAPI INSUMOS'!B:F,5,0),VLOOKUP(B302,'SINAPI COMP'!B:F,4,0))), VLOOKUP(B302,'OUTRAS BASES'!C:D,2,0)) -> 59.85 | J302: 39.501
A303: Insumo | B303: 1891 | C303: SINAPI | D303: FORNECIMENTO DE LUVA EM PVC RIGIDO ROSCAVEL, DE 3/4", PARA ELETRODUTO | E303: Material | G303: UN | H303: 9 | I303: =IF(C303="SINAPI", IF( IF(A303="Insumo", VLOOKUP(B303,'SINAPI INSUMOS'!B:F,5,0), VLOOKUP(B303,'SINAPI COMP'!B:F,4,0))=0,VLOOKUP(B303,'OUTRAS BASES'!C:D,2,0),IF(A303="Insumo", VLOOKUP(B303,'SINAPI INSUMOS'!B:F,5,0),VLOOKUP(B303,'SINAPI COMP'!B:F,4,0))), VLOOKUP(B303,'OUTRAS BASES'!C:D,2,0)) -> 0.75 | J303: 6.75
A304: Insumo | B304: 425 | C304: SINAPI | D304: GRAMPO METALICO TIPO OLHAL PARA HASTE DE ATERRAMENTO DE 5/8'', CONDUTOR DE *10* A 50 MM2 | E304: Material | G304: UN | H304: 2 | I304: =IF(C304="SINAPI", IF( IF(A304="Insumo", VLOOKUP(B304,'SINAPI INSUMOS'!B:F,5,0), VLOOKUP(B304,'SINAPI COMP'!B:F,4,0))=0,VLOOKUP(B304,'OUTRAS BASES'!C:D,2,0),IF(A304="Insumo", VLOOKUP(B304,'SINAPI INSUMOS'!B:F,5,0),VLOOKUP(B304,'SINAPI COMP'!B:F,4,0))), VLOOKUP(B304,'OUTRAS BASES'!C:D,2,0)) -> 5.67 | J304: 11.34
A305: Insumo | B305: 34643 | C305: SINAPI | D305: FORNECIMENTO DE CAIXA DE INSPECAO PARA ATERRAMENTO E PARA RAIOS, EM POLIPROPILENO, DIAMETRO = 300 MM X ALTURA = 400 MM | E305: Material | G305: UN | H305: 2 | I305: =IF(C305="SINAPI", IF( IF(A305="Insumo", VLOOKUP(B305,'SINAPI INSUMOS'!B:F,5,0), VLOOKUP(B305,'SINAPI COMP'!B:F,4,0))=0,VLOOKUP(B305,'OUTRAS BASES'!C:D,2,0),IF(A305="Insumo", VLOOKUP(B305,'SINAPI INSUMOS'!B:F,5,0),VLOOKUP(B305,'SINAPI COMP'!B:F,4,0))), VLOOKUP(B305,'OUTRAS BASES'!C:D,2,0)) -> 46.35 | J305: 92.7
A306: Insumo | B306: 867 | C306: SINAPI | D306: CABO DE COBRE NU 50 MM2 MEIO-DURO | E306: Material | G306: M | H306: 7.5 | I306: =IF(C306="SINAPI", IF( IF(A306="Insumo", VLOOKUP(B306,'SINAPI INSUMOS'!B:F,5,0), VLOOKUP(B306,'SINAPI COMP'!B:F,4,0))=0,VLOOKUP(B306,'OUTRAS BASES'!C:D,2,0),IF(A306="Insumo", VLOOKUP(B306,'SINAPI INSUMOS'!B:F,5,0),VLOOKUP(B306,'SINAPI COMP'!B:F,4,0))), VLOOKUP(B306,'OUTRAS BASES'!C:D,2,0)) -> 56.84 | J306: 426.3
A307: Insumo | B307: 54581 | C307: SIURB INFRA | D307: DPS - DISPOSITIVO DE PROTEÇÃO CONTRA SURTOS – 45KA – 500 VOLTS - CORRENTE CONTÍNUA - CLASSE II - P/ SISTEMA FOTOVOLTÁICO | E307: Material | G307: Un | H307: 1 | I307: =IF(C307="SINAPI", IF( IF(A307="Insumo", VLOOKUP(B307,'SINAPI INSUMOS'!B:F,5,0), VLOOKUP(B307,'SINAPI COMP'!B:F,4,0))=0,VLOOKUP(B307,'OUTRAS BASES'!C:D,2,0),IF(A307="Insumo", VLOOKUP(B307,'SINAPI INSUMOS'!B:F,5,0),VLOOKUP(B307,'SINAPI COMP'!B:F,4,0))), VLOOKUP(B307,'OUTRAS BASES'!C:D,2,0)) -> 152.12 | J307: 152.12
A312: 11.2 | B312: Código | C312: Banco | D312: Descrição | E312: Tipo | G312: Und | H312: Quant. | I312: Valor Unit | J312: Total
A313: Insumo | B313: 34622 | C313: SINAPI | D313: FORNECIMENTO DE CABO FLEXIVEL PVC 750 V, 3 CONDUTORES DE 6,0 MM2 | E313: Material | G313: M | H313: 1 | I313: =IF(C313="SINAPI", IF( IF(A313="Insumo", VLOOKUP(B313,'SINAPI INSUMOS'!B:F,5,0), VLOOKUP(B313,'SINAPI COMP'!B:F,4,0))=0,VLOOKUP(B313,'OUTRAS BASES'!C:D,2,0),IF(A313="Insumo", VLOOKUP(B313,'SINAPI INSUMOS'!B:F,5,0),VLOOKUP(B313,'SINAPI COMP'!B:F,4,0))), VLOOKUP(B313,'OUTRAS BASES'!C:D,2,0)) -> 22.34 | J313: =I313*H313 -> 22.34
A318: 11.3 | B318: Código | C318: Banco | D318: Descrição | E318: Tipo | G318: Und | H318: Quant. | I318: Valor Unit | J318: Total
A319: Composição | B319: COMPOSIÇÃO - 19 | C319: Próprio | D319: Fornecimento e instalação de automático de bóia superior e inferior | E319: ASTU - ASSENTAMENTO DE TUBOS E PECAS | G319: un | H319: 1 | I319: =SUM(J320:J324) -> 56.6075 | J319: =I319*H319 -> 56.6075
... 58 more rows

Sheet Crono. - GO - P
A1: OBJETO: EXECUÇÃO DE SERVIÇOS DE PERFURAÇÃO E INSTALAÇÃO DE POÇOS TUBULARES EM MUNICÍPIOS LOCALIZADOS NO GOIÁS, NA ÁREA DE ATUAÇÃO DA CODEVASF
A8: CRONOGRAMA FÍSICO-FINANCEIRO POÇO PARCIALMENTE REVESTIDO
A10: ITEM | B10: ESPECIFICAÇÃO DOS SERVIÇOS | C10: VALOR TOTAL (R$) | D10: Mês 01 | E10: Mês 02 | F10: Mês 03 | G10: Mês 04 | H10: Mês 05 | I10: Mês 06 | J10: Mês 07 | K10: Mês 08 | L10: Mês 09 | M10: Mês 10 | N10: Mês 11 | O10: Mês 12
A11: 1 | B11: Serviços preliminares. | C11: ='Orçamento Sintético - GO - P'!K4 -> 153962.68 | D11: =$C$11/12 -> 12830.22333 | E11: =$C$11/12 -> 12830.22333 | F11: 12830.22333 | G11: 12830.22333 | H11: 12830.22333 | I11: 12830.22333 | J11: 12830.22333 | K11: 12830.22333 | L11: 12830.22333 | M11: 12830.22333 | N11: 12830.22333 | O11: 12830.22333
A12: 2 | B12: Mobilizaçâo e desmobilizaçâo equipes perfuraçâo e instalação. | C12: ='Orçamento Sintético - GO - P'!K8 -> 266328 | D12: =$C$12/12 -> 22194 | E12: =$C$12/12 -> 22194 | F12: 22194 | G12: 22194 | H12: 22194 | I12: 22194 | J12: 22194 | K12: 22194 | L12: 22194 | M12: 22194 | N12: 22194 | O12: 22194
A13: 3 | B13: Perfuração e completação de poço tubular. | C13: ='Orçamento Sintético - GO - P'!K12 -> 3039205.97 | D13: =$C$13/12 -> 253267.1642 | E13: =$C$13/12 -> 253267.1642 | F13: 253267.1642 | G13: 253267.1642 | H13: 253267.1642 | I13: 253267.1642 | J13: 253267.1642 | K13: 253267.1642 | L13: 253267.1642 | M13: 253267.1642 | N13: 253267.1642 | O13: 253267.1642
A14: 4 | B14: Pós perfuração. | C14: ='Orçamento Sintético - GO - P'!K17 -> 1284535.8 | D14: =$C$14/12 -> 107044.65 | E14: =$C$14/12 -> 107044.65 | F14: 107044.65 | G14: 107044.65 | H14: 107044.65 | I14: 107044.65 | J14: 107044.65 | K14: 107044.65 | L14: 107044.65 | M14: 107044.65 | N14: 107044.65 | O14: 107044.65
A15: 5 | B15: Reservação. | C15: ='Orçamento Sintético - GO - P'!K23 -> 2324730.46 | D15: =$C$15/12 -> 193727.5383 | E15: =$C$15/12 -> 193727.5383 | F15: 193727.5383 | G15: 193727.5383 | H15: 193727.5383 | I15: 193727.5383 | J15: 193727.5383 | K15: 193727.5383 | L15: 193727.5383 | M15: 193727.5383 | N15: 193727.5383 | O15: 193727.5383
A16: 6 | B16: Bebedouro. | C16: ='Orçamento Sintético - GO - P'!K26 -> 269058.24 | D16: =$C$16/12 -> 22421.52 | E16: =$C$16/12 -> 22421.52 | F16: 22421.52 | G16: 22421.52 | H16: 22421.52 | I16: 22421.52 | J16: 22421.52 | K16: 22421.52 | L16: 22421.52 | M16: 22421.52 | N16: 22421.52 | O16: 22421.52
A17: 7 | B17: Chafariz. | C17: ='Orçamento Sintético - GO - P'!K28 -> 126585.72 | D17: =$C$17/12 -> 10548.81 | E17: =$C$17/12 -> 10548.81 | F17: 10548.81 | G17: 10548.81 | H17: 10548.81 | I17: 10548.81 | J17: 10548.81 | K17: 10548.81 | L17: 10548.81 | M17: 10548.81 | N17: 10548.81 | O17: 10548.81
A18: 8 | B18: Cavalete. | C18: ='Orçamento Sintético - GO - P'!K30 -> 308750.4 | D18: =$C$18/12 -> 25729.2 | E18: =$C$18/12 -> 25729.2 | F18: 25729.2 | G18: 25729.2 | H18: 25729.2 | I18: 25729.2 | J18: 25729.2 | K18: 25729.2 | L18: 25729.2 | M18: 25729.2 | N18: 25729.2 | O18: 25729.2
A19: 9 | B19: Instalações hidráulicas. | C19: ='Orçamento Sintético - GO - P'!K32 -> 1902229.17 | D19: =$C$19/12 -> 158519.0975 | E19: =$C$19/12 -> 158519.0975 | F19: 158519.0975 | G19: 158519.0975 | H19: 158519.0975 | I19: 158519.0975 | J19: 158519.0975 | K19: 158519.0975 | L19: 158519.0975 | M19: 158519.0975 | N19: 158519.0975 | O19: 158519.0975
A20: 10 | B20: Estrutura de fixação para módulos fotovoltáicos. | C20: ='Orçamento Sintético - GO - P'!K40 -> 137494.37 | D20: =$C$20/12 -> 11457.86417 | E20: =$C$20/12 -> 11457.86417 | F20: 11457.86417 | G20: 11457.86417 | H20: 11457.86417 | I20: 11457.86417 | J20: 11457.86417 | K20: 11457.86417 | L20: 11457.86417 | M20: 11457.86417 | N20: 11457.86417 | O20: 11457.86417
A21: 11 | B21: Instalações elétricas e bóia elétrica. | C21: ='Orçamento Sintético - GO - P'!K42 -> 1551309.84 | D21: =$C$21/12 -> 129275.82 | E21: =$C$21/12 -> 129275.82 | F21: 129275.82 | G21: 129275.82 | H21: 129275.82 | I21: 129275.82 | J21: 129275.82 | K21: 129275.82 | L21: 129275.82 | M21: 129275.82 | N21: 129275.82 | O21: 129275.82
A22: 12 | B22: Urbanização. | C22: ='Orçamento Sintético - GO - P'!K48 -> 405134.46 | D22: =$C$22/12 -> 33761.205 | E22: =$C$22/12 -> 33761.205 | F22: 33761.205 | G22: 33761.205 | H22: 33761.205 | I22: 33761.205 | J22: 33761.205 | K22: 33761.205 | L22: 33761.205 | M22: 33761.205 | N22: 33761.205 | O22: 33761.205
A23: 13 | B23: Outros serviços e insumos excepcionais. | C23: ='Orçamento Sintético - GO - P'!K51 -> 1159007.58 | D23: =$C$23/12 -> 96583.965 | E23: =$C$23/12 -> 96583.965 | F23: 96583.965 | G23: 96583.965 | H23: 96583.965 | I23: 96583.965 | J23: 96583.965 | K23: 96583.965 | L23: 96583.965 | M23: 96583.965 | N23: 96583.965 | O23: 96583.965
A24: TOTAL | C24: =SUM(C11:C23) -> 12928332.69 | D24: =SUM(D11:D23) -> 1077361.057 | E24: =SUM(E11:E23) -> 1077361.057 | F24: =SUM(F11:F23) -> 1077361.057 | G24: 1077361.057 | H24: 1077361.057 | I24: 1077361.057 | J24: 1077361.057 | K24: 1077361.057 | L24: 1077361.057 | M24: 1077361.057 | N24: 1077361.057 | O24: 1077361.057
A25: PERCENTUAL | D25: =D24/C24 -> 0.08333333333 | E25: =E24/$C$24 -> 0.08333333333 | F25: =F24/$C$24 -> 0.08333333333 | G25: =G24/$C$24 -> 0.08333333333 | H25: 0.08333333333 | I25: =I24/$C$24 -> 0.08333333333 | J25: 0.08333333333 | K25: 0.08333333333 | L25: 0.08333333333 | M25: 0.08333333333 | N25: 0.08333333333 | O25: 0.08333333333
A26: CUSTO ACUMULADO | D26: =D24 -> 1077361.057 | E26: =E24+D26 -> 2154722.115 | F26: 3232083.172 | G26: 4309444.23 | H26: 5386805.287 | I26: 6464166.345 | J26: 7541527.402 | K26: 8618888.46 | L26: 9696249.517 | M26: 10773610.57 | N26: 11850971.63 | O26: 12928332.69
A27: PERCENTUAL ACUMULADO | D27: =D25 -> 0.08333333333 | E27: =E25+D27 -> 0.1666666667 | F27: 0.25 | G27: 0.3333333333 | H27: 0.4166666667 | I27: 0.5 | J27: 0.5833333333 | K27: 0.6666666667 | L27: 0.75 | M27: 0.8333333333 | N27: 0.9166666667 | O27: 1

Sheet Orçamento Sintético - GO - T
C1: OBJETO: EXECUÇÃO DE SERVIÇOS DE PERFURAÇÃO E INSTALAÇÃO DE POÇOS TUBULARES EM MUNICÍPIOS LOCALIZADOS NO GOIÁS, NA ÁREA DE ATUAÇÃO DA CODEVASF | H1: Quantidade de Poços | I1: BDI SERVIÇO | J1: BDI INSUMO | K1: Total | L1: Preço Unitário Por Poço | M1: Desconto
H2: 42 | I2: 0.2378 | J2: 0.1469 | K2: =+K4+K8+K12+K19+K25+K28+K30+K32+K34+K42+K44+K50+K53 -> 7857584.42 | L2: =K2/H2 -> 187085.3433 | M2: 0
A3: Item | B3: Código | C3: Banco | D3: TIPO | E3: Descrição. | F3: un. | G3: Mem. calc. | H3: Quanti. | I3: Valor Unit | J3: Valor Unit com BDI | K3: Total | L3: Peso (%)
A4: 1 | E4: Serviços preliminares. | K4: =SUM(K5:K7) -> 98013.74 | L4: =K4/$K$2 -> 0.01247377499
A5: 1.1 | B5: COMPOSIÇÃO - 1 | C5: Próprio | D5: Serviço | E5: Administração local da obra - poço totalmente revestido. | F5: un. | G5: 1 | H5: =G5*$H$2 -> 42 | I5: =VLOOKUP(B5,'Orçamento Analítico - GO -T'!B:J,8,0)*(1-$M$2) -> 947.29915 | J5: =ROUND(I5*(1+$I$2),2) -> 1172.57 | K5: =ROUND(J5*H5,2) -> 49247.94 | L5: 0.006267567406
A6: 1.2 | B6: COMPOSIÇÃO - 2 | C6: Próprio | D6: Serviço | E6: Serviço de locação geológica de campo com relatório hidro geológico e perfil construtivo e geológico esperado. relatório de viabilidade de implantação das estruturas e vistorias preliminares. | F6: un. | G6: 1 | H6: =G6*$H$2 -> 42 | I6: =VLOOKUP(B6,'Orçamento Analítico - GO -T'!B:J,8,0)*(1-$M$2) -> 602.65 | J6: =ROUND(I6*(1+$I$2),2) -> 745.96 | K6: =ROUND(J6*H6,2) -> 31330.32 | L6: 0.003987271192
A7: 1.3 | B7: 103689 | C7: SINAPI | D7: Serviço | E7: Fornecimento e instalação de placa de obra com chapa galvanizada e estrutura de madeira. . | F7: m² | G7: 0.72 | H7: =G7*$H$2 -> 30.24 | I7: =VLOOKUP(B7,'Orçamento Analítico - GO -T'!B:J,8,0)*(1-$M$2) -> 465.8 | J7: 576.57 | K7: =ROUND(J7*H7,2) -> 17435.48 | L7: 0.002218936389
A8: 2 | E8: Mobilizaçâo e desmobilizaçâo equipe campo. | K8: =SUM(K9:K11) -> 103572 | L8: 0.01318115014
A9: 2.1 | B9: COMPOSIÇÃO - 3 | C9: Próprio | D9: Serviço | E9: Transporte de comboio perfuração. | F9: km | G9: 150 | H9: =G9*$H$2 -> 6300 | I9: =VLOOKUP(B9,'Orçamento Analítico - GO -T'!B:J,8,0)*(1-$M$2) -> 4.7499326 | J9: =ROUND(I9*(1+$I$2),2) -> 5.88 | K9: 37044 | L9: 0.004714425963
A10: 2.2 | B10: COMPOSIÇÃO - 4 | C10: Próprio | D10: Serviço | E10: Transporte de comboio instalação. | F10: km | G10: 150 | H10: 6300 | I10: =VLOOKUP(B10,'Orçamento Analítico - GO -T'!B:J,8,0)*(1-$M$2) -> 5.9336256 | J10: 7.34 | K10: 46242 | L10: 0.005885014723
A11: 2.3 | B11: COMPOSIÇÃO - 5 | C11: Próprio | D11: Serviço | E11: Transporte de equipe teste de vazão. | F11: km | G11: 150 | H11: 6300 | I11: =VLOOKUP(B11,'Orçamento Analítico - GO -T'!B:J,8,0)*(1-$M$2) -> 2.604457 | J11: 3.22 | K11: 20286 | L11: 0.002581709456
A12: 3 | E12: Perfuração e completação de poço tubular. | K12: =SUM(K13:K18) -> 3855020.42 | L12: 0.4906113907
A13: 3.1 | B13: COMPOSIÇÃO - 6 | C13: Próprio | D13: Serviço | E13: Perfuração diâmetro de ø 12 1/2" em rocha - incluso mão de obra para instalação do revestimento e completação anelar. | F13: m | G13: 150 | H13: 6300 | I13: =VLOOKUP(B13,'Orçamento Analítico - GO -T'!B:J,8,0)*(1-$M$2) -> 255.86 | J13: 316.7 | K13: 1995210 | L13: 0.2539215481
A14: 3.2 | B14: 5073 | C14: ORSE | D14: Insumo | E14: Fornecimento de pré-filtro comum m3. | F14: m³ | G14: 7.5139 | H14: 315.5838 | I14: =VLOOKUP(B14,'Orçamento Analítico - GO -T'!B:J,8,0)*(1-$M$2) -> 1619.38 | J14: =ROUND(I14*(1+$J$2),2) -> 1857.27 | K14: 586124.32 | L14: =K14/$K$2 -> 0.07459344866
A15: 3.3 | B15: 5091 | C15: ORSE | D15: Insumo | E15: Revestimento filtro pvc geomecânico reforçado dn 150mm. | F15: m | G15: 15 | H15: 630 | I15: =VLOOKUP(B15,'Orçamento Analítico - GO -T'!B:J,8,0)*(1-$M$2) -> 221.38 | J15: =ROUND(I15*(1+$J$2),2) -> 253.9 | K15: 159957 | L15: 0.02035701959
A16: 3.4 | B16: 5024 | C16: ORSE | D16: Insumo | E16: Centralizador em 6". | F16: un. | G16: 10 | H16: 420 | I16: =VLOOKUP(B16,'Orçamento Analítico - GO -T'!B:J,8,0)*(1-$M$2) -> 267.02 | J16: =ROUND(I16*(1+$J$2),2) -> 306.25 | K16: 128625 | L16: 0.0163695346
A17: 3.5 | B17: 9850 | C17: SINAPI | D17: Insumo | E17: Tubo pvc de revestimento geomecanico nervurado reforcado, dn = 150 mm, comprimento = 2 m. | F17: m | G17: 134 | H17: 5628 | I17: =VLOOKUP(B17,'Orçamento Analítico - GO -T'!B:J,8,0)*(1-$M$2) -> 147.75 | J17: =ROUND(I17*(1+$J$2),2) -> 169.45 | K17: 953664.6 | L17: 0.1213686738
A18: 3.6 | B18: COMPOSIÇÃO - 7 | C18: Próprio | D18: Serviço | E18: Serviço de lançamento cimentação anelar, incluso materiais. | F18: m³ | G18: 1.16 | H18: =G18*$H$2 -> 48.72 | I18: =VLOOKUP(B18,'Orçamento Analítico - GO -T'!B:J,8,0)*(1-$M$2) -> 521.34 | J18: =ROUND(I18*(1+$I$2),2) -> 645.31 | K18: =ROUND(J18*H18,2) -> 31439.5 | L18: =K18/$K$2 -> 0.004001166048
A19: 4 | E19: Pós perfuração. | K19: =SUM(K20:K24) -> 514573.5 | L19: =K19/$K$2 -> 0.0654874924
A20: 4.1 | B20: 6305 | C20: ORSE | D20: Serviço | E20: Desenvolvimento com compressor 250psi / 750cfm. | F20: h | G20: 2 | H20: =G20*$H$2 -> 84 | I20: =VLOOKUP(B20,'Orçamento Analítico - GO -T'!B:J,8,0)*(1-$M$2) -> 411.16 | J20: =ROUND(I20*(1+$I$2),2) -> 508.93 | K20: =ROUND(J20*H20,2) -> 42750.12 | L20: =K20/$K$2 -> 0.005440618607
A21: 4.2 | B21: COMPOSIÇÃO - 8 | C21: Próprio | D21: Serviço | E21: Inspeção ótica em poço tubular câmera com rotação de 360º, visada lateral, com fonte própria de luz, entregue vídeo em cores e marcação de profundidades. | F21: m | G21: 150 | H21: =G21*$H$2 -> 6300 | I21: =VLOOKUP(B21,'Orçamento Analítico - GO -T'!B:J,8,0)*(1-$M$2) -> 9.64046 | J21: =ROUND(I21*(1+$I$2),2) -> 11.93 | K21: =ROUND(J21*H21,2) -> 75159 | L21: =K21/$K$2 -> 0.009565153358
A22: 4.3 | B22: COMPOSIÇÃO - 9 | C22: Próprio | D22: Serviço | E22: Serviço de coleta e análise físico-química e bacteriológica. | F22: un. | G22: 1 | H22: 42 | I22: =VLOOKUP(B22,'Orçamento Analítico - GO -T'!B:J,8,0)*(1-$M$2) -> 621.19 | J22: 768.91 | K22: 32294.22 | L22: 0.00410994248
A23: 4.4 | B23: COMPOSIÇÃO - 10 | C23: Próprio | D23: Serviço | E23: Serviço de instalação de laje sanitária com dimensões (1,5x1,5x0,3) , incluso material. | F23: un. | G23: 1 | H23: 42 | I23: =VLOOKUP(B23,'Orçamento Analítico - GO -T'!B:J,8,0)*(1-$M$2) -> 690.228 | J23: 854.36 | K23: 35883.12 | L23: 0.004566685903
A24: 4.5 | B24: 24.80.22 | C24: EMBASA | D24: Serviço | E24: (REVISADA) DESENVOLVIMENTO OU TESTE COM BOMBA SUBMERSA - UEB1 NO SEDIMENTO COM VAZAO < 60M3 (Ensaio de bombeamento poço tubular incluso materiais e grupo gerador) | F24: h | G24: 24 | H24: 1008 | I24: =VLOOKUP(B24,'Orçamento Analítico - GO -T'!B:J,8,0)*(1-$M$2) -> 263.27 | J24: 325.88 | K24: 328487.04 | L24: 0.04180509205
A25: 5 | E25: Reservação. | K25: =SUM(K26:K27) -> 904061.84 | L25: 0.11505595
A26: 5.1 | B26: COMPOSIÇÃO - 11 | C26: Próprio | D26: Serviço | E26: Fornecimento e instalação de reservatório e base elevada 10 m³. | F26: un. | G26: 0.8 | H26: =G26*$H$2 -> 33.6 | I26: =VLOOKUP(B26,'Orçamento Analítico - GO -T'!B:J,8,0)*(1-$M$2) -> 19616.62188 | J26: 24281.45 | K26: 815856.72 | L26: 0.1038304747
A27: 5.2 | B27: COMPOSIÇÃO - 12 | C27: Próprio | D27: Serviço | E27: Fornecimento e execução de reservatório apoiado de 5 m³. | F27: un. | G27: 0.2 | H27: 8.4 | I27: =VLOOKUP(B27,'Orçamento Analítico - GO -T'!B:J,8,0)*(1-$M$2) -> 8483.2843 | J27: 10500.61 | K27: 88205.12 | L27: 0.01122547532
A28: 6 | E28: Bebedouro. | K28: =SUM(K29) -> 104633.76 | L28: 0.01331627564
A29: 6.1 | B29: COMPOSIÇÃO - 13 | C29: Próprio | D29: Serviço | E29: Serviço de execução do bebedouro em concreto armado, incluso materiais. | F29: un. | G29: 1 | H29: =G29*$H$2 -> 42 | I29: =VLOOKUP(B29,'Orçamento Analítico - GO -T'!B:J,8,0)*(1-$M$2) -> 2012.6652 | J29: 2491.28 | K29: 104633.76 | L29: 0.01331627564
A30: 7 | E30: Chafariz. | K30: =SUM(K31) -> 49227.78 | L30: 0.006265001732
A31: 7.1 | B31: COMPOSIÇÃO - 14 | C31: Próprio | D31: Serviço | E31: Fornecimento de material e instalação do chafariz. | F31: un. | G31: 1 | H31: =G31*$H$2 -> 42 | I31: =VLOOKUP(B31,'Orçamento Analítico - GO -T'!B:J,8,0)*(1-$M$2) -> 946.9160855 | J31: 1172.09 | K31: 49227.78 | L31: 0.006265001732
A32: 8 | E32: Cavalete. | K32: =SUM(K33) -> 120069.6 | L32: 0.01528072669
A33: 8.1 | B33: COMPOSIÇÃO - 15 | C33: Próprio | D33: Serviço | E33: Fornecimento de conexões e instalação do cavalete com hidrômetro e clorador de pastilhas. | F33: un. | G33: 1 | H33: =G33*$H$2 -> 42 | I33: =VLOOKUP(B33,'Orçamento Analítico - GO -T'!B:J,8,0)*(1-$M$2) -> 2309.58 | J33: 2858.8 | K33: 120069.6 | L33: 0.01528072669
A34: 9 | E34: Instalações hidráulicas poço e adutora. | K34: =SUM(K35:K41) -> 739755.79 | L34: 0.09414544604
A35: 9.1 | B35: COMPOSIÇÃO - 16 | C35: Próprio | D35: Serviço | E35: Instalação da rede adutora poço-reservatório-bebedouro em pn80 e dn50mm. | F35: m | G35: 400 | H35: =G35*$H$2 -> 16800 | I35: =VLOOKUP(B35,'Orçamento Analítico - GO -T'!B:J,8,0)*(1-$M$2) -> 6.45 | J35: 7.98 | K35: 134064 | L35: 0.01706173206
A36: 9.2 | B36: 9875 | C36: SINAPI | D36: Insumo | E36: TUBO PVC, SOLDAVEL, DE 50 MM, AGUA FRIA (NBR-5648) | F36: un. | G36: 400 | H36: =G36*H2 -> 16800 | I36: =VLOOKUP(B36,'Orçamento Analítico - GO -T'!B:J,8,0)*(1-$M$2) -> 17.21 | J36: =ROUND(I36*(1+$J$2),2) -> 19.74 | K36: =ROUND(J36*H36,2) -> 331632 | L36: =K36/$K$2 -> 0.0422053372
A37: 9.3 | B37: COMPOSIÇÃO - 17 | C37: Próprio | D37: Serviço | E37: Montagem hidráulica do equipamento de bombeamento. | F37: un. | G37: 1 | H37: 42 | I37: =VLOOKUP(B37,'Orçamento Analítico - GO -T'!B:J,8,0)*(1-$M$2) -> 160.74 | J37: 198.96 | K37: 8356.32 | L37: 0.00106347187
A38: 9.4 | B38: 38200 | C38: SINAPI | D38: Insumo | E38: Corda de poliamida 12 mm tipo bombeiro, para trabalho em altura. | F38: 100m | G38: 0.93 | H38: 39.06 | I38: =VLOOKUP(B38,'Orçamento Analítico - GO -T'!B:J,8,0)*(1-$M$2) -> 348.48 | J38: =ROUND(I38*(1+$J$2),2) -> 399.67 | K38: 15611.11 | L38: =K38/$K$2 -> 0.001986756892
A39: 9.5 | B39: 9860 | C39: SINAPI | D39: Insumo | E39: Tubo pvc, roscavel, 2", para agua fria predial. | F39: m | G39: 90 | H39: 3780 | I39: =VLOOKUP(B39,'Orçamento Analítico - GO -T'!B:J,8,0)*(1-$M$2) -> 49.99 | J39: =ROUND(I39*(1+$J$2),2) -> 57.33 | K39: 216707.4 | L39: 0.02757939189
A40: 9.6 | B40: 3912 | C40: SINAPI | D40: Insumo | E40: Luva de ferro galvanizado, com rosca bsp, de 2". | F40: un. | G40: 16 | H40: 672 | I40: =VLOOKUP(B40,'Orçamento Analítico - GO -T'!B:J,8,0)*(1-$M$2) -> 36.61 | J40: 41.99 | K40: 28217.28 | L40: 0.003591088367
A41: 9.7 | B41: 5128 | C41: ORSE | D41: Insumo | E41: Tampa de poço galvanizada em 6" un. | F41: un. | G41: 1 | H41: 42 | I41: =VLOOKUP(B41,'Orçamento Analítico - GO -T'!B:J,8,0)*(1-$M$2) -> 107.28 | J41: 123.04 | K41: 5167.68 | L41: 0.0006576677671
A42: 10 | E42: Estrutura de fixação para módulos fotovoltáicos. | K42: =SUM(K43) -> 80205.05 | L42: =K42/$K$2 -> 0.01020734181
A43: 10.1 | B43: COMPOSIÇÃO - 18 | C43: Próprio | D43: Serviço | E43: Serviço de fixação de estruturas para os módulos fotovoltaicos e suportes de concreto, incluso materiais. | F43: m² | G43: 15.18 | H43: =G43*$H$2 -> 637.56 | I43: =VLOOKUP(B43,'Orçamento Analítico - GO -T'!B:J,8,0)*(1-$M$2) -> 101.629992 | J43: =ROUND(I43*(1+$I$2),2) -> 125.8 | K43: =ROUND(J43*H43,2) -> 80205.05 | L43: =K43/$K$2 -> 0.01020734181
A44: 11 | E44: Instalações elétricas. | K44: =SUM(K45:K49) -> 731632.44 | L44: =K44/$K$2 -> 0.09311162323
A45: 11.1 | B45: COMPOSIÇÃO - 19 | C45: Próprio | D45: Serviço | E45: Montagem e instalação elétrica do kit de bombeamento e sistema fotovoltaico inclusive sistema de aterramento. | F45: un. | G45: 1 | H45: =G45*$H$2 -> 42 | I45: =VLOOKUP(B45,'Orçamento Analítico - GO -T'!B:J,8,0)*(1-$M$2) -> 983.311 | J45: =ROUND(I45*(1+$I$2),2) -> 1217.14 | K45: =ROUND(J45*H45,2) -> 51119.88 | L45: =K45/$K$2 -> 0.006505800927
A46: 11.2 | B46: 34622 | C46: SINAPI | D46: Insumo | E46: Fornecimento de cabo flexivel pvc 750 v, 3 condutores de 6,0 mm2. | F46: m | G46: 105 | H46: 4410 | I46: =VLOOKUP(B46,'Orçamento Analítico - GO -T'!B:J,8,0)*(1-$M$2) -> 22.34 | J46: =ROUND(I46*(1+$J$2),2) -> 25.62 | K46: 112984.2 | L46: =K46/$K$2 -> 0.01437899919
A47: 11.3 | B47: COMPOSIÇÃO - 20 | C47: Próprio | D47: Serviço | E47: Fornecimento e instalação de automático de bóia superior e inferior. | F47: un. | G47: 1 | H47: =G47*$H$2 -> 42 | I47: =VLOOKUP(B47,'Orçamento Analítico - GO -T'!B:J,8,0)*(1-$M$2) -> 56.6075 | J47: =ROUND(I47*(1+$I$2),2) -> 70.07 | K47: =ROUND(J47*H47,2) -> 2942.94 | L47: =K47/$K$2 -> 0.0003745349515
A48: 11.4 | B48: 39257 | C48: SINAPI | D48: Insumo | E48: Cabo multipolar de cobre, flexivel, classe 4 ou 5, isolacao em hepr, cobertura em pvc-st2, antichama bwf-b, 0,6/1 kv, 3 condutores de 1,5 mm2. | F48: m | G48: 200 | H48: 8400 | I48: =VLOOKUP(B48,'Orçamento Analítico - GO -T'!B:J,8,0)*(1-$M$2) -> 6.07 | J48: 6.96 | K48: 58464 | L48: =K48/$K$2 -> 0.007440454582
A49: 11.5 | B49: COTAÇÃO-002 | C49: Próprio | D49: Insumo | E49: Fornecimento de kit de bombeamento fotovoltaico, incluindo uma bomba cc de 2200w com controladora de carga externa, caixa de proteção metálica, módulos fotovoltaicos compatíveis com a geração de 3300wp além de componentes elétricos necessários para interligação dos painéis, como cabos, conectores mc4 e presilhas de fixação. | F49: un. | G49: 1 | H49: =G49*$H$2 -> 42 | I49: =VLOOKUP(B49,'Orçamento Analítico - GO -T'!B:J,8,0)*(1-$M$2) -> 10507.03 | J49: =ROUND(I49*(1+$J$2),2) -> 12050.51 | K49: =ROUND(J49*H49,2) -> 506121.42 | L49: =K49/$K$2 -> 0.06441183358
A50: 12 | E50: Urbanização. | K50: =SUM(K51:K52) -> 157552.29 | L50: 0.02005098279
A51: 12.1 | B51: COMPOSIÇÃO - 21 | C51: Próprio | D51: Serviço | E51: Cerca com mourões de concreto de 15x15cm, espaçados de 3m e cravados a 0,5m, escoras de 10x10cm nos cantos, e 9 fios de arame de aço ovalado 15x17. | F51: m | G51: 28 | H51: =G51*$H$2 -> 1176 | I51: =VLOOKUP(B51,'Orçamento Analítico - GO -T'!B:J,8,0)*(1-$M$2) -> 88.632856 | J51: =ROUND(I51*(1+$I$2),2) -> 109.71 | K51: =ROUND(J51*H51,2) -> 129018.96 | L51: 0.01641967214
A52: 12.2 | B52: COMPOSIÇÃO - 22 | C52: Próprio | D52: Serviço | E52: Serviço de instalação de portão de ferro com suporte e batedor conforme projeto, incluso material. | F52: m² | G52: 1.5 | H52: 63 | I52: =VLOOKUP(B52,'Orçamento Analítico - GO -T'!B:J,8,0)*(1-$M$2) -> 365.90216 | J52: 452.91 | K52: 28533.33 | L52: 0.003631310652
A53: 13 | E53: Outros serviços e insumos excepcionais. | K53: =SUM(K54:K60) -> 399266.21 | L53: 0.05081284383
A54: 13.1 | B54: COMPOSIÇÃO - 23 | C54: Próprio | D54: Serviço | E54: Execução de tamponamento conforme especificação. | F54: m³ | G54: 0.08 | H54: =G54*$H$2 -> 3.36 | I54: =VLOOKUP(B54,'Orçamento Analítico - GO -T'!B:J,8,0)*(1-$M$2) -> 647.58 | J54: =ROUND(I54*(1+$I$2),2) -> 801.57 | K54: =ROUND(J54*H54,2) -> 2693.28 | L54: 0.0003427618281
A55: 13.2 | B55: 13747 | C55: ORSE | D55: Insumo | E55: Revestimento tubo liso aço sch-40 em 12". | F55: m | G55: 6 | H55: 252 | I55: =VLOOKUP(B55,'Orçamento Analítico - GO -T'!B:J,8,0)*(1-$M$2) -> 921.04 | J55: =ROUND(I55*(1+$J$2),2) -> 1056.34 | K55: 266197.68 | L55: =K55/$K$2 -> 0.03387780083
A56: 13.3 | B56: M3929 | C56: SICRO3 | D56: Insumo | E56: Tubo em aço-carbono - e = 3,00 mm e d = 150 mm (6"). | F56: m | G56: 1.44 | H56: 60.48 | I56: =VLOOKUP(B56,'Orçamento Analítico - GO -T'!B:J,8,0)*(1-$M$2) -> 148.57 | J56: 170.39 | K56: 10305.19 | L56: 0.001311495932
A57: 13.4 | B57: M039706073 | C57: EMBASA | D57: Insumo | E57: Filtro nold em aço galvanizado dn 6". | F57: m | G57: 0.06 | H57: 2.52 | I57: =VLOOKUP(B57,'Orçamento Analítico - GO -T'!B:J,8,0)*(1-$M$2) -> 835.86 | J57: 958.65 | K57: 2415.8 | L57: 0.0003074481763
A58: 13.5 | B58: COMPOSIÇÃO - 24 | C58: Próprio | D58: Serviço | E58: Limpeza manual , remoção de cerca, capina e instalação dos equipamentos (área do poço, painéis solares, bebedouro e reservatório). | F58: m² | G58: 70 | H58: =G58*$H$2 -> 2940 | I58: =VLOOKUP(B58,'Orçamento Analítico - GO -T'!B:J,8,0)*(1-$M$2) -> 1.7936 | J58: =ROUND(I58*(1+$I$2),2) -> 2.22 | K58: =ROUND(J58*H58,2) -> 6526.8 | L58: =K58/$K$2 -> 0.0008306369555
A59: 13.6 | B59: COMPOSIÇÃO - 25 | C59: Próprio | D59: Serviço | E59: Fornecimento e instalação do filtro para revestimento interno ø 4 1/2". | F59: m | G59: 0.6 | H59: =G59*$H$2 -> 25.2 | I59: =VLOOKUP(B59,'Orçamento Analítico - GO -T'!B:J,8,0)*(1-$M$2) -> 127.9865 | J59: 158.42 | K59: 3992.18 | L59: =K59/$K$2 -> 0.0005080670835
A60: 13.7 | B60: COMPOSIÇÃO - 26 | C60: Próprio | D60: Serviço | E60: Fornecimento e instalação do revestimento interno ø 4 1/2". | F60: m | G60: 17.4 | H60: =G60*$H$2 -> 730.8 | I60: =VLOOKUP(B60,'Orçamento Analítico - GO -T'!B:J,8,0)*(1-$M$2) -> 118.4365 | J60: 146.6 | K60: 107135.28 | L60: 0.01363463302

Sheet Orçamento Analítico - GO -T
C1: OBJETO: EXECUÇÃO DE SERVIÇOS DE PERFURAÇÃO E INSTALAÇÃO DE POÇOS TUBULARES EM MUNICÍPIOS LOCALIZADOS NO GOIÁS, NA ÁREA DE ATUAÇÃO DA CODEVASF
A4: PLANILHA ANALÍTICA - POÇO TOTALMENTE REVESTIDO - GOIÁS
A5: 1 | D5: Serviços preliminares.
A6: 1 | D6: SERVIÇOS PRELIMINARES
A7: 1.1 | B7: Código | C7: Banco | D7: Descrição | E7: Tipo | G7: Und | H7: Quant. | I7: Valor Unit | J7: Total
A8: Composição | B8: COMPOSIÇÃO - 1 | C8: Próprio | D8: Administração Local da Obra - Poço Totalmente Revestido | E8: CANT - CANTEIRO DE OBRAS | G8: un | H8: 1 | I8: =SUM(J9:J10) -> 947.29915 | J8: =I8*H8 -> 947.29915
A9: Composição Auxiliar | B9: 12710 | C9: SBC | D9: DESPESAS GERAIS DE MANUTENCAO CANTEIRO DE OBRAS | E9: INSTALACOES PROVISORIAS | G9: MES | H9: 0.133 | I9: =IF(C9="SINAPI", IF( IF(A9="Insumo", VLOOKUP(B9,'SINAPI INSUMOS'!B:F,5,0), VLOOKUP(B9,'SINAPI COMP'!B:F,4,0))=0,VLOOKUP(B9,'OUTRAS BASES'!C:D,2,0),IF(A9="Insumo", VLOOKUP(B9,'SINAPI INSUMOS'!B:F,5,0),VLOOKUP(B9,'SINAPI COMP'!B:F,4,0))), VLOOKUP(B9,'OUTRAS BASES'!C:D,2,0)) -> 910.61 | J9: =I9*H9 -> 121.11113
A10: Composição Auxiliar | B10: 100321 | C10: SINAPI | D10: TÉCNICO EM SEGURANÇA DO TRABALHO COM ENCARGOS COMPLEMENTARES | E10: Livro SINAPI: Cálculos e Parâmetros | G10: MES | H10: 0.133 | I10: =IF(C10="SINAPI", IF( IF(A10="Insumo", VLOOKUP(B10,'SINAPI INSUMOS'!B:F,5,0), VLOOKUP(B10,'SINAPI COMP'!B:F,4,0))=0,VLOOKUP(B10,'OUTRAS BASES'!C:D,2,0),IF(A10="Insumo", VLOOKUP(B10,'SINAPI INSUMOS'!B:F,5,0),VLOOKUP(B10,'SINAPI COMP'!B:F,4,0))), VLOOKUP(B10,'OUTRAS BASES'!C:D,2,0)) -> 6211.94 | J10: 826.18802
A15: 1.2 | B15: Código | C15: Banco | D15: Descrição | E15: Tipo | G15: Und | H15: Quant. | I15: Valor Unit | J15: Total
A16: Composição | B16: COMPOSIÇÃO - 2 | C16: Próprio | D16: Serviço de locação Geológica de campo com relatório hidro geológico e perfil construtivo e geológico esperado. Relatório de Viabilidade de implantação das estruturas e vistorias preliminares | E16: SERT - SERVIÇOS TÉCNICOS | G16: un | H16: 1 | I16: =SUM(J17:J19) -> 602.65 | J16: =I16*H16 -> 602.65
A17: Composição Auxiliar | B17: 30.01.45 | C17: EMBASA | D17: GEOLOGO SENIOR | E17: 3001 | G17: hora | H17: 5 | I17: =IF(C17="SINAPI", IF( IF(A17="Insumo", VLOOKUP(B17,'SINAPI INSUMOS'!B:F,5,0), VLOOKUP(B17,'SINAPI COMP'!B:F,4,0))=0,VLOOKUP(B17,'OUTRAS BASES'!C:D,2,0),IF(A17="Insumo", VLOOKUP(B17,'SINAPI INSUMOS'!B:F,5,0),VLOOKUP(B17,'SINAPI COMP'!B:F,4,0))), VLOOKUP(B17,'OUTRAS BASES'!C:D,2,0)) -> 99.88 | J17: 499.4
A18: Insumo | B18: 5896 | C18: ORSE | D18: Veículo tipo sedan ou pick-up capacidade 0,6 ton h | E18: Equipamento | G18: h | H18: 5 | I18: =IF(C18="SINAPI", IF( IF(A18="Insumo", VLOOKUP(B18,'SINAPI INSUMOS'!B:F,5,0), VLOOKUP(B18,'SINAPI COMP'!B:F,4,0))=0,VLOOKUP(B18,'OUTRAS BASES'!C:D,2,0),IF(A18="Insumo", VLOOKUP(B18,'SINAPI INSUMOS'!B:F,5,0),VLOOKUP(B18,'SINAPI COMP'!B:F,4,0))), VLOOKUP(B18,'OUTRAS BASES'!C:D,2,0)) -> 8.33 | J18: 41.65
A19: Insumo | B19: 4222 | C19: SINAPI | D19: GASOLINA COMUM | E19: Material | G19: L | H19: 10 | I19: =IF(C19="SINAPI", IF( IF(A19="Insumo", VLOOKUP(B19,'SINAPI INSUMOS'!B:F,5,0), VLOOKUP(B19,'SINAPI COMP'!B:F,4,0))=0,VLOOKUP(B19,'OUTRAS BASES'!C:D,2,0),IF(A19="Insumo", VLOOKUP(B19,'SINAPI INSUMOS'!B:F,5,0),VLOOKUP(B19,'SINAPI COMP'!B:F,4,0))), VLOOKUP(B19,'OUTRAS BASES'!C:D,2,0)) -> 6.16 | J19: 61.6
A24: 1.3 | B24: Código | C24: Banco | D24: Descrição | E24: Tipo | G24: Und | H24: Quant. | I24: Valor Unit | J24: Total
A25: Composição | B25: 103689 | C25: SINAPI | D25: FORNECIMENTO E INSTALAÇÃO DE PLACA DE OBRA COM CHAPA GALVANIZADA E ESTRUTURA DE MADEIRA. AF_03/2022_PS | E25: Sinalização Vertical Viária | G25: m² | H25: 1 | I25: =IF(C25="SINAPI", IF( IF(A25="Insumo", VLOOKUP(B25,'SINAPI INSUMOS'!B:F,5,0), VLOOKUP(B25,'SINAPI COMP'!B:F,4,0))=0,VLOOKUP(B25,'OUTRAS BASES'!C:D,2,0),IF(A25="Insumo", VLOOKUP(B25,'SINAPI INSUMOS'!B:F,5,0),VLOOKUP(B25,'SINAPI COMP'!B:F,4,0))), VLOOKUP(B25,'OUTRAS BASES'!C:D,2,0)) -> 465.8 | J25: =I25*H25 -> 465.8
A26: Composição Auxiliar | B26: 102234 | C26: SINAPI | D26: PINTURA IMUNIZANTE PARA MADEIRA, 2 DEMÃOS. AF_01/2021 | E26: Pintura em Madeira | G26: m² | H26: 0.5 | I26: =IF(C26="SINAPI", IF( IF(A26="Insumo", VLOOKUP(B26,'SINAPI INSUMOS'!B:F,5,0), VLOOKUP(B26,'SINAPI COMP'!B:F,4,0))=0,VLOOKUP(B26,'OUTRAS BASES'!C:D,2,0),IF(A26="Insumo", VLOOKUP(B26,'SINAPI INSUMOS'!B:F,5,0),VLOOKUP(B26,'SINAPI COMP'!B:F,4,0))), VLOOKUP(B26,'OUTRAS BASES'!C:D,2,0)) -> 23.09 | J26: 11.545
A27: Composição Auxiliar | B27: 88262 | C27: SINAPI | D27: CARPINTEIRO DE FORMAS COM ENCARGOS COMPLEMENTARES | E27: Livro SINAPI: Cálculos e Parâmetros | G27: H | H27: 0.3729 | I27: =IF(C27="SINAPI", IF( IF(A27="Insumo", VLOOKUP(B27,'SINAPI INSUMOS'!B:F,5,0), VLOOKUP(B27,'SINAPI COMP'!B:F,4,0))=0,VLOOKUP(B27,'OUTRAS BASES'!C:D,2,0),IF(A27="Insumo", VLOOKUP(B27,'SINAPI INSUMOS'!B:F,5,0),VLOOKUP(B27,'SINAPI COMP'!B:F,4,0))), VLOOKUP(B27,'OUTRAS BASES'!C:D,2,0)) -> 31.69 | J27: 11.817201
A28: Composição Auxiliar | B28: 88316 | C28: SINAPI | D28: SERVENTE COM ENCARGOS COMPLEMENTARES | E28: Livro SINAPI: Cálculos e Parâmetros | G28: H | H28: 1.1186 | I28: =IF(C28="SINAPI", IF( IF(A28="Insumo", VLOOKUP(B28,'SINAPI INSUMOS'!B:F,5,0), VLOOKUP(B28,'SINAPI COMP'!B:F,4,0))=0,VLOOKUP(B28,'OUTRAS BASES'!C:D,2,0),IF(A28="Insumo", VLOOKUP(B28,'SINAPI INSUMOS'!B:F,5,0),VLOOKUP(B28,'SINAPI COMP'!B:F,4,0))), VLOOKUP(B28,'OUTRAS BASES'!C:D,2,0)) -> 22.42 | J28: 25.079012
A29: Insumo | B29: 4509 | C29: SINAPI | D29: SARRAFO *2,5 X 10* CM EM PINUS, MISTA OU EQUIVALENTE DA REGIAO - BRUTA | E29: Material | G29: M | H29: 3.2083 | I29: =IF(C29="SINAPI", IF( IF(A29="Insumo", VLOOKUP(B29,'SINAPI INSUMOS'!B:F,5,0), VLOOKUP(B29,'SINAPI COMP'!B:F,4,0))=0,VLOOKUP(B29,'OUTRAS BASES'!C:D,2,0),IF(A29="Insumo", VLOOKUP(B29,'SINAPI INSUMOS'!B:F,5,0),VLOOKUP(B29,'SINAPI COMP'!B:F,4,0))), VLOOKUP(B29,'OUTRAS BASES'!C:D,2,0)) -> 5.2 | J29: 16.68316
A30: Insumo | B30: 4813 | C30: SINAPI | D30: PLACA DE OBRA (PARA CONSTRUCAO CIVIL) EM CHAPA GALVANIZADA *N. 22*, ADESIVADA, DE *2,4 X 1,2* M (SEM POSTES PARA FIXACAO) | E30: Material | G30: m² | H30: 1 | I30: =IF(C30="SINAPI", IF( IF(A30="Insumo", VLOOKUP(B30,'SINAPI INSUMOS'!B:F,5,0), VLOOKUP(B30,'SINAPI COMP'!B:F,4,0))=0,VLOOKUP(B30,'OUTRAS BASES'!C:D,2,0),IF(A30="Insumo", VLOOKUP(B30,'SINAPI INSUMOS'!B:F,5,0),VLOOKUP(B30,'SINAPI COMP'!B:F,4,0))), VLOOKUP(B30,'OUTRAS BASES'!C:D,2,0)) -> 400 | J30: 400
A31: Insumo | B31: 5065 | C31: SINAPI | D31: PREGO DE ACO POLIDO COM CABECA 10 X 10 (7/8 X 17) | E31: Material | G31: KG | H31: 0.0113 | I31: =IF(C31="SINAPI", IF( IF(A31="Insumo", VLOOKUP(B31,'SINAPI INSUMOS'!B:F,5,0), VLOOKUP(B31,'SINAPI COMP'!B:F,4,0))=0,VLOOKUP(B31,'OUTRAS BASES'!C:D,2,0),IF(A31="Insumo", VLOOKUP(B31,'SINAPI INSUMOS'!B:F,5,0),VLOOKUP(B31,'SINAPI COMP'!B:F,4,0))), VLOOKUP(B31,'OUTRAS BASES'!C:D,2,0)) -> 38.6 | J31: 0.43618
A32: Insumo | B32: 5069 | C32: SINAPI | D32: PREGO DE ACO POLIDO COM CABECA 17 X 27 (2 1/2 X 11) | E32: Material | G32: KG | H32: 0.0132 | I32: =IF(C32="SINAPI", IF( IF(A32="Insumo", VLOOKUP(B32,'SINAPI INSUMOS'!B:F,5,0), VLOOKUP(B32,'SINAPI COMP'!B:F,4,0))=0,VLOOKUP(B32,'OUTRAS BASES'!C:D,2,0),IF(A32="Insumo", VLOOKUP(B32,'SINAPI INSUMOS'!B:F,5,0),VLOOKUP(B32,'SINAPI COMP'!B:F,4,0))), VLOOKUP(B32,'OUTRAS BASES'!C:D,2,0)) -> 20.68 | J32: 0.272976
A37: 2 | D37: MOBILIZAÇÂO E DESMOBILIZAÇÂO EQUIPE CAMPO
A38: 2.1 | B38: Código | C38: Banco | D38: Descrição | E38: Tipo | G38: Und | H38: Quant. | I38: Valor Unit | J38: Total
A39: Composição | B39: COMPOSIÇÃO - 3 | C39: Próprio | D39: Transporte de Comboio Perfuração | E39: TRAN - TRANSPORTES, CARGAS E DESCARGAS | G39: km | H39: 1 | I39: =SUM(J40:J41) -> 4.7499326 | J39: =I39*H39 -> 4.7499326
A40: Composição Auxiliar | B40: 5824 | C40: SINAPI | D40: CAMINHÃO TOCO, PBT 16.000 KG, CARGA ÚTIL MÁX. 10.685 KG, DIST. ENTRE EIXOS 4,8 M, POTÊNCIA 189 CV, INCLUSIVE CARROCERIA FIXA ABERTA DE MADEIRA P/ TRANSPORTE GERAL DE CARGA SECA, DIMEN. APROX. 2,5 X 7,00 X 0,50 M - CHP DIURNO. AF_06/2014 | E40: Custos Horários Produtivo e Improdutivo dos Equipamentos | G40: CHP | H40: 0.01666 | I40: =IF(C40="SINAPI", IF( IF(A40="Insumo", VLOOKUP(B40,'SINAPI INSUMOS'!B:F,5,0), VLOOKUP(B40,'SINAPI COMP'!B:F,4,0))=0,VLOOKUP(B40,'OUTRAS BASES'!C:D,2,0),IF(A40="Insumo", VLOOKUP(B40,'SINAPI INSUMOS'!B:F,5,0),VLOOKUP(B40,'SINAPI COMP'!B:F,4,0))), VLOOKUP(B40,'OUTRAS BASES'!C:D,2,0)) -> 219.76 | J40: 3.6612016
A41: Composição Auxiliar | B41: 5826 | C41: SINAPI | D41: CAMINHÃO TOCO, PBT 16.000 KG, CARGA ÚTIL MÁX. 10.685 KG, DIST. ENTRE EIXOS 4,8 M, POTÊNCIA 189 CV, INCLUSIVE CARROCERIA FIXA ABERTA DE MADEIRA P/ TRANSPORTE GERAL DE CARGA SECA, DIMEN. APROX. 2,5 X 7,00 X 0,50 M - CHI DIURNO. AF_06/2014 | E41: Custos Horários Produtivo e Improdutivo dos Equipamentos | G41: CHI | H41: 0.01666 | I41: =IF(C41="SINAPI", IF( IF(A41="Insumo", VLOOKUP(B41,'SINAPI INSUMOS'!B:F,5,0), VLOOKUP(B41,'SINAPI COMP'!B:F,4,0))=0,VLOOKUP(B41,'OUTRAS BASES'!C:D,2,0),IF(A41="Insumo", VLOOKUP(B41,'SINAPI INSUMOS'!B:F,5,0),VLOOKUP(B41,'SINAPI COMP'!B:F,4,0))), VLOOKUP(B41,'OUTRAS BASES'!C:D,2,0)) -> 65.35 | J41: 1.088731
A46: 2.2 | B46: Código | C46: Banco | D46: Descrição | E46: Tipo | G46: Und | H46: Quant. | I46: Valor Unit | J46: Total
A47: Composição | B47: COMPOSIÇÃO - 4 | C47: Próprio | D47: Transporte de Comboio Instalação | E47: TRAN - TRANSPORTES, CARGAS E DESCARGAS | G47: km | H47: 1 | I47: =SUM(J48:J49) -> 5.9336256 | J47: =I47*H47 -> 5.9336256
A48: Composição Auxiliar | B48: 5928 | C48: SINAPI | D48: GUINDAUTO HIDRÁULICO, CAPACIDADE MÁXIMA DE CARGA 6200 KG, MOMENTO MÁXIMO DE CARGA 11,7 TM, ALCANCE MÁXIMO HORIZONTAL 9,70 M, INCLUSIVE CAMINHÃO TOCO PBT 16.000 KG, POTÊNCIA DE 189 CV - CHP DIURNO. AF_06/2014 | E48: Custos Horários Produtivo e Improdutivo dos Equipamentos | G48: CHP | H48: 0.01666 | I48: =IF(C48="SINAPI", IF( IF(A48="Insumo", VLOOKUP(B48,'SINAPI INSUMOS'!B:F,5,0), VLOOKUP(B48,'SINAPI COMP'!B:F,4,0))=0,VLOOKUP(B48,'OUTRAS BASES'!C:D,2,0),IF(A48="Insumo", VLOOKUP(B48,'SINAPI INSUMOS'!B:F,5,0),VLOOKUP(B48,'SINAPI COMP'!B:F,4,0))), VLOOKUP(B48,'OUTRAS BASES'!C:D,2,0)) -> 279.76 | J48: 4.6608016
A49: Composição Auxiliar | B49: 5930 | C49: SINAPI | D49: GUINDAUTO HIDRÁULICO, CAPACIDADE MÁXIMA DE CARGA 6200 KG, MOMENTO MÁXIMO DE CARGA 11,7 TM, ALCANCE MÁXIMO HORIZONTAL 9,70 M, INCLUSIVE CAMINHÃO TOCO PBT 16.000 KG, POTÊNCIA DE 189 CV - CHI DIURNO. AF_06/2014 | E49: Custos Horários Produtivo e Improdutivo dos Equipamentos | G49: CHI | H49: 0.01666 | I49: =IF(C49="SINAPI", IF( IF(A49="Insumo", VLOOKUP(B49,'SINAPI INSUMOS'!B:F,5,0), VLOOKUP(B49,'SINAPI COMP'!B:F,4,0))=0,VLOOKUP(B49,'OUTRAS BASES'!C:D,2,0),IF(A49="Insumo", VLOOKUP(B49,'SINAPI INSUMOS'!B:F,5,0),VLOOKUP(B49,'SINAPI COMP'!B:F,4,0))), VLOOKUP(B49,'OUTRAS BASES'!C:D,2,0)) -> 76.4 | J49: 1.272824
A54: 2.3 | B54: Código | C54: Banco | D54: Descrição | E54: Tipo | G54: Und | H54: Quant. | I54: Valor Unit | J54: Total
A55: Composição | B55: COMPOSIÇÃO - 5 | C55: Próprio | D55: Transporte de Equipe Teste de Vazão | E55: TRAN - TRANSPORTES, CARGAS E DESCARGAS | G55: km | H55: 1 | I55: =SUM(J56:J57) -> 2.604457 | J55: =I55*H55 -> 2.604457
A56: Composição Auxiliar | B56: 73467 | C56: SINAPI | D56: CAMINHÃO TOCO, PBT 14.300 KG, CARGA ÚTIL MÁX. 9.710 KG, DIST. ENTRE EIXOS 3,56 M, POTÊNCIA 185 CV, INCLUSIVE CARROCERIA FIXA ABERTA DE MADEIRA P/ TRANSPORTE GERAL DE CARGA SECA, DIMEN. APROX. 2,50 X 6,50 X 0,50 M - CHP DIURNO. AF_06/2014 | E56: Custos Horários Produtivo e Improdutivo dos Equipamentos | G56: CHP | H56: 0.0083 | I56: =IF(C56="SINAPI", IF( IF(A56="Insumo", VLOOKUP(B56,'SINAPI INSUMOS'!B:F,5,0), VLOOKUP(B56,'SINAPI COMP'!B:F,4,0))=0,VLOOKUP(B56,'OUTRAS BASES'!C:D,2,0),IF(A56="Insumo", VLOOKUP(B56,'SINAPI INSUMOS'!B:F,5,0),VLOOKUP(B56,'SINAPI COMP'!B:F,4,0))), VLOOKUP(B56,'OUTRAS BASES'!C:D,2,0)) -> 251.36 | J56: 2.086288
A57: Composição Auxiliar | B57: 91395 | C57: SINAPI | D57: CAMINHÃO TOCO, PBT 14.300 KG, CARGA ÚTIL MÁX. 9.710 KG, DIST. ENTRE EIXOS 3,56 M, POTÊNCIA 185 CV, INCLUSIVE CARROCERIA FIXA ABERTA DE MADEIRA P/ TRANSPORTE GERAL DE CARGA SECA, DIMEN. APROX. 2,50 X 6,50 X 0,50 M - CHI DIURNO. AF_06/2014 | E57: Custos Horários Produtivo e Improdutivo dos Equipamentos | G57: CHI | H57: 0.0083 | I57: =IF(C57="SINAPI", IF( IF(A57="Insumo", VLOOKUP(B57,'SINAPI INSUMOS'!B:F,5,0), VLOOKUP(B57,'SINAPI COMP'!B:F,4,0))=0,VLOOKUP(B57,'OUTRAS BASES'!C:D,2,0),IF(A57="Insumo", VLOOKUP(B57,'SINAPI INSUMOS'!B:F,5,0),VLOOKUP(B57,'SINAPI COMP'!B:F,4,0))), VLOOKUP(B57,'OUTRAS BASES'!C:D,2,0)) -> 62.43 | J57: 0.518169
A62: 3 | D62: PERFURAÇÃO E COMPLETAÇÃO DE POÇO TUBULAR
A63: 3.1 | B63: Código | C63: Banco | D63: Descrição | E63: Tipo | G63: Und | H63: Quant. | I63: Valor Unit | J63: Total
A64: Composição | B64: COMPOSIÇÃO - 6 | C64: Próprio | D64: Perfuração diâmetro de Ø 12 1/2" em sedimento/camadas inconsolidadas - incluso mão de obra para instalação do revestimento e completação anelar | E64: SERT - SERVIÇOS TÉCNICOS | G64: m | H64: 1 | I64: =SUM(J65:J66) -> 255.86 | J64: =I64*H64 -> 255.86
A65: Composição Auxiliar | B65: 5057 | C65: ORSE | D65: Perfuração rocha sedimentar sedimento / Camadas inconsolidadas DN 12.1/2" - Poço até 150 m | E65: Conversão InfoWOrca | G65: m | H65: 1 | I65: =IF(C65="SINAPI", IF( IF(A65="Insumo", VLOOKUP(B65,'SINAPI INSUMOS'!B:F,5,0), VLOOKUP(B65,'SINAPI COMP'!B:F,4,0))=0,VLOOKUP(B65,'OUTRAS BASES'!C:D,2,0),IF(A65="Insumo", VLOOKUP(B65,'SINAPI INSUMOS'!B:F,5,0),VLOOKUP(B65,'SINAPI COMP'!B:F,4,0))), VLOOKUP(B65,'OUTRAS BASES'!C:D,2,0)) -> 247.66 | J65: 247.66
A66: Insumo | B66: 43366 | C66: SINAPI | D66: BENTONITA, ARGILA CONSTITUIDA POR MONTMORILONITA | E66: Material | G66: KG | H66: 5 | I66: =IF(C66="SINAPI", IF( IF(A66="Insumo", VLOOKUP(B66,'SINAPI INSUMOS'!B:F,5,0), VLOOKUP(B66,'SINAPI COMP'!B:F,4,0))=0,VLOOKUP(B66,'OUTRAS BASES'!C:D,2,0),IF(A66="Insumo", VLOOKUP(B66,'SINAPI INSUMOS'!B:F,5,0),VLOOKUP(B66,'SINAPI COMP'!B:F,4,0))), VLOOKUP(B66,'OUTRAS BASES'!C:D,2,0)) -> 1.64 | J66: 8.2
A71: 3.2 | B71: Código | C71: Banco | D71: Descrição | E71: Tipo | G71: Und | H71: Quant. | I71: Valor Unit | J71: Total
A72: Insumo | B72: 5073 | C72: ORSE | D72: Fornecimento de pré-filtro comum m3 | E72: Serviços | G72: m³ | H72: 1 | I72: =IF(C72="SINAPI", IF( IF(A72="Insumo", VLOOKUP(B72,'SINAPI INSUMOS'!B:F,5,0), VLOOKUP(B72,'SINAPI COMP'!B:F,4,0))=0,VLOOKUP(B72,'OUTRAS BASES'!C:D,2,0),IF(A72="Insumo", VLOOKUP(B72,'SINAPI INSUMOS'!B:F,5,0),VLOOKUP(B72,'SINAPI COMP'!B:F,4,0))), VLOOKUP(B72,'OUTRAS BASES'!C:D,2,0)) -> 1619.38 | J72: =I72*H72 -> 1619.38
A77: 3.3 | B77: Código | C77: Banco | D77: Descrição | E77: Tipo | G77: Und | H77: Quant. | I77: Valor Unit | J77: Total
A78: Insumo | B78: 5091 | C78: ORSE | D78: Revestimento filtro pvc geomecânico reforçado dn 150mm | E78: Serviços | G78: m | H78: 1 | I78: =IF(C78="SINAPI", IF( IF(A78="Insumo", VLOOKUP(B78,'SINAPI INSUMOS'!B:F,5,0), VLOOKUP(B78,'SINAPI COMP'!B:F,4,0))=0,VLOOKUP(B78,'OUTRAS BASES'!C:D,2,0),IF(A78="Insumo", VLOOKUP(B78,'SINAPI INSUMOS'!B:F,5,0),VLOOKUP(B78,'SINAPI COMP'!B:F,4,0))), VLOOKUP(B78,'OUTRAS BASES'!C:D,2,0)) -> 221.38 | J78: =I78*H78 -> 221.38
A83: 3.4 | B83: Código | C83: Banco | D83: Descrição | E83: Tipo | G83: Und | H83: Quant. | I83: Valor Unit | J83: Total
A84: Insumo | B84: 5024 | C84: ORSE | D84: Centralizador em 6" | E84: Serviços | G84: un | H84: 1 | I84: =IF(C84="SINAPI", IF( IF(A84="Insumo", VLOOKUP(B84,'SINAPI INSUMOS'!B:F,5,0), VLOOKUP(B84,'SINAPI COMP'!B:F,4,0))=0,VLOOKUP(B84,'OUTRAS BASES'!C:D,2,0),IF(A84="Insumo", VLOOKUP(B84,'SINAPI INSUMOS'!B:F,5,0),VLOOKUP(B84,'SINAPI COMP'!B:F,4,0))), VLOOKUP(B84,'OUTRAS BASES'!C:D,2,0)) -> 267.02 | J84: =I84*H84 -> 267.02
A89: 3.5 | B89: Código | C89: Banco | D89: Descrição | E89: Tipo | G89: Und | H89: Quant. | I89: Valor Unit | J89: Total
A90: Insumo | B90: 9850 | C90: SINAPI | D90: TUBO PVC DE REVESTIMENTO GEOMECANICO NERVURADO REFORCADO, DN = 150 MM, COMPRIMENTO = 2 M | E90: Material | G90: M | H90: 1 | I90: =IF(C90="SINAPI", IF( IF(A90="Insumo", VLOOKUP(B90,'SINAPI INSUMOS'!B:F,5,0), VLOOKUP(B90,'SINAPI COMP'!B:F,4,0))=0,VLOOKUP(B90,'OUTRAS BASES'!C:D,2,0),IF(A90="Insumo", VLOOKUP(B90,'SINAPI INSUMOS'!B:F,5,0),VLOOKUP(B90,'SINAPI COMP'!B:F,4,0))), VLOOKUP(B90,'OUTRAS BASES'!C:D,2,0)) -> 147.75 | J90: =I90*H90 -> 147.75
A95: 3.6 | B95: Código | C95: Banco | D95: Descrição | E95: Tipo | G95: Und | H95: Quant. | I95: Valor Unit | J95: Total
A96: Composição | B96: COMPOSIÇÃO - 7 | C96: Próprio | D96: Serviço de lançamento cimentação anelar, incluso materiais. | E96: SEDI - SERVIÇOS DIVERSOS | G96: m³ | H96: 1 | I96: =SUM(J97) -> 521.34 | J96: =I96*H96 -> 521.34
A97: Composição Auxiliar | B97: 1903 | C97: ORSE | D97: Argamassa cimento e areia traço t-1 (1:3) - 1 saco cimento 50kg / 3 padiolas areia dim. 0.35 x 0.45 x 0.23 m - Confecção mecânica e transporte | E97: Argamassas | G97: m³ | H97: 1 | I97: =IF(C97="SINAPI", IF( IF(A97="Insumo", VLOOKUP(B97,'SINAPI INSUMOS'!B:F,5,0), VLOOKUP(B97,'SINAPI COMP'!B:F,4,0))=0,VLOOKUP(B97,'OUTRAS BASES'!C:D,2,0),IF(A97="Insumo", VLOOKUP(B97,'SINAPI INSUMOS'!B:F,5,0),VLOOKUP(B97,'SINAPI COMP'!B:F,4,0))), VLOOKUP(B97,'OUTRAS BASES'!C:D,2,0)) -> 521.34 | J97: 521.34
A102: 4 | D102: PÓS PERFURAÇÃO
A103: 4.1 | B103: Código | C103: Banco | D103: Descrição | E103: Tipo | G103: Und | H103: Quant. | I103: Valor Unit | J103: Total
A104: Composição | B104: 6305 | C104: ORSE | D104: Desenvolvimento com Compressor 250psi / 750cfm | E104: Conversão InfoWOrca | G104: h | H104: 1 | I104: =IF(C104="SINAPI", IF( IF(A104="Insumo", VLOOKUP(B104,'SINAPI INSUMOS'!B:F,5,0), VLOOKUP(B104,'SINAPI COMP'!B:F,4,0))=0,VLOOKUP(B104,'OUTRAS BASES'!C:D,2,0),IF(A104="Insumo", VLOOKUP(B104,'SINAPI INSUMOS'!B:F,5,0),VLOOKUP(B104,'SINAPI COMP'!B:F,4,0))), VLOOKUP(B104,'OUTRAS BASES'!C:D,2,0)) -> 411.16 | J104: =I104*H104 -> 411.16
A105: Insumo | B105: 5030 | C105: ORSE | D105: Desenvolvimento com compressor 250psi - 750cfm h | E105: Serviços | G105: h | H105: 1 | I105: =IF(C105="SINAPI", IF( IF(A105="Insumo", VLOOKUP(B105,'SINAPI INSUMOS'!B:F,5,0), VLOOKUP(B105,'SINAPI COMP'!B:F,4,0))=0,VLOOKUP(B105,'OUTRAS BASES'!C:D,2,0),IF(A105="Insumo", VLOOKUP(B105,'SINAPI INSUMOS'!B:F,5,0),VLOOKUP(B105,'SINAPI COMP'!B:F,4,0))), VLOOKUP(B105,'OUTRAS BASES'!C:D,2,0)) -> 411.16 | J105: 411.16
A110: 4.2 | B110: Código | C110: Banco | D110: Descrição | E110: Tipo | G110: Und | H110: Quant. | I110: Valor Unit | J110: Total
A111: Composição | B111: COMPOSIÇÃO - 8 | C111: Próprio | D111: Inspeção ótica em poço tubular câmera com rotação de 360º, visada lateral, com fonte própria de luz, entregue vídeo em cores e marcação de profundidades. | E111: SEES - SERVIÇOS ESPECIAIS | G111: m | H111: 1 | I111: =SUM(J112:J113) -> 9.64046 | J111: =I111*H111 -> 9.64046
A112: Insumo | B112: H020050004 | C112: EMBASA | D112: APARELHO DE PERFILAGEM OPTICA | E112: Material | G112: M | H112: 1 | I112: =IF(C112="SINAPI", IF( IF(A112="Insumo", VLOOKUP(B112,'SINAPI INSUMOS'!B:F,5,0), VLOOKUP(B112,'SINAPI COMP'!B:F,4,0))=0,VLOOKUP(B112,'OUTRAS BASES'!C:D,2,0),IF(A112="Insumo", VLOOKUP(B112,'SINAPI INSUMOS'!B:F,5,0),VLOOKUP(B112,'SINAPI COMP'!B:F,4,0))), VLOOKUP(B112,'OUTRAS BASES'!C:D,2,0)) -> 4.4 | J112: 4.4
A113: Insumo | B113: B590000022 | C113: EMBASA | D113: TECNICO MEDIO | E113: Mão de Obra | G113: H | H113: 0.0835 | I113: =IF(C113="SINAPI", IF( IF(A113="Insumo", VLOOKUP(B113,'SINAPI INSUMOS'!B:F,5,0), VLOOKUP(B113,'SINAPI COMP'!B:F,4,0))=0,VLOOKUP(B113,'OUTRAS BASES'!C:D,2,0),IF(A113="Insumo", VLOOKUP(B113,'SINAPI INSUMOS'!B:F,5,0),VLOOKUP(B113,'SINAPI COMP'!B:F,4,0))), VLOOKUP(B113,'OUTRAS BASES'!C:D,2,0)) -> 62.76 | J113: 5.24046
A118: 4.3 | B118: Código | C118: Banco | D118: Descrição | E118: Tipo | G118: Und | H118: Quant. | I118: Valor Unit | J118: Total
A119: Composição | B119: COMPOSIÇÃO - 9 | C119: Próprio | D119: Serviço de coleta e Análise Físico-Química e Bacteriológica | E119: SEDI - SERVIÇOS DIVERSOS | G119: un | H119: 1 | I119: =SUM(J120:J121) -> 621.19 | J119: =I119*H119 -> 621.19
A120: Composição Auxiliar | B120: 6312 | C120: ORSE | D120: Análise Físico-química da Água | E120: Conversão InfoWOrca | G120: un | H120: 1 | I120: =IF(C120="SINAPI", IF( IF(A120="Insumo", VLOOKUP(B120,'SINAPI INSUMOS'!B:F,5,0), VLOOKUP(B120,'SINAPI COMP'!B:F,4,0))=0,VLOOKUP(B120,'OUTRAS BASES'!C:D,2,0),IF(A120="Insumo", VLOOKUP(B120,'SINAPI INSUMOS'!B:F,5,0),VLOOKUP(B120,'SINAPI COMP'!B:F,4,0))), VLOOKUP(B120,'OUTRAS BASES'!C:D,2,0)) -> 565.21 | J120: 565.21
A121: Composição Auxiliar | B121: 6313 | C121: ORSE | D121: Análise Bacteriológica da Água | E121: Conversão InfoWOrca | G121: un | H121: 1 | I121: =IF(C121="SINAPI", IF( IF(A121="Insumo", VLOOKUP(B121,'SINAPI INSUMOS'!B:F,5,0), VLOOKUP(B121,'SINAPI COMP'!B:F,4,0))=0,VLOOKUP(B121,'OUTRAS BASES'!C:D,2,0),IF(A121="Insumo", VLOOKUP(B121,'SINAPI INSUMOS'!B:F,5,0),VLOOKUP(B121,'SINAPI COMP'!B:F,4,0))), VLOOKUP(B121,'OUTRAS BASES'!C:D,2,0)) -> 55.98 | J121: 55.98
A126: 4.4 | B126: Código | C126: Banco | D126: Descrição | E126: Tipo | G126: Und | H126: Quant. | I126: Valor Unit | J126: Total
A127: Composição | B127: COMPOSIÇÃO - 10 | C127: Próprio | D127: Serviço de instalação de laje sanitária com dimensões (1,5x1,5x0,3) , incluso material. | E127: SEDI - SERVIÇOS DIVERSOS | G127: un | H127: 1 | I127: =SUM(J128:J131) -> 690.228 | J127: =I127*H127 -> 690.228
A128: Composição Auxiliar | B128: 92522 | C128: SINAPI | D128: MONTAGEM E DESMONTAGEM DE FÔRMA DE LAJE MACIÇA, PÉ-DIREITO SIMPLES, EM CHAPA DE MADEIRA COMPENSADA RESINADA, 8 UTILIZAÇÕES. AF_09/2020 | E128: Fôrmas para Estruturas de Concreto Armado | G128: m² | H128: 1.8 | I128: =IF(C128="SINAPI", IF( IF(A128="Insumo", VLOOKUP(B128,'SINAPI INSUMOS'!B:F,5,0), VLOOKUP(B128,'SINAPI COMP'!B:F,4,0))=0,VLOOKUP(B128,'OUTRAS BASES'!C:D,2,0),IF(A128="Insumo", VLOOKUP(B128,'SINAPI INSUMOS'!B:F,5,0),VLOOKUP(B128,'SINAPI COMP'!B:F,4,0))), VLOOKUP(B128,'OUTRAS BASES'!C:D,2,0)) -> 50.01 | J128: 90.018
A129: Composição Auxiliar | B129: 93358 | C129: SINAPI | D129: ESCAVAÇÃO MANUAL DE VALA COM PROFUNDIDADE MENOR OU IGUAL A 1,30 M. AF_02/2021 | E129: Escavação de Valas | G129: m³ | H129: 0.225 | I129: =IF(C129="SINAPI", IF( IF(A129="Insumo", VLOOKUP(B129,'SINAPI INSUMOS'!B:F,5,0), VLOOKUP(B129,'SINAPI COMP'!B:F,4,0))=0,VLOOKUP(B129,'OUTRAS BASES'!C:D,2,0),IF(A129="Insumo", VLOOKUP(B129,'SINAPI INSUMOS'!B:F,5,0),VLOOKUP(B129,'SINAPI COMP'!B:F,4,0))), VLOOKUP(B129,'OUTRAS BASES'!C:D,2,0)) -> 88.68 | J129: 19.953
A130: Composição Auxiliar | B130: 94975 | C130: SINAPI | D130: CONCRETO FCK = 15MPA, TRAÇO 1:3,4:3,5 (EM MASSA SECA DE CIMENTO/ AREIA MÉDIA/ BRITA 1) - PREPARO MANUAL. AF_05/2021 | E130: Produção de Concreto | G130: m³ | H130: 0.675 | I130: =IF(C130="SINAPI", IF( IF(A130="Insumo", VLOOKUP(B130,'SINAPI INSUMOS'!B:F,5,0), VLOOKUP(B130,'SINAPI COMP'!B:F,4,0))=0,VLOOKUP(B130,'OUTRAS BASES'!C:D,2,0),IF(A130="Insumo", VLOOKUP(B130,'SINAPI INSUMOS'!B:F,5,0),VLOOKUP(B130,'SINAPI COMP'!B:F,4,0))), VLOOKUP(B130,'OUTRAS BASES'!C:D,2,0)) -> 534.97 | J130: 361.10475
A131: Composição Auxiliar | B131: 103670 | C131: SINAPI | D131: LANÇAMENTO COM USO DE BALDES, ADENSAMENTO E ACABAMENTO DE CONCRETO EM ESTRUTURAS. AF_02/2022 | E131: Concretagem para Estruturas de Concreto Armado | G131: m³ | H131: 0.675 | I131: =IF(C131="SINAPI", IF( IF(A131="Insumo", VLOOKUP(B131,'SINAPI INSUMOS'!B:F,5,0), VLOOKUP(B131,'SINAPI COMP'!B:F,4,0))=0,VLOOKUP(B131,'OUTRAS BASES'!C:D,2,0),IF(A131="Insumo", VLOOKUP(B131,'SINAPI INSUMOS'!B:F,5,0),VLOOKUP(B131,'SINAPI COMP'!B:F,4,0))), VLOOKUP(B131,'OUTRAS BASES'!C:D,2,0)) -> 324.67 | J131: 219.15225
A136: 4.5 | B136: Código | C136: Banco | D136: Descrição | E136: Tipo | G136: Und | H136: Quant. | I136: Valor Unit | J136: Total
A137: Composição | B137: 24.80.22 | C137: EMBASA | D137: (REVISADA) DESENVOLVIMENTO OU TESTE COM BOMBA SUBMERSA - UEB1 NO SEDIMENTO COM VAZAO < 60M3 (Ensaio de bombeamento poço tubular incluso materiais e grupo gerador) | E137: 2480 | G137: H | H137: 1 | I137: =IF(C137="SINAPI", IF( IF(A137="Insumo", VLOOKUP(B137,'SINAPI INSUMOS'!B:F,5,0), VLOOKUP(B137,'SINAPI COMP'!B:F,4,0))=0,VLOOKUP(B137,'OUTRAS BASES'!C:D,2,0),IF(A137="Insumo", VLOOKUP(B137,'SINAPI INSUMOS'!B:F,5,0),VLOOKUP(B137,'SINAPI COMP'!B:F,4,0))), VLOOKUP(B137,'OUTRAS BASES'!C:D,2,0)) -> 263.27 | J137: =I137*H137 -> 263.27
A138: Composição Auxiliar | B138: 24.00.15 | C138: EMBASA | D138: EQUIPE (3 PROFISSIONAIS CAMPO) - BOMBEIO | E138: 2400 | G138: H | H138: 1 | I138: =IF(C138="SINAPI", IF( IF(A138="Insumo", VLOOKUP(B138,'SINAPI INSUMOS'!B:F,5,0), VLOOKUP(B138,'SINAPI COMP'!B:F,4,0))=0,VLOOKUP(B138,'OUTRAS BASES'!C:D,2,0),IF(A138="Insumo", VLOOKUP(B138,'SINAPI INSUMOS'!B:F,5,0),VLOOKUP(B138,'SINAPI COMP'!B:F,4,0))), VLOOKUP(B138,'OUTRAS BASES'!C:D,2,0)) -> 198.35 | J138: 198.35
A139: Insumo | B139: H020050001 | C139: EMBASA | D139: UNIDADE DE ENSAIO E BOMBEAMENTO - UEB1 ATE 150M3 NO SEDIMENTO | E139: Material | G139: H | H139: 1 | I139: =IF(C139="SINAPI", IF( IF(A139="Insumo", VLOOKUP(B139,'SINAPI INSUMOS'!B:F,5,0), VLOOKUP(B139,'SINAPI COMP'!B:F,4,0))=0,VLOOKUP(B139,'OUTRAS BASES'!C:D,2,0),IF(A139="Insumo", VLOOKUP(B139,'SINAPI INSUMOS'!B:F,5,0),VLOOKUP(B139,'SINAPI COMP'!B:F,4,0))), VLOOKUP(B139,'OUTRAS BASES'!C:D,2,0)) -> 64.92 | J139: 64.92
A144: 5 | D144: RESERVAÇÃO
A145: 5.1 | B145: Código | C145: Banco | D145: Descrição | E145: Tipo | G145: Und | H145: Quant. | I145: Valor Unit | J145: Total
A146: Composição | B146: COMPOSIÇÃO - 11 | C146: Próprio | D146: Fornecimento e instalação de reservatório e base elevada 10 m³ | E146: ASTU - ASSENTAMENTO DE TUBOS E PECAS | G146: un | H146: 1 | I146: =SUM(J147:J168) -> 19616.62188 | J146: =I146*H146 -> 19616.62188
A147: Composição Auxiliar | B147: 92759 | C147: SINAPI | D147: ARMAÇÃO DE PILAR OU VIGA DE ESTRUTURA CONVENCIONAL DE CONCRETO ARMADO UTILIZANDO AÇO CA-60 DE 5,0 MM - MONTAGEM. AF_06/2022 | E147: Armação para Estruturas de Concreto Armado | G147: KG | H147: 17.2 | I147: =IF(C147="SINAPI", IF( IF(A147="Insumo", VLOOKUP(B147,'SINAPI INSUMOS'!B:F,5,0), VLOOKUP(B147,'SINAPI COMP'!B:F,4,0))=0,VLOOKUP(B147,'OUTRAS BASES'!C:D,2,0),IF(A147="Insumo", VLOOKUP(B147,'SINAPI INSUMOS'!B:F,5,0),VLOOKUP(B147,'SINAPI COMP'!B:F,4,0))), VLOOKUP(B147,'OUTRAS BASES'!C:D,2,0)) -> 13.78 | J147: 237.016
A148: Composição Auxiliar | B148: 92761 | C148: SINAPI | D148: ARMAÇÃO DE PILAR OU VIGA DE ESTRUTURA CONVENCIONAL DE CONCRETO ARMADO UTILIZANDO AÇO CA-50 DE 8,0 MM - MONTAGEM. AF_06/2022 | E148: Armação para Estruturas de Concreto Armado | G148: KG | H148: 30.4 | I148: =IF(C148="SINAPI", IF( IF(A148="Insumo", VLOOKUP(B148,'SINAPI INSUMOS'!B:F,5,0), VLOOKUP(B148,'SINAPI COMP'!B:F,4,0))=0,VLOOKUP(B148,'OUTRAS BASES'!C:D,2,0),IF(A148="Insumo", VLOOKUP(B148,'SINAPI INSUMOS'!B:F,5,0),VLOOKUP(B148,'SINAPI COMP'!B:F,4,0))), VLOOKUP(B148,'OUTRAS BASES'!C:D,2,0)) -> 11.5 | J148: 349.6
A149: Composição Auxiliar | B149: 92768 | C149: SINAPI | D149: ARMAÇÃO DE LAJE DE ESTRUTURA CONVENCIONAL DE CONCRETO ARMADO UTILIZANDO AÇO CA-60 DE 5,0 MM - MONTAGEM. AF_06/2022 | E149: Armação para Estruturas de Concreto Armado | G149: KG | H149: 11.9 | I149: =IF(C149="SINAPI", IF( IF(A149="Insumo", VLOOKUP(B149,'SINAPI INSUMOS'!B:F,5,0), VLOOKUP(B149,'SINAPI COMP'!B:F,4,0))=0,VLOOKUP(B149,'OUTRAS BASES'!C:D,2,0),IF(A149="Insumo", VLOOKUP(B149,'SINAPI INSUMOS'!B:F,5,0),VLOOKUP(B149,'SINAPI COMP'!B:F,4,0))), VLOOKUP(B149,'OUTRAS BASES'!C:D,2,0)) -> 13.14 | J149: 156.366
A150: Composição Auxiliar | B150: 92770 | C150: SINAPI | D150: ARMAÇÃO DE LAJE DE ESTRUTURA CONVENCIONAL DE CONCRETO ARMADO UTILIZANDO AÇO CA-50 DE 8,0 MM - MONTAGEM. AF_06/2022 | E150: Armação para Estruturas de Concreto Armado | G150: KG | H150: 48 | I150: =IF(C150="SINAPI", IF( IF(A150="Insumo", VLOOKUP(B150,'SINAPI INSUMOS'!B:F,5,0), VLOOKUP(B150,'SINAPI COMP'!B:F,4,0))=0,VLOOKUP(B150,'OUTRAS BASES'!C:D,2,0),IF(A150="Insumo", VLOOKUP(B150,'SINAPI INSUMOS'!B:F,5,0),VLOOKUP(B150,'SINAPI COMP'!B:F,4,0))), VLOOKUP(B150,'OUTRAS BASES'!C:D,2,0)) -> 10.93 | J150: 524.64
A151: Composição Auxiliar | B151: 93358 | C151: SINAPI | D151: ESCAVAÇÃO MANUAL DE VALA COM PROFUNDIDADE MENOR OU IGUAL A 1,30 M. AF_02/2021 | E151: Escavação de Valas | G151: m³ | H151: 5.2 | I151: =IF(C151="SINAPI", IF( IF(A151="Insumo", VLOOKUP(B151,'SINAPI INSUMOS'!B:F,5,0), VLOOKUP(B151,'SINAPI COMP'!B:F,4,0))=0,VLOOKUP(B151,'OUTRAS BASES'!C:D,2,0),IF(A151="Insumo", VLOOKUP(B151,'SINAPI INSUMOS'!B:F,5,0),VLOOKUP(B151,'SINAPI COMP'!B:F,4,0))), VLOOKUP(B151,'OUTRAS BASES'!C:D,2,0)) -> 88.68 | J151: 461.136
A152: Composição Auxiliar | B152: 92763 | C152: SINAPI | D152: ARMAÇÃO DE PILAR OU VIGA DE ESTRUTURA CONVENCIONAL DE CONCRETO ARMADO UTILIZANDO AÇO CA-50 DE 12,5 MM - MONTAGEM. AF_06/2022 | E152: Armação para Estruturas de Concreto Armado | G152: KG | H152: 118.4 | I152: =IF(C152="SINAPI", IF( IF(A152="Insumo", VLOOKUP(B152,'SINAPI INSUMOS'!B:F,5,0), VLOOKUP(B152,'SINAPI COMP'!B:F,4,0))=0,VLOOKUP(B152,'OUTRAS BASES'!C:D,2,0),IF(A152="Insumo", VLOOKUP(B152,'SINAPI INSUMOS'!B:F,5,0),VLOOKUP(B152,'SINAPI COMP'!B:F,4,0))), VLOOKUP(B152,'OUTRAS BASES'!C:D,2,0)) -> 8.47 | J152: 1002.848
A153: Composição Auxiliar | B153: 94970 | C153: SINAPI | D153: CONCRETO FCK = 20MPA, TRAÇO 1:2,7:3 (EM MASSA SECA DE CIMENTO/ AREIA MÉDIA/ BRITA 1) - PREPARO MECÂNICO COM BETONEIRA 600 L. AF_05/2021 | E153: Produção de Concreto | G153: m³ | H153: 4.89 | I153: =IF(C153="SINAPI", IF( IF(A153="Insumo", VLOOKUP(B153,'SINAPI INSUMOS'!B:F,5,0), VLOOKUP(B153,'SINAPI COMP'!B:F,4,0))=0,VLOOKUP(B153,'OUTRAS BASES'!C:D,2,0),IF(A153="Insumo", VLOOKUP(B153,'SINAPI INSUMOS'!B:F,5,0),VLOOKUP(B153,'SINAPI COMP'!B:F,4,0))), VLOOKUP(B153,'OUTRAS BASES'!C:D,2,0)) -> 497.73 | J153: 2433.8997
A154: Composição Auxiliar | B154: 103670 | C154: SINAPI | D154: LANÇAMENTO COM USO DE BALDES, ADENSAMENTO E ACABAMENTO DE CONCRETO EM ESTRUTURAS. AF_02/2022 | E154: Concretagem para Estruturas de Concreto Armado | G154: m³ | H154: 6.85 | I154: =IF(C154="SINAPI", IF( IF(A154="Insumo", VLOOKUP(B154,'SINAPI INSUMOS'!B:F,5,0), VLOOKUP(B154,'SINAPI COMP'!B:F,4,0))=0,VLOOKUP(B154,'OUTRAS BASES'!C:D,2,0),IF(A154="Insumo", VLOOKUP(B154,'SINAPI INSUMOS'!B:F,5,0),VLOOKUP(B154,'SINAPI COMP'!B:F,4,0))), VLOOKUP(B154,'OUTRAS BASES'!C:D,2,0)) -> 324.67 | J154: 2223.9895
A155: Composição Auxiliar | B155: 84651 | C155: SINAPI | D155: PINTURA COM TINTA IMPERMEAVEL MINERAL EM PO, DUAS DEMAOS | E155: PINT - PINTURAS | G155: m² | H155: 28.27 | I155: =IF(C155="SINAPI", IF( IF(A155="Insumo", VLOOKUP(B155,'SINAPI INSUMOS'!B:F,5,0), VLOOKUP(B155,'SINAPI COMP'!B:F,4,0))=0,VLOOKUP(B155,'OUTRAS BASES'!C:D,2,0),IF(A155="Insumo", VLOOKUP(B155,'SINAPI INSUMOS'!B:F,5,0),VLOOKUP(B155,'SINAPI COMP'!B:F,4,0))), VLOOKUP(B155,'OUTRAS BASES'!C:D,2,0)) -> 14.844 | J155: 419.63988
A156: Composição Auxiliar | B156: 90776 | C156: SINAPI | D156: ENCARREGADO GERAL COM ENCARGOS COMPLEMENTARES | E156: Livro SINAPI: Cálculos e Parâmetros | G156: H | H156: 1 | I156: =IF(C156="SINAPI", IF( IF(A156="Insumo", VLOOKUP(B156,'SINAPI INSUMOS'!B:F,5,0), VLOOKUP(B156,'SINAPI COMP'!B:F,4,0))=0,VLOOKUP(B156,'OUTRAS BASES'!C:D,2,0),IF(A156="Insumo", VLOOKUP(B156,'SINAPI INSUMOS'!B:F,5,0),VLOOKUP(B156,'SINAPI COMP'!B:F,4,0))), VLOOKUP(B156,'OUTRAS BASES'!C:D,2,0)) -> 37.19 | J156: 37.19
A157: Composição Auxiliar | B157: 102482 | C157: SINAPI | D157: CONCRETO FCK = 25MPA, TRAÇO 1:2,2:2,5 (EM MASSA SECA DE CIMENTO/ AREIA MÉDIA/ SEIXO ROLADO) - PREPARO MECÂNICO COM BETONEIRA 600 L. AF_05/2021 | E157: Produção de Concreto | G157: m³ | H157: 1.96 | I157: =IF(C157="SINAPI", IF( IF(A157="Insumo", VLOOKUP(B157,'SINAPI INSUMOS'!B:F,5,0), VLOOKUP(B157,'SINAPI COMP'!B:F,4,0))=0,VLOOKUP(B157,'OUTRAS BASES'!C:D,2,0),IF(A157="Insumo", VLOOKUP(B157,'SINAPI INSUMOS'!B:F,5,0),VLOOKUP(B157,'SINAPI COMP'!B:F,4,0))), VLOOKUP(B157,'OUTRAS BASES'!C:D,2,0)) -> 703.04 | J157: 1377.9584
A158: Composição Auxiliar | B158: 92263 | C158: SINAPI | D158: FABRICAÇÃO DE FÔRMA PARA PILARES E ESTRUTURAS SIMILARES, EM CHAPA DE MADEIRA COMPENSADA RESINADA, E = 17 MM. AF_09/2020 | E158: Fôrmas para Estruturas de Concreto Armado | G158: m² | H158: 25.19 | I158: =IF(C158="SINAPI", IF( IF(A158="Insumo", VLOOKUP(B158,'SINAPI INSUMOS'!B:F,5,0), VLOOKUP(B158,'SINAPI COMP'!B:F,4,0))=0,VLOOKUP(B158,'OUTRAS BASES'!C:D,2,0),IF(A158="Insumo", VLOOKUP(B158,'SINAPI INSUMOS'!B:F,5,0),VLOOKUP(B158,'SINAPI COMP'!B:F,4,0))), VLOOKUP(B158,'OUTRAS BASES'!C:D,2,0)) -> 212.41 | J158: 5350.6079
A159: Composição Auxiliar | B159: 88267 | C159: SINAPI | D159: ENCANADOR OU BOMBEIRO HIDRÁULICO COM ENCARGOS COMPLEMENTARES | E159: Livro SINAPI: Cálculos e Parâmetros | G159: H | H159: 4 | I159: =IF(C159="SINAPI", IF( IF(A159="Insumo", VLOOKUP(B159,'SINAPI INSUMOS'!B:F,5,0), VLOOKUP(B159,'SINAPI COMP'!B:F,4,0))=0,VLOOKUP(B159,'OUTRAS BASES'!C:D,2,0),IF(A159="Insumo", VLOOKUP(B159,'SINAPI INSUMOS'!B:F,5,0),VLOOKUP(B159,'SINAPI COMP'!B:F,4,0))), VLOOKUP(B159,'OUTRAS BASES'!C:D,2,0)) -> 31.42 | J159: 125.68
A160: Composição Auxiliar | B160: 88248 | C160: SINAPI | D160: AUXILIAR DE ENCANADOR OU BOMBEIRO HIDRÁULICO COM ENCARGOS COMPLEMENTARES | E160: Livro SINAPI: Cálculos e Parâmetros | G160: H | H160: 4 | I160: =IF(C160="SINAPI", IF( IF(A160="Insumo", VLOOKUP(B160,'SINAPI INSUMOS'!B:F,5,0), VLOOKUP(B160,'SINAPI COMP'!B:F,4,0))=0,VLOOKUP(B160,'OUTRAS BASES'!C:D,2,0),IF(A160="Insumo", VLOOKUP(B160,'SINAPI INSUMOS'!B:F,5,0),VLOOKUP(B160,'SINAPI COMP'!B:F,4,0))), VLOOKUP(B160,'OUTRAS BASES'!C:D,2,0)) -> 22.16 | J160: 88.64
A161: Insumo | B161: 3146 | C161: SINAPI | D161: FITA VEDA ROSCA EM ROLOS DE 18 MM X 10 M (L X C) | E161: Material | G161: UN | H161: 0.18 | I161: =IF(C161="SINAPI", IF( IF(A161="Insumo", VLOOKUP(B161,'SINAPI INSUMOS'!B:F,5,0), VLOOKUP(B161,'SINAPI COMP'!B:F,4,0))=0,VLOOKUP(B161,'OUTRAS BASES'!C:D,2,0),IF(A161="Insumo", VLOOKUP(B161,'SINAPI INSUMOS'!B:F,5,0),VLOOKUP(B161,'SINAPI COMP'!B:F,4,0))), VLOOKUP(B161,'OUTRAS BASES'!C:D,2,0)) -> 3.05 | J161: 0.549
A162: Insumo | B162: 37106 | C162: SINAPI | D162: CAIXA D'AGUA / RESERVATORIO EM POLIESTER REFORCADO COM FIBRA DE VIDRO, 10000 LITROS, COM TAMPA | E162: Material | G162: UN | H162: 1 | I162: =IF(C162="SINAPI", IF( IF(A162="Insumo", VLOOKUP(B162,'SINAPI INSUMOS'!B:F,5,0), VLOOKUP(B162,'SINAPI COMP'!B:F,4,0))=0,VLOOKUP(B162,'OUTRAS BASES'!C:D,2,0),IF(A162="Insumo", VLOOKUP(B162,'SINAPI INSUMOS'!B:F,5,0),VLOOKUP(B162,'SINAPI COMP'!B:F,4,0))), VLOOKUP(B162,'OUTRAS BASES'!C:D,2,0)) -> 4566.37 | J162: 4566.37
A163: Insumo | B163: 14073 | C163: ORSE | D163: CURVA 90º PVC D=50MM, LINHA IRRIGA-LF, TIGRE OU SIMILAR | E163: Material | G163: UM | H163: 3 | I163: =IF(C163="SINAPI", IF( IF(A163="Insumo", VLOOKUP(B163,'SINAPI INSUMOS'!B:F,5,0), VLOOKUP(B163,'SINAPI COMP'!B:F,4,0))=0,VLOOKUP(B163,'OUTRAS BASES'!C:D,2,0),IF(A163="Insumo", VLOOKUP(B163,'SINAPI INSUMOS'!B:F,5,0),VLOOKUP(B163,'SINAPI COMP'!B:F,4,0))), VLOOKUP(B163,'OUTRAS BASES'!C:D,2,0)) -> 8.1 | J163: 24.3
A164: Insumo | B164: 14068 | C164: ORSE | D164: Tubo PVC para irrigação LF PN 80 Ø 50mm, linha Irriga-LF, Tigre ou similar | E164: Material | G164: UN | H164: 15.2 | I164: =IF(C164="SINAPI", IF( IF(A164="Insumo", VLOOKUP(B164,'SINAPI INSUMOS'!B:F,5,0), VLOOKUP(B164,'SINAPI COMP'!B:F,4,0))=0,VLOOKUP(B164,'OUTRAS BASES'!C:D,2,0),IF(A164="Insumo", VLOOKUP(B164,'SINAPI INSUMOS'!B:F,5,0),VLOOKUP(B164,'SINAPI COMP'!B:F,4,0))), VLOOKUP(B164,'OUTRAS BASES'!C:D,2,0)) -> 9.27 | J164: 140.904
A165: Insumo | B165: 1434 | C165: ORSE | D165: Luva pvc rigido roscavel d=2 " | E165: Material | G165: UN | H165: 1 | I165: =IF(C165="SINAPI", IF( IF(A165="Insumo", VLOOKUP(B165,'SINAPI INSUMOS'!B:F,5,0), VLOOKUP(B165,'SINAPI COMP'!B:F,4,0))=0,VLOOKUP(B165,'OUTRAS BASES'!C:D,2,0),IF(A165="Insumo", VLOOKUP(B165,'SINAPI INSUMOS'!B:F,5,0),VLOOKUP(B165,'SINAPI COMP'!B:F,4,0))), VLOOKUP(B165,'OUTRAS BASES'!C:D,2,0)) -> 28.58 | J165: 28.58
A166: Insumo | B166: 90 | C166: ORSE | D166: Adaptador curto, pvc rigido soldavel, c/ bolsa e rosca p/ registro, d= 50mm x 1 1/2” | E166: Material | G166: UN | H166: 1 | I166: =IF(C166="SINAPI", IF( IF(A166="Insumo", VLOOKUP(B166,'SINAPI INSUMOS'!B:F,5,0), VLOOKUP(B166,'SINAPI COMP'!B:F,4,0))=0,VLOOKUP(B166,'OUTRAS BASES'!C:D,2,0),IF(A166="Insumo", VLOOKUP(B166,'SINAPI INSUMOS'!B:F,5,0),VLOOKUP(B166,'SINAPI COMP'!B:F,4,0))), VLOOKUP(B166,'OUTRAS BASES'!C:D,2,0)) -> 4.2 | J166: 4.2
A167: Insumo | B167: 99 | C167: SINAPI | D167: ADAPTADOR PVC SOLDAVEL, COM FLANGE E ANEL DE VEDACAO, 50 MM X 1 1/2", PARA CAIXA D'AGUA | E167: Material | G167: UN | H167: 2 | I167: =IF(C167="SINAPI", IF( IF(A167="Insumo", VLOOKUP(B167,'SINAPI INSUMOS'!B:F,5,0), VLOOKUP(B167,'SINAPI COMP'!B:F,4,0))=0,VLOOKUP(B167,'OUTRAS BASES'!C:D,2,0),IF(A167="Insumo", VLOOKUP(B167,'SINAPI INSUMOS'!B:F,5,0),VLOOKUP(B167,'SINAPI COMP'!B:F,4,0))), VLOOKUP(B167,'OUTRAS BASES'!C:D,2,0)) -> 29.24 | J167: 58.48
A168: Insumo | B168: 119 | C168: SINAPI | D168: ADESIVO PLASTICO PARA PVC, BISNAGA COM 75 GR | E168: Material | G168: UN | H168: 0.45 | I168: =IF(C168="SINAPI", IF( IF(A168="Insumo", VLOOKUP(B168,'SINAPI INSUMOS'!B:F,5,0), VLOOKUP(B168,'SINAPI COMP'!B:F,4,0))=0,VLOOKUP(B168,'OUTRAS BASES'!C:D,2,0),IF(A168="Insumo", VLOOKUP(B168,'SINAPI INSUMOS'!B:F,5,0),VLOOKUP(B168,'SINAPI COMP'!B:F,4,0))), VLOOKUP(B168,'OUTRAS BASES'!C:D,2,0)) -> 8.95 | J168: 4.0275
A173: 5.2 | B173: Código | C173: Banco | D173: Descrição | E173: Tipo | G173: Und | H173: Quant. | I173: Valor Unit | J173: Total
A174: Composição | B174: COMPOSIÇÃO - 12 | C174: Próprio | D174: Fornecimento e execução de reservatório apoiado de 5 m³ | E174: SEDI - SERVIÇOS DIVERSOS | G174: un | H174: 1 | I174: =SUM(J175:J184) -> 8483.2843 | J174: =I174*H174 -> 8483.2843
A175: Composição Auxiliar | B175: 88309 | C175: SINAPI | D175: PEDREIRO COM ENCARGOS COMPLEMENTARES | E175: Livro SINAPI: Cálculos e Parâmetros | G175: H | H175: 3 | I175: =IF(C175="SINAPI", IF( IF(A175="Insumo", VLOOKUP(B175,'SINAPI INSUMOS'!B:F,5,0), VLOOKUP(B175,'SINAPI COMP'!B:F,4,0))=0,VLOOKUP(B175,'OUTRAS BASES'!C:D,2,0),IF(A175="Insumo", VLOOKUP(B175,'SINAPI INSUMOS'!B:F,5,0),VLOOKUP(B175,'SINAPI COMP'!B:F,4,0))), VLOOKUP(B175,'OUTRAS BASES'!C:D,2,0)) -> 32.15 | J175: 96.45
A176: Composição Auxiliar | B176: 88316 | C176: SINAPI | D176: SERVENTE COM ENCARGOS COMPLEMENTARES | E176: Livro SINAPI: Cálculos e Parâmetros | G176: H | H176: 3 | I176: =IF(C176="SINAPI", IF( IF(A176="Insumo", VLOOKUP(B176,'SINAPI INSUMOS'!B:F,5,0), VLOOKUP(B176,'SINAPI COMP'!B:F,4,0))=0,VLOOKUP(B176,'OUTRAS BASES'!C:D,2,0),IF(A176="Insumo", VLOOKUP(B176,'SINAPI INSUMOS'!B:F,5,0),VLOOKUP(B176,'SINAPI COMP'!B:F,4,0))), VLOOKUP(B176,'OUTRAS BASES'!C:D,2,0)) -> 22.42 | J176: 67.26
A177: Composição Auxiliar | B177: 102617 | C177: SINAPI | D177: CAIXA D´ÁGUA EM POLIÉSTER REFORÇADO COM FIBRA DE VIDRO, 5000 LITROS - FORNECIMENTO E INSTALAÇÃO. AF_06/2021 | E177: Caixas de Água para Edificações | G177: UN | H177: 1 | I177: =IF(C177="SINAPI", IF( IF(A177="Insumo", VLOOKUP(B177,'SINAPI INSUMOS'!B:F,5,0), VLOOKUP(B177,'SINAPI COMP'!B:F,4,0))=0,VLOOKUP(B177,'OUTRAS BASES'!C:D,2,0),IF(A177="Insumo", VLOOKUP(B177,'SINAPI INSUMOS'!B:F,5,0),VLOOKUP(B177,'SINAPI COMP'!B:F,4,0))), VLOOKUP(B177,'OUTRAS BASES'!C:D,2,0)) -> 3219.02 | J177: 3219.02
A178: Composição Auxiliar | B178: 92767 | C178: SINAPI | D178: ARMAÇÃO DE LAJE DE UMA ESTRUTURA CONVENCIONAL DE CONCRETO ARMADO UTILIZANDO AÇO CA-60 DE 4,2 MM - MONTAGEM. AF_12/2015 | E178: FUES - FUNDAÇÕES E ESTRUTURAS | G178: KG | H178: 3.04 | I178: =IF(C178="SINAPI", IF( IF(A178="Insumo", VLOOKUP(B178,'SINAPI INSUMOS'!B:F,5,0), VLOOKUP(B178,'SINAPI COMP'!B:F,4,0))=0,VLOOKUP(B178,'OUTRAS BASES'!C:D,2,0),IF(A178="Insumo", VLOOKUP(B178,'SINAPI INSUMOS'!B:F,5,0),VLOOKUP(B178,'SINAPI COMP'!B:F,4,0))), VLOOKUP(B178,'OUTRAS BASES'!C:D,2,0)) -> 15.33 | J178: 46.6032
A179: Composição Auxiliar | B179: 104917 | C179: SINAPI | D179: ARMAÇAO DE SAPATA ISOLADA, VIGA BALDRAME E SAPATA CORRIDA UTILIZANDO AÇO CA-50 DE 6,3 MM - MONTAGEM AD_01/2024 | E179: FUES - FUNDAÇÕES E ESTRUTURAS | G179: KG | H179: 9.3 | I179: =IF(C179="SINAPI", IF( IF(A179="Insumo", VLOOKUP(B179,'SINAPI INSUMOS'!B:F,5,0), VLOOKUP(B179,'SINAPI COMP'!B:F,4,0))=0,VLOOKUP(B179,'OUTRAS BASES'!C:D,2,0),IF(A179="Insumo", VLOOKUP(B179,'SINAPI INSUMOS'!B:F,5,0),VLOOKUP(B179,'SINAPI COMP'!B:F,4,0))), VLOOKUP(B179,'OUTRAS BASES'!C:D,2,0)) -> 15 | J179: 139.5
A180: Composição Auxiliar | B180: 92760 | C180: SINAPI | D180: ARMAÇÃO DE PILAR OU VIGA DE ESTRTURA CONVENCIONAL DE CONCRETO ARMADO UTILIZANDO AÇO CA-50 DE 6,3 MM - MONTAGEM. AF_12/2015 | E180: FUES - FUNDAÇÕES E ESTRUTURAS | G180: KG | H180: 16.3 | I180: =IF(C180="SINAPI", IF( IF(A180="Insumo", VLOOKUP(B180,'SINAPI INSUMOS'!B:F,5,0), VLOOKUP(B180,'SINAPI COMP'!B:F,4,0))=0,VLOOKUP(B180,'OUTRAS BASES'!C:D,2,0),IF(A180="Insumo", VLOOKUP(B180,'SINAPI INSUMOS'!B:F,5,0),VLOOKUP(B180,'SINAPI COMP'!B:F,4,0))), VLOOKUP(B180,'OUTRAS BASES'!C:D,2,0)) -> 12.57 | J180: 204.891
A181: Composição Auxiliar | B181: 94964 | C181: SINAPI | D181: CONCRETO FCK = 20MPA, TRAÇO 1:2,7:3 (EM MASSA SECA DE CIMENTO/ AREIA MÉDIA/ BRITA 1) - PREPARO MECÂNICO COM BETONEIRA 400 L. AF_05/2021 | E181: Produção de Concreto | G181: m³ | H181: 1.56 | I181: =IF(C181="SINAPI", IF( IF(A181="Insumo", VLOOKUP(B181,'SINAPI INSUMOS'!B:F,5,0), VLOOKUP(B181,'SINAPI COMP'!B:F,4,0))=0,VLOOKUP(B181,'OUTRAS BASES'!C:D,2,0),IF(A181="Insumo", VLOOKUP(B181,'SINAPI INSUMOS'!B:F,5,0),VLOOKUP(B181,'SINAPI COMP'!B:F,4,0))), VLOOKUP(B181,'OUTRAS BASES'!C:D,2,0)) -> 510.38 | J181: 796.1928
A182: Composição Auxiliar | B182: 84651 | C182: SINAPI | D182: PINTURA COM TINTA IMPERMEAVEL MINERAL EM PO, DUAS DEMAOS | E182: PINT - PINTURAS | G182: m² | H182: 7.85 | I182: =IF(C182="SINAPI", IF( IF(A182="Insumo", VLOOKUP(B182,'SINAPI INSUMOS'!B:F,5,0), VLOOKUP(B182,'SINAPI COMP'!B:F,4,0))=0,VLOOKUP(B182,'OUTRAS BASES'!C:D,2,0),IF(A182="Insumo", VLOOKUP(B182,'SINAPI INSUMOS'!B:F,5,0),VLOOKUP(B182,'SINAPI COMP'!B:F,4,0))), VLOOKUP(B182,'OUTRAS BASES'!C:D,2,0)) -> 14.844 | J182: 116.5254
A183: Composição Auxiliar | B183: 92263 | C183: SINAPI | D183: FABRICAÇÃO DE FÔRMA PARA PILARES E ESTRUTURAS SIMILARES, EM CHAPA DE MADEIRA COMPENSADA RESINADA, E = 17 MM. AF_09/2020 | E183: FUES - FUNDAÇÕES E ESTRUTURAS | G183: KG | H183: 16.99 | I183: =IF(C183="SINAPI", IF( IF(A183="Insumo", VLOOKUP(B183,'SINAPI INSUMOS'!B:F,5,0), VLOOKUP(B183,'SINAPI COMP'!B:F,4,0))=0,VLOOKUP(B183,'OUTRAS BASES'!C:D,2,0),IF(A183="Insumo", VLOOKUP(B183,'SINAPI INSUMOS'!B:F,5,0),VLOOKUP(B183,'SINAPI COMP'!B:F,4,0))), VLOOKUP(B183,'OUTRAS BASES'!C:D,2,0)) -> 212.41 | J183: 3608.8459
A184: Composição Auxiliar | B184: 92770 | C184: SINAPI | D184: ARMAÇÃO DE LAJE DE UMA ESTRUTURA CONVENCIONAL DE CONCRETO ARMADO UTILIZANDO AÇO CA-50 DE 8,0 MM - MONTAGEM. AF_06/2022 | E184: FUES - FUNDAÇÕES E ESTRUTURAS | G184: KG | H184: 17.2 | I184: =IF(C184="SINAPI", IF( IF(A184="Insumo", VLOOKUP(B184,'SINAPI INSUMOS'!B:F,5,0), VLOOKUP(B184,'SINAPI COMP'!B:F,4,0))=0,VLOOKUP(B184,'OUTRAS BASES'!C:D,2,0),IF(A184="Insumo", VLOOKUP(B184,'SINAPI INSUMOS'!B:F,5,0),VLOOKUP(B184,'SINAPI COMP'!B:F,4,0))), VLOOKUP(B184,'OUTRAS BASES'!C:D,2,0)) -> 10.93 | J184: 187.996
A189: 6 | D189: BEBEDOURO
A190: 6.1 | B190: Código | C190: Banco | D190: Descrição | E190: Tipo | G190: Und | H190: Quant. | I190: Valor Unit | J190: Total
A191: Composição | B191: COMPOSIÇÃO - 13 | C191: Próprio | D191: Serviço de execução do bebedouro em concreto armado, incluso materiais. | E191: SEDI - SERVIÇOS DIVERSOS | G191: un | H191: 1 | I191: =SUM(J192:J197) -> 2012.6652 | J191: =I191*H191 -> 2012.6652
A192: Composição Auxiliar | B192: 92916 | C192: SINAPI | D192: ARMAÇÃODE ESTRUTURAS DIVERSAS DE CONCRETO ARMADO, EXCETO VIGA, PILARES, LAJES E FUNDAÇÕES, UTILIZANDO AÇO CA-50 DE 6,3 MM - MONTAGEM. AF_06/2022 | E192: Armação para Estruturas de Concreto Armado | G192: KG | H192: 6 | I192: =IF(C192="SINAPI", IF( IF(A192="Insumo", VLOOKUP(B192,'SINAPI INSUMOS'!B:F,5,0), VLOOKUP(B192,'SINAPI COMP'!B:F,4,0))=0,VLOOKUP(B192,'OUTRAS BASES'!C:D,2,0),IF(A192="Insumo", VLOOKUP(B192,'SINAPI INSUMOS'!B:F,5,0),VLOOKUP(B192,'SINAPI COMP'!B:F,4,0))), VLOOKUP(B192,'OUTRAS BASES'!C:D,2,0)) -> 14.83 | J192: 88.98
A193: Composição Auxiliar | B193: 92915 | C193: SINAPI | D193: ARMAÇÃODE ESTRUTURAS DIVERSAS DE CONCRETO ARMADO, EXCETO VIGA, PILARES, LAJES E FUNDAÇÕES, UTILIZANDO AÇO CA-60 DE 5,0 MM - MONTAGEM. AF_06/2022 | E193: Armação para Estruturas de Concreto Armado | G193: KG | H193: 13 | I193: =IF(C193="SINAPI", IF( IF(A193="Insumo", VLOOKUP(B193,'SINAPI INSUMOS'!B:F,5,0), VLOOKUP(B193,'SINAPI COMP'!B:F,4,0))=0,VLOOKUP(B193,'OUTRAS BASES'!C:D,2,0),IF(A193="Insumo", VLOOKUP(B193,'SINAPI INSUMOS'!B:F,5,0),VLOOKUP(B193,'SINAPI COMP'!B:F,4,0))), VLOOKUP(B193,'OUTRAS BASES'!C:D,2,0)) -> 16.85 | J193: 219.05
A194: Composição Auxiliar | B194: 92921 | C194: SINAPI | D194: ARMAÇÃODE ESTRUTURAS DIVERSAS DE CONCRETO ARMADO, EXCETO VIGA, PILARES, LAJES E FUNDAÇÕES, UTILIZANDO AÇO CA-50 DE 12,5 MM - MONTAGEM. AF_06/2022 | E194: Armação para Estruturas de Concreto Armado | G194: KG | H194: 12 | I194: =IF(C194="SINAPI", IF( IF(A194="Insumo", VLOOKUP(B194,'SINAPI INSUMOS'!B:F,5,0), VLOOKUP(B194,'SINAPI COMP'!B:F,4,0))=0,VLOOKUP(B194,'OUTRAS BASES'!C:D,2,0),IF(A194="Insumo", VLOOKUP(B194,'SINAPI INSUMOS'!B:F,5,0),VLOOKUP(B194,'SINAPI COMP'!B:F,4,0))), VLOOKUP(B194,'OUTRAS BASES'!C:D,2,0)) -> 9.21 | J194: 110.52
A195: Composição Auxiliar | B195: 94971 | C195: SINAPI | D195: CONCRETO FCK = 25MPA, TRAÇO 1:2,3:2:2,7(EM MASSA SECA DE CIMENTO, AREIA MÉDIA, BRITA 1) - PREPARO MECÂNICO COM BETONEIRA 600l. AF_05/2021 | E195: Produção de concreto | G195: m³ | H195: 0.374 | I195: =IF(C195="SINAPI", IF( IF(A195="Insumo", VLOOKUP(B195,'SINAPI INSUMOS'!B:F,5,0), VLOOKUP(B195,'SINAPI COMP'!B:F,4,0))=0,VLOOKUP(B195,'OUTRAS BASES'!C:D,2,0),IF(A195="Insumo", VLOOKUP(B195,'SINAPI INSUMOS'!B:F,5,0),VLOOKUP(B195,'SINAPI COMP'!B:F,4,0))), VLOOKUP(B195,'OUTRAS BASES'!C:D,2,0)) -> 520.4 | J195: 194.6296
A196: Composição Auxiliar | B196: 92263 | C196: SINAPI | D196: FABRICAÇÃO DE FÔRMA PARA PILARES E ESTRUTURAS SIMILARES, EM CHAPA DE MADEIRA COMPENSADA RESINADA, E = 17 MM. AF_09/2020 | E196: FUES - FUNDAÇÕES E ESTRUTURAS | G196: m² | H196: 6.21 | I196: =IF(C196="SINAPI", IF( IF(A196="Insumo", VLOOKUP(B196,'SINAPI INSUMOS'!B:F,5,0), VLOOKUP(B196,'SINAPI COMP'!B:F,4,0))=0,VLOOKUP(B196,'OUTRAS BASES'!C:D,2,0),IF(A196="Insumo", VLOOKUP(B196,'SINAPI INSUMOS'!B:F,5,0),VLOOKUP(B196,'SINAPI COMP'!B:F,4,0))), VLOOKUP(B196,'OUTRAS BASES'!C:D,2,0)) -> 212.41 | J196: 1319.0661
A197: Composição Auxiliar | B197: 15.07.09 | C197: EMBASA | D197: PINTURA LÁTEX ACRÍLICA, APLICAÇÃO MANUAL EM DUAS DEMÃOS | E197: EDIFICAÇÕES | G197: m² | H197: 6.21 | I197: =IF(C197="SINAPI", IF( IF(A197="Insumo", VLOOKUP(B197,'SINAPI INSUMOS'!B:F,5,0), VLOOKUP(B197,'SINAPI COMP'!B:F,4,0))=0,VLOOKUP(B197,'OUTRAS BASES'!C:D,2,0),IF(A197="Insumo", VLOOKUP(B197,'SINAPI INSUMOS'!B:F,5,0),VLOOKUP(B197,'SINAPI COMP'!B:F,4,0))), VLOOKUP(B197,'OUTRAS BASES'!C:D,2,0)) -> 12.95 | J197: 80.4195
A202: 7 | D202: CHAFARIZ
A203: 7.1 | B203: Código | C203: Banco | D203: Descrição | E203: Tipo | G203: Und | H203: Quant. | I203: Valor Unit | J203: Total
A204: Composição | B204: COMPOSIÇÃO - 14 | C204: Próprio | D204: Fornecimento de material e instalação do chafariz | E204: ASTU - ASSENTAMENTO DE TUBOS E PECAS | G204: un | H204: 1 | I204: =SUM(J205:J223) -> 946.9160855 | J204: =I204*H204 -> 946.9160855
A205: Composição Auxiliar | B205: 88267 | C205: SINAPI | D205: ENCANADOR OU BOMBEIRO HIDRÁULICO COM ENCARGOS COMPLEMENTARES | E205: Livro SINAPI: Cálculos e Parâmetros | G205: H | H205: 2 | I205: =IF(C205="SINAPI", IF( IF(A205="Insumo", VLOOKUP(B205,'SINAPI INSUMOS'!B:F,5,0), VLOOKUP(B205,'SINAPI COMP'!B:F,4,0))=0,VLOOKUP(B205,'OUTRAS BASES'!C:D,2,0),IF(A205="Insumo", VLOOKUP(B205,'SINAPI INSUMOS'!B:F,5,0),VLOOKUP(B205,'SINAPI COMP'!B:F,4,0))), VLOOKUP(B205,'OUTRAS BASES'!C:D,2,0)) -> 31.42 | J205: 62.84
A206: Composição Auxiliar | B206: 88248 | C206: SINAPI | D206: AUXILIAR DE ENCANADOR OU BOMBEIRO HIDRÁULICO COM ENCARGOS COMPLEMENTARES | E206: Livro SINAPI: Cálculos e Parâmetros | G206: H | H206: 2 | I206: =IF(C206="SINAPI", IF( IF(A206="Insumo", VLOOKUP(B206,'SINAPI INSUMOS'!B:F,5,0), VLOOKUP(B206,'SINAPI COMP'!B:F,4,0))=0,VLOOKUP(B206,'OUTRAS BASES'!C:D,2,0),IF(A206="Insumo", VLOOKUP(B206,'SINAPI INSUMOS'!B:F,5,0),VLOOKUP(B206,'SINAPI COMP'!B:F,4,0))), VLOOKUP(B206,'OUTRAS BASES'!C:D,2,0)) -> 22.16 | J206: 44.32
A207: Composição Auxiliar | B207: 93358 | C207: SINAPI | D207: ESCAVAÇÃO MANUAL DE VALA COM PROFUNDIDADE MENOR OU IGUAL A 1,30 M. AF_02/2021 | E207: Escavação de Valas | G207: m³ | H207: 0.0785398 | I207: =IF(C207="SINAPI", IF( IF(A207="Insumo", VLOOKUP(B207,'SINAPI INSUMOS'!B:F,5,0), VLOOKUP(B207,'SINAPI COMP'!B:F,4,0))=0,VLOOKUP(B207,'OUTRAS BASES'!C:D,2,0),IF(A207="Insumo", VLOOKUP(B207,'SINAPI INSUMOS'!B:F,5,0),VLOOKUP(B207,'SINAPI COMP'!B:F,4,0))), VLOOKUP(B207,'OUTRAS BASES'!C:D,2,0)) -> 88.68 | J207: 6.964909464
A208: Composição Auxiliar | B208: 96533 | C208: SINAPI | D208: FABRICAÇÃO, MONTAGEM E DESMONTAGEM DE FÔRMA PARA VIGA BALDRAME, EM MADEIRA SERRADA, E=25 MM, 2 UTILIZAÇÕES. AF_01/2024 | E208: FUES - FUNDAÇÕES E ESTRUTURAS | G208: m² | H208: 0.628 | I208: =IF(C208="SINAPI", IF( IF(A208="Insumo", VLOOKUP(B208,'SINAPI INSUMOS'!B:F,5,0), VLOOKUP(B208,'SINAPI COMP'!B:F,4,0))=0,VLOOKUP(B208,'OUTRAS BASES'!C:D,2,0),IF(A208="Insumo", VLOOKUP(B208,'SINAPI INSUMOS'!B:F,5,0),VLOOKUP(B208,'SINAPI COMP'!B:F,4,0))), VLOOKUP(B208,'OUTRAS BASES'!C:D,2,0)) -> 107.12 | J208: 67.27136
A209: Composição Auxiliar | B209: 94963 | C209: SINAPI | D209: CONCRETO FCK = 15MPA, TRAÇO 1:3,4:3,5 (EM MASSA SECA DE CIMENTO/AREIA/MÉDIA/BRITA 1) - PREPARO MECÂNICO COM BETONEIRA 400 L. AF_05/2021 | E209: Produção de Concreto | G209: m³ | H209: 0.157 | I209: =IF(C209="SINAPI", IF( IF(A209="Insumo", VLOOKUP(B209,'SINAPI INSUMOS'!B:F,5,0), VLOOKUP(B209,'SINAPI COMP'!B:F,4,0))=0,VLOOKUP(B209,'OUTRAS BASES'!C:D,2,0),IF(A209="Insumo", VLOOKUP(B209,'SINAPI INSUMOS'!B:F,5,0),VLOOKUP(B209,'SINAPI COMP'!B:F,4,0))), VLOOKUP(B209,'OUTRAS BASES'!C:D,2,0)) -> 473.22 | J209: 74.29554
A210: Composição Auxiliar | B210: 87904 | C210: SINAPI | D210: CHAPISCO APLICADO EM ALVENARIA (COM PRESENÇA DE VÃOS) E ESTRUTURAS DE CONCRETO DE FACHADA, COM COLHER DE PEDREIRO. ARGAMASSA TRAÇO 1:3 COM PREPARO MANUAL. AF_10/2022 | E210: Chapisco | G210: m² | H210: 0.314 | I210: =IF(C210="SINAPI", IF( IF(A210="Insumo", VLOOKUP(B210,'SINAPI INSUMOS'!B:F,5,0), VLOOKUP(B210,'SINAPI COMP'!B:F,4,0))=0,VLOOKUP(B210,'OUTRAS BASES'!C:D,2,0),IF(A210="Insumo", VLOOKUP(B210,'SINAPI INSUMOS'!B:F,5,0),VLOOKUP(B210,'SINAPI COMP'!B:F,4,0))), VLOOKUP(B210,'OUTRAS BASES'!C:D,2,0)) -> 9.38 | J210: 2.94532
A211: Composição Auxiliar | B211: 87529 | C211: SINAPI | D211: MASSA ÚNICA, EM ARGAMASSA TRAÇO 1:2:8, PREPARO MECÂNICO, APLICADA MANUALMENTE EM PAREDES INTERNAS DE AMBIENTES COM ÁREA ENTRE 5M² E 10M², E = 17,5MM, COM TALISCAS. AF_03/2024 | E211: Massa Única Interna | G211: m² | H211: 0.314 | I211: =IF(C211="SINAPI", IF( IF(A211="Insumo", VLOOKUP(B211,'SINAPI INSUMOS'!B:F,5,0), VLOOKUP(B211,'SINAPI COMP'!B:F,4,0))=0,VLOOKUP(B211,'OUTRAS BASES'!C:D,2,0),IF(A211="Insumo", VLOOKUP(B211,'SINAPI INSUMOS'!B:F,5,0),VLOOKUP(B211,'SINAPI COMP'!B:F,4,0))), VLOOKUP(B211,'OUTRAS BASES'!C:D,2,0)) -> 40.21 | J211: 12.62594
A212: Composição Auxiliar | B212: 84651 | C212: SINAPI | D212: PINTURA COM TINTA IMPERMEAVEL MINERAL EM PO, DUAS DEMAOS | E212: PINT - PINTURAS | G212: m² | H212: 0.314 | I212: =IF(C212="SINAPI", IF( IF(A212="Insumo", VLOOKUP(B212,'SINAPI INSUMOS'!B:F,5,0), VLOOKUP(B212,'SINAPI COMP'!B:F,4,0))=0,VLOOKUP(B212,'OUTRAS BASES'!C:D,2,0),IF(A212="Insumo", VLOOKUP(B212,'SINAPI INSUMOS'!B:F,5,0),VLOOKUP(B212,'SINAPI COMP'!B:F,4,0))), VLOOKUP(B212,'OUTRAS BASES'!C:D,2,0)) -> 14.844 | J212: 4.661016
A213: Insumo | B213: 765 | C213: SINAPI | D213: BUCHA DE REDUCAO DE FERRO GALVANIZADO, COM ROSCA BSP, DE 1" X 3/4" | E213: Material | G213: UN | H213: 2 | I213: =IF(C213="SINAPI", IF( IF(A213="Insumo", VLOOKUP(B213,'SINAPI INSUMOS'!B:F,5,0), VLOOKUP(B213,'SINAPI COMP'!B:F,4,0))=0,VLOOKUP(B213,'OUTRAS BASES'!C:D,2,0),IF(A213="Insumo", VLOOKUP(B213,'SINAPI INSUMOS'!B:F,5,0),VLOOKUP(B213,'SINAPI COMP'!B:F,4,0))), VLOOKUP(B213,'OUTRAS BASES'!C:D,2,0)) -> 10.43 | J213: 20.86
A214: Insumo | B214: 9887 | C214: SINAPI | D214: UNIAO DE FERRO GALVANIZADO, COM ROSCA BSP, COM ASSENTO PLANO, DE 2" | E214: Material | G214: UN | H214: 2 | I214: =IF(C214="SINAPI", IF( IF(A214="Insumo", VLOOKUP(B214,'SINAPI INSUMOS'!B:F,5,0), VLOOKUP(B214,'SINAPI COMP'!B:F,4,0))=0,VLOOKUP(B214,'OUTRAS BASES'!C:D,2,0),IF(A214="Insumo", VLOOKUP(B214,'SINAPI INSUMOS'!B:F,5,0),VLOOKUP(B214,'SINAPI COMP'!B:F,4,0))), VLOOKUP(B214,'OUTRAS BASES'!C:D,2,0)) -> 106.17 | J214: 212.34
A215: Insumo | B215: 21013 | C215: SINAPI | D215: TUBO ACO GALVANIZADO COM COSTURA, CLASSE LEVE, DN 50 MM ( 2"), E = 3,00 MM, *4,40* KG/M (NBR 5580) | E215: Material | G215: M | H215: 1.8 | I215: =IF(C215="SINAPI", IF( IF(A215="Insumo", VLOOKUP(B215,'SINAPI INSUMOS'!B:F,5,0), VLOOKUP(B215,'SINAPI COMP'!B:F,4,0))=0,VLOOKUP(B215,'OUTRAS BASES'!C:D,2,0),IF(A215="Insumo", VLOOKUP(B215,'SINAPI INSUMOS'!B:F,5,0),VLOOKUP(B215,'SINAPI COMP'!B:F,4,0))), VLOOKUP(B215,'OUTRAS BASES'!C:D,2,0)) -> 67.19 | J215: 120.942
A216: Insumo | B216: 6298 | C216: SINAPI | D216: TE DE FERRO GALVANIZADO, DE 2" | E216: Material | G216: UN | H216: 1 | I216: =IF(C216="SINAPI", IF( IF(A216="Insumo", VLOOKUP(B216,'SINAPI INSUMOS'!B:F,5,0), VLOOKUP(B216,'SINAPI COMP'!B:F,4,0))=0,VLOOKUP(B216,'OUTRAS BASES'!C:D,2,0),IF(A216="Insumo", VLOOKUP(B216,'SINAPI INSUMOS'!B:F,5,0),VLOOKUP(B216,'SINAPI COMP'!B:F,4,0))), VLOOKUP(B216,'OUTRAS BASES'!C:D,2,0)) -> 69.15 | J216: 69.15
A217: Insumo | B217: 3471 | C217: SINAPI | D217: COTOVELO 90 GRAUS DE FERRO GALVANIZADO, COM ROSCA BSP, DE 2" | E217: Material | G217: UN | H217: 1 | I217: =IF(C217="SINAPI", IF( IF(A217="Insumo", VLOOKUP(B217,'SINAPI INSUMOS'!B:F,5,0), VLOOKUP(B217,'SINAPI COMP'!B:F,4,0))=0,VLOOKUP(B217,'OUTRAS BASES'!C:D,2,0),IF(A217="Insumo", VLOOKUP(B217,'SINAPI INSUMOS'!B:F,5,0),VLOOKUP(B217,'SINAPI COMP'!B:F,4,0))), VLOOKUP(B217,'OUTRAS BASES'!C:D,2,0)) -> 52.01 | J217: 52.01
A218: Insumo | B218: 113 | C218: SINAPI | D218: ADAPTADOR PVC SOLDAVEL CURTO COM BOLSA E ROSCA, 60 MM X 2", PARA AGUA FRIA | E218: Material | G218: UN | H218: 1 | I218: =IF(C218="SINAPI", IF( IF(A218="Insumo", VLOOKUP(B218,'SINAPI INSUMOS'!B:F,5,0), VLOOKUP(B218,'SINAPI COMP'!B:F,4,0))=0,VLOOKUP(B218,'OUTRAS BASES'!C:D,2,0),IF(A218="Insumo", VLOOKUP(B218,'SINAPI INSUMOS'!B:F,5,0),VLOOKUP(B218,'SINAPI COMP'!B:F,4,0))), VLOOKUP(B218,'OUTRAS BASES'!C:D,2,0)) -> 12.45 | J218: 12.45
A219: Insumo | B219: 818 | C219: SINAPI | D219: BUCHA DE REDUCAO DE PVC, SOLDAVEL, CURTA, COM 60 X 50 MM, PARA AGUA FRIA PREDIAL | E219: Material | G219: UN | H219: 1 | I219: =IF(C219="SINAPI", IF( IF(A219="Insumo", VLOOKUP(B219,'SINAPI INSUMOS'!B:F,5,0), VLOOKUP(B219,'SINAPI COMP'!B:F,4,0))=0,VLOOKUP(B219,'OUTRAS BASES'!C:D,2,0),IF(A219="Insumo", VLOOKUP(B219,'SINAPI INSUMOS'!B:F,5,0),VLOOKUP(B219,'SINAPI COMP'!B:F,4,0))), VLOOKUP(B219,'OUTRAS BASES'!C:D,2,0)) -> 7.6 | J219: 7.6
A220: Insumo | B220: 7604 | C220: SINAPI | D220: TORNEIRA METALICA CROMADA PARA TANQUE / JARDIM, SEM BICO , CANO LONGO, DE PAREDE, PADRAO POPULAR / USO GERAL, 1/2 " OU 3/4 " (REF 1126) | E220: Material | G220: UN | H220: 2 | I220: =IF(C220="SINAPI", IF( IF(A220="Insumo", VLOOKUP(B220,'SINAPI INSUMOS'!B:F,5,0), VLOOKUP(B220,'SINAPI COMP'!B:F,4,0))=0,VLOOKUP(B220,'OUTRAS BASES'!C:D,2,0),IF(A220="Insumo", VLOOKUP(B220,'SINAPI INSUMOS'!B:F,5,0),VLOOKUP(B220,'SINAPI COMP'!B:F,4,0))), VLOOKUP(B220,'OUTRAS BASES'!C:D,2,0)) -> 52.86 | J220: 105.72
A221: Insumo | B221: 119 | C221: SINAPI | D221: ADESIVO PLASTICO PARA PVC, BISNAGA COM 75 GR | E221: Material | G221: UN | H221: 1 | I221: =IF(C221="SINAPI", IF( IF(A221="Insumo", VLOOKUP(B221,'SINAPI INSUMOS'!B:F,5,0), VLOOKUP(B221,'SINAPI COMP'!B:F,4,0))=0,VLOOKUP(B221,'OUTRAS BASES'!C:D,2,0),IF(A221="Insumo", VLOOKUP(B221,'SINAPI INSUMOS'!B:F,5,0),VLOOKUP(B221,'SINAPI COMP'!B:F,4,0))), VLOOKUP(B221,'OUTRAS BASES'!C:D,2,0)) -> 8.95 | J221: 8.95
A222: Insumo | B222: 3146 | C222: SINAPI | D222: FITA VEDA ROSCA EM ROLOS DE 18 MM X 10 M (L X C) | E222: Material | G222: UN | H222: 1 | I222: =IF(C222="SINAPI", IF( IF(A222="Insumo", VLOOKUP(B222,'SINAPI INSUMOS'!B:F,5,0), VLOOKUP(B222,'SINAPI COMP'!B:F,4,0))=0,VLOOKUP(B222,'OUTRAS BASES'!C:D,2,0),IF(A222="Insumo", VLOOKUP(B222,'SINAPI INSUMOS'!B:F,5,0),VLOOKUP(B222,'SINAPI COMP'!B:F,4,0))), VLOOKUP(B222,'OUTRAS BASES'!C:D,2,0)) -> 3.05 | J222: 3.05
A223: Insumo | B223: 771 | C223: SINAPI | D223: BUCHA DE REDUCAO DE FERRO GALVANIZADO, COM ROSCA BSP, DE 2" X 1" | E223: Material | G223: UN | H223: 2 | I223: =IF(C223="SINAPI", IF( IF(A223="Insumo", VLOOKUP(B223,'SINAPI INSUMOS'!B:F,5,0), VLOOKUP(B223,'SINAPI COMP'!B:F,4,0))=0,VLOOKUP(B223,'OUTRAS BASES'!C:D,2,0),IF(A223="Insumo", VLOOKUP(B223,'SINAPI INSUMOS'!B:F,5,0),VLOOKUP(B223,'SINAPI COMP'!B:F,4,0))), VLOOKUP(B223,'OUTRAS BASES'!C:D,2,0)) -> 28.96 | J223: 57.92
A228: 8 | D228: CAVALETE
A229: 8.1 | B229: Código | C229: Banco | D229: Descrição | E229: Tipo | G229: Und | H229: Quant. | I229: Valor Unit | J229: Total
A230: Composição | B230: COMPOSIÇÃO - 15 | C230: Próprio | D230: Fornecimento de conexões e Instalação do Cavalete com hidrômetro e clorador de pastilhas | E230: INHI - INSTALAÇÕES HIDROS SANITÁRIAS | G230: un | H230: 1 | I230: =SUM(J231:J248) -> 2309.58 | J230: =I230*H230 -> 2309.58
A231: Composição Auxiliar | B231: 88248 | C231: SINAPI | D231: AUXILIAR DE ENCANADOR OU BOMBEIRO HIDRÁULICO COM ENCARGOS COMPLEMENTARES | E231: Livro SINAPI: Cálculos e Parâmetros | G231: H | H231: 3 | I231: =IF(C231="SINAPI", IF( IF(A231="Insumo", VLOOKUP(B231,'SINAPI INSUMOS'!B:F,5,0), VLOOKUP(B231,'SINAPI COMP'!B:F,4,0))=0,VLOOKUP(B231,'OUTRAS BASES'!C:D,2,0),IF(A231="Insumo", VLOOKUP(B231,'SINAPI INSUMOS'!B:F,5,0),VLOOKUP(B231,'SINAPI COMP'!B:F,4,0))), VLOOKUP(B231,'OUTRAS BASES'!C:D,2,0)) -> 22.16 | J231: 66.48
A232: Insumo | B232: 9860/SINAPI | C232: ORSE | D232: TUBO PVC, ROSCAVEL, 2", PARA AGUA FRIA PREDIAL | E232: Tubos e Conexões de PVC Rígido Roscável | G232: m | H232: 1.5 | I232: =IF(C232="SINAPI", IF( IF(A232="Insumo", VLOOKUP(B232,'SINAPI INSUMOS'!B:F,5,0), VLOOKUP(B232,'SINAPI COMP'!B:F,4,0))=0,VLOOKUP(B232,'OUTRAS BASES'!C:D,2,0),IF(A232="Insumo", VLOOKUP(B232,'SINAPI INSUMOS'!B:F,5,0),VLOOKUP(B232,'SINAPI COMP'!B:F,4,0))), VLOOKUP(B232,'OUTRAS BASES'!C:D,2,0)) -> 42.22 | J232: 63.33
A233: Insumo | B233: 11831 | C233: SINAPI | D233: TORNEIRA PLASTICA PARA TANQUE 1/2 " OU 3/4 " COM BICO PARA MANGUEIRA | E233: Material | G233: UN | H233: 1 | I233: =IF(C233="SINAPI", IF( IF(A233="Insumo", VLOOKUP(B233,'SINAPI INSUMOS'!B:F,5,0), VLOOKUP(B233,'SINAPI COMP'!B:F,4,0))=0,VLOOKUP(B233,'OUTRAS BASES'!C:D,2,0),IF(A233="Insumo", VLOOKUP(B233,'SINAPI INSUMOS'!B:F,5,0),VLOOKUP(B233,'SINAPI COMP'!B:F,4,0))), VLOOKUP(B233,'OUTRAS BASES'!C:D,2,0)) -> 15.3 | J233: 15.3
A234: Insumo | B234: 9569 | C234: ORSE | D234: Adaptador pvc BSxRM d= 35mm x 1 1/2", linha Irriga-LF, Tigre ou similar un | E234: Material | G234: un | H234: 1 | I234: =IF(C234="SINAPI", IF( IF(A234="Insumo", VLOOKUP(B234,'SINAPI INSUMOS'!B:F,5,0), VLOOKUP(B234,'SINAPI COMP'!B:F,4,0))=0,VLOOKUP(B234,'OUTRAS BASES'!C:D,2,0),IF(A234="Insumo", VLOOKUP(B234,'SINAPI INSUMOS'!B:F,5,0),VLOOKUP(B234,'SINAPI COMP'!B:F,4,0))), VLOOKUP(B234,'OUTRAS BASES'!C:D,2,0)) -> 3.04 | J234: 3.04
A235: Insumo | B235: 3939 | C235: SINAPI | D235: LUVA DE FERRO GALVANIZADO, COM ROSCA BSP, DE 1 1/2" | E235: Material | G235: UN | H235: 1 | I235: =IF(C235="SINAPI", IF( IF(A235="Insumo", VLOOKUP(B235,'SINAPI INSUMOS'!B:F,5,0), VLOOKUP(B235,'SINAPI COMP'!B:F,4,0))=0,VLOOKUP(B235,'OUTRAS BASES'!C:D,2,0),IF(A235="Insumo", VLOOKUP(B235,'SINAPI INSUMOS'!B:F,5,0),VLOOKUP(B235,'SINAPI COMP'!B:F,4,0))), VLOOKUP(B235,'OUTRAS BASES'!C:D,2,0)) -> 23.91 | J235: 23.91
A236: Insumo | B236: 1798 | C236: SINAPI | D236: CURVA 90 GRAUS DE FERRO GALVANIZADO, COM ROSCA BSP MACHO, DE 2" | E236: Material | G236: UN | H236: 1 | I236: =IF(C236="SINAPI", IF( IF(A236="Insumo", VLOOKUP(B236,'SINAPI INSUMOS'!B:F,5,0), VLOOKUP(B236,'SINAPI COMP'!B:F,4,0))=0,VLOOKUP(B236,'OUTRAS BASES'!C:D,2,0),IF(A236="Insumo", VLOOKUP(B236,'SINAPI INSUMOS'!B:F,5,0),VLOOKUP(B236,'SINAPI COMP'!B:F,4,0))), VLOOKUP(B236,'OUTRAS BASES'!C:D,2,0)) -> 133.27 | J236: 133.27
A237: Insumo | B237: 9887 | C237: SINAPI | D237: UNIAO DE FERRO GALVANIZADO, COM ROSCA BSP, COM ASSENTO PLANO, DE 2" | E237: Material | G237: UN | H237: 1 | I237: =IF(C237="SINAPI", IF( IF(A237="Insumo", VLOOKUP(B237,'SINAPI INSUMOS'!B:F,5,0), VLOOKUP(B237,'SINAPI COMP'!B:F,4,0))=0,VLOOKUP(B237,'OUTRAS BASES'!C:D,2,0),IF(A237="Insumo", VLOOKUP(B237,'SINAPI INSUMOS'!B:F,5,0),VLOOKUP(B237,'SINAPI COMP'!B:F,4,0))), VLOOKUP(B237,'OUTRAS BASES'!C:D,2,0)) -> 106.17 | J237: 106.17
A238: Insumo | B238: 00004181/SINAPI | C238: ORSE | D238: Niple de ferro galvanizado, com rosca bsp, de 2" | E238: Material | G238: un | H238: 2 | I238: =IF(C238="SINAPI", IF( IF(A238="Insumo", VLOOKUP(B238,'SINAPI INSUMOS'!B:F,5,0), VLOOKUP(B238,'SINAPI COMP'!B:F,4,0))=0,VLOOKUP(B238,'OUTRAS BASES'!C:D,2,0),IF(A238="Insumo", VLOOKUP(B238,'SINAPI INSUMOS'!B:F,5,0),VLOOKUP(B238,'SINAPI COMP'!B:F,4,0))), VLOOKUP(B238,'OUTRAS BASES'!C:D,2,0)) -> 36.64 | J238: 73.28
A239: Insumo | B239: 6028 | C239: SINAPI | D239: REGISTRO GAVETA BRUTO EM LATAO FORJADO, BITOLA 2 " (REF 1509) | E239: Material | G239: UN | H239: 1 | I239: =IF(C239="SINAPI", IF( IF(A239="Insumo", VLOOKUP(B239,'SINAPI INSUMOS'!B:F,5,0), VLOOKUP(B239,'SINAPI COMP'!B:F,4,0))=0,VLOOKUP(B239,'OUTRAS BASES'!C:D,2,0),IF(A239="Insumo", VLOOKUP(B239,'SINAPI INSUMOS'!B:F,5,0),VLOOKUP(B239,'SINAPI COMP'!B:F,4,0))), VLOOKUP(B239,'OUTRAS BASES'!C:D,2,0)) -> 118.62 | J239: 118.62
A240: Insumo | B240: 12775 | C240: SINAPI | D240: HIDROMETRO MULTIJATO / MEDIDOR DE AGUA, DN 1", VAZAO MAXIMA DE 7 M3/H, PARA AGUA POTAVEL FRIA, RELOJOARIA PLANA, CLASSE B, HORIZONTAL (SEM CONEXOES) | E240: Material | G240: UN | H240: 1 | I240: =IF(C240="SINAPI", IF( IF(A240="Insumo", VLOOKUP(B240,'SINAPI INSUMOS'!B:F,5,0), VLOOKUP(B240,'SINAPI COMP'!B:F,4,0))=0,VLOOKUP(B240,'OUTRAS BASES'!C:D,2,0),IF(A240="Insumo", VLOOKUP(B240,'SINAPI INSUMOS'!B:F,5,0),VLOOKUP(B240,'SINAPI COMP'!B:F,4,0))), VLOOKUP(B240,'OUTRAS BASES'!C:D,2,0)) -> 420.58 | J240: 420.58
A241: Insumo | B241: 771 | C241: SINAPI | D241: BUCHA DE REDUCAO DE FERRO GALVANIZADO, COM ROSCA BSP, DE 2" X 1" | E241: Material | G241: UN | H241: 2 | I241: =IF(C241="SINAPI", IF( IF(A241="Insumo", VLOOKUP(B241,'SINAPI INSUMOS'!B:F,5,0), VLOOKUP(B241,'SINAPI COMP'!B:F,4,0))=0,VLOOKUP(B241,'OUTRAS BASES'!C:D,2,0),IF(A241="Insumo", VLOOKUP(B241,'SINAPI INSUMOS'!B:F,5,0),VLOOKUP(B241,'SINAPI COMP'!B:F,4,0))), VLOOKUP(B241,'OUTRAS BASES'!C:D,2,0)) -> 28.96 | J241: 57.92
A242: Insumo | B242: 6305 | C242: SINAPI | D242: TE DE REDUCAO DE FERRO GALVANIZADO, COM ROSCA BSP, DE 2" X 1" | E242: Material | G242: UN | H242: 1 | I242: =IF(C242="SINAPI", IF( IF(A242="Insumo", VLOOKUP(B242,'SINAPI INSUMOS'!B:F,5,0), VLOOKUP(B242,'SINAPI COMP'!B:F,4,0))=0,VLOOKUP(B242,'OUTRAS BASES'!C:D,2,0),IF(A242="Insumo", VLOOKUP(B242,'SINAPI INSUMOS'!B:F,5,0),VLOOKUP(B242,'SINAPI COMP'!B:F,4,0))), VLOOKUP(B242,'OUTRAS BASES'!C:D,2,0)) -> 411.16 | J242: 411.16
A243: Insumo | B243: 764 | C243: SINAPI | D243: BUCHA DE REDUCAO DE FERRO GALVANIZADO, COM ROSCA BSP, DE 1" X 1/2" | E243: Material | G243: UN | H243: 1 | I243: =IF(C243="SINAPI", IF( IF(A243="Insumo", VLOOKUP(B243,'SINAPI INSUMOS'!B:F,5,0), VLOOKUP(B243,'SINAPI COMP'!B:F,4,0))=0,VLOOKUP(B243,'OUTRAS BASES'!C:D,2,0),IF(A243="Insumo", VLOOKUP(B243,'SINAPI INSUMOS'!B:F,5,0),VLOOKUP(B243,'SINAPI COMP'!B:F,4,0))), VLOOKUP(B243,'OUTRAS BASES'!C:D,2,0)) -> 109.89 | J243: 109.89
A244: Insumo | B244: 5128 | C244: ORSE | D244: Tampa de poço galvanizada em 6" | E244: Material | G244: UN | H244: 1 | I244: =IF(C244="SINAPI", IF( IF(A244="Insumo", VLOOKUP(B244,'SINAPI INSUMOS'!B:F,5,0), VLOOKUP(B244,'SINAPI COMP'!B:F,4,0))=0,VLOOKUP(B244,'OUTRAS BASES'!C:D,2,0),IF(A244="Insumo", VLOOKUP(B244,'SINAPI INSUMOS'!B:F,5,0),VLOOKUP(B244,'SINAPI COMP'!B:F,4,0))), VLOOKUP(B244,'OUTRAS BASES'!C:D,2,0)) -> 107.28 | J244: 107.28
A245: Insumo | B245: 1160 | C245: ORSE | D245: Joelho 45° ferro galvanizado d=2" | E245: Material | G245: UN | H245: 2 | I245: =IF(C245="SINAPI", IF( IF(A245="Insumo", VLOOKUP(B245,'SINAPI INSUMOS'!B:F,5,0), VLOOKUP(B245,'SINAPI COMP'!B:F,4,0))=0,VLOOKUP(B245,'OUTRAS BASES'!C:D,2,0),IF(A245="Insumo", VLOOKUP(B245,'SINAPI INSUMOS'!B:F,5,0),VLOOKUP(B245,'SINAPI COMP'!B:F,4,0))), VLOOKUP(B245,'OUTRAS BASES'!C:D,2,0)) -> 54.39 | J245: 108.78
A246: Insumo | B246: 53688 | C246: SBC | D246: VALVULA DE RETENCAO HORIZONTAL EM LATAO, ROSCA BSP 2" | E246: Material | G246: UN | H246: 1 | I246: =IF(C246="SINAPI", IF( IF(A246="Insumo", VLOOKUP(B246,'SINAPI INSUMOS'!B:F,5,0), VLOOKUP(B246,'SINAPI COMP'!B:F,4,0))=0,VLOOKUP(B246,'OUTRAS BASES'!C:D,2,0),IF(A246="Insumo", VLOOKUP(B246,'SINAPI INSUMOS'!B:F,5,0),VLOOKUP(B246,'SINAPI COMP'!B:F,4,0))), VLOOKUP(B246,'OUTRAS BASES'!C:D,2,0)) -> 192.66 | J246: 192.66
A247: Insumo | B247: 4194 | C247: SINAPI | D247: NIPLE DE REDUCAO DE FERRO GALVANIZADO, COM ROSCA BSP, DE 2" X 1 1/2" | E247: Material | G247: UN | H247: 1 | I247: =IF(C247="SINAPI", IF( IF(A247="Insumo", VLOOKUP(B247,'SINAPI INSUMOS'!B:F,5,0), VLOOKUP(B247,'SINAPI COMP'!B:F,4,0))=0,VLOOKUP(B247,'OUTRAS BASES'!C:D,2,0),IF(A247="Insumo", VLOOKUP(B247,'SINAPI INSUMOS'!B:F,5,0),VLOOKUP(B247,'SINAPI COMP'!B:F,4,0))), VLOOKUP(B247,'OUTRAS BASES'!C:D,2,0)) -> 46.94 | J247: 46.94
A248: Insumo | B248: 12464 | C248: ORSE | D248: Clorador dosador de cloro de pastilhas automático | E248: Material | G248: un | H248: 1 | I248: =IF(C248="SINAPI", IF( IF(A248="Insumo", VLOOKUP(B248,'SINAPI INSUMOS'!B:F,5,0), VLOOKUP(B248,'SINAPI COMP'!B:F,4,0))=0,VLOOKUP(B248,'OUTRAS BASES'!C:D,2,0),IF(A248="Insumo", VLOOKUP(B248,'SINAPI INSUMOS'!B:F,5,0),VLOOKUP(B248,'SINAPI COMP'!B:F,4,0))), VLOOKUP(B248,'OUTRAS BASES'!C:D,2,0)) -> 250.97 | J248: 250.97
A253: 9 | D253: INSTALAÇÕES HIDRÁULICAS POÇO E ADUTORA
A254: 9.1 | B254: Código | C254: Banco | D254: Descrição | E254: Tipo | G254: Und | H254: Quant. | I254: Valor Unit | J254: Total
A255: Composição | B255: COMPOSIÇÃO - 16 | C255: Próprio | D255: Instalação da rede adutora poço-reservatório-bebedouro em PN80 e DN50MM | E255: SEDI - SERVIÇOS DIVERSOS | G255: m | H255: 1 | I255: =SUM(J256:J258) -> 6.45 | J255: =I255*H255 -> 6.45
A256: Composição Auxiliar | B256: 88316 | C256: SINAPI | D256: SERVENTE COM ENCARGOS COMPLEMENTARES | E256: Livro SINAPI: Cálculos e Parâmetros | G256: H | H256: 0.05 | I256: =IF(C256="SINAPI", IF( IF(A256="Insumo", VLOOKUP(B256,'SINAPI INSUMOS'!B:F,5,0), VLOOKUP(B256,'SINAPI COMP'!B:F,4,0))=0,VLOOKUP(B256,'OUTRAS BASES'!C:D,2,0),IF(A256="Insumo", VLOOKUP(B256,'SINAPI INSUMOS'!B:F,5,0),VLOOKUP(B256,'SINAPI COMP'!B:F,4,0))), VLOOKUP(B256,'OUTRAS BASES'!C:D,2,0)) -> 22.42 | J256: 1.121
A257: Composição Auxiliar | B257: 93358 | C257: SINAPI | D257: ESCAVAÇÃO MANUAL DE VALA COM PROFUNDIDADE MENOR OU IGUAL A 1,30 M. AF_02/2021 | E257: Escavação de Valas | G257: m³ | H257: 0.05 | I257: =IF(C257="SINAPI", IF( IF(A257="Insumo", VLOOKUP(B257,'SINAPI INSUMOS'!B:F,5,0), VLOOKUP(B257,'SINAPI COMP'!B:F,4,0))=0,VLOOKUP(B257,'OUTRAS BASES'!C:D,2,0),IF(A257="Insumo", VLOOKUP(B257,'SINAPI INSUMOS'!B:F,5,0),VLOOKUP(B257,'SINAPI COMP'!B:F,4,0))), VLOOKUP(B257,'OUTRAS BASES'!C:D,2,0)) -> 88.68 | J257: 4.434
A258: Insumo | B258: 119 | C258: SINAPI | D258: ADESIVO PLASTICO PARA PVC, BISNAGA COM 75 GR | E258: Material | G258: UN | H258: 0.1 | I258: =IF(C258="SINAPI", IF( IF(A258="Insumo", VLOOKUP(B258,'SINAPI INSUMOS'!B:F,5,0), VLOOKUP(B258,'SINAPI COMP'!B:F,4,0))=0,VLOOKUP(B258,'OUTRAS BASES'!C:D,2,0),IF(A258="Insumo", VLOOKUP(B258,'SINAPI INSUMOS'!B:F,5,0),VLOOKUP(B258,'SINAPI COMP'!B:F,4,0))), VLOOKUP(B258,'OUTRAS BASES'!C:D,2,0)) -> 8.95 | J258: 0.895
A260: 9.2 | B260: Código | C260: Banco | D260: Descrição | E260: Tipo | G260: Und | H260: Quant. | I260: Valor Unit | J260: Total
A261: Insumo | B261: 9875 | C261: SINAPI | D261: TUBO PVC, SOLDAVEL, DE 50 MM, AGUA FRIA (NBR-5648) | E261: MATERIAL | G261: un | H261: 1 | I261: =IF(C261="SINAPI", IF( IF(A261="Insumo", VLOOKUP(B261,'SINAPI INSUMOS'!B:F,5,0), VLOOKUP(B261,'SINAPI COMP'!B:F,4,0))=0,VLOOKUP(B261,'OUTRAS BASES'!C:D,2,0),IF(A261="Insumo", VLOOKUP(B261,'SINAPI INSUMOS'!B:F,5,0),VLOOKUP(B261,'SINAPI COMP'!B:F,4,0))), VLOOKUP(B261,'OUTRAS BASES'!C:D,2,0)) -> 17.21 | J261: =I261*H261 -> 17.21
A266: 9.3 | B266: Código | C266: Banco | D266: Descrição | E266: Tipo | G266: Und | H266: Quant. | I266: Valor Unit | J266: Total
A267: Composição | B267: COMPOSIÇÃO - 17 | C267: Próprio | D267: Montagem hidráulica do equipamento de bombeamento | E267: INHI - INSTALAÇÕES HIDROS SANITÁRIAS | G267: un | H267: 1 | I267: =SUM(J268:J269) -> 160.74 | J267: =I267*H267 -> 160.74
A268: Composição Auxiliar | B268: 88267 | C268: SINAPI | D268: ENCANADOR OU BOMBEIRO HIDRÁULICO COM ENCARGOS COMPLEMENTARES | E268: Livro SINAPI: Cálculos e Parâmetros | G268: H | H268: 3 | I268: =IF(C268="SINAPI", IF( IF(A268="Insumo", VLOOKUP(B268,'SINAPI INSUMOS'!B:F,5,0), VLOOKUP(B268,'SINAPI COMP'!B:F,4,0))=0,VLOOKUP(B268,'OUTRAS BASES'!C:D,2,0),IF(A268="Insumo", VLOOKUP(B268,'SINAPI INSUMOS'!B:F,5,0),VLOOKUP(B268,'SINAPI COMP'!B:F,4,0))), VLOOKUP(B268,'OUTRAS BASES'!C:D,2,0)) -> 31.42 | J268: 94.26
A269: Composição Auxiliar | B269: 88248 | C269: SINAPI | D269: AUXILIAR DE ENCANADOR OU BOMBEIRO HIDRÁULICO COM ENCARGOS COMPLEMENTARES | E269: Livro SINAPI: Cálculos e Parâmetros | G269: H | H269: 3 | I269: =IF(C269="SINAPI", IF( IF(A269="Insumo", VLOOKUP(B269,'SINAPI INSUMOS'!B:F,5,0), VLOOKUP(B269,'SINAPI COMP'!B:F,4,0))=0,VLOOKUP(B269,'OUTRAS BASES'!C:D,2,0),IF(A269="Insumo", VLOOKUP(B269,'SINAPI INSUMOS'!B:F,5,0),VLOOKUP(B269,'SINAPI COMP'!B:F,4,0))), VLOOKUP(B269,'OUTRAS BASES'!C:D,2,0)) -> 22.16 | J269: 66.48
A274: 9.4 | B274: Código | C274: Banco | D274: Descrição | E274: Tipo | G274: Und | H274: Quant. | I274: Valor Unit | J274: Total
A275: Insumo | B275: 38200 | C275: SINAPI | D275: CORDA DE POLIAMIDA 12 MM TIPO BOMBEIRO, PARA TRABALHO EM ALTURA | E275: Material | G275: 100M | H275: 1 | I275: =IF(C275="SINAPI", IF( IF(A275="Insumo", VLOOKUP(B275,'SINAPI INSUMOS'!B:F,5,0), VLOOKUP(B275,'SINAPI COMP'!B:F,4,0))=0,VLOOKUP(B275,'OUTRAS BASES'!C:D,2,0),IF(A275="Insumo", VLOOKUP(B275,'SINAPI INSUMOS'!B:F,5,0),VLOOKUP(B275,'SINAPI COMP'!B:F,4,0))), VLOOKUP(B275,'OUTRAS BASES'!C:D,2,0)) -> 348.48 | J275: =I275*H275 -> 348.48
A280: 9.5 | B280: Código | C280: Banco | D280: Descrição | E280: Tipo | G280: Und | H280: Quant. | I280: Valor Unit | J280: Total
A281: Insumo | B281: 9860 | C281: SINAPI | D281: TUBO PVC, ROSCAVEL, 2", PARA AGUA FRIA PREDIAL | E281: Material | G281: M | H281: 1 | I281: =IF(C281="SINAPI", IF( IF(A281="Insumo", VLOOKUP(B281,'SINAPI INSUMOS'!B:F,5,0), VLOOKUP(B281,'SINAPI COMP'!B:F,4,0))=0,VLOOKUP(B281,'OUTRAS BASES'!C:D,2,0),IF(A281="Insumo", VLOOKUP(B281,'SINAPI INSUMOS'!B:F,5,0),VLOOKUP(B281,'SINAPI COMP'!B:F,4,0))), VLOOKUP(B281,'OUTRAS BASES'!C:D,2,0)) -> 49.99 | J281: =I281*H281 -> 49.99
A286: 9.6 | B286: Código | C286: Banco | D286: Descrição | E286: Tipo | G286: Und | H286: Quant. | I286: Valor Unit | J286: Total
A287: Insumo | B287: 3912 | C287: SINAPI | D287: LUVA DE FERRO GALVANIZADO, COM ROSCA BSP, DE 2" | E287: Material | G287: UN | H287: 1 | I287: =IF(C287="SINAPI", IF( IF(A287="Insumo", VLOOKUP(B287,'SINAPI INSUMOS'!B:F,5,0), VLOOKUP(B287,'SINAPI COMP'!B:F,4,0))=0,VLOOKUP(B287,'OUTRAS BASES'!C:D,2,0),IF(A287="Insumo", VLOOKUP(B287,'SINAPI INSUMOS'!B:F,5,0),VLOOKUP(B287,'SINAPI COMP'!B:F,4,0))), VLOOKUP(B287,'OUTRAS BASES'!C:D,2,0)) -> 36.61 | J287: =I287*H287 -> 36.61
A292: 9.7 | B292: Código | C292: Banco | D292: Descrição | E292: Tipo | G292: Und | H292: Quant. | I292: Valor Unit | J292: Total
A293: Insumo | B293: 5128 | C293: ORSE | D293: Tampa de poço galvanizada em 6" un | E293: Serviços | G293: un | H293: 1 | I293: =IF(C293="SINAPI", IF( IF(A293="Insumo", VLOOKUP(B293,'SINAPI INSUMOS'!B:F,5,0), VLOOKUP(B293,'SINAPI COMP'!B:F,4,0))=0,VLOOKUP(B293,'OUTRAS BASES'!C:D,2,0),IF(A293="Insumo", VLOOKUP(B293,'SINAPI INSUMOS'!B:F,5,0),VLOOKUP(B293,'SINAPI COMP'!B:F,4,0))), VLOOKUP(B293,'OUTRAS BASES'!C:D,2,0)) -> 107.28 | J293: =I293*H293 -> 107.28
A298: 10 | D298: ESTRUTURA DE FIXAÇÃO PARA MÓDULOS FOTOVOLTÁICOS
A299: 10.1 | B299: Código | C299: Banco | D299: Descrição | E299: Tipo | G299: Und | H299: Quant. | I299: Valor Unit | J299: Total
A300: Composição | B300: COMPOSIÇÃO - 18 | C300: Próprio | D300: Serviço de fixação de estruturas para os módulos fotovoltaicos e suportes de concreto, incluso materiais. | E300: SEDI - SERVIÇOS DIVERSOS | G300: m² | H300: 1 | I300: =SUM(J301:J303) -> 101.629992 | J300: =I300*H300 -> 101.629992
A301: Composição Auxiliar | B301: 94975 | C301: SINAPI | D301: CONCRETO FCK = 15MPA, TRAÇO 1:3,4:3,5 (EM MASSA SECA DE CIMENTO/ AREIA MÉDIA/ BRITA 1) - PREPARO MANUAL. AF_05/2021 | E301: Produção de Concreto | G301: m³ | H301: 0.09 | I301: =IF(C301="SINAPI", IF( IF(A301="Insumo", VLOOKUP(B301,'SINAPI INSUMOS'!B:F,5,0), VLOOKUP(B301,'SINAPI COMP'!B:F,4,0))=0,VLOOKUP(B301,'OUTRAS BASES'!C:D,2,0),IF(A301="Insumo", VLOOKUP(B301,'SINAPI INSUMOS'!B:F,5,0),VLOOKUP(B301,'SINAPI COMP'!B:F,4,0))), VLOOKUP(B301,'OUTRAS BASES'!C:D,2,0)) -> 534.97 | J301: 48.1473
A302: Composição Auxiliar | B302: 96522 | C302: SINAPI | D302: ESCAVAÇÃO MANUAL PARA BLOCO DE COROAMENTO OU SAPATA (SEM ESCAVAÇÃO PARA COLOCAÇÃO DE FÔRMAS). AF_01/2024 | E302: Fundações Rasas (Blocos, Sapatas, Vigas Baldrame) | G302: m³ | H302: 0.0062 | I302: =IF(C302="SINAPI", IF( IF(A302="Insumo", VLOOKUP(B302,'SINAPI INSUMOS'!B:F,5,0), VLOOKUP(B302,'SINAPI COMP'!B:F,4,0))=0,VLOOKUP(B302,'OUTRAS BASES'!C:D,2,0),IF(A302="Insumo", VLOOKUP(B302,'SINAPI INSUMOS'!B:F,5,0),VLOOKUP(B302,'SINAPI COMP'!B:F,4,0))), VLOOKUP(B302,'OUTRAS BASES'!C:D,2,0)) -> 153.66 | J302: 0.952692
A303: Insumo | B303: 4183 | C303: SBC | D303: ESTRUTURA METALICA EM TESOURAS OU TRELICAS, VÃO LIVRE DE 12M, FORNECIMENTO E MONTAGEM | E303: Material | G303: m² | H303: 1 | I303: =IF(C303="SINAPI", IF( IF(A303="Insumo", VLOOKUP(B303,'SINAPI INSUMOS'!B:F,5,0), VLOOKUP(B303,'SINAPI COMP'!B:F,4,0))=0,VLOOKUP(B303,'OUTRAS BASES'!C:D,2,0),IF(A303="Insumo", VLOOKUP(B303,'SINAPI INSUMOS'!B:F,5,0),VLOOKUP(B303,'SINAPI COMP'!B:F,4,0))), VLOOKUP(B303,'OUTRAS BASES'!C:D,2,0)) -> 52.53 | J303: 52.53
A308: 11 | D308: INSTALAÇÕES ELÉTRICAS
A309: 11.1 | B309: Código | C309: Banco | D309: Descrição | E309: Tipo | G309: Und | H309: Quant. | I309: Valor Unit | J309: Total
A310: Composição | B310: COMPOSIÇÃO - 19 | C310: Próprio | D310: Montagem e instalação elétrica do kit de bombeamento e sistema fotovoltaico inclusive sistema de aterramento. | E310: INEL - INSTALAÇÃO ELÉTRICA/ELETRIFICAÇÃO E ILUMINAÇÃO EXTERNA | G310: un | H310: 1 | I310: =SUM(J311:J321) -> 983.311 | J310: =I310*H310 -> 983.311
A311: Composição Auxiliar | B311: 88247 | C311: SINAPI | D311: AUXILIAR DE ELETRICISTA COM ENCARGOS COMPLEMENTARES | E311: Livro SINAPI: Cálculos e Parâmetros | G311: H | H311: 8 | I311: =IF(C311="SINAPI", IF( IF(A311="Insumo", VLOOKUP(B311,'SINAPI INSUMOS'!B:F,5,0), VLOOKUP(B311,'SINAPI COMP'!B:F,4,0))=0,VLOOKUP(B311,'OUTRAS BASES'!C:D,2,0),IF(A311="Insumo", VLOOKUP(B311,'SINAPI INSUMOS'!B:F,5,0),VLOOKUP(B311,'SINAPI COMP'!B:F,4,0))), VLOOKUP(B311,'OUTRAS BASES'!C:D,2,0)) -> 23.13 | J311: 185.04
A312: Insumo | B312: 20111 | C312: SINAPI | D312: FITA ISOLANTE ADESIVA ANTICHAMA, USO ATE 750 V, EM ROLO DE 19 MM X 20 M | E312: Material | G312: UN | H312: 1 | I312: =IF(C312="SINAPI", IF( IF(A312="Insumo", VLOOKUP(B312,'SINAPI INSUMOS'!B:F,5,0), VLOOKUP(B312,'SINAPI COMP'!B:F,4,0))=0,VLOOKUP(B312,'OUTRAS BASES'!C:D,2,0),IF(A312="Insumo", VLOOKUP(B312,'SINAPI INSUMOS'!B:F,5,0),VLOOKUP(B312,'SINAPI COMP'!B:F,4,0))), VLOOKUP(B312,'OUTRAS BASES'!C:D,2,0)) -> 9.01 | J312: 9.01
A313: Insumo | B313: 2674 | C313: SINAPI | D313: FORNECIMENTO DE ELETRODUTO DE PVC RIGIDO ROSCAVEL DE 3/4 ", SEM LUVA | E313: Material | G313: M | H313: 15 | I313: =IF(C313="SINAPI", IF( IF(A313="Insumo", VLOOKUP(B313,'SINAPI INSUMOS'!B:F,5,0), VLOOKUP(B313,'SINAPI COMP'!B:F,4,0))=0,VLOOKUP(B313,'OUTRAS BASES'!C:D,2,0),IF(A313="Insumo", VLOOKUP(B313,'SINAPI INSUMOS'!B:F,5,0),VLOOKUP(B313,'SINAPI COMP'!B:F,4,0))), VLOOKUP(B313,'OUTRAS BASES'!C:D,2,0)) -> 3.62 | J313: 54.3
A314: Insumo | B314: 12034 | C314: SINAPI | D314: FORNECIMENTO DE CURVA 180 GRAUS, DE PVC RIGIDO ROSCAVEL, DE 3/4", PARA ELETRODUTO | E314: Material | G314: UN | H314: 1 | I314: =IF(C314="SINAPI", IF( IF(A314="Insumo", VLOOKUP(B314,'SINAPI INSUMOS'!B:F,5,0), VLOOKUP(B314,'SINAPI COMP'!B:F,4,0))=0,VLOOKUP(B314,'OUTRAS BASES'!C:D,2,0),IF(A314="Insumo", VLOOKUP(B314,'SINAPI INSUMOS'!B:F,5,0),VLOOKUP(B314,'SINAPI COMP'!B:F,4,0))), VLOOKUP(B314,'OUTRAS BASES'!C:D,2,0)) -> 2.99 | J314: 2.99
A315: Insumo | B315: 39272 | C315: SINAPI | D315: FORNECIMENTO DE CURVA 90 GRAUS, CURTA, DE PVC RIGIDO ROSCAVEL, DE 3/4", PARA ELETRODUTO | E315: Material | G315: UN | H315: 2 | I315: =IF(C315="SINAPI", IF( IF(A315="Insumo", VLOOKUP(B315,'SINAPI INSUMOS'!B:F,5,0), VLOOKUP(B315,'SINAPI COMP'!B:F,4,0))=0,VLOOKUP(B315,'OUTRAS BASES'!C:D,2,0),IF(A315="Insumo", VLOOKUP(B315,'SINAPI INSUMOS'!B:F,5,0),VLOOKUP(B315,'SINAPI COMP'!B:F,4,0))), VLOOKUP(B315,'OUTRAS BASES'!C:D,2,0)) -> 1.63 | J315: 3.26
A316: Insumo | B316: 3379 | C316: SINAPI | D316: HASTE DE ATERRAMENTO EM ACO COM 3,00 M DE COMPRIMENTO E DN = 5/8", REVESTIDA COM BAIXA CAMADA DE COBRE, SEM CONECTOR | E316: Material | G316: UN | H316: 0.66 | I316: =IF(C316="SINAPI", IF( IF(A316="Insumo", VLOOKUP(B316,'SINAPI INSUMOS'!B:F,5,0), VLOOKUP(B316,'SINAPI COMP'!B:F,4,0))=0,VLOOKUP(B316,'OUTRAS BASES'!C:D,2,0),IF(A316="Insumo", VLOOKUP(B316,'SINAPI INSUMOS'!B:F,5,0),VLOOKUP(B316,'SINAPI COMP'!B:F,4,0))), VLOOKUP(B316,'OUTRAS BASES'!C:D,2,0)) -> 59.85 | J316: 39.501
A317: Insumo | B317: 1891 | C317: SINAPI | D317: FORNECIMENTO DE LUVA EM PVC RIGIDO ROSCAVEL, DE 3/4", PARA ELETRODUTO | E317: Material | G317: UN | H317: 9 | I317: =IF(C317="SINAPI", IF( IF(A317="Insumo", VLOOKUP(B317,'SINAPI INSUMOS'!B:F,5,0), VLOOKUP(B317,'SINAPI COMP'!B:F,4,0))=0,VLOOKUP(B317,'OUTRAS BASES'!C:D,2,0),IF(A317="Insumo", VLOOKUP(B317,'SINAPI INSUMOS'!B:F,5,0),VLOOKUP(B317,'SINAPI COMP'!B:F,4,0))), VLOOKUP(B317,'OUTRAS BASES'!C:D,2,0)) -> 0.75 | J317: 6.75
A318: Insumo | B318: 425 | C318: SINAPI | D318: GRAMPO METALICO TIPO OLHAL PARA HASTE DE ATERRAMENTO DE 5/8'', CONDUTOR DE *10* A 50 MM2 | E318: Material | G318: UN | H318: 2 | I318: =IF(C318="SINAPI", IF( IF(A318="Insumo", VLOOKUP(B318,'SINAPI INSUMOS'!B:F,5,0), VLOOKUP(B318,'SINAPI COMP'!B:F,4,0))=0,VLOOKUP(B318,'OUTRAS BASES'!C:D,2,0),IF(A318="Insumo", VLOOKUP(B318,'SINAPI INSUMOS'!B:F,5,0),VLOOKUP(B318,'SINAPI COMP'!B:F,4,0))), VLOOKUP(B318,'OUTRAS BASES'!C:D,2,0)) -> 5.67 | J318: 11.34
A319: Insumo | B319: 34643 | C319: SINAPI | D319: FORNECIMENTO DE CAIXA DE INSPECAO PARA ATERRAMENTO E PARA RAIOS, EM POLIPROPILENO, DIAMETRO = 300 MM X ALTURA = 400 MM | E319: Material | G319: UN | H319: 2 | I319: =IF(C319="SINAPI", IF( IF(A319="Insumo", VLOOKUP(B319,'SINAPI INSUMOS'!B:F,5,0), VLOOKUP(B319,'SINAPI COMP'!B:F,4,0))=0,VLOOKUP(B319,'OUTRAS BASES'!C:D,2,0),IF(A319="Insumo", VLOOKUP(B319,'SINAPI INSUMOS'!B:F,5,0),VLOOKUP(B319,'SINAPI COMP'!B:F,4,0))), VLOOKUP(B319,'OUTRAS BASES'!C:D,2,0)) -> 46.35 | J319: 92.7
... 57 more rows

Sheet Crono. - GO - T
A1: OBJETO: EXECUÇÃO DE SERVIÇOS DE PERFURAÇÃO E INSTALAÇÃO DE POÇOS TUBULARES EM MUNICÍPIOS LOCALIZADOS NO GOIÁS, NA ÁREA DE ATUAÇÃO DA CODEVASF
A8: CRONOGRAMA FÍSICO-FINANCEIRO POÇO TOTALMENTE REVESTIDO
A10: ITEM | B10: ESPECIFICAÇÃO DOS SERVIÇOS | C10: VALOR TOTAL (R$) | D10: Mês 01 | E10: Mês 02 | F10: Mês 03 | G10: Mês 04 | H10: Mês 05 | I10: Mês 06 | J10: Mês 07 | K10: Mês 08 | L10: Mês 09 | M10: Mês 10 | N10: Mês 11 | O10: Mês 12
A11: 1 | B11: Serviços preliminares. | C11: ='Orçamento Sintético - GO - T'!K4 -> 98013.74 | D11: =$C$11/12 -> 8167.811667 | E11: =$C$11/12 -> 8167.811667 | F11: 8167.811667 | G11: 8167.811667 | H11: 8167.811667 | I11: 8167.811667 | J11: 8167.811667 | K11: 8167.811667 | L11: 8167.811667 | M11: 8167.811667 | N11: 8167.811667 | O11: 8167.811667
A12: 2 | B12: Mobilizaçâo e desmobilizaçâo equipes perfuraçâo e instalação. | C12: ='Orçamento Sintético - GO - T'!K8 -> 103572 | D12: =$C$12/12 -> 8631 | E12: =$C$12/12 -> 8631 | F12: 8631 | G12: 8631 | H12: 8631 | I12: 8631 | J12: 8631 | K12: 8631 | L12: 8631 | M12: 8631 | N12: 8631 | O12: 8631
A13: 3 | B13: Perfuração e completação de poço tubular. | C13: ='Orçamento Sintético - GO - T'!K12 -> 3855020.42 | D13: =$C$13/12 -> 321251.7017 | E13: =$C$13/12 -> 321251.7017 | F13: 321251.7017 | G13: 321251.7017 | H13: 321251.7017 | I13: 321251.7017 | J13: 321251.7017 | K13: 321251.7017 | L13: 321251.7017 | M13: 321251.7017 | N13: 321251.7017 | O13: 321251.7017
A14: 4 | B14: Pós perfuração. | C14: ='Orçamento Sintético - GO - T'!K19 -> 514573.5 | D14: =$C$14/12 -> 42881.125 | E14: =$C$14/12 -> 42881.125 | F14: 42881.125 | G14: 42881.125 | H14: 42881.125 | I14: 42881.125 | J14: 42881.125 | K14: 42881.125 | L14: 42881.125 | M14: 42881.125 | N14: 42881.125 | O14: 42881.125
A15: 5 | B15: Reservação. | C15: ='Orçamento Sintético - GO - T'!K25 -> 904061.84 | D15: =$C$15/12 -> 75338.48667 | E15: =$C$15/12 -> 75338.48667 | F15: 75338.48667 | G15: 75338.48667 | H15: 75338.48667 | I15: 75338.48667 | J15: 75338.48667 | K15: 75338.48667 | L15: 75338.48667 | M15: 75338.48667 | N15: 75338.48667 | O15: 75338.48667
A16: 6 | B16: Bebedouro. | C16: ='Orçamento Sintético - GO - T'!K28 -> 104633.76 | D16: =$C$16/12 -> 8719.48 | E16: =$C$16/12 -> 8719.48 | F16: 8719.48 | G16: 8719.48 | H16: 8719.48 | I16: 8719.48 | J16: 8719.48 | K16: 8719.48 | L16: 8719.48 | M16: 8719.48 | N16: 8719.48 | O16: 8719.48
A17: 7 | B17: Chafariz. | C17: ='Orçamento Sintético - GO - T'!K30 -> 49227.78 | D17: =$C$17/12 -> 4102.315 | E17: =$C$17/12 -> 4102.315 | F17: 4102.315 | G17: 4102.315 | H17: 4102.315 | I17: 4102.315 | J17: 4102.315 | K17: 4102.315 | L17: 4102.315 | M17: 4102.315 | N17: 4102.315 | O17: 4102.315
A18: 8 | B18: Cavalete. | C18: ='Orçamento Sintético - GO - T'!K32 -> 120069.6 | D18: =$C$18/12 -> 10005.8 | E18: =$C$18/12 -> 10005.8 | F18: 10005.8 | G18: 10005.8 | H18: 10005.8 | I18: 10005.8 | J18: 10005.8 | K18: 10005.8 | L18: 10005.8 | M18: 10005.8 | N18: 10005.8 | O18: 10005.8
A19: 9 | B19: Instalações hidráulicas. | C19: ='Orçamento Sintético - GO - T'!K34 -> 739755.79 | D19: =$C$19/12 -> 61646.31583 | E19: =$C$19/12 -> 61646.31583 | F19: 61646.31583 | G19: 61646.31583 | H19: 61646.31583 | I19: 61646.31583 | J19: 61646.31583 | K19: 61646.31583 | L19: 61646.31583 | M19: 61646.31583 | N19: 61646.31583 | O19: 61646.31583
A20: 10 | B20: Estrutura de fixação para módulos fotovoltáicos. | C20: ='Orçamento Sintético - GO - T'!K42 -> 80205.05 | D20: =$C$20/12 -> 6683.754167 | E20: =$C$20/12 -> 6683.754167 | F20: 6683.754167 | G20: 6683.754167 | H20: 6683.754167 | I20: 6683.754167 | J20: 6683.754167 | K20: 6683.754167 | L20: 6683.754167 | M20: 6683.754167 | N20: 6683.754167 | O20: 6683.754167
A21: 11 | B21: Instalações elétricas e bóia elétrica. | C21: ='Orçamento Sintético - GO - T'!K44 -> 731632.44 | D21: =$C$21/12 -> 60969.37 | E21: =$C$21/12 -> 60969.37 | F21: 60969.37 | G21: 60969.37 | H21: 60969.37 | I21: 60969.37 | J21: 60969.37 | K21: 60969.37 | L21: 60969.37 | M21: 60969.37 | N21: 60969.37 | O21: 60969.37
A22: 12 | B22: Urbanização. | C22: ='Orçamento Sintético - GO - T'!K50 -> 157552.29 | D22: =$C$22/12 -> 13129.3575 | E22: =$C$22/12 -> 13129.3575 | F22: 13129.3575 | G22: 13129.3575 | H22: 13129.3575 | I22: 13129.3575 | J22: 13129.3575 | K22: 13129.3575 | L22: 13129.3575 | M22: 13129.3575 | N22: 13129.3575 | O22: 13129.3575
A23: 13 | B23: Outros serviços e insumos excepcionais. | C23: ='Orçamento Sintético - GO - T'!K53 -> 399266.21 | D23: =$C$23/12 -> 33272.18417 | E23: =$C$23/12 -> 33272.18417 | F23: 33272.18417 | G23: 33272.18417 | H23: 33272.18417 | I23: 33272.18417 | J23: 33272.18417 | K23: 33272.18417 | L23: 33272.18417 | M23: 33272.18417 | N23: 33272.18417 | O23: 33272.18417
A24: TOTAL | C24: =SUM(C11:C23) -> 7857584.42 | D24: =SUM(D11:D23) -> 654798.7017 | E24: =SUM(E11:E23) -> 654798.7017 | F24: 654798.7017 | G24: 654798.7017 | H24: 654798.7017 | I24: 654798.7017 | J24: 654798.7017 | K24: 654798.7017 | L24: 654798.7017 | M24: 654798.7017 | N24: 654798.7017 | O24: 654798.7017
A25: PERCENTUAL | D25: =D24/$C$24 -> 0.08333333333 | E25: =E24/$C$24 -> 0.08333333333 | F25: =F24/$C$24 -> 0.08333333333 | G25: 0.08333333333 | H25: 0.08333333333 | I25: 0.08333333333 | J25: 0.08333333333 | K25: 0.08333333333 | L25: 0.08333333333 | M25: 0.08333333333 | N25: 0.08333333333 | O25: 0.08333333333
A26: CUSTO ACUMULADO | D26: =D24 -> 654798.7017 | E26: =E24+D26 -> 1309597.403 | F26: 1964396.105 | G26: 2619194.807 | H26: 3273993.508 | I26: 3928792.21 | J26: 4583590.912 | K26: 5238389.613 | L26: 5893188.315 | M26: 6547987.017 | N26: 7202785.718 | O26: 7857584.42
A27: PERCENTUAL ACUMULADO | D27: =D25 -> 0.08333333333 | E27: =E25+D27 -> 0.1666666667 | F27: 0.25 | G27: 0.3333333333 | H27: 0.4166666667 | I27: 0.5 | J27: 0.5833333333 | K27: 0.6666666667 | L27: 0.75 | M27: 0.8333333333 | N27: 0.9166666667 | O27: 1

Sheet CAPA TO
B7: EXECUÇÃO DE SERVIÇOS DE PERFURAÇÃO E INSTALAÇÃO DE POÇOS TUBULARES NO TOCANTINS

Sheet Planilha Resumo TO
B2: OBJETO: EXECUÇÃO DE SERVIÇOS DE PERFURAÇÃO E INSTALAÇÃO DE POÇOS TUBULARES EM MUNICÍPIOS LOCALIZADOS NO ESTADO DO TOCANTINS, NA ÁREA DE ATUAÇÃO DA CODEVASF.
B3: PLANILHA ORÇAMENTÁRIA ESTIMATIVA GERAL
B4: DATABASE DO ORÇAMENTO: SETEMBRO/2025 - NÃO DESONERADO
B5: PLANILHA RESUMIDA - Grupo 2 TOCANTINS
B6: ITEM | C6: DISCRIMINAÇÃO | D6: UND | E6: Quantidade de Poços | F6: PREÇO UNITÁRIO | G6: TOTAL
B7: 3 | C7: Perfuração e instalação de poço tubular parcialmente revestido, instalado com sistema fotovoltaico, bomba submersa, reservatório e bebedouro para animais. | D7: un | E7: ='Orçamento Sintético - TO - P'!H2 -> 69 | F7: ='Orçamento Sintético - TO - P'!L2 -> 118890.3935 | G7: =F7*E7 -> 8203437.15
B8: 4 | C8: Perfuração e instalação de poços poço tubular totalmente revestido, instalado com sistema fotovoltaico, bomba submersa, reservatório e bebedouro para animais. | D8: un | E8: ='Orçamento Sintético - TO - T'!H2 -> 81 | F8: ='Orçamento Sintético - TO - T'!L2 -> 187195.154 | G8: =F8*E8 -> 15162807.47
B9: TOTAL GERAL ESTIMADO GRUPO | D9: un | E9: =E7+E8 -> 150 | G9: =SUM(G8+G7) -> 23366244.62
B13: Base de Preços Consultados | E13: SBC 09/2025 SINAPI 08/2025 SICRO 04/2025 ORSE 06/2025 CPOS/CDHU 06/2025 EMBASA 06/2025 SEINFRA 028 SIURB 01/2025
B15: Encargos Sociais | E15: Não Desonerado: Horista: 111,11% Mensalista: 67,32%

Sheet Orçamento Sintético - TO - P
C1: OBJETO: EXECUÇÃO DE SERVIÇOS DE PERFURAÇÃO E INSTALAÇÃO DE POÇOS TUBULARES EM MUNICÍPIOS LOCALIZADOS NO ESTADO DO TOCANTINS, NA ÁREA DE ATUAÇÃO DA CODEVASF. | H1: Quantidade de Poços | I1: BDI SERVIÇO | J1: BDI INSUMO | K1: Total | L1: Preço Unitário Por Poço | M1: Desconto
H2: 69 | I2: 0.2378 | J2: 0.1469 | K2: =K4+K9+K13+K18+K24+K27+K29+K31+K33+K41+K43+K49+K52 -> 8203437.15 | L2: =K2/H2 -> 118890.3935 | M2: 0
A3: Item | B3: Código | C3: Banco | D3: TIPO | E3: Descrição. | F3: un. | G3: Mem. calc. | H3: Quanti. | I3: Valor Unit | J3: Valor Unit com BDI | K3: Total | L3: Peso (%)
A4: 1 | E4: Serviços preliminares. | K4: =SUM(K5:K8) -> 101610.31 | L4: =K4/$K$2 -> 0.01238630932
A5: 1.1 | B5: COMPOSIÇÃO - 1 | C5: Próprio | D5: Serviço | E5: Administração local da obra - poço parcialmente revestido. | F5: un. | G5: 1 | H5: =G5*$H$2 -> 69 | I5: =VLOOKUP(B5,'Orçamento Analítico - TO - P'!B:J,8,0)*(1-$M$2) -> 203.0895 | J5: =ROUND(I5*(1+$I$2),2) -> 251.38 | K5: =ROUND(J5*H5,2) -> 17345.22 | L5: =K5/$K$2 -> 0.002114384457
A6: 1.2 | B6: COMPOSIÇÃO - 2 | C6: Próprio | D6: Serviço | E6: Serviço de locação geológica de campo com relatório hidro geológico e perfil construtivo e geológico esperado. relatório de viabilidade de implantação das estruturas e vistorias preliminares. | F6: un. | G6: 1 | H6: =G6*$H$2 -> 69 | I6: =VLOOKUP(B6,'Orçamento Analítico - TO - P'!B:J,8,0)*(1-$M$2) -> 606.95 | J6: =ROUND(I6*(1+$I$2),2) -> 751.28 | K6: =ROUND(J6*H6,2) -> 51838.32 | L6: 0.006319097599
A7: 1.3 | B7: 103689 | C7: SINAPI | D7: Serviço | E7: Fornecimento e instalação de placa de obra com chapa galvanizada e estrutura de madeira. . | F7: m² | G7: 0.72 | H7: =G7*$H$2 -> 49.68 | I7: =VLOOKUP(B7,'Orçamento Analítico - TO - P'!B:J,8,0)*(1-$M$2) -> 462.97 | J7: 573.06 | K7: 28469.62 | L7: 0.003470450188
A8: 1.4 | B8: Composição - A | C8: Próprio | D8: Insumo | E8: Emissão de Outorga e Licenciamento (taxas) | F8: und | G8: 1 | H8: 69 | I8: =VLOOKUP(B8,'Orçamento Analítico - TO - P'!B:J,8,0)*(1-$M$2) -> 50 | J8: =ROUND(I8*(1+$J$2),2) -> 57.35 | K8: =ROUND(J8*H8,2) -> 3957.15 | L8: =K8/$K$2 -> 0.0004823770729
A9: 2 | E9: Mobilizaçâo e desmobilizaçâo equipes perfuraçâo e instalação. | K9: =SUM(K10:K12) -> 182574 | L9: =K9/$K$2 -> 0.02225579311
A10: 2.1 | B10: COMPOSIÇÃO - 3 | C10: Próprio | D10: Serviço | E10: Transporte de comboio perfuração. | F10: km | G10: 150 | H10: =G10*$H$2 -> 10350 | I10: =VLOOKUP(B10,'Orçamento Analítico - TO - P'!B:J,8,0)*(1-$M$2) -> 5.1522716 | J10: =ROUND(I10*(1+$I$2),2) -> 6.38 | K10: 66033 | L10: =K10/$K$2 -> 0.008049430841
A11: 2.2 | B11: COMPOSIÇÃO - 4 | C11: Próprio | D11: Serviço | E11: Transporte de comboio instalação. | F11: km | G11: 150 | H11: 10350 | I11: =VLOOKUP(B11,'Orçamento Analítico - TO - P'!B:J,8,0)*(1-$M$2) -> 6.304144 | J11: =ROUND(I11*(1+$I$2),2) -> 7.8 | K11: 80730 | L11: 0.009840996953
A12: 2.3 | B12: COMPOSIÇÃO - 5 | C12: Próprio | D12: Serviço | E12: Transporte de equipe teste de vazão. | F12: km | G12: 150 | H12: 10350 | I12: =VLOOKUP(B12,'Orçamento Analítico - TO - P'!B:J,8,0)*(1-$M$2) -> 2.791788 | J12: =ROUND(I12*(1+$I$2),2) -> 3.46 | K12: 35811 | L12: 0.004365365315
A13: 3 | E13: Perfuração e completação de poço tubular. | K13: =SUM(K14:K17) -> 1947948.62 | L13: =K13/$K$2 -> 0.2374551769
A14: 3.1 | B14: 5048 | C14: ORSE | D14: Serviço | E14: Perfuraçao em rocha cristalina - rocha cristalina alterada / compacta dn 6" (poço até 120m). | F14: m | G14: 90 | H14: =G14*$H$2 -> 6210 | I14: =VLOOKUP(B14,'Orçamento Analítico - TO - P'!B:J,8,0)*(1-$M$2) -> 125.23 | J14: =ROUND(I14*(1+$I$2),2) -> 155.01 | K14: =ROUND(J14*H14,2) -> 962612.1 | L14: =K14/$K$2 -> 0.1173425337
A15: 3.2 | B15: 5057 | C15: ORSE | D15: Serviço | E15: Perfuração rocha sedimentar sedimento / Camadas inconsolidadas DN 12.1/2" - Poço até 150 m | F15: m | G15: 30 | H15: 2070 | I15: =VLOOKUP(B15,'Orçamento Analítico - TO - P'!B:J,8,0)*(1-$M$2) -> 247.66 | J15: =ROUND(I15*(1+$I$2),2) -> 306.55 | K15: 634558.5 | L15: 0.07735275939
A16: 3.3 | B16: COMPOSIÇÃO - 6 | C16: Próprio | D16: Serviço | E16: Serviço de lançamento cimentação anelar, incluso materiais. | F16: m³ | G16: 1.74 | H16: 120.06 | I16: =VLOOKUP(B16,'Orçamento Analítico - TO - P'!B:J,8,0)*(1-$M$2) -> 521.34 | J16: =ROUND(I16*(1+$I$2),2) -> 645.31 | K16: 77475.92 | L16: =K16/$K$2 -> 0.0094443242
A17: 3.4 | B17: 9854 | C17: SINAPI | D17: Insumo | E17: Tubo pvc de revestimento geomecanico nervurado standard, dn = 154 mm, comprimento = 2 m. | F17: m | G17: 30 | H17: 2070 | I17: =VLOOKUP(B17,'Orçamento Analítico - TO - P'!B:J,8,0)*(1-$M$2) -> 115.12 | J17: =ROUND(I17*(1+$J$2),2) -> 132.03 | K17: =ROUND(J17*H17,2) -> 273302.1 | L17: 0.03331555969
A18: 4 | E18: Pós perfuração. | K18: =SUM(K19:K23) -> 820613.55 | L18: =K18/$K$2 -> 0.1000328929
A19: 4.1 | B19: 6305 | C19: ORSE | D19: Serviço | E19: Desenvolvimento com compressor 250psi / 750cfm. | F19: h | G19: 2 | H19: 138 | I19: =VLOOKUP(B19,'Orçamento Analítico - TO - P'!B:J,8,0)*(1-$M$2) -> 411.16 | J19: =ROUND(I19*(1+$I$2),2) -> 508.93 | K19: =ROUND(J19*H19,2) -> 70232.34 | L19: 0.008561330905
A20: 4.2 | B20: COMPOSIÇÃO - 7 | C20: Próprio | D20: Serviço | E20: Inspeção ótica em poço tubular câmera com rotação de 360º, visada lateral, com fonte própria de luz, entregue vídeo em cores e marcação de profundidades. | F20: m | G20: 120 | H20: 8280 | I20: =VLOOKUP(B20,'Orçamento Analítico - TO - P'!B:J,8,0)*(1-$M$2) -> 9.64046 | J20: =ROUND(I20*(1+$I$2),2) -> 11.93 | K20: =ROUND(J20*H20,2) -> 98780.4 | L20: =K20/$K$2 -> 0.01204134294
A21: 4.3 | B21: COMPOSIÇÃO - 8 | C21: Próprio | D21: Serviço | E21: Serviço de coleta e análise físico-química e bacteriológica. | F21: un. | G21: 1 | H21: 69 | I21: =VLOOKUP(B21,'Orçamento Analítico - TO - P'!B:J,8,0)*(1-$M$2) -> 621.19 | J21: =ROUND(I21*(1+$I$2),2) -> 768.91 | K21: 53054.79 | L21: 0.006467385442
A22: 4.4 | B22: 24.80.22 | C22: EMBASA | D22: Serviço | E22: (REVISADA) DESENVOLVIMENTO OU TESTE COM BOMBA SUBMERSA - UEB1 NO SEDIMENTO COM VAZAO < 60M3 (Ensaio de bombeamento poço tubular incluso materiais e grupo gerador) | F22: h | G22: 24 | H22: 1656 | I22: =VLOOKUP(B22,'Orçamento Analítico - TO - P'!B:J,8,0)*(1-$M$2) -> 263.27 | J22: =ROUND(I22*(1+$I$2),2) -> 325.88 | K22: 539657.28 | L22: 0.06578428897
A23: 4.5 | B23: COMPOSIÇÃO - 9 | C23: Próprio | D23: Serviço | E23: Serviço de instalação de laje sanitária com dimensões (1,5x1,5x0,3) metros , incluso material. | F23: un. | G23: 1 | H23: 69 | I23: =VLOOKUP(B23,'Orçamento Analítico - TO - P'!B:J,8,0)*(1-$M$2) -> 689.49675 | J23: =ROUND(I23*(1+$I$2),2) -> 853.46 | K23: 58888.74 | L23: 0.007178544666
A24: 5 | E24: Reservação. | K24: =SUM(K25:K26) -> 1499479.57 | L24: =K24/$K$2 -> 0.1827867445
A25: 5.1 | B25: COMPOSIÇÃO - 10 | C25: Próprio | D25: Serviço | E25: Fornecimento e instalação de reservatório e base elevada 10 m³. | F25: un. | G25: 0.8 | H25: 55.2 | I25: =VLOOKUP(B25,'Orçamento Analítico - TO - P'!B:J,8,0)*(1-$M$2) -> 19779.75849 | J25: =ROUND(I25*(1+$I$2),2) -> 24483.39 | K25: 1351483.13 | L25: =K25/$K$2 -> 0.1647459602
A26: 5.2 | B26: COMPOSIÇÃO - 11 | C26: Próprio | D26: Serviço | E26: Fornecimento e execução de reservatório apoiado de 5 m³. | F26: un. | G26: 0.2 | H26: 13.8 | I26: =VLOOKUP(B26,'Orçamento Analítico - TO - P'!B:J,8,0)*(1-$M$2) -> 8664.06325 | J26: =ROUND(I26*(1+$I$2),2) -> 10724.38 | K26: 147996.44 | L26: 0.01804078428
A27: 6 | E27: Bebedouro. | K27: =SUM(K28) -> 154069.41 | L27: =K27/$K$2 -> 0.01878108007
A28: 6.1 | B28: COMPOSIÇÃO - 12 | C28: Próprio | D28: Serviço | E28: Serviço de execução do bebedouro em concreto armado, incluso materiais. | F28: un. | G28: 1 | H28: 69 | I28: =VLOOKUP(B28,'Orçamento Analítico - TO - P'!B:J,8,0)*(1-$M$2) -> 1803.9197 | J28: =ROUND(I28*(1+$I$2),2) -> 2232.89 | K28: 154069.41 | L28: =K28/$K$2 -> 0.01878108007
A29: 7 | E29: Chafariz. | K29: =SUM(K30) -> 81284.07 | L29: =K29/$K$2 -> 0.009908538155
A30: 7.1 | B30: COMPOSIÇÃO - 13 | C30: Próprio | D30: Serviço | E30: Fornecimento de material e instalação do chafariz. | F30: un. | G30: 1 | H30: 69 | I30: =VLOOKUP(B30,'Orçamento Analítico - TO - P'!B:J,8,0)*(1-$M$2) -> 951.7097117 | J30: =ROUND(I30*(1+$I$2),2) -> 1178.03 | K30: 81284.07 | L30: =K30/$K$2 -> 0.009908538155
A31: 8 | E31: Cavalete. | K31: =SUM(K32) -> 159950.97 | L31: =K31/$K$2 -> 0.01949804296
A32: 8.1 | B32: COMPOSIÇÃO - 14 | C32: Próprio | D32: Serviço | E32: Fornecimento de conexões e instalação do cavalete com hidrômetro e clorador de pastilhas. | F32: un. | G32: 1 | H32: 69 | I32: =VLOOKUP(B32,'Orçamento Analítico - TO - P'!B:J,8,0)*(1-$M$2) -> 1872.78 | J32: =ROUND(I32*(1+$I$2),2) -> 2318.13 | K32: 159950.97 | L32: =K32/$K$2 -> 0.01949804296
A33: 9 | E33: Instalações hidráulicas. | K33: =SUM(K34:K40) -> 1121992.29 | L33: =K33/$K$2 -> 0.1367709985
A34: 9.1 | B34: COMPOSIÇÃO - 15 | C34: Próprio | D34: Serviço | E34: Instalação da rede adutora poço-reservatório-bebedouro em pn80 e dn50mm. | F34: m | G34: 400 | H34: 27600 | I34: =VLOOKUP(B34,'Orçamento Analítico - TO - P'!B:J,8,0)*(1-$M$2) -> 6.207 | J34: =ROUND(I34*(1+$I$2),2) -> 7.68 | K34: 211968 | L34: =K34/$K$2 -> 0.02583892533
A35: 9.2 | B35: 9875 | C35: SINAPI | D35: Insumo | E35: TUBO PVC, SOLDAVEL, DE 50 MM, AGUA FRIA (NBR-5648) | F35: m | G35: 400 | H35: =G35*H2 -> 27600 | I35: =VLOOKUP(B35,'Orçamento Analítico - TO - P'!B:J,8,0)*(1-$M$2) -> 15.46 | J35: =ROUND(I35*(1+$J$2),2) -> 17.73 | K35: =J35*H35 -> 489348 | L35: 0.05965158153
A36: 9.3 | B36: COMPOSIÇÃO - 16 | C36: Próprio | D36: Serviço | E36: Montagem hidráulica do equipamento de bombeamento. | F36: un. | G36: 1 | H36: 69 | I36: =VLOOKUP(B36,'Orçamento Analítico - TO - P'!B:J,8,0)*(1-$M$2) -> 164.37 | J36: =ROUND(I36*(1+$I$2),2) -> 203.46 | K36: 14038.74 | L36: 0.001711324137
A37: 9.4 | B37: 38200 | C37: SINAPI | D37: Insumo | E37: Corda de poliamida 12 mm tipo bombeiro, para trabalho em altura. | F37: 100m | G37: 0.93 | H37: =G37*$H$2 -> 64.17 | I37: =VLOOKUP(B37,'Orçamento Analítico - TO - P'!B:J,8,0)*(1-$M$2) -> 477.34 | J37: =ROUND(I37*(1+$J$2),2) -> 547.46 | K37: 35130.51 | L37: 0.0042824135
A38: 9.5 | B38: 9860 | C38: SINAPI | D38: Insumo | E38: Tubo pvc, roscavel, 2", para agua fria predial. | F38: m | G38: 90 | H38: 6210 | I38: =VLOOKUP(B38,'Orçamento Analítico - TO - P'!B:J,8,0)*(1-$M$2) -> 44.92 | J38: 51.52 | K38: 319939.2 | L38: 0.03900062793
A39: 9.6 | B39: 3912 | C39: SINAPI | D39: Insumo | E39: Luva de ferro galvanizado, com rosca bsp, de 2". | F39: un. | G39: 16 | H39: 1104 | I39: =VLOOKUP(B39,'Orçamento Analítico - TO - P'!B:J,8,0)*(1-$M$2) -> 34.02 | J39: 39.02 | K39: 43078.08 | L39: 0.005251223263
A40: 9.7 | B40: 5128 | C40: ORSE | D40: Insumo | E40: Tampa de poço galvanizada em 6" un. | F40: un. | G40: 1 | H40: 69 | I40: =VLOOKUP(B40,'Orçamento Analítico - TO - P'!B:J,8,0)*(1-$M$2) -> 107.28 | J40: 123.04 | K40: 8489.76 | L40: 0.001034902791
A41: 10 | E41: Estrutura de fixação para módulos fotovoltáicos. | K41: =SUM(K42) -> 91174.42 | L41: =K41/$K$2 -> 0.01111417304
A42: 10.1 | B42: COMPOSIÇÃO - 17 | C42: Próprio | D42: Serviço | E42: Serviço de fixação de estruturas para os módulos fotovoltaicos e suportes de concreto, incluso materiais. | F42: m² | G42: 10.12 | H42: =G42*$H$2 -> 698.28 | I42: =VLOOKUP(B42,'Orçamento Analítico - TO - P'!B:J,8,0)*(1-$M$2) -> 105.488704 | J42: =ROUND(I42*(1+$I$2),2) -> 130.57 | K42: 91174.42 | L42: =K42/$K$2 -> 0.01111417304
A43: 11 | E43: Instalações elétricas e bóia elétrica. | K43: =SUM(K44:K48) -> 1024638.27 | L43: =K43/$K$2 -> 0.1249035314
A44: 11.1 | B44: COMPOSIÇÃO - 18 | C44: Próprio | D44: Serviço | E44: Montagem e instalação elétrica do kit de bombeamento e sistema fotovoltaico inclusive sistema de aterramento. | F44: un. | G44: 1 | H44: =G44*$H$2 -> 69 | I44: =VLOOKUP(B44,'Orçamento Analítico - TO - P'!B:J,8,0)*(1-$M$2) -> 1055.3058 | J44: =ROUND(I44*(1+$I$2),2) -> 1306.26 | K44: =ROUND(J44*H44,2) -> 90131.94 | L44: =K44/$K$2 -> 0.0109870946
A45: 11.2 | B45: 34622 | C45: SINAPI | D45: Insumo | E45: Fornecimento de cabo flexivel pvc 750 v, 3 condutores de 6,0 mm2. | F45: m | G45: 105 | H45: =G45*$H$2 -> 7245 | I45: =VLOOKUP(B45,'Orçamento Analítico - TO - P'!B:J,8,0)*(1-$M$2) -> 24.47 | J45: =ROUND(I45*(1+$J$2),2) -> 28.06 | K45: =ROUND(J45*H45,2) -> 203294.7 | L45: 0.02478164899
A46: 11.3 | B46: COMPOSIÇÃO - 19 | C46: Próprio | D46: Serviço | E46: Fornecimento e instalação de automático de bóia superior e inferior. | F46: un. | G46: 1 | H46: 69 | I46: =VLOOKUP(B46,'Orçamento Analítico - TO - P'!B:J,8,0)*(1-$M$2) -> 61.88 | J46: =ROUND(I46*(1+$I$2),2) -> 76.6 | K46: =ROUND(J46*H46,2) -> 5285.4 | L46: =K46/$K$2 -> 0.0006442909116
A47: 11.4 | B47: 39257 | C47: SINAPI | D47: Insumo | E47: Cabo multipolar de cobre, flexivel, classe 4 ou 5, isolacao em hepr, cobertura em pvc-st2, antichama bwf-b, 0,6/1 kv, 3 condutores de 1,5 mm2. | F47: m | G47: 200 | H47: =G47*$H$2 -> 13800 | I47: =VLOOKUP(B47,'Orçamento Analítico - TO - P'!B:J,8,0)*(1-$M$2) -> 6.65 | J47: =ROUND(I47*(1+$J$2),2) -> 7.63 | K47: =ROUND(J47*H47,2) -> 105294 | L47: 0.01283535158
A48: 11.5 | B48: COTAÇÃO-001 | C48: Próprio | D48: Insumo | E48: Fornecimento de kit de bombeamento fotovoltaico, incluindo uma bomba cc de 1500w com controladora de carga externa, caixa de proteção metálica, módulos fotovoltaicos compatíveis com a geração de 2200wp além de componentes elétricos necessários para interligação dos painéis, como cabos, conectores mc4 e presilhas de fixação. | F48: un. | G48: 1 | H48: 69 | I48: =VLOOKUP(B48,'Orçamento Analítico - TO - P'!B:J,8,0)*(1-$M$2) -> 7842.59 | J48: =ROUND(I48*(1+$J$2),2) -> 8994.67 | K48: =ROUND(J48*H48,2) -> 620632.23 | L48: =K48/$K$2 -> 0.07565514536
A49: 12 | E49: Urbanização. | K49: =SUM(K50:K51) -> 289921.1 | L49: =K49/$K$2 -> 0.03534141783
A50: 12.1 | B50: COMPOSIÇÃO - 20 | C50: Próprio | D50: Serviço | E50: Cerca com mourões de concreto de 15x15cm, espaçados de 3m e cravados a 0,5m, escoras de 10x10cm nos cantos, e 9 fios de arame de aço ovalado 15x17. | F50: m | G50: 28 | H50: =G50*$H$2 -> 1932 | I50: =VLOOKUP(B50,'Orçamento Analítico - TO - P'!B:J,8,0)*(1-$M$2) -> 82.11208 | J50: =ROUND(I50*(1+$I$2),2) -> 101.64 | K50: =ROUND(J50*H50,2) -> 196368.48 | L50: =K50/$K$2 -> 0.02393734192
A51: 12.2 | B51: COMPOSIÇÃO - 21 | C51: Próprio | D51: Serviço | E51: Serviço de instalação de portão de ferro com suporte e batedor conforme projeto, incluso material. | F51: m² | G51: 1.5 | H51: 103.5 | I51: =VLOOKUP(B51,'Orçamento Analítico - TO - P'!B:J,8,0)*(1-$M$2) -> 730.23736 | J51: =ROUND(I51*(1+$I$2),2) -> 903.89 | K51: 93552.62 | L51: 0.01140407591
A52: 13 | E52: Outros serviços e insumos excepcionais. | K52: =SUM(K53:K60) -> 728180.57 | L52: =K52/$K$2 -> 0.08876530126
A53: 13.1 | B53: COMPOSIÇÃO - 22 | C53: Próprio | D53: Serviço | E53: Fornecimento e instalação do pré filtro para revestimento interno. | F53: m³ | G53: 1.212 | H53: =G53*$H$2 -> 83.628 | I53: =VLOOKUP(B53,'Orçamento Analítico - TO - P'!B:J,8,0)*(1-$M$2) -> 1653.582 | J53: =ROUND(I53*(1+$I$2),2) -> 2046.8 | K53: =ROUND(J53*H53,2) -> 171169.79 | L53: =K53/$K$2 -> 0.0208656185
A54: 13.2 | B54: COMPOSIÇÃO - 23 | C54: Próprio | D54: Serviço | E54: Execução de tamponamento conforme especificação. | F54: m³ | G54: 0.24 | H54: 16.56 | I54: =VLOOKUP(B54,'Orçamento Analítico - TO - P'!B:J,8,0)*(1-$M$2) -> 717.24 | J54: =ROUND(I54*(1+$I$2),2) -> 887.8 | K54: 14701.97 | L54: 0.001792171956
A55: 13.3 | B55: COMPOSIÇÃO - 24 | C55: Próprio | D55: Serviço | E55: Fornecimento e instalação do filtro para revestimento interno ø 4 1/2". | F55: m | G55: 0.6 | H55: 41.4 | I55: =VLOOKUP(B55,'Orçamento Analítico - TO - P'!B:J,8,0)*(1-$M$2) -> 123.625 | J55: =ROUND(I55*(1+$I$2),2) -> 153.02 | K55: 6335.03 | L55: 0.0007722409381
A56: 13.4 | B56: COMPOSIÇÃO - 25 | C56: Próprio | D56: Serviço | E56: Fornecimento e instalação do revestimento interno ø 4 1/2". | F56: m | G56: 34.8 | H56: 2401.2 | I56: =VLOOKUP(B56,'Orçamento Analítico - TO - P'!B:J,8,0)*(1-$M$2) -> 114.075 | J56: =ROUND(I56*(1+$I$2),2) -> 141.2 | K56: 339049.44 | L56: 0.04133016854
A57: 13.5 | B57: M3929 | C57: SICRO3 | D57: Insumo | E57: Tubo em aço-carbono - e = 3,00 mm e d = 150 mm (6"). | F57: m | G57: 9 | H57: =G57*$H$2 -> 621 | I57: =VLOOKUP(B57,'Orçamento Analítico - TO - P'!B:J,8,0)*(1-$M$2) -> 148.57 | J57: =ROUND(I57*(1+$J$2),2) -> 170.39 | K57: 105812.19 | L57: 0.01289851901
A58: 13.6 | B58: 5108 | C58: SINAPI | D58: Insumo | E58: Revestimento tubo liso aço sch-40 em 8" | F58: m | G58: 6 | H58: 414 | I58: =VLOOKUP(B58,'Orçamento Analítico - TO - P'!B:J,8,0)*(1-$M$2) -> 164.55 | J58: 188.72 | K58: 78130.08 | L58: 0.009524066385
A59: 13.7 | B59: M039706073 | C59: EMBASA | D59: Insumo | E59: Filtro nold em aço galvanizado dn 6". | F59: m | G59: 0.04 | H59: 2.76 | I59: =VLOOKUP(B59,'Orçamento Analítico - TO - P'!B:J,8,0)*(1-$M$2) -> 835.86 | J59: =ROUND(I59*(1+$J$2),2) -> 958.65 | K59: 2645.87 | L59: 0.0003225318792
A60: 13.8 | B60: COMPOSIÇÃO - 26 | C60: Próprio | D60: Serviço | E60: Limpeza manual , remoção de cerca, capina e instalação dos equipamentos (área do poço, painéis solares, bebedouro e reservatório). | F60: m² | G60: 70 | H60: 4830 | I60: =VLOOKUP(B60,'Orçamento Analítico - TO - P'!B:J,8,0)*(1-$M$2) -> 1.7296 | J60: =ROUND(I60*(1+$I$2),2) -> 2.14 | K60: =ROUND(J60*H60,2) -> 10336.2 | L60: =K60/$K$2 -> 0.001259984054

Sheet Orçamento Analítico - TO - P
C1: OBJETO: EXECUÇÃO DE SERVIÇOS DE PERFURAÇÃO E INSTALAÇÃO DE POÇOS TUBULARES EM MUNICÍPIOS LOCALIZADOS NO ESTADO DO TOCANTINS, NA ÁREA DE ATUAÇÃO DA CODEVASF.
A4: PLANILHA ANALÍTICA - POÇO PARCIALMENTE REVESTIDO - TOCANTINS
A6: 1 | D6: Serviços preliminares.
A7: 1 | D7: SERVIÇOS PRELIMINARES
A8: 1.1 | B8: Código | C8: Banco | D8: Descrição | E8: Tipo | G8: Und | H8: Quant. | I8: Valor Unit | J8: Total
A9: Composição | B9: COMPOSIÇÃO - 1 | C9: Próprio | D9: Administração Local da Obra - Poço Parcialmente Revestido | E9: CANT - CANTEIRO DE OBRAS | G9: un | H9: 1 | I9: =SUM(J10:J11) -> 203.0895 | J9: =I9*H9 -> 203.0895
A10: Composição Auxiliar | B10: 12710 | C10: SBC | D10: DESPESAS GERAIS DE MANUTENCAO CANTEIRO DE OBRAS | E10: INSTALACOES PROVISORIAS | G10: MES | H10: 0.03 | I10: =IF(C10="SINAPI", IF( IF(A10="Insumo", VLOOKUP(B10,'SINAPI INSUMOS'!B:J,6,0), VLOOKUP(B10,'SINAPI COMP'!B:M,6,0))=0,VLOOKUP(B10,'OUTRAS BASES'!C:D,2,0),IF(A10="Insumo", VLOOKUP(B10,'SINAPI INSUMOS'!B:J,6,0),VLOOKUP(B10,'SINAPI COMP'!B:M,6,0))), VLOOKUP(B10,'OUTRAS BASES'!C:D,2,0)) -> 910.61 | J10: =I10*H10 -> 27.3183
A11: Composição Auxiliar | B11: 100321 | C11: SINAPI | D11: TÉCNICO EM SEGURANÇA DO TRABALHO COM ENCARGOS COMPLEMENTARES | E11: Livro SINAPI: Cálculos e Parâmetros | G11: MES | H11: 0.03 | I11: =IF(C11="SINAPI", IF( IF(A11="Insumo", VLOOKUP(B11,'SINAPI INSUMOS'!B:J,6,0), VLOOKUP(B11,'SINAPI COMP'!B:M,6,0))=0,VLOOKUP(B11,'OUTRAS BASES'!C:D,2,0),IF(A11="Insumo", VLOOKUP(B11,'SINAPI INSUMOS'!B:J,6,0),VLOOKUP(B11,'SINAPI COMP'!B:M,6,0))), VLOOKUP(B11,'OUTRAS BASES'!C:D,2,0)) -> 5859.04 | J11: 175.7712
A16: 1.2 | B16: Código | C16: Banco | D16: Descrição | E16: Tipo | G16: Und | H16: Quant. | I16: Valor Unit | J16: Total
A17: Composição | B17: COMPOSIÇÃO - 2 | C17: Próprio | D17: Serviço de locação Geológica de campo com relatório hidro geológico e perfil construtivo e geológico esperado. Relatório de Viabilidade de implantação das estruturas e vistorias preliminares | E17: SERT - SERVIÇOS TÉCNICOS | G17: un | H17: 1 | I17: =SUM(J18:J20) -> 606.95 | J17: =I17*H17 -> 606.95
A18: Composição Auxiliar | B18: 30.01.45 | C18: EMBASA | D18: GEOLOGO SENIOR | E18: 3001 | G18: hora | H18: 5 | I18: =IF(C18="SINAPI", IF( IF(A18="Insumo", VLOOKUP(B18,'SINAPI INSUMOS'!B:J,6,0), VLOOKUP(B18,'SINAPI COMP'!B:M,6,0))=0,VLOOKUP(B18,'OUTRAS BASES'!C:D,2,0),IF(A18="Insumo", VLOOKUP(B18,'SINAPI INSUMOS'!B:J,6,0),VLOOKUP(B18,'SINAPI COMP'!B:M,6,0))), VLOOKUP(B18,'OUTRAS BASES'!C:D,2,0)) -> 99.88 | J18: 499.4
A19: Insumo | B19: 5896 | C19: ORSE | D19: Veículo tipo sedan ou pick-up capacidade 0,6 ton h | E19: Equipamento | G19: h | H19: 5 | I19: =IF(C19="SINAPI", IF( IF(A19="Insumo", VLOOKUP(B19,'SINAPI INSUMOS'!B:J,6,0), VLOOKUP(B19,'SINAPI COMP'!B:M,6,0))=0,VLOOKUP(B19,'OUTRAS BASES'!C:D,2,0),IF(A19="Insumo", VLOOKUP(B19,'SINAPI INSUMOS'!B:J,6,0),VLOOKUP(B19,'SINAPI COMP'!B:M,6,0))), VLOOKUP(B19,'OUTRAS BASES'!C:D,2,0)) -> 8.33 | J19: 41.65
A20: Insumo | B20: 4222 | C20: SINAPI | D20: GASOLINA COMUM | E20: Material | G20: L | H20: 10 | I20: =IF(C20="SINAPI", IF( IF(A20="Insumo", VLOOKUP(B20,'SINAPI INSUMOS'!B:J,6,0), VLOOKUP(B20,'SINAPI COMP'!B:M,6,0))=0,VLOOKUP(B20,'OUTRAS BASES'!C:D,2,0),IF(A20="Insumo", VLOOKUP(B20,'SINAPI INSUMOS'!B:J,6,0),VLOOKUP(B20,'SINAPI COMP'!B:M,6,0))), VLOOKUP(B20,'OUTRAS BASES'!C:D,2,0)) -> 6.59 | J20: 65.9
A25: 1.3 | B25: Código | C25: Banco | D25: Descrição | E25: Tipo | G25: Und | H25: Quant. | I25: Valor Unit | J25: Total
A26: Composição | B26: 103689 | C26: SINAPI | D26: FORNECIMENTO E INSTALAÇÃO DE PLACA DE OBRA COM CHAPA GALVANIZADA E ESTRUTURA DE MADEIRA. AF_03/2022_PS | E26: Sinalização Vertical Viária | G26: m² | H26: 1 | I26: =IF(C26="SINAPI", IF( IF(A26="Insumo", VLOOKUP(B26,'SINAPI INSUMOS'!B:J,6,0), VLOOKUP(B26,'SINAPI COMP'!B:M,6,0))=0,VLOOKUP(B26,'OUTRAS BASES'!C:D,2,0),IF(A26="Insumo", VLOOKUP(B26,'SINAPI INSUMOS'!B:J,6,0),VLOOKUP(B26,'SINAPI COMP'!B:M,6,0))), VLOOKUP(B26,'OUTRAS BASES'!C:D,2,0)) -> 462.97 | J26: =I26*H26 -> 462.97
A27: Composição Auxiliar | B27: 102234 | C27: SINAPI | D27: PINTURA IMUNIZANTE PARA MADEIRA, 2 DEMÃOS. AF_01/2021 | E27: Pintura em Madeira | G27: m² | H27: 0.5 | I27: =IF(C27="SINAPI", IF( IF(A27="Insumo", VLOOKUP(B27,'SINAPI INSUMOS'!B:J,6,0), VLOOKUP(B27,'SINAPI COMP'!B:M,6,0))=0,VLOOKUP(B27,'OUTRAS BASES'!C:D,2,0),IF(A27="Insumo", VLOOKUP(B27,'SINAPI INSUMOS'!B:J,6,0),VLOOKUP(B27,'SINAPI COMP'!B:M,6,0))), VLOOKUP(B27,'OUTRAS BASES'!C:D,2,0)) -> 23.92 | J27: 11.96
A28: Composição Auxiliar | B28: 88262 | C28: SINAPI | D28: CARPINTEIRO DE FORMAS COM ENCARGOS COMPLEMENTARES | E28: Livro SINAPI: Cálculos e Parâmetros | G28: H | H28: 0.3729 | I28: =IF(C28="SINAPI", IF( IF(A28="Insumo", VLOOKUP(B28,'SINAPI INSUMOS'!B:J,6,0), VLOOKUP(B28,'SINAPI COMP'!B:M,6,0))=0,VLOOKUP(B28,'OUTRAS BASES'!C:D,2,0),IF(A28="Insumo", VLOOKUP(B28,'SINAPI INSUMOS'!B:J,6,0),VLOOKUP(B28,'SINAPI COMP'!B:M,6,0))), VLOOKUP(B28,'OUTRAS BASES'!C:D,2,0)) -> 27.75 | J28: 10.347975
A29: Composição Auxiliar | B29: 88316 | C29: SINAPI | D29: SERVENTE COM ENCARGOS COMPLEMENTARES | E29: Livro SINAPI: Cálculos e Parâmetros | G29: H | H29: 1.1186 | I29: =IF(C29="SINAPI", IF( IF(A29="Insumo", VLOOKUP(B29,'SINAPI INSUMOS'!B:J,6,0), VLOOKUP(B29,'SINAPI COMP'!B:M,6,0))=0,VLOOKUP(B29,'OUTRAS BASES'!C:D,2,0),IF(A29="Insumo", VLOOKUP(B29,'SINAPI INSUMOS'!B:J,6,0),VLOOKUP(B29,'SINAPI COMP'!B:M,6,0))), VLOOKUP(B29,'OUTRAS BASES'!C:D,2,0)) -> 21.62 | J29: 24.184132
A30: Insumo | B30: 4509 | C30: SINAPI | D30: SARRAFO *2,5 X 10* CM EM PINUS, MISTA OU EQUIVALENTE DA REGIAO - BRUTA | E30: Material | G30: M | H30: 3.2083 | I30: =IF(C30="SINAPI", IF( IF(A30="Insumo", VLOOKUP(B30,'SINAPI INSUMOS'!B:J,6,0), VLOOKUP(B30,'SINAPI COMP'!B:M,6,0))=0,VLOOKUP(B30,'OUTRAS BASES'!C:D,2,0),IF(A30="Insumo", VLOOKUP(B30,'SINAPI INSUMOS'!B:J,6,0),VLOOKUP(B30,'SINAPI COMP'!B:M,6,0))), VLOOKUP(B30,'OUTRAS BASES'!C:D,2,0)) -> 4.95 | J30: 15.881085
A31: Insumo | B31: 4813 | C31: SINAPI | D31: PLACA DE OBRA (PARA CONSTRUCAO CIVIL) EM CHAPA GALVANIZADA *N. 22*, ADESIVADA, DE *2,4 X 1,2* M (SEM POSTES PARA FIXACAO) | E31: Material | G31: m² | H31: 1 | I31: =IF(C31="SINAPI", IF( IF(A31="Insumo", VLOOKUP(B31,'SINAPI INSUMOS'!B:J,6,0), VLOOKUP(B31,'SINAPI COMP'!B:M,6,0))=0,VLOOKUP(B31,'OUTRAS BASES'!C:D,2,0),IF(A31="Insumo", VLOOKUP(B31,'SINAPI INSUMOS'!B:J,6,0),VLOOKUP(B31,'SINAPI COMP'!B:M,6,0))), VLOOKUP(B31,'OUTRAS BASES'!C:D,2,0)) -> 400 | J31: 400
A32: Insumo | B32: 5065 | C32: SINAPI | D32: PREGO DE ACO POLIDO COM CABECA 10 X 10 (7/8 X 17) | E32: Material | G32: KG | H32: 0.0113 | I32: =IF(C32="SINAPI", IF( IF(A32="Insumo", VLOOKUP(B32,'SINAPI INSUMOS'!B:J,6,0), VLOOKUP(B32,'SINAPI COMP'!B:M,6,0))=0,VLOOKUP(B32,'OUTRAS BASES'!C:D,2,0),IF(A32="Insumo", VLOOKUP(B32,'SINAPI INSUMOS'!B:J,6,0),VLOOKUP(B32,'SINAPI COMP'!B:M,6,0))), VLOOKUP(B32,'OUTRAS BASES'!C:D,2,0)) -> 33.86 | J32: 0.382618
A33: Insumo | B33: 5069 | C33: SINAPI | D33: PREGO DE ACO POLIDO COM CABECA 17 X 27 (2 1/2 X 11) | E33: Material | G33: KG | H33: 0.0132 | I33: =IF(C33="SINAPI", IF( IF(A33="Insumo", VLOOKUP(B33,'SINAPI INSUMOS'!B:J,6,0), VLOOKUP(B33,'SINAPI COMP'!B:M,6,0))=0,VLOOKUP(B33,'OUTRAS BASES'!C:D,2,0),IF(A33="Insumo", VLOOKUP(B33,'SINAPI INSUMOS'!B:J,6,0),VLOOKUP(B33,'SINAPI COMP'!B:M,6,0))), VLOOKUP(B33,'OUTRAS BASES'!C:D,2,0)) -> 18.14 | J33: 0.239448
A38: 1.4 | B38: Código | C38: Banco | D38: Descrição | E38: Tipo | G38: Und | H38: Quant. | I38: Valor Unit | J38: Total
A39: Composição | B39: Composição - A | C39: Próprio | D39: Taxas e emolumentos fiscais , administrativos para obtenção outorga e outros | E39: ASTU - ASSENTAMENTO DE TUBOS E PECAS | G39: un | H39: 1 | I39: =SUM(J40) -> 50 | J39: =I39*H39 -> 50
A40: Insumo | B40: A.09.000.020507 | C40: CPOS/CDHU | D40: Outorga de direito de uso para poço profundo conforme Portaria DAEE nº 1.630 de 30/05/2017 e suas complementares 1.631 a 1.635 e Instrução Técnica DPO nº 10 de 30/05/2017 do DAEE | E40: Material | G40: UN | H40: 1 | I40: =IF(C40="SINAPI", IF( IF(A40="Insumo", VLOOKUP(B40,'SINAPI INSUMOS'!B:J,6,0), VLOOKUP(B40,'SINAPI COMP'!B:M,6,0))=0,VLOOKUP(B40,'OUTRAS BASES'!C:D,2,0),IF(A40="Insumo", VLOOKUP(B40,'SINAPI INSUMOS'!B:J,6,0),VLOOKUP(B40,'SINAPI COMP'!B:M,6,0))), VLOOKUP(B40,'OUTRAS BASES'!C:D,2,0)) -> 50 | J40: 50
A45: 2 | D45: MOBILIZAÇÂO E DESMOBILIZAÇÂO EQUIPES PERFURAÇÂO E INSTALAÇÃO
A46: 2.1 | B46: Código | C46: Banco | D46: Descrição | E46: Tipo | G46: Und | H46: Quant. | I46: Valor Unit | J46: Total
A47: Composição | B47: COMPOSIÇÃO - 3 | C47: Próprio | D47: Transporte de Comboio Perfuração | E47: TRAN - TRANSPORTES, CARGAS E DESCARGAS | G47: km | H47: 1 | I47: =SUM(J48:J49) -> 5.1522716 | J47: =I47*H47 -> 5.1522716
A48: Composição Auxiliar | B48: 5824 | C48: SINAPI | D48: CAMINHÃO TOCO, PBT 16.000 KG, CARGA ÚTIL MÁX. 10.685 KG, DIST. ENTRE EIXOS 4,8 M, POTÊNCIA 189 CV, INCLUSIVE CARROCERIA FIXA ABERTA DE MADEIRA P/ TRANSPORTE GERAL DE CARGA SECA, DIMEN. APROX. 2,5 X 7,00 X 0,50 M - CHP DIURNO. AF_06/2014 | E48: Custos Horários Produtivo e Improdutivo dos Equipamentos | G48: CHP | H48: 0.01666 | I48: =IF(C48="SINAPI", IF( IF(A48="Insumo", VLOOKUP(B48,'SINAPI INSUMOS'!B:J,6,0), VLOOKUP(B48,'SINAPI COMP'!B:M,6,0))=0,VLOOKUP(B48,'OUTRAS BASES'!C:D,2,0),IF(A48="Insumo", VLOOKUP(B48,'SINAPI INSUMOS'!B:J,6,0),VLOOKUP(B48,'SINAPI COMP'!B:M,6,0))), VLOOKUP(B48,'OUTRAS BASES'!C:D,2,0)) -> 239.52 | J48: 3.9904032
A49: Composição Auxiliar | B49: 5826 | C49: SINAPI | D49: CAMINHÃO TOCO, PBT 16.000 KG, CARGA ÚTIL MÁX. 10.685 KG, DIST. ENTRE EIXOS 4,8 M, POTÊNCIA 189 CV, INCLUSIVE CARROCERIA FIXA ABERTA DE MADEIRA P/ TRANSPORTE GERAL DE CARGA SECA, DIMEN. APROX. 2,5 X 7,00 X 0,50 M - CHI DIURNO. AF_06/2014 | E49: Custos Horários Produtivo e Improdutivo dos Equipamentos | G49: CHI | H49: 0.01666 | I49: =IF(C49="SINAPI", IF( IF(A49="Insumo", VLOOKUP(B49,'SINAPI INSUMOS'!B:J,6,0), VLOOKUP(B49,'SINAPI COMP'!B:M,6,0))=0,VLOOKUP(B49,'OUTRAS BASES'!C:D,2,0),IF(A49="Insumo", VLOOKUP(B49,'SINAPI INSUMOS'!B:J,6,0),VLOOKUP(B49,'SINAPI COMP'!B:M,6,0))), VLOOKUP(B49,'OUTRAS BASES'!C:D,2,0)) -> 69.74 | J49: 1.1618684
A54: 2.2 | B54: Código | C54: Banco | D54: Descrição | E54: Tipo | G54: Und | H54: Quant. | I54: Valor Unit | J54: Total
A55: Composição | B55: COMPOSIÇÃO - 4 | C55: Próprio | D55: Transporte de Comboio Instalação | E55: TRAN - TRANSPORTES, CARGAS E DESCARGAS | G55: km | H55: 1 | I55: =SUM(J56:J57) -> 6.304144 | J55: =I55*H55 -> 6.304144
A56: Composição Auxiliar | B56: 5928 | C56: SINAPI | D56: GUINDAUTO HIDRÁULICO, CAPACIDADE MÁXIMA DE CARGA 6200 KG, MOMENTO MÁXIMO DE CARGA 11,7 TM, ALCANCE MÁXIMO HORIZONTAL 9,70 M, INCLUSIVE CAMINHÃO TOCO PBT 16.000 KG, POTÊNCIA DE 189 CV - CHP DIURNO. AF_06/2014 | E56: Custos Horários Produtivo e Improdutivo dos Equipamentos | G56: CHP | H56: 0.01666 | I56: =IF(C56="SINAPI", IF( IF(A56="Insumo", VLOOKUP(B56,'SINAPI INSUMOS'!B:J,6,0), VLOOKUP(B56,'SINAPI COMP'!B:M,6,0))=0,VLOOKUP(B56,'OUTRAS BASES'!C:D,2,0),IF(A56="Insumo", VLOOKUP(B56,'SINAPI INSUMOS'!B:J,6,0),VLOOKUP(B56,'SINAPI COMP'!B:M,6,0))), VLOOKUP(B56,'OUTRAS BASES'!C:D,2,0)) -> 299.29 | J56: 4.9861714
A57: Composição Auxiliar | B57: 5930 | C57: SINAPI | D57: GUINDAUTO HIDRÁULICO, CAPACIDADE MÁXIMA DE CARGA 6200 KG, MOMENTO MÁXIMO DE CARGA 11,7 TM, ALCANCE MÁXIMO HORIZONTAL 9,70 M, INCLUSIVE CAMINHÃO TOCO PBT 16.000 KG, POTÊNCIA DE 189 CV - CHI DIURNO. AF_06/2014 | E57: Custos Horários Produtivo e Improdutivo dos Equipamentos | G57: CHI | H57: 0.01666 | I57: =IF(C57="SINAPI", IF( IF(A57="Insumo", VLOOKUP(B57,'SINAPI INSUMOS'!B:J,6,0), VLOOKUP(B57,'SINAPI COMP'!B:M,6,0))=0,VLOOKUP(B57,'OUTRAS BASES'!C:D,2,0),IF(A57="Insumo", VLOOKUP(B57,'SINAPI INSUMOS'!B:J,6,0),VLOOKUP(B57,'SINAPI COMP'!B:M,6,0))), VLOOKUP(B57,'OUTRAS BASES'!C:D,2,0)) -> 79.11 | J57: 1.3179726
A62: 2.3 | B62: Código | C62: Banco | D62: Descrição | E62: Tipo | G62: Und | H62: Quant. | I62: Valor Unit | J62: Total
A63: Composição | B63: COMPOSIÇÃO - 5 | C63: Próprio | D63: Transporte de Equipe Teste de Vazão | E63: TRAN - TRANSPORTES, CARGAS E DESCARGAS | G63: km | H63: 1 | I63: =SUM(J64:J65) -> 2.791788 | J63: =I63*H63 -> 2.791788
A64: Composição Auxiliar | B64: 73467 | C64: SINAPI | D64: CAMINHÃO TOCO, PBT 14.300 KG, CARGA ÚTIL MÁX. 9.710 KG, DIST. ENTRE EIXOS 3,56 M, POTÊNCIA 185 CV, INCLUSIVE CARROCERIA FIXA ABERTA DE MADEIRA P/ TRANSPORTE GERAL DE CARGA SECA, DIMEN. APROX. 2,50 X 6,50 X 0,50 M - CHP DIURNO. AF_06/2014 | E64: Custos Horários Produtivo e Improdutivo dos Equipamentos | G64: CHP | H64: 0.0083 | I64: =IF(C64="SINAPI", IF( IF(A64="Insumo", VLOOKUP(B64,'SINAPI INSUMOS'!B:J,6,0), VLOOKUP(B64,'SINAPI COMP'!B:M,6,0))=0,VLOOKUP(B64,'OUTRAS BASES'!C:D,2,0),IF(A64="Insumo", VLOOKUP(B64,'SINAPI INSUMOS'!B:J,6,0),VLOOKUP(B64,'SINAPI COMP'!B:M,6,0))), VLOOKUP(B64,'OUTRAS BASES'!C:D,2,0)) -> 270.42 | J64: 2.244486
A65: Composição Auxiliar | B65: 91395 | C65: SINAPI | D65: CAMINHÃO TOCO, PBT 14.300 KG, CARGA ÚTIL MÁX. 9.710 KG, DIST. ENTRE EIXOS 3,56 M, POTÊNCIA 185 CV, INCLUSIVE CARROCERIA FIXA ABERTA DE MADEIRA P/ TRANSPORTE GERAL DE CARGA SECA, DIMEN. APROX. 2,50 X 6,50 X 0,50 M - CHI DIURNO. AF_06/2014 | E65: Custos Horários Produtivo e Improdutivo dos Equipamentos | G65: CHI | H65: 0.0083 | I65: =IF(C65="SINAPI", IF( IF(A65="Insumo", VLOOKUP(B65,'SINAPI INSUMOS'!B:J,6,0), VLOOKUP(B65,'SINAPI COMP'!B:M,6,0))=0,VLOOKUP(B65,'OUTRAS BASES'!C:D,2,0),IF(A65="Insumo", VLOOKUP(B65,'SINAPI INSUMOS'!B:J,6,0),VLOOKUP(B65,'SINAPI COMP'!B:M,6,0))), VLOOKUP(B65,'OUTRAS BASES'!C:D,2,0)) -> 65.94 | J65: 0.547302
A70: 3 | D70: PERFURAÇÃO E COMPLETAÇÃO DE POÇO TUBULAR
A71: 3.1 | B71: Código | C71: Banco | D71: Descrição | E71: Tipo | G71: Und | H71: Quant. | I71: Valor Unit | J71: Total
A72: Insumo | B72: 5048 | C72: ORSE | D72: Perfuraçao em rocha cristalina - rocha cristalina alterada / compacta dn 6" (poço até 120m) | E72: Serviços | G72: m | H72: 1 | I72: =IF(C72="SINAPI", IF( IF(A72="Insumo", VLOOKUP(B72,'SINAPI INSUMOS'!B:J,6,0), VLOOKUP(B72,'SINAPI COMP'!B:M,6,0))=0,VLOOKUP(B72,'OUTRAS BASES'!C:D,2,0),IF(A72="Insumo", VLOOKUP(B72,'SINAPI INSUMOS'!B:J,6,0),VLOOKUP(B72,'SINAPI COMP'!B:M,6,0))), VLOOKUP(B72,'OUTRAS BASES'!C:D,2,0)) -> 125.23 | J72: =I72*H72 -> 125.23
A77: 3.2 | B77: Código | C77: Banco | D77: Descrição | E77: Tipo | G77: Und | H77: Quant. | I77: Valor Unit | J77: Total
A78: Insumo | B78: 5057 | C78: ORSE | D78: Perfuração rocha sedimentar sedimento / Camadas inconsolidadas DN 12.1/2" - Poço até 150 m (Perfuração rotopneumática Ø 12 1/2" | E78: Serviços | G78: m | H78: 1 | I78: =IF(C78="SINAPI", IF( IF(A78="Insumo", VLOOKUP(B78,'SINAPI INSUMOS'!B:J,6,0), VLOOKUP(B78,'SINAPI COMP'!B:M,6,0))=0,VLOOKUP(B78,'OUTRAS BASES'!C:D,2,0),IF(A78="Insumo", VLOOKUP(B78,'SINAPI INSUMOS'!B:J,6,0),VLOOKUP(B78,'SINAPI COMP'!B:M,6,0))), VLOOKUP(B78,'OUTRAS BASES'!C:D,2,0)) -> 247.66 | J78: =I78*H78 -> 247.66
A83: 3.3 | B83: Código | C83: Banco | D83: Descrição | E83: Tipo | G83: Und | H83: Quant. | I83: Valor Unit | J83: Total
A84: Composição | B84: COMPOSIÇÃO - 6 | C84: Próprio | D84: Serviço de lançamento cimentação anelar, incluso materiais. | E84: SEDI - SERVIÇOS DIVERSOS | G84: m³ | H84: 1 | I84: =SUM(J85) -> 521.34 | J84: =I84*H84 -> 521.34
A85: Composição Auxiliar | B85: 1903 | C85: ORSE | D85: Argamassa cimento e areia traço t-1 (1:3) - 1 saco cimento 50kg / 3 padiolas areia dim. 0.35 x 0.45 x 0.23 m - Confecção mecânica e transporte | E85: Argamassas | G85: m³ | H85: 1 | I85: =IF(C85="SINAPI", IF( IF(A85="Insumo", VLOOKUP(B85,'SINAPI INSUMOS'!B:J,6,0), VLOOKUP(B85,'SINAPI COMP'!B:M,6,0))=0,VLOOKUP(B85,'OUTRAS BASES'!C:D,2,0),IF(A85="Insumo", VLOOKUP(B85,'SINAPI INSUMOS'!B:J,6,0),VLOOKUP(B85,'SINAPI COMP'!B:M,6,0))), VLOOKUP(B85,'OUTRAS BASES'!C:D,2,0)) -> 521.34 | J85: 521.34
A90: 3.4 | B90: Código | C90: Banco | D90: Descrição | E90: Tipo | G90: Und | H90: Quant. | I90: Valor Unit | J90: Total
A91: Insumo | B91: 9854 | C91: SINAPI | D91: TUBO PVC DE REVESTIMENTO GEOMECANICO NERVURADO STANDARD, DN = 154 MM, COMPRIMENTO = 2 M | E91: Material | G91: M | H91: 1 | I91: =IF(C91="SINAPI", IF( IF(A91="Insumo", VLOOKUP(B91,'SINAPI INSUMOS'!B:J,6,0), VLOOKUP(B91,'SINAPI COMP'!B:M,6,0))=0,VLOOKUP(B91,'OUTRAS BASES'!C:D,2,0),IF(A91="Insumo", VLOOKUP(B91,'SINAPI INSUMOS'!B:J,6,0),VLOOKUP(B91,'SINAPI COMP'!B:M,6,0))), VLOOKUP(B91,'OUTRAS BASES'!C:D,2,0)) -> 115.12 | J91: =I91*H91 -> 115.12
A96: 4 | D96: PÓS PERFURAÇÃO
A97: 4.1 | B97: Código | C97: Banco | D97: Descrição | E97: Tipo | G97: Und | H97: Quant. | I97: Valor Unit | J97: Total
A98: Composição | B98: 6305 | C98: ORSE | D98: Desenvolvimento com Compressor 250psi / 750cfm | E98: Conversão InfoWOrca | G98: h | H98: 1 | I98: =IF(C98="SINAPI", IF( IF(A98="Insumo", VLOOKUP(B98,'SINAPI INSUMOS'!B:J,6,0), VLOOKUP(B98,'SINAPI COMP'!B:M,6,0))=0,VLOOKUP(B98,'OUTRAS BASES'!C:D,2,0),IF(A98="Insumo", VLOOKUP(B98,'SINAPI INSUMOS'!B:J,6,0),VLOOKUP(B98,'SINAPI COMP'!B:M,6,0))), VLOOKUP(B98,'OUTRAS BASES'!C:D,2,0)) -> 411.16 | J98: =I98*H98 -> 411.16
A99: Insumo | B99: 5030 | C99: ORSE | D99: Desenvolvimento com compressor 250psi - 750cfm h | E99: Serviços | G99: h | H99: 1 | I99: =IF(C99="SINAPI", IF( IF(A99="Insumo", VLOOKUP(B99,'SINAPI INSUMOS'!B:J,6,0), VLOOKUP(B99,'SINAPI COMP'!B:M,6,0))=0,VLOOKUP(B99,'OUTRAS BASES'!C:D,2,0),IF(A99="Insumo", VLOOKUP(B99,'SINAPI INSUMOS'!B:J,6,0),VLOOKUP(B99,'SINAPI COMP'!B:M,6,0))), VLOOKUP(B99,'OUTRAS BASES'!C:D,2,0)) -> 411.16 | J99: 411.16
A104: 4.2 | B104: Código | C104: Banco | D104: Descrição | E104: Tipo | G104: Und | H104: Quant. | I104: Valor Unit | J104: Total
A105: Composição | B105: COMPOSIÇÃO - 7 | C105: Próprio | D105: Inspeção ótica em poço tubular câmera com rotação de 360º, visada lateral, com fonte própria de luz, entregue vídeo em cores e marcação de profundidades. | E105: SEES - SERVIÇOS ESPECIAIS | G105: m | H105: 1 | I105: =SUM(J106:J107) -> 9.64046 | J105: =I105*H105 -> 9.64046
A106: Insumo | B106: H020050004 | C106: EMBASA | D106: APARELHO DE PERFILAGEM OPTICA | E106: Material | G106: M | H106: 1 | I106: =IF(C106="SINAPI", IF( IF(A106="Insumo", VLOOKUP(B106,'SINAPI INSUMOS'!B:J,6,0), VLOOKUP(B106,'SINAPI COMP'!B:M,6,0))=0,VLOOKUP(B106,'OUTRAS BASES'!C:D,2,0),IF(A106="Insumo", VLOOKUP(B106,'SINAPI INSUMOS'!B:J,6,0),VLOOKUP(B106,'SINAPI COMP'!B:M,6,0))), VLOOKUP(B106,'OUTRAS BASES'!C:D,2,0)) -> 4.4 | J106: 4.4
A107: Insumo | B107: B590000022 | C107: EMBASA | D107: TECNICO MEDIO | E107: Mão de Obra | G107: H | H107: 0.0835 | I107: =IF(C107="SINAPI", IF( IF(A107="Insumo", VLOOKUP(B107,'SINAPI INSUMOS'!B:J,6,0), VLOOKUP(B107,'SINAPI COMP'!B:M,6,0))=0,VLOOKUP(B107,'OUTRAS BASES'!C:D,2,0),IF(A107="Insumo", VLOOKUP(B107,'SINAPI INSUMOS'!B:J,6,0),VLOOKUP(B107,'SINAPI COMP'!B:M,6,0))), VLOOKUP(B107,'OUTRAS BASES'!C:D,2,0)) -> 62.76 | J107: 5.24046
A112: 4.3 | B112: Código | C112: Banco | D112: Descrição | E112: Tipo | G112: Und | H112: Quant. | I112: Valor Unit | J112: Total
A113: Composição | B113: COMPOSIÇÃO - 8 | C113: Próprio | D113: Serviço de coleta e Análise Físico-Química e Bacteriológica | E113: SEDI - SERVIÇOS DIVERSOS | G113: un | H113: 1 | I113: =SUM(J114:J115) -> 621.19 | J113: =I113*H113 -> 621.19
A114: Composição Auxiliar | B114: 6312 | C114: ORSE | D114: Análise Físico-química da Água | E114: Conversão InfoWOrca | G114: un | H114: 1 | I114: =IF(C114="SINAPI", IF( IF(A114="Insumo", VLOOKUP(B114,'SINAPI INSUMOS'!B:J,6,0), VLOOKUP(B114,'SINAPI COMP'!B:M,6,0))=0,VLOOKUP(B114,'OUTRAS BASES'!C:D,2,0),IF(A114="Insumo", VLOOKUP(B114,'SINAPI INSUMOS'!B:J,6,0),VLOOKUP(B114,'SINAPI COMP'!B:M,6,0))), VLOOKUP(B114,'OUTRAS BASES'!C:D,2,0)) -> 565.21 | J114: 565.21
A115: Composição Auxiliar | B115: 6313 | C115: ORSE | D115: Análise Bacteriológica da Água | E115: Conversão InfoWOrca | G115: un | H115: 1 | I115: =IF(C115="SINAPI", IF( IF(A115="Insumo", VLOOKUP(B115,'SINAPI INSUMOS'!B:J,6,0), VLOOKUP(B115,'SINAPI COMP'!B:M,6,0))=0,VLOOKUP(B115,'OUTRAS BASES'!C:D,2,0),IF(A115="Insumo", VLOOKUP(B115,'SINAPI INSUMOS'!B:J,6,0),VLOOKUP(B115,'SINAPI COMP'!B:M,6,0))), VLOOKUP(B115,'OUTRAS BASES'!C:D,2,0)) -> 55.98 | J115: 55.98
A120: 4.4 | B120: Código | C120: Banco | D120: Descrição | E120: Tipo | G120: Und | H120: Quant. | I120: Valor Unit | J120: Total
A121: Composição | B121: 24.80.22 | C121: EMBASA | D121: (REVISADA) DESENVOLVIMENTO OU TESTE COM BOMBA SUBMERSA - UEB1 NO SEDIMENTO COM VAZAO < 60M3 (Ensaio de bombeamento poço tubular incluso materiais e grupo gerador) | E121: 2480 | G121: H | H121: 1 | I121: =IF(C121="SINAPI", IF( IF(A121="Insumo", VLOOKUP(B121,'SINAPI INSUMOS'!B:J,6,0), VLOOKUP(B121,'SINAPI COMP'!B:M,6,0))=0,VLOOKUP(B121,'OUTRAS BASES'!C:D,2,0),IF(A121="Insumo", VLOOKUP(B121,'SINAPI INSUMOS'!B:J,6,0),VLOOKUP(B121,'SINAPI COMP'!B:M,6,0))), VLOOKUP(B121,'OUTRAS BASES'!C:D,2,0)) -> 263.27 | J121: =I121*H121 -> 263.27
A122: Composição Auxiliar | B122: 24.00.15 | C122: EMBASA | D122: EQUIPE (3 PROFISSIONAIS CAMPO) - BOMBEIO | E122: 2400 | G122: H | H122: 1 | I122: =IF(C122="SINAPI", IF( IF(A122="Insumo", VLOOKUP(B122,'SINAPI INSUMOS'!B:J,6,0), VLOOKUP(B122,'SINAPI COMP'!B:M,6,0))=0,VLOOKUP(B122,'OUTRAS BASES'!C:D,2,0),IF(A122="Insumo", VLOOKUP(B122,'SINAPI INSUMOS'!B:J,6,0),VLOOKUP(B122,'SINAPI COMP'!B:M,6,0))), VLOOKUP(B122,'OUTRAS BASES'!C:D,2,0)) -> 198.35 | J122: 198.35
A123: Insumo | B123: H020050001 | C123: EMBASA | D123: UNIDADE DE ENSAIO E BOMBEAMENTO - UEB1 ATE 150M3 NO SEDIMENTO | E123: Material | G123: H | H123: 1 | I123: =IF(C123="SINAPI", IF( IF(A123="Insumo", VLOOKUP(B123,'SINAPI INSUMOS'!B:J,6,0), VLOOKUP(B123,'SINAPI COMP'!B:M,6,0))=0,VLOOKUP(B123,'OUTRAS BASES'!C:D,2,0),IF(A123="Insumo", VLOOKUP(B123,'SINAPI INSUMOS'!B:J,6,0),VLOOKUP(B123,'SINAPI COMP'!B:M,6,0))), VLOOKUP(B123,'OUTRAS BASES'!C:D,2,0)) -> 64.92 | J123: 64.92
A128: 4.5 | B128: Código | C128: Banco | D128: Descrição | E128: Tipo | G128: Und | H128: Quant. | I128: Valor Unit | J128: Total
A129: Composição | B129: COMPOSIÇÃO - 9 | C129: Próprio | D129: Serviço de instalação de laje sanitária com dimensões (1,5x1,5x0,3) metros , incluso material. | E129: SEDI - SERVIÇOS DIVERSOS | G129: un | H129: 1 | I129: =SUM(J130:J133) -> 689.49675 | J129: =I129*H129 -> 689.49675
A130: Composição Auxiliar | B130: 92522 | C130: SINAPI | D130: MONTAGEM E DESMONTAGEM DE FÔRMA DE LAJE MACIÇA, PÉ-DIREITO SIMPLES, EM CHAPA DE MADEIRA COMPENSADA RESINADA, 8 UTILIZAÇÕES. AF_09/2020 | E130: Fôrmas para Estruturas de Concreto Armado | G130: m² | H130: 1.8 | I130: =IF(C130="SINAPI", IF( IF(A130="Insumo", VLOOKUP(B130,'SINAPI INSUMOS'!B:J,6,0), VLOOKUP(B130,'SINAPI COMP'!B:M,6,0))=0,VLOOKUP(B130,'OUTRAS BASES'!C:D,2,0),IF(A130="Insumo", VLOOKUP(B130,'SINAPI INSUMOS'!B:J,6,0),VLOOKUP(B130,'SINAPI COMP'!B:M,6,0))), VLOOKUP(B130,'OUTRAS BASES'!C:D,2,0)) -> 43.14 | J130: 77.652
A131: Composição Auxiliar | B131: 93358 | C131: SINAPI | D131: ESCAVAÇÃO MANUAL DE VALA COM PROFUNDIDADE MENOR OU IGUAL A 1,30 M. AF_02/2021 | E131: Escavação de Valas | G131: m³ | H131: 0.225 | I131: =IF(C131="SINAPI", IF( IF(A131="Insumo", VLOOKUP(B131,'SINAPI INSUMOS'!B:J,6,0), VLOOKUP(B131,'SINAPI COMP'!B:M,6,0))=0,VLOOKUP(B131,'OUTRAS BASES'!C:D,2,0),IF(A131="Insumo", VLOOKUP(B131,'SINAPI INSUMOS'!B:J,6,0),VLOOKUP(B131,'SINAPI COMP'!B:M,6,0))), VLOOKUP(B131,'OUTRAS BASES'!C:D,2,0)) -> 85.52 | J131: 19.242
A132: Composição Auxiliar | B132: 94975 | C132: SINAPI | D132: CONCRETO FCK = 15MPA, TRAÇO 1:3,4:3,5 (EM MASSA SECA DE CIMENTO/ AREIA MÉDIA/ BRITA 1) - PREPARO MANUAL. AF_05/2021 | E132: Produção de Concreto | G132: m³ | H132: 0.675 | I132: =IF(C132="SINAPI", IF( IF(A132="Insumo", VLOOKUP(B132,'SINAPI INSUMOS'!B:J,6,0), VLOOKUP(B132,'SINAPI COMP'!B:M,6,0))=0,VLOOKUP(B132,'OUTRAS BASES'!C:D,2,0),IF(A132="Insumo", VLOOKUP(B132,'SINAPI INSUMOS'!B:J,6,0),VLOOKUP(B132,'SINAPI COMP'!B:M,6,0))), VLOOKUP(B132,'OUTRAS BASES'!C:D,2,0)) -> 578.55 | J132: 390.52125
A133: Composição Auxiliar | B133: 103670 | C133: SINAPI | D133: LANÇAMENTO COM USO DE BALDES, ADENSAMENTO E ACABAMENTO DE CONCRETO EM ESTRUTURAS. AF_02/2022 | E133: Concretagem para Estruturas de Concreto Armado | G133: m³ | H133: 0.675 | I133: =IF(C133="SINAPI", IF( IF(A133="Insumo", VLOOKUP(B133,'SINAPI INSUMOS'!B:J,6,0), VLOOKUP(B133,'SINAPI COMP'!B:M,6,0))=0,VLOOKUP(B133,'OUTRAS BASES'!C:D,2,0),IF(A133="Insumo", VLOOKUP(B133,'SINAPI INSUMOS'!B:J,6,0),VLOOKUP(B133,'SINAPI COMP'!B:M,6,0))), VLOOKUP(B133,'OUTRAS BASES'!C:D,2,0)) -> 299.38 | J133: 202.0815
A138: 5 | D138: RESERVAÇÃO
A139: 5.1 | B139: Código | C139: Banco | D139: Descrição | E139: Tipo | G139: Und | H139: Quant. | I139: Valor Unit | J139: Total
A140: Composição | B140: COMPOSIÇÃO - 10 | C140: Próprio | D140: Fornecimento e instalação de reservatório e base elevada 10 m³ | E140: ASTU - ASSENTAMENTO DE TUBOS E PECAS | G140: un | H140: 1 | I140: =SUM(J141:J162) -> 19779.75849 | J140: =I140*H140 -> 19779.75849
A141: Composição Auxiliar | B141: 92759 | C141: SINAPI | D141: ARMAÇÃO DE PILAR OU VIGA DE ESTRUTURA CONVENCIONAL DE CONCRETO ARMADO UTILIZANDO AÇO CA-60 DE 5,0 MM - MONTAGEM. AF_06/2022 | E141: Armação para Estruturas de Concreto Armado | G141: KG | H141: 17.2 | I141: =IF(C141="SINAPI", IF( IF(A141="Insumo", VLOOKUP(B141,'SINAPI INSUMOS'!B:J,6,0), VLOOKUP(B141,'SINAPI COMP'!B:M,6,0))=0,VLOOKUP(B141,'OUTRAS BASES'!C:D,2,0),IF(A141="Insumo", VLOOKUP(B141,'SINAPI INSUMOS'!B:J,6,0),VLOOKUP(B141,'SINAPI COMP'!B:M,6,0))), VLOOKUP(B141,'OUTRAS BASES'!C:D,2,0)) -> 13.05 | J141: 224.46
A142: Composição Auxiliar | B142: 92761 | C142: SINAPI | D142: ARMAÇÃO DE PILAR OU VIGA DE ESTRUTURA CONVENCIONAL DE CONCRETO ARMADO UTILIZANDO AÇO CA-50 DE 8,0 MM - MONTAGEM. AF_06/2022 | E142: Armação para Estruturas de Concreto Armado | G142: KG | H142: 30.4 | I142: =IF(C142="SINAPI", IF( IF(A142="Insumo", VLOOKUP(B142,'SINAPI INSUMOS'!B:J,6,0), VLOOKUP(B142,'SINAPI COMP'!B:M,6,0))=0,VLOOKUP(B142,'OUTRAS BASES'!C:D,2,0),IF(A142="Insumo", VLOOKUP(B142,'SINAPI INSUMOS'!B:J,6,0),VLOOKUP(B142,'SINAPI COMP'!B:M,6,0))), VLOOKUP(B142,'OUTRAS BASES'!C:D,2,0)) -> 11.14 | J142: 338.656
A143: Composição Auxiliar | B143: 92768 | C143: SINAPI | D143: ARMAÇÃO DE LAJE DE ESTRUTURA CONVENCIONAL DE CONCRETO ARMADO UTILIZANDO AÇO CA-60 DE 5,0 MM - MONTAGEM. AF_06/2022 | E143: Armação para Estruturas de Concreto Armado | G143: KG | H143: 11.9 | I143: =IF(C143="SINAPI", IF( IF(A143="Insumo", VLOOKUP(B143,'SINAPI INSUMOS'!B:J,6,0), VLOOKUP(B143,'SINAPI COMP'!B:M,6,0))=0,VLOOKUP(B143,'OUTRAS BASES'!C:D,2,0),IF(A143="Insumo", VLOOKUP(B143,'SINAPI INSUMOS'!B:J,6,0),VLOOKUP(B143,'SINAPI COMP'!B:M,6,0))), VLOOKUP(B143,'OUTRAS BASES'!C:D,2,0)) -> 12.51 | J143: 148.869
A144: Composição Auxiliar | B144: 92770 | C144: SINAPI | D144: ARMAÇÃO DE LAJE DE ESTRUTURA CONVENCIONAL DE CONCRETO ARMADO UTILIZANDO AÇO CA-50 DE 8,0 MM - MONTAGEM. AF_06/2022 | E144: Armação para Estruturas de Concreto Armado | G144: KG | H144: 48 | I144: =IF(C144="SINAPI", IF( IF(A144="Insumo", VLOOKUP(B144,'SINAPI INSUMOS'!B:J,6,0), VLOOKUP(B144,'SINAPI COMP'!B:M,6,0))=0,VLOOKUP(B144,'OUTRAS BASES'!C:D,2,0),IF(A144="Insumo", VLOOKUP(B144,'SINAPI INSUMOS'!B:J,6,0),VLOOKUP(B144,'SINAPI COMP'!B:M,6,0))), VLOOKUP(B144,'OUTRAS BASES'!C:D,2,0)) -> 10.63 | J144: 510.24
A145: Composição Auxiliar | B145: 93358 | C145: SINAPI | D145: ESCAVAÇÃO MANUAL DE VALA COM PROFUNDIDADE MENOR OU IGUAL A 1,30 M. AF_02/2021 | E145: Escavação de Valas | G145: m³ | H145: 5.2 | I145: =IF(C145="SINAPI", IF( IF(A145="Insumo", VLOOKUP(B145,'SINAPI INSUMOS'!B:J,6,0), VLOOKUP(B145,'SINAPI COMP'!B:M,6,0))=0,VLOOKUP(B145,'OUTRAS BASES'!C:D,2,0),IF(A145="Insumo", VLOOKUP(B145,'SINAPI INSUMOS'!B:J,6,0),VLOOKUP(B145,'SINAPI COMP'!B:M,6,0))), VLOOKUP(B145,'OUTRAS BASES'!C:D,2,0)) -> 85.52 | J145: 444.704
A146: Composição Auxiliar | B146: 92763 | C146: SINAPI | D146: ARMAÇÃO DE PILAR OU VIGA DE ESTRUTURA CONVENCIONAL DE CONCRETO ARMADO UTILIZANDO AÇO CA-50 DE 12,5 MM - MONTAGEM. AF_06/2022 | E146: Armação para Estruturas de Concreto Armado | G146: KG | H146: 118.4 | I146: =IF(C146="SINAPI", IF( IF(A146="Insumo", VLOOKUP(B146,'SINAPI INSUMOS'!B:J,6,0), VLOOKUP(B146,'SINAPI COMP'!B:M,6,0))=0,VLOOKUP(B146,'OUTRAS BASES'!C:D,2,0),IF(A146="Insumo", VLOOKUP(B146,'SINAPI INSUMOS'!B:J,6,0),VLOOKUP(B146,'SINAPI COMP'!B:M,6,0))), VLOOKUP(B146,'OUTRAS BASES'!C:D,2,0)) -> 8.21 | J146: 972.064
A147: Composição Auxiliar | B147: 94970 | C147: SINAPI | D147: CONCRETO FCK = 20MPA, TRAÇO 1:2,7:3 (EM MASSA SECA DE CIMENTO/ AREIA MÉDIA/ BRITA 1) - PREPARO MECÂNICO COM BETONEIRA 600 L. AF_05/2021 | E147: Produção de Concreto | G147: m³ | H147: 4.89 | I147: =IF(C147="SINAPI", IF( IF(A147="Insumo", VLOOKUP(B147,'SINAPI INSUMOS'!B:J,6,0), VLOOKUP(B147,'SINAPI COMP'!B:M,6,0))=0,VLOOKUP(B147,'OUTRAS BASES'!C:D,2,0),IF(A147="Insumo", VLOOKUP(B147,'SINAPI INSUMOS'!B:J,6,0),VLOOKUP(B147,'SINAPI COMP'!B:M,6,0))), VLOOKUP(B147,'OUTRAS BASES'!C:D,2,0)) -> 557.71 | J147: 2727.2019
A148: Composição Auxiliar | B148: 103670 | C148: SINAPI | D148: LANÇAMENTO COM USO DE BALDES, ADENSAMENTO E ACABAMENTO DE CONCRETO EM ESTRUTURAS. AF_02/2022 | E148: Concretagem para Estruturas de Concreto Armado | G148: m³ | H148: 6.85 | I148: =IF(C148="SINAPI", IF( IF(A148="Insumo", VLOOKUP(B148,'SINAPI INSUMOS'!B:J,6,0), VLOOKUP(B148,'SINAPI COMP'!B:M,6,0))=0,VLOOKUP(B148,'OUTRAS BASES'!C:D,2,0),IF(A148="Insumo", VLOOKUP(B148,'SINAPI INSUMOS'!B:J,6,0),VLOOKUP(B148,'SINAPI COMP'!B:M,6,0))), VLOOKUP(B148,'OUTRAS BASES'!C:D,2,0)) -> 299.38 | J148: 2050.753
A149: Composição Auxiliar | B149: 84651 | C149: SINAPI | D149: PINTURA COM TINTA IMPERMEAVEL MINERAL EM PO, DUAS DEMAOS | E149: PINT - PINTURAS | G149: m² | H149: 28.27 | I149: =IF(C149="SINAPI", IF( IF(A149="Insumo", VLOOKUP(B149,'SINAPI INSUMOS'!B:J,6,0), VLOOKUP(B149,'SINAPI COMP'!B:M,6,0))=0,VLOOKUP(B149,'OUTRAS BASES'!C:D,2,0),IF(A149="Insumo", VLOOKUP(B149,'SINAPI INSUMOS'!B:J,6,0),VLOOKUP(B149,'SINAPI COMP'!B:M,6,0))), VLOOKUP(B149,'OUTRAS BASES'!C:D,2,0)) -> 14.497 | J149: 409.83019
A150: Composição Auxiliar | B150: 90776 | C150: SINAPI | D150: ENCARREGADO GERAL COM ENCARGOS COMPLEMENTARES | E150: Livro SINAPI: Cálculos e Parâmetros | G150: H | H150: 1 | I150: =IF(C150="SINAPI", IF( IF(A150="Insumo", VLOOKUP(B150,'SINAPI INSUMOS'!B:J,6,0), VLOOKUP(B150,'SINAPI COMP'!B:M,6,0))=0,VLOOKUP(B150,'OUTRAS BASES'!C:D,2,0),IF(A150="Insumo", VLOOKUP(B150,'SINAPI INSUMOS'!B:J,6,0),VLOOKUP(B150,'SINAPI COMP'!B:M,6,0))), VLOOKUP(B150,'OUTRAS BASES'!C:D,2,0)) -> 31.28 | J150: 31.28
A151: Composição Auxiliar | B151: 102482 | C151: SINAPI | D151: CONCRETO FCK = 25MPA, TRAÇO 1:2,2:2,5 (EM MASSA SECA DE CIMENTO/ AREIA MÉDIA/ SEIXO ROLADO) - PREPARO MECÂNICO COM BETONEIRA 600 L. AF_05/2021 | E151: Produção de Concreto | G151: m³ | H151: 1.96 | I151: =IF(C151="SINAPI", IF( IF(A151="Insumo", VLOOKUP(B151,'SINAPI INSUMOS'!B:J,6,0), VLOOKUP(B151,'SINAPI COMP'!B:M,6,0))=0,VLOOKUP(B151,'OUTRAS BASES'!C:D,2,0),IF(A151="Insumo", VLOOKUP(B151,'SINAPI INSUMOS'!B:J,6,0),VLOOKUP(B151,'SINAPI COMP'!B:M,6,0))), VLOOKUP(B151,'OUTRAS BASES'!C:D,2,0)) -> 585.88 | J151: 1148.3248
A152: Composição Auxiliar | B152: 92263 | C152: SINAPI | D152: FABRICAÇÃO DE FÔRMA PARA PILARES E ESTRUTURAS SIMILARES, EM CHAPA DE MADEIRA COMPENSADA RESINADA, E = 17 MM. AF_09/2020 | E152: Fôrmas para Estruturas de Concreto Armado | G152: m² | H152: 25.19 | I152: =IF(C152="SINAPI", IF( IF(A152="Insumo", VLOOKUP(B152,'SINAPI INSUMOS'!B:J,6,0), VLOOKUP(B152,'SINAPI COMP'!B:M,6,0))=0,VLOOKUP(B152,'OUTRAS BASES'!C:D,2,0),IF(A152="Insumo", VLOOKUP(B152,'SINAPI INSUMOS'!B:J,6,0),VLOOKUP(B152,'SINAPI COMP'!B:M,6,0))), VLOOKUP(B152,'OUTRAS BASES'!C:D,2,0)) -> 178.14 | J152: 4487.3466
A153: Composição Auxiliar | B153: 88267 | C153: SINAPI | D153: ENCANADOR OU BOMBEIRO HIDRÁULICO COM ENCARGOS COMPLEMENTARES | E153: Livro SINAPI: Cálculos e Parâmetros | G153: H | H153: 4 | I153: =IF(C153="SINAPI", IF( IF(A153="Insumo", VLOOKUP(B153,'SINAPI INSUMOS'!B:J,6,0), VLOOKUP(B153,'SINAPI COMP'!B:M,6,0))=0,VLOOKUP(B153,'OUTRAS BASES'!C:D,2,0),IF(A153="Insumo", VLOOKUP(B153,'SINAPI INSUMOS'!B:J,6,0),VLOOKUP(B153,'SINAPI COMP'!B:M,6,0))), VLOOKUP(B153,'OUTRAS BASES'!C:D,2,0)) -> 30.28 | J153: 121.12
A154: Composição Auxiliar | B154: 88248 | C154: SINAPI | D154: AUXILIAR DE ENCANADOR OU BOMBEIRO HIDRÁULICO COM ENCARGOS COMPLEMENTARES | E154: Livro SINAPI: Cálculos e Parâmetros | G154: H | H154: 4 | I154: =IF(C154="SINAPI", IF( IF(A154="Insumo", VLOOKUP(B154,'SINAPI INSUMOS'!B:J,6,0), VLOOKUP(B154,'SINAPI COMP'!B:M,6,0))=0,VLOOKUP(B154,'OUTRAS BASES'!C:D,2,0),IF(A154="Insumo", VLOOKUP(B154,'SINAPI INSUMOS'!B:J,6,0),VLOOKUP(B154,'SINAPI COMP'!B:M,6,0))), VLOOKUP(B154,'OUTRAS BASES'!C:D,2,0)) -> 24.51 | J154: 98.04
A155: Insumo | B155: 3146 | C155: SINAPI | D155: FITA VEDA ROSCA EM ROLOS DE 18 MM X 10 M (L X C) | E155: Material | G155: UN | H155: 0.18 | I155: =IF(C155="SINAPI", IF( IF(A155="Insumo", VLOOKUP(B155,'SINAPI INSUMOS'!B:J,6,0), VLOOKUP(B155,'SINAPI COMP'!B:M,6,0))=0,VLOOKUP(B155,'OUTRAS BASES'!C:D,2,0),IF(A155="Insumo", VLOOKUP(B155,'SINAPI INSUMOS'!B:J,6,0),VLOOKUP(B155,'SINAPI COMP'!B:M,6,0))), VLOOKUP(B155,'OUTRAS BASES'!C:D,2,0)) -> 4 | J155: 0.72
A156: Insumo | B156: 37106 | C156: SINAPI | D156: CAIXA D'AGUA / RESERVATORIO EM POLIESTER REFORCADO COM FIBRA DE VIDRO, 10000 LITROS, COM TAMPA | E156: Material | G156: UN | H156: 1 | I156: =IF(C156="SINAPI", IF( IF(A156="Insumo", VLOOKUP(B156,'SINAPI INSUMOS'!B:J,6,0), VLOOKUP(B156,'SINAPI COMP'!B:M,6,0))=0,VLOOKUP(B156,'OUTRAS BASES'!C:D,2,0),IF(A156="Insumo", VLOOKUP(B156,'SINAPI INSUMOS'!B:J,6,0),VLOOKUP(B156,'SINAPI COMP'!B:M,6,0))), VLOOKUP(B156,'OUTRAS BASES'!C:D,2,0)) -> 5811.8 | J156: 5811.8
A157: Insumo | B157: 14073 | C157: ORSE | D157: CURVA 90º PVC D=50MM, LINHA IRRIGA-LF, TIGRE OU SIMILAR | E157: Material | G157: UM | H157: 3 | I157: =IF(C157="SINAPI", IF( IF(A157="Insumo", VLOOKUP(B157,'SINAPI INSUMOS'!B:J,6,0), VLOOKUP(B157,'SINAPI COMP'!B:M,6,0))=0,VLOOKUP(B157,'OUTRAS BASES'!C:D,2,0),IF(A157="Insumo", VLOOKUP(B157,'SINAPI INSUMOS'!B:J,6,0),VLOOKUP(B157,'SINAPI COMP'!B:M,6,0))), VLOOKUP(B157,'OUTRAS BASES'!C:D,2,0)) -> 8.1 | J157: 24.3
A158: Insumo | B158: 14068 | C158: ORSE | D158: Tubo PVC para irrigação LF PN 80 Ø 50mm, linha Irriga-LF, Tigre ou similar | E158: Material | G158: UN | H158: 15.2 | I158: =IF(C158="SINAPI", IF( IF(A158="Insumo", VLOOKUP(B158,'SINAPI INSUMOS'!B:J,6,0), VLOOKUP(B158,'SINAPI COMP'!B:M,6,0))=0,VLOOKUP(B158,'OUTRAS BASES'!C:D,2,0),IF(A158="Insumo", VLOOKUP(B158,'SINAPI INSUMOS'!B:J,6,0),VLOOKUP(B158,'SINAPI COMP'!B:M,6,0))), VLOOKUP(B158,'OUTRAS BASES'!C:D,2,0)) -> 9.27 | J158: 140.904
A159: Insumo | B159: 1434 | C159: ORSE | D159: Luva pvc rigido roscavel d=2 " | E159: Material | G159: UN | H159: 1 | I159: =IF(C159="SINAPI", IF( IF(A159="Insumo", VLOOKUP(B159,'SINAPI INSUMOS'!B:J,6,0), VLOOKUP(B159,'SINAPI COMP'!B:M,6,0))=0,VLOOKUP(B159,'OUTRAS BASES'!C:D,2,0),IF(A159="Insumo", VLOOKUP(B159,'SINAPI INSUMOS'!B:J,6,0),VLOOKUP(B159,'SINAPI COMP'!B:M,6,0))), VLOOKUP(B159,'OUTRAS BASES'!C:D,2,0)) -> 28.58 | J159: 28.58
A160: Insumo | B160: 90 | C160: ORSE | D160: Adaptador curto, pvc rigido soldavel, c/ bolsa e rosca p/ registro, d= 50mm x 1 1/2” | E160: Material | G160: UN | H160: 1 | I160: =IF(C160="SINAPI", IF( IF(A160="Insumo", VLOOKUP(B160,'SINAPI INSUMOS'!B:J,6,0), VLOOKUP(B160,'SINAPI COMP'!B:M,6,0))=0,VLOOKUP(B160,'OUTRAS BASES'!C:D,2,0),IF(A160="Insumo", VLOOKUP(B160,'SINAPI INSUMOS'!B:J,6,0),VLOOKUP(B160,'SINAPI COMP'!B:M,6,0))), VLOOKUP(B160,'OUTRAS BASES'!C:D,2,0)) -> 4.2 | J160: 4.2
A161: Insumo | B161: 99 | C161: SINAPI | D161: ADAPTADOR PVC SOLDAVEL, COM FLANGE E ANEL DE VEDACAO, 50 MM X 1 1/2", PARA CAIXA D'AGUA | E161: Material | G161: UN | H161: 2 | I161: =IF(C161="SINAPI", IF( IF(A161="Insumo", VLOOKUP(B161,'SINAPI INSUMOS'!B:J,6,0), VLOOKUP(B161,'SINAPI COMP'!B:M,6,0))=0,VLOOKUP(B161,'OUTRAS BASES'!C:D,2,0),IF(A161="Insumo", VLOOKUP(B161,'SINAPI INSUMOS'!B:J,6,0),VLOOKUP(B161,'SINAPI COMP'!B:M,6,0))), VLOOKUP(B161,'OUTRAS BASES'!C:D,2,0)) -> 26.27 | J161: 52.54
A162: Insumo | B162: 119 | C162: SINAPI | D162: ADESIVO PLASTICO PARA PVC, BISNAGA COM 75 GR | E162: Material | G162: UN | H162: 0.45 | I162: =IF(C162="SINAPI", IF( IF(A162="Insumo", VLOOKUP(B162,'SINAPI INSUMOS'!B:J,6,0), VLOOKUP(B162,'SINAPI COMP'!B:M,6,0))=0,VLOOKUP(B162,'OUTRAS BASES'!C:D,2,0),IF(A162="Insumo", VLOOKUP(B162,'SINAPI INSUMOS'!B:J,6,0),VLOOKUP(B162,'SINAPI COMP'!B:M,6,0))), VLOOKUP(B162,'OUTRAS BASES'!C:D,2,0)) -> 8.5 | J162: 3.825
A167: 5.2 | B167: Código | C167: Banco | D167: Descrição | E167: Tipo | G167: Und | H167: Quant. | I167: Valor Unit | J167: Total
A168: Composição | B168: COMPOSIÇÃO - 11 | C168: Próprio | D168: Fornecimento e execução de reservatório apoiado de 5 m³ | E168: SEDI - SERVIÇOS DIVERSOS | G168: un | H168: 1 | I168: =SUM(J169:J178) -> 8664.06325 | J168: =I168*H168 -> 8664.06325
A169: Composição Auxiliar | B169: 88309 | C169: SINAPI | D169: PEDREIRO COM ENCARGOS COMPLEMENTARES | E169: Livro SINAPI: Cálculos e Parâmetros | G169: H | H169: 3 | I169: =IF(C169="SINAPI", IF( IF(A169="Insumo", VLOOKUP(B169,'SINAPI INSUMOS'!B:J,6,0), VLOOKUP(B169,'SINAPI COMP'!B:M,6,0))=0,VLOOKUP(B169,'OUTRAS BASES'!C:D,2,0),IF(A169="Insumo", VLOOKUP(B169,'SINAPI INSUMOS'!B:J,6,0),VLOOKUP(B169,'SINAPI COMP'!B:M,6,0))), VLOOKUP(B169,'OUTRAS BASES'!C:D,2,0)) -> 28.17 | J169: 84.51
A170: Composição Auxiliar | B170: 88316 | C170: SINAPI | D170: SERVENTE COM ENCARGOS COMPLEMENTARES | E170: Livro SINAPI: Cálculos e Parâmetros | G170: H | H170: 3 | I170: =IF(C170="SINAPI", IF( IF(A170="Insumo", VLOOKUP(B170,'SINAPI INSUMOS'!B:J,6,0), VLOOKUP(B170,'SINAPI COMP'!B:M,6,0))=0,VLOOKUP(B170,'OUTRAS BASES'!C:D,2,0),IF(A170="Insumo", VLOOKUP(B170,'SINAPI INSUMOS'!B:J,6,0),VLOOKUP(B170,'SINAPI COMP'!B:M,6,0))), VLOOKUP(B170,'OUTRAS BASES'!C:D,2,0)) -> 21.62 | J170: 64.86
A171: Composição Auxiliar | B171: 102617 | C171: SINAPI | D171: CAIXA D´ÁGUA EM POLIÉSTER REFORÇADO COM FIBRA DE VIDRO, 5000 LITROS - FORNECIMENTO E INSTALAÇÃO. AF_06/2021 | E171: Caixas de Água para Edificações | G171: UN | H171: 1 | I171: =IF(C171="SINAPI", IF( IF(A171="Insumo", VLOOKUP(B171,'SINAPI INSUMOS'!B:J,6,0), VLOOKUP(B171,'SINAPI COMP'!B:M,6,0))=0,VLOOKUP(B171,'OUTRAS BASES'!C:D,2,0),IF(A171="Insumo", VLOOKUP(B171,'SINAPI INSUMOS'!B:J,6,0),VLOOKUP(B171,'SINAPI COMP'!B:M,6,0))), VLOOKUP(B171,'OUTRAS BASES'!C:D,2,0)) -> 3929.36 | J171: 3929.36
A172: Composição Auxiliar | B172: 92767 | C172: SINAPI | D172: ARMAÇÃO DE LAJE DE UMA ESTRUTURA CONVENCIONAL DE CONCRETO ARMADO UTILIZANDO AÇO CA-60 DE 4,2 MM - MONTAGEM. AF_12/2015 | E172: FUES - FUNDAÇÕES E ESTRUTURAS | G172: KG | H172: 3.04 | I172: =IF(C172="SINAPI", IF( IF(A172="Insumo", VLOOKUP(B172,'SINAPI INSUMOS'!B:J,6,0), VLOOKUP(B172,'SINAPI COMP'!B:M,6,0))=0,VLOOKUP(B172,'OUTRAS BASES'!C:D,2,0),IF(A172="Insumo", VLOOKUP(B172,'SINAPI INSUMOS'!B:J,6,0),VLOOKUP(B172,'SINAPI COMP'!B:M,6,0))), VLOOKUP(B172,'OUTRAS BASES'!C:D,2,0)) -> 14.5 | J172: 44.08
A173: Composição Auxiliar | B173: 104917 | C173: SINAPI | D173: ARMAÇAO DE SAPATA ISOLADA, VIGA BALDRAME E SAPATA CORRIDA UTILIZANDO AÇO CA-50 DE 6,3 MM - MONTAGEM AD_01/2024 | E173: FUES - FUNDAÇÕES E ESTRUTURAS | G173: KG | H173: 9.3 | I173: =IF(C173="SINAPI", IF( IF(A173="Insumo", VLOOKUP(B173,'SINAPI INSUMOS'!B:J,6,0), VLOOKUP(B173,'SINAPI COMP'!B:M,6,0))=0,VLOOKUP(B173,'OUTRAS BASES'!C:D,2,0),IF(A173="Insumo", VLOOKUP(B173,'SINAPI INSUMOS'!B:J,6,0),VLOOKUP(B173,'SINAPI COMP'!B:M,6,0))), VLOOKUP(B173,'OUTRAS BASES'!C:D,2,0)) -> 14.36 | J173: 133.548
A174: Composição Auxiliar | B174: 92760 | C174: SINAPI | D174: ARMAÇÃO DE PILAR OU VIGA DE ESTRTURA CONVENCIONAL DE CONCRETO ARMADO UTILIZANDO AÇO CA-50 DE 6,3 MM - MONTAGEM. AF_12/2015 | E174: FUES - FUNDAÇÕES E ESTRUTURAS | G174: KG | H174: 16.3 | I174: =IF(C174="SINAPI", IF( IF(A174="Insumo", VLOOKUP(B174,'SINAPI INSUMOS'!B:J,6,0), VLOOKUP(B174,'SINAPI COMP'!B:M,6,0))=0,VLOOKUP(B174,'OUTRAS BASES'!C:D,2,0),IF(A174="Insumo", VLOOKUP(B174,'SINAPI INSUMOS'!B:J,6,0),VLOOKUP(B174,'SINAPI COMP'!B:M,6,0))), VLOOKUP(B174,'OUTRAS BASES'!C:D,2,0)) -> 12.04 | J174: 196.252
A175: Composição Auxiliar | B175: 94964 | C175: SINAPI | D175: CONCRETO FCK = 20MPA, TRAÇO 1:2,7:3 (EM MASSA SECA DE CIMENTO/ AREIA MÉDIA/ BRITA 1) - PREPARO MECÂNICO COM BETONEIRA 400 L. AF_05/2021 | E175: Produção de Concreto | G175: m³ | H175: 1.56 | I175: =IF(C175="SINAPI", IF( IF(A175="Insumo", VLOOKUP(B175,'SINAPI INSUMOS'!B:J,6,0), VLOOKUP(B175,'SINAPI COMP'!B:M,6,0))=0,VLOOKUP(B175,'OUTRAS BASES'!C:D,2,0),IF(A175="Insumo", VLOOKUP(B175,'SINAPI INSUMOS'!B:J,6,0),VLOOKUP(B175,'SINAPI COMP'!B:M,6,0))), VLOOKUP(B175,'OUTRAS BASES'!C:D,2,0)) -> 569.37 | J175: 888.2172
A176: Composição Auxiliar | B176: 84651 | C176: SINAPI | D176: PINTURA COM TINTA IMPERMEAVEL MINERAL EM PO, DUAS DEMAOS | E176: PINT - PINTURAS | G176: m² | H176: 7.85 | I176: =IF(C176="SINAPI", IF( IF(A176="Insumo", VLOOKUP(B176,'SINAPI INSUMOS'!B:J,6,0), VLOOKUP(B176,'SINAPI COMP'!B:M,6,0))=0,VLOOKUP(B176,'OUTRAS BASES'!C:D,2,0),IF(A176="Insumo", VLOOKUP(B176,'SINAPI INSUMOS'!B:J,6,0),VLOOKUP(B176,'SINAPI COMP'!B:M,6,0))), VLOOKUP(B176,'OUTRAS BASES'!C:D,2,0)) -> 14.497 | J176: 113.80145
A177: Composição Auxiliar | B177: 92263 | C177: SINAPI | D177: FABRICAÇÃO DE FÔRMA PARA PILARES E ESTRUTURAS SIMILARES, EM CHAPA DE MADEIRA COMPENSADA RESINADA, E = 17 MM. AF_09/2020 | E177: FUES - FUNDAÇÕES E ESTRUTURAS | G177: KG | H177: 16.99 | I177: =IF(C177="SINAPI", IF( IF(A177="Insumo", VLOOKUP(B177,'SINAPI INSUMOS'!B:J,6,0), VLOOKUP(B177,'SINAPI COMP'!B:M,6,0))=0,VLOOKUP(B177,'OUTRAS BASES'!C:D,2,0),IF(A177="Insumo", VLOOKUP(B177,'SINAPI INSUMOS'!B:J,6,0),VLOOKUP(B177,'SINAPI COMP'!B:M,6,0))), VLOOKUP(B177,'OUTRAS BASES'!C:D,2,0)) -> 178.14 | J177: 3026.5986
A178: Composição Auxiliar | B178: 92770 | C178: SINAPI | D178: ARMAÇÃO DE LAJE DE UMA ESTRUTURA CONVENCIONAL DE CONCRETO ARMADO UTILIZANDO AÇO CA-50 DE 8,0 MM - MONTAGEM. AF_06/2022 | E178: FUES - FUNDAÇÕES E ESTRUTURAS | G178: KG | H178: 17.2 | I178: =IF(C178="SINAPI", IF( IF(A178="Insumo", VLOOKUP(B178,'SINAPI INSUMOS'!B:J,6,0), VLOOKUP(B178,'SINAPI COMP'!B:M,6,0))=0,VLOOKUP(B178,'OUTRAS BASES'!C:D,2,0),IF(A178="Insumo", VLOOKUP(B178,'SINAPI INSUMOS'!B:J,6,0),VLOOKUP(B178,'SINAPI COMP'!B:M,6,0))), VLOOKUP(B178,'OUTRAS BASES'!C:D,2,0)) -> 10.63 | J178: 182.836
A183: 6 | D183: BEBEDOURO
A184: 6.1 | B184: Código | C184: Banco | D184: Descrição | E184: Tipo | G184: Und | H184: Quant. | I184: Valor Unit | J184: Total
A185: Composição | B185: COMPOSIÇÃO - 12 | C185: Próprio | D185: Serviço de execução do bebedouro em concreto armado, incluso materiais. | E185: SEDI - SERVIÇOS DIVERSOS | G185: un | H185: 1 | I185: =SUM(J186:J191) -> 1803.9197 | J185: =I185*H185 -> 1803.9197
A186: Composição Auxiliar | B186: 92916 | C186: SINAPI | D186: ARMAÇÃODE ESTRUTURAS DIVERSAS DE CONCRETO ARMADO, EXCETO VIGA, PILARES, LAJES E FUNDAÇÕES, UTILIZANDO AÇO CA-50 DE 6,3 MM - MONTAGEM. AF_06/2022 | E186: Armação para Estruturas de Concreto Armado | G186: KG | H186: 6 | I186: =IF(C186="SINAPI", IF( IF(A186="Insumo", VLOOKUP(B186,'SINAPI INSUMOS'!B:J,6,0), VLOOKUP(B186,'SINAPI COMP'!B:M,6,0))=0,VLOOKUP(B186,'OUTRAS BASES'!C:D,2,0),IF(A186="Insumo", VLOOKUP(B186,'SINAPI INSUMOS'!B:J,6,0),VLOOKUP(B186,'SINAPI COMP'!B:M,6,0))), VLOOKUP(B186,'OUTRAS BASES'!C:D,2,0)) -> 14.09 | J186: 84.54
A187: Composição Auxiliar | B187: 92915 | C187: SINAPI | D187: ARMAÇÃODE ESTRUTURAS DIVERSAS DE CONCRETO ARMADO, EXCETO VIGA, PILARES, LAJES E FUNDAÇÕES, UTILIZANDO AÇO CA-60 DE 5,0 MM - MONTAGEM. AF_06/2022 | E187: Armação para Estruturas de Concreto Armado | G187: KG | H187: 13 | I187: =IF(C187="SINAPI", IF( IF(A187="Insumo", VLOOKUP(B187,'SINAPI INSUMOS'!B:J,6,0), VLOOKUP(B187,'SINAPI COMP'!B:M,6,0))=0,VLOOKUP(B187,'OUTRAS BASES'!C:D,2,0),IF(A187="Insumo", VLOOKUP(B187,'SINAPI INSUMOS'!B:J,6,0),VLOOKUP(B187,'SINAPI COMP'!B:M,6,0))), VLOOKUP(B187,'OUTRAS BASES'!C:D,2,0)) -> 15.83 | J187: 205.79
A188: Composição Auxiliar | B188: 92921 | C188: SINAPI | D188: ARMAÇÃODE ESTRUTURAS DIVERSAS DE CONCRETO ARMADO, EXCETO VIGA, PILARES, LAJES E FUNDAÇÕES, UTILIZANDO AÇO CA-50 DE 12,5 MM - MONTAGEM. AF_06/2022 | E188: Armação para Estruturas de Concreto Armado | G188: KG | H188: 12 | I188: =IF(C188="SINAPI", IF( IF(A188="Insumo", VLOOKUP(B188,'SINAPI INSUMOS'!B:J,6,0), VLOOKUP(B188,'SINAPI COMP'!B:M,6,0))=0,VLOOKUP(B188,'OUTRAS BASES'!C:D,2,0),IF(A188="Insumo", VLOOKUP(B188,'SINAPI INSUMOS'!B:J,6,0),VLOOKUP(B188,'SINAPI COMP'!B:M,6,0))), VLOOKUP(B188,'OUTRAS BASES'!C:D,2,0)) -> 8.88 | J188: 106.56
A189: Composição Auxiliar | B189: 94971 | C189: SINAPI | D189: CONCRETO FCK = 25MPA, TRAÇO 1:2,3:2:2,7(EM MASSA SECA DE CIMENTO, AREIA MÉDIA, BRITA 1) - PREPARO MECÂNICO COM BETONEIRA 600l. AF_05/2021 | E189: Produção de concreto | G189: m³ | H189: 0.374 | I189: =IF(C189="SINAPI", IF( IF(A189="Insumo", VLOOKUP(B189,'SINAPI INSUMOS'!B:J,6,0), VLOOKUP(B189,'SINAPI COMP'!B:M,6,0))=0,VLOOKUP(B189,'OUTRAS BASES'!C:D,2,0),IF(A189="Insumo", VLOOKUP(B189,'SINAPI INSUMOS'!B:J,6,0),VLOOKUP(B189,'SINAPI COMP'!B:M,6,0))), VLOOKUP(B189,'OUTRAS BASES'!C:D,2,0)) -> 589.2 | J189: 220.3608
A190: Composição Auxiliar | B190: 92263 | C190: SINAPI | D190: FABRICAÇÃO DE FÔRMA PARA PILARES E ESTRUTURAS SIMILARES, EM CHAPA DE MADEIRA COMPENSADA RESINADA, E = 17 MM. AF_09/2020 | E190: FUES - FUNDAÇÕES E ESTRUTURAS | G190: m² | H190: 6.21 | I190: =IF(C190="SINAPI", IF( IF(A190="Insumo", VLOOKUP(B190,'SINAPI INSUMOS'!B:J,6,0), VLOOKUP(B190,'SINAPI COMP'!B:M,6,0))=0,VLOOKUP(B190,'OUTRAS BASES'!C:D,2,0),IF(A190="Insumo", VLOOKUP(B190,'SINAPI INSUMOS'!B:J,6,0),VLOOKUP(B190,'SINAPI COMP'!B:M,6,0))), VLOOKUP(B190,'OUTRAS BASES'!C:D,2,0)) -> 178.14 | J190: 1106.2494
A191: Composição Auxiliar | B191: 15.07.09 | C191: EMBASA | D191: PINTURA LÁTEX ACRÍLICA, APLICAÇÃO MANUAL EM DUAS DEMÃOS | E191: EDIFICAÇÕES | G191: m² | H191: 6.21 | I191: =IF(C191="SINAPI", IF( IF(A191="Insumo", VLOOKUP(B191,'SINAPI INSUMOS'!B:J,6,0), VLOOKUP(B191,'SINAPI COMP'!B:M,6,0))=0,VLOOKUP(B191,'OUTRAS BASES'!C:D,2,0),IF(A191="Insumo", VLOOKUP(B191,'SINAPI INSUMOS'!B:J,6,0),VLOOKUP(B191,'SINAPI COMP'!B:M,6,0))), VLOOKUP(B191,'OUTRAS BASES'!C:D,2,0)) -> 12.95 | J191: 80.4195
A196: 7 | D196: CHAFARIZ
A197: 7.1 | B197: Código | C197: Banco | D197: Descrição | E197: Tipo | G197: Und | H197: Quant. | I197: Valor Unit | J197: Total
A198: Composição | B198: COMPOSIÇÃO - 13 | C198: Próprio | D198: Fornecimento de material e instalação do chafariz | E198: ASTU - ASSENTAMENTO DE TUBOS E PECAS | G198: un | H198: 1 | I198: =SUM(J199:J217) -> 951.7097117 | J198: =I198*H198 -> 951.7097117
A199: Composição Auxiliar | B199: 88267 | C199: SINAPI | D199: ENCANADOR OU BOMBEIRO HIDRÁULICO COM ENCARGOS COMPLEMENTARES | E199: Livro SINAPI: Cálculos e Parâmetros | G199: H | H199: 2 | I199: =IF(C199="SINAPI", IF( IF(A199="Insumo", VLOOKUP(B199,'SINAPI INSUMOS'!B:J,6,0), VLOOKUP(B199,'SINAPI COMP'!B:M,6,0))=0,VLOOKUP(B199,'OUTRAS BASES'!C:D,2,0),IF(A199="Insumo", VLOOKUP(B199,'SINAPI INSUMOS'!B:J,6,0),VLOOKUP(B199,'SINAPI COMP'!B:M,6,0))), VLOOKUP(B199,'OUTRAS BASES'!C:D,2,0)) -> 30.28 | J199: 60.56
A200: Composição Auxiliar | B200: 88248 | C200: SINAPI | D200: AUXILIAR DE ENCANADOR OU BOMBEIRO HIDRÁULICO COM ENCARGOS COMPLEMENTARES | E200: Livro SINAPI: Cálculos e Parâmetros | G200: H | H200: 2 | I200: =IF(C200="SINAPI", IF( IF(A200="Insumo", VLOOKUP(B200,'SINAPI INSUMOS'!B:J,6,0), VLOOKUP(B200,'SINAPI COMP'!B:M,6,0))=0,VLOOKUP(B200,'OUTRAS BASES'!C:D,2,0),IF(A200="Insumo", VLOOKUP(B200,'SINAPI INSUMOS'!B:J,6,0),VLOOKUP(B200,'SINAPI COMP'!B:M,6,0))), VLOOKUP(B200,'OUTRAS BASES'!C:D,2,0)) -> 24.51 | J200: 49.02
A201: Composição Auxiliar | B201: 93358 | C201: SINAPI | D201: ESCAVAÇÃO MANUAL DE VALA COM PROFUNDIDADE MENOR OU IGUAL A 1,30 M. AF_02/2021 | E201: Escavação de Valas | G201: m³ | H201: 0.0785398 | I201: =IF(C201="SINAPI", IF( IF(A201="Insumo", VLOOKUP(B201,'SINAPI INSUMOS'!B:J,6,0), VLOOKUP(B201,'SINAPI COMP'!B:M,6,0))=0,VLOOKUP(B201,'OUTRAS BASES'!C:D,2,0),IF(A201="Insumo", VLOOKUP(B201,'SINAPI INSUMOS'!B:J,6,0),VLOOKUP(B201,'SINAPI COMP'!B:M,6,0))), VLOOKUP(B201,'OUTRAS BASES'!C:D,2,0)) -> 85.52 | J201: 6.716723696
A202: Composição Auxiliar | B202: 96533 | C202: SINAPI | D202: FABRICAÇÃO, MONTAGEM E DESMONTAGEM DE FÔRMA PARA VIGA BALDRAME, EM MADEIRA SERRADA, E=25 MM, 4 UTILIZAÇÕES. AF_01/2024 | E202: FUES - FUNDAÇÕES E ESTRUTURAS | G202: m² | H202: 0.628 | I202: =IF(C202="SINAPI", IF( IF(A202="Insumo", VLOOKUP(B202,'SINAPI INSUMOS'!B:J,6,0), VLOOKUP(B202,'SINAPI COMP'!B:M,6,0))=0,VLOOKUP(B202,'OUTRAS BASES'!C:D,2,0),IF(A202="Insumo", VLOOKUP(B202,'SINAPI INSUMOS'!B:J,6,0),VLOOKUP(B202,'SINAPI COMP'!B:M,6,0))), VLOOKUP(B202,'OUTRAS BASES'!C:D,2,0)) -> 101.26 | J202: 63.59128
A203: Composição Auxiliar | B203: 94963 | C203: SINAPI | D203: CONCRETO FCK = 15MPA, TRAÇO 1:3,4:3,5 (EM MASSA SECA DE CIMENTO/ AREIA MÉDIA/ BRITA 1) - PREPARO MANUAL. AF_05/2021 | E203: Produção de Concreto | G203: m³ | H203: 0.157 | I203: =IF(C203="SINAPI", IF( IF(A203="Insumo", VLOOKUP(B203,'SINAPI INSUMOS'!B:J,6,0), VLOOKUP(B203,'SINAPI COMP'!B:M,6,0))=0,VLOOKUP(B203,'OUTRAS BASES'!C:D,2,0),IF(A203="Insumo", VLOOKUP(B203,'SINAPI INSUMOS'!B:J,6,0),VLOOKUP(B203,'SINAPI COMP'!B:M,6,0))), VLOOKUP(B203,'OUTRAS BASES'!C:D,2,0)) -> 520.97 | J203: 81.79229
A204: Composição Auxiliar | B204: 87904 | C204: SINAPI | D204: CHAPISCO APLICADO EM ALVENARIA (COM PRESENÇA DE VÃOS) E ESTRUTURAS DE CONCRETO DE FACHADA, COM COLHER DE PEDREIRO. ARGAMASSA TRAÇO 1:3 COM PREPARO MANUAL. AF_10/2022 | E204: Chapisco | G204: m² | H204: 0.314 | I204: =IF(C204="SINAPI", IF( IF(A204="Insumo", VLOOKUP(B204,'SINAPI INSUMOS'!B:J,6,0), VLOOKUP(B204,'SINAPI COMP'!B:M,6,0))=0,VLOOKUP(B204,'OUTRAS BASES'!C:D,2,0),IF(A204="Insumo", VLOOKUP(B204,'SINAPI INSUMOS'!B:J,6,0),VLOOKUP(B204,'SINAPI COMP'!B:M,6,0))), VLOOKUP(B204,'OUTRAS BASES'!C:D,2,0)) -> 8.85 | J204: 2.7789
A205: Composição Auxiliar | B205: 87529 | C205: SINAPI | D205: MASSA ÚNICA, EM ARGAMASSA TRAÇO 1:2:8, PREPARO MECÂNICO, APLICADA MANUALMENTE EM PAREDES INTERNAS DE AMBIENTES COM ÁREA ENTRE 5M² E 10M², E = 17,5MM, COM TALISCAS. AF_03/2024 | E205: Massa Única Interna | G205: m² | H205: 0.314 | I205: =IF(C205="SINAPI", IF( IF(A205="Insumo", VLOOKUP(B205,'SINAPI INSUMOS'!B:J,6,0), VLOOKUP(B205,'SINAPI COMP'!B:M,6,0))=0,VLOOKUP(B205,'OUTRAS BASES'!C:D,2,0),IF(A205="Insumo", VLOOKUP(B205,'SINAPI INSUMOS'!B:J,6,0),VLOOKUP(B205,'SINAPI COMP'!B:M,6,0))), VLOOKUP(B205,'OUTRAS BASES'!C:D,2,0)) -> 39.39 | J205: 12.36846
A206: Composição Auxiliar | B206: 84651 | C206: SINAPI | D206: PINTURA COM TINTA IMPERMEAVEL MINERAL EM PO, DUAS DEMAOS | E206: PINT - PINTURAS | G206: m² | H206: 0.314 | I206: =IF(C206="SINAPI", IF( IF(A206="Insumo", VLOOKUP(B206,'SINAPI INSUMOS'!B:J,6,0), VLOOKUP(B206,'SINAPI COMP'!B:M,6,0))=0,VLOOKUP(B206,'OUTRAS BASES'!C:D,2,0),IF(A206="Insumo", VLOOKUP(B206,'SINAPI INSUMOS'!B:J,6,0),VLOOKUP(B206,'SINAPI COMP'!B:M,6,0))), VLOOKUP(B206,'OUTRAS BASES'!C:D,2,0)) -> 14.497 | J206: 4.552058
A207: Insumo | B207: 765 | C207: SINAPI | D207: BUCHA DE REDUCAO DE FERRO GALVANIZADO, COM ROSCA BSP, DE 1" X 3/4" | E207: Material | G207: UN | H207: 2 | I207: =IF(C207="SINAPI", IF( IF(A207="Insumo", VLOOKUP(B207,'SINAPI INSUMOS'!B:J,6,0), VLOOKUP(B207,'SINAPI COMP'!B:M,6,0))=0,VLOOKUP(B207,'OUTRAS BASES'!C:D,2,0),IF(A207="Insumo", VLOOKUP(B207,'SINAPI INSUMOS'!B:J,6,0),VLOOKUP(B207,'SINAPI COMP'!B:M,6,0))), VLOOKUP(B207,'OUTRAS BASES'!C:D,2,0)) -> 9.69 | J207: 19.38
A208: Insumo | B208: 9887 | C208: SINAPI | D208: UNIAO DE FERRO GALVANIZADO, COM ROSCA BSP, COM ASSENTO PLANO, DE 2" | E208: Material | G208: UN | H208: 2 | I208: =IF(C208="SINAPI", IF( IF(A208="Insumo", VLOOKUP(B208,'SINAPI INSUMOS'!B:J,6,0), VLOOKUP(B208,'SINAPI COMP'!B:M,6,0))=0,VLOOKUP(B208,'OUTRAS BASES'!C:D,2,0),IF(A208="Insumo", VLOOKUP(B208,'SINAPI INSUMOS'!B:J,6,0),VLOOKUP(B208,'SINAPI COMP'!B:M,6,0))), VLOOKUP(B208,'OUTRAS BASES'!C:D,2,0)) -> 98.64 | J208: 197.28
A209: Insumo | B209: 21013 | C209: SINAPI | D209: TUBO ACO GALVANIZADO COM COSTURA, CLASSE LEVE, DN 50 MM ( 2"), E = 3,00 MM, *4,40* KG/M (NBR 5580) | E209: Material | G209: M | H209: 1.8 | I209: =IF(C209="SINAPI", IF( IF(A209="Insumo", VLOOKUP(B209,'SINAPI INSUMOS'!B:J,6,0), VLOOKUP(B209,'SINAPI COMP'!B:M,6,0))=0,VLOOKUP(B209,'OUTRAS BASES'!C:D,2,0),IF(A209="Insumo", VLOOKUP(B209,'SINAPI INSUMOS'!B:J,6,0),VLOOKUP(B209,'SINAPI COMP'!B:M,6,0))), VLOOKUP(B209,'OUTRAS BASES'!C:D,2,0)) -> 80.85 | J209: 145.53
A210: Insumo | B210: 6298 | C210: SINAPI | D210: TE DE FERRO GALVANIZADO, DE 2" | E210: Material | G210: UN | H210: 1 | I210: =IF(C210="SINAPI", IF( IF(A210="Insumo", VLOOKUP(B210,'SINAPI INSUMOS'!B:J,6,0), VLOOKUP(B210,'SINAPI COMP'!B:M,6,0))=0,VLOOKUP(B210,'OUTRAS BASES'!C:D,2,0),IF(A210="Insumo", VLOOKUP(B210,'SINAPI INSUMOS'!B:J,6,0),VLOOKUP(B210,'SINAPI COMP'!B:M,6,0))), VLOOKUP(B210,'OUTRAS BASES'!C:D,2,0)) -> 64.24 | J210: 64.24
A211: Insumo | B211: 3471 | C211: SINAPI | D211: COTOVELO 90 GRAUS DE FERRO GALVANIZADO, COM ROSCA BSP, DE 2" | E211: Material | G211: UN | H211: 1 | I211: =IF(C211="SINAPI", IF( IF(A211="Insumo", VLOOKUP(B211,'SINAPI INSUMOS'!B:J,6,0), VLOOKUP(B211,'SINAPI COMP'!B:M,6,0))=0,VLOOKUP(B211,'OUTRAS BASES'!C:D,2,0),IF(A211="Insumo", VLOOKUP(B211,'SINAPI INSUMOS'!B:J,6,0),VLOOKUP(B211,'SINAPI COMP'!B:M,6,0))), VLOOKUP(B211,'OUTRAS BASES'!C:D,2,0)) -> 48.32 | J211: 48.32
A212: Insumo | B212: 113 | C212: SINAPI | D212: ADAPTADOR PVC SOLDAVEL CURTO COM BOLSA E ROSCA, 60 MM X 2", PARA AGUA FRIA | E212: Material | G212: UN | H212: 1 | I212: =IF(C212="SINAPI", IF( IF(A212="Insumo", VLOOKUP(B212,'SINAPI INSUMOS'!B:J,6,0), VLOOKUP(B212,'SINAPI COMP'!B:M,6,0))=0,VLOOKUP(B212,'OUTRAS BASES'!C:D,2,0),IF(A212="Insumo", VLOOKUP(B212,'SINAPI INSUMOS'!B:J,6,0),VLOOKUP(B212,'SINAPI COMP'!B:M,6,0))), VLOOKUP(B212,'OUTRAS BASES'!C:D,2,0)) -> 11.19 | J212: 11.19
A213: Insumo | B213: 818 | C213: SINAPI | D213: BUCHA DE REDUCAO DE PVC, SOLDAVEL, CURTA, COM 60 X 50 MM, PARA AGUA FRIA PREDIAL | E213: Material | G213: UN | H213: 1 | I213: =IF(C213="SINAPI", IF( IF(A213="Insumo", VLOOKUP(B213,'SINAPI INSUMOS'!B:J,6,0), VLOOKUP(B213,'SINAPI COMP'!B:M,6,0))=0,VLOOKUP(B213,'OUTRAS BASES'!C:D,2,0),IF(A213="Insumo", VLOOKUP(B213,'SINAPI INSUMOS'!B:J,6,0),VLOOKUP(B213,'SINAPI COMP'!B:M,6,0))), VLOOKUP(B213,'OUTRAS BASES'!C:D,2,0)) -> 6.83 | J213: 6.83
A214: Insumo | B214: 7604 | C214: SINAPI | D214: TORNEIRA METALICA CROMADA PARA TANQUE / JARDIM, SEM BICO , CANO LONGO, DE PAREDE, PADRAO POPULAR / USO GERAL, 1/2 " OU 3/4 " (REF 1126) | E214: Material | G214: UN | H214: 2 | I214: =IF(C214="SINAPI", IF( IF(A214="Insumo", VLOOKUP(B214,'SINAPI INSUMOS'!B:J,6,0), VLOOKUP(B214,'SINAPI COMP'!B:M,6,0))=0,VLOOKUP(B214,'OUTRAS BASES'!C:D,2,0),IF(A214="Insumo", VLOOKUP(B214,'SINAPI INSUMOS'!B:J,6,0),VLOOKUP(B214,'SINAPI COMP'!B:M,6,0))), VLOOKUP(B214,'OUTRAS BASES'!C:D,2,0)) -> 55.63 | J214: 111.26
A215: Insumo | B215: 119 | C215: SINAPI | D215: ADESIVO PLASTICO PARA PVC, BISNAGA COM 75 GR | E215: Material | G215: UN | H215: 1 | I215: =IF(C215="SINAPI", IF( IF(A215="Insumo", VLOOKUP(B215,'SINAPI INSUMOS'!B:J,6,0), VLOOKUP(B215,'SINAPI COMP'!B:M,6,0))=0,VLOOKUP(B215,'OUTRAS BASES'!C:D,2,0),IF(A215="Insumo", VLOOKUP(B215,'SINAPI INSUMOS'!B:J,6,0),VLOOKUP(B215,'SINAPI COMP'!B:M,6,0))), VLOOKUP(B215,'OUTRAS BASES'!C:D,2,0)) -> 8.5 | J215: 8.5
A216: Insumo | B216: 3146 | C216: SINAPI | D216: FITA VEDA ROSCA EM ROLOS DE 18 MM X 10 M (L X C) | E216: Material | G216: UN | H216: 1 | I216: =IF(C216="SINAPI", IF( IF(A216="Insumo", VLOOKUP(B216,'SINAPI INSUMOS'!B:J,6,0), VLOOKUP(B216,'SINAPI COMP'!B:M,6,0))=0,VLOOKUP(B216,'OUTRAS BASES'!C:D,2,0),IF(A216="Insumo", VLOOKUP(B216,'SINAPI INSUMOS'!B:J,6,0),VLOOKUP(B216,'SINAPI COMP'!B:M,6,0))), VLOOKUP(B216,'OUTRAS BASES'!C:D,2,0)) -> 4 | J216: 4
A217: Insumo | B217: 771 | C217: SINAPI | D217: BUCHA DE REDUCAO DE FERRO GALVANIZADO, COM ROSCA BSP, DE 2" X 1" | E217: Material | G217: UN | H217: 2 | I217: =IF(C217="SINAPI", IF( IF(A217="Insumo", VLOOKUP(B217,'SINAPI INSUMOS'!B:J,6,0), VLOOKUP(B217,'SINAPI COMP'!B:M,6,0))=0,VLOOKUP(B217,'OUTRAS BASES'!C:D,2,0),IF(A217="Insumo", VLOOKUP(B217,'SINAPI INSUMOS'!B:J,6,0),VLOOKUP(B217,'SINAPI COMP'!B:M,6,0))), VLOOKUP(B217,'OUTRAS BASES'!C:D,2,0)) -> 26.9 | J217: 53.8
A222: 8 | D222: CAVALETE
A223: 8.1 | B223: Código | C223: Banco | D223: Descrição | E223: Tipo | G223: Und | H223: Quant. | I223: Valor Unit | J223: Total
A224: Composição | B224: COMPOSIÇÃO - 14 | C224: Próprio | D224: Fornecimento de conexões e Instalação do Cavalete com hidrômetro e clorador de pastilhas | E224: INHI - INSTALAÇÕES HIDROS SANITÁRIAS | G224: un | H224: 1 | I224: =SUM(J225:J242) -> 1872.78 | J224: =I224*H224 -> 1872.78
A225: Composição Auxiliar | B225: 88248 | C225: SINAPI | D225: AUXILIAR DE ENCANADOR OU BOMBEIRO HIDRÁULICO COM ENCARGOS COMPLEMENTARES | E225: Livro SINAPI: Cálculos e Parâmetros | G225: H | H225: 3 | I225: =IF(C225="SINAPI", IF( IF(A225="Insumo", VLOOKUP(B225,'SINAPI INSUMOS'!B:J,6,0), VLOOKUP(B225,'SINAPI COMP'!B:M,6,0))=0,VLOOKUP(B225,'OUTRAS BASES'!C:D,2,0),IF(A225="Insumo", VLOOKUP(B225,'SINAPI INSUMOS'!B:J,6,0),VLOOKUP(B225,'SINAPI COMP'!B:M,6,0))), VLOOKUP(B225,'OUTRAS BASES'!C:D,2,0)) -> 24.51 | J225: 73.53
A226: Insumo | B226: 9860/SINAPI | C226: ORSE | D226: TUBO PVC, ROSCAVEL, 2", PARA AGUA FRIA PREDIAL | E226: Tubos e Conexões de PVC Rígido Roscável | G226: m | H226: 1.5 | I226: =IF(C226="SINAPI", IF( IF(A226="Insumo", VLOOKUP(B226,'SINAPI INSUMOS'!B:J,6,0), VLOOKUP(B226,'SINAPI COMP'!B:M,6,0))=0,VLOOKUP(B226,'OUTRAS BASES'!C:D,2,0),IF(A226="Insumo", VLOOKUP(B226,'SINAPI INSUMOS'!B:J,6,0),VLOOKUP(B226,'SINAPI COMP'!B:M,6,0))), VLOOKUP(B226,'OUTRAS BASES'!C:D,2,0)) -> 42.22 | J226: 63.33
A227: Insumo | B227: 11831 | C227: SINAPI | D227: TORNEIRA PLASTICA PARA TANQUE 1/2 " OU 3/4 " COM BICO PARA MANGUEIRA | E227: Material | G227: UN | H227: 1 | I227: =IF(C227="SINAPI", IF( IF(A227="Insumo", VLOOKUP(B227,'SINAPI INSUMOS'!B:J,6,0), VLOOKUP(B227,'SINAPI COMP'!B:M,6,0))=0,VLOOKUP(B227,'OUTRAS BASES'!C:D,2,0),IF(A227="Insumo", VLOOKUP(B227,'SINAPI INSUMOS'!B:J,6,0),VLOOKUP(B227,'SINAPI COMP'!B:M,6,0))), VLOOKUP(B227,'OUTRAS BASES'!C:D,2,0)) -> 13.58 | J227: 13.58
A228: Insumo | B228: 9569 | C228: ORSE | D228: Adaptador pvc BSxRM d= 35mm x 1 1/2", linha Irriga-LF, Tigre ou similar un | E228: Material | G228: un | H228: 1 | I228: =IF(C228="SINAPI", IF( IF(A228="Insumo", VLOOKUP(B228,'SINAPI INSUMOS'!B:J,6,0), VLOOKUP(B228,'SINAPI COMP'!B:M,6,0))=0,VLOOKUP(B228,'OUTRAS BASES'!C:D,2,0),IF(A228="Insumo", VLOOKUP(B228,'SINAPI INSUMOS'!B:J,6,0),VLOOKUP(B228,'SINAPI COMP'!B:M,6,0))), VLOOKUP(B228,'OUTRAS BASES'!C:D,2,0)) -> 3.04 | J228: 3.04
A229: Insumo | B229: 3939 | C229: SINAPI | D229: LUVA DE FERRO GALVANIZADO, COM ROSCA BSP, DE 1 1/2" | E229: Material | G229: UN | H229: 1 | I229: =IF(C229="SINAPI", IF( IF(A229="Insumo", VLOOKUP(B229,'SINAPI INSUMOS'!B:J,6,0), VLOOKUP(B229,'SINAPI COMP'!B:M,6,0))=0,VLOOKUP(B229,'OUTRAS BASES'!C:D,2,0),IF(A229="Insumo", VLOOKUP(B229,'SINAPI INSUMOS'!B:J,6,0),VLOOKUP(B229,'SINAPI COMP'!B:M,6,0))), VLOOKUP(B229,'OUTRAS BASES'!C:D,2,0)) -> 22.21 | J229: 22.21
A230: Insumo | B230: 1798 | C230: SINAPI | D230: CURVA 90 GRAUS DE FERRO GALVANIZADO, COM ROSCA BSP MACHO, DE 2" | E230: Material | G230: UN | H230: 1 | I230: =IF(C230="SINAPI", IF( IF(A230="Insumo", VLOOKUP(B230,'SINAPI INSUMOS'!B:J,6,0), VLOOKUP(B230,'SINAPI COMP'!B:M,6,0))=0,VLOOKUP(B230,'OUTRAS BASES'!C:D,2,0),IF(A230="Insumo", VLOOKUP(B230,'SINAPI INSUMOS'!B:J,6,0),VLOOKUP(B230,'SINAPI COMP'!B:M,6,0))), VLOOKUP(B230,'OUTRAS BASES'!C:D,2,0)) -> 123.81 | J230: 123.81
A231: Insumo | B231: 9887 | C231: SINAPI | D231: UNIAO DE FERRO GALVANIZADO, COM ROSCA BSP, COM ASSENTO PLANO, DE 2" | E231: Material | G231: UN | H231: 1 | I231: =IF(C231="SINAPI", IF( IF(A231="Insumo", VLOOKUP(B231,'SINAPI INSUMOS'!B:J,6,0), VLOOKUP(B231,'SINAPI COMP'!B:M,6,0))=0,VLOOKUP(B231,'OUTRAS BASES'!C:D,2,0),IF(A231="Insumo", VLOOKUP(B231,'SINAPI INSUMOS'!B:J,6,0),VLOOKUP(B231,'SINAPI COMP'!B:M,6,0))), VLOOKUP(B231,'OUTRAS BASES'!C:D,2,0)) -> 98.64 | J231: 98.64
A232: Insumo | B232: 00004181/SINAPI | C232: ORSE | D232: Niple de ferro galvanizado, com rosca bsp, de 2" | E232: Material | G232: un | H232: 2 | I232: =IF(C232="SINAPI", IF( IF(A232="Insumo", VLOOKUP(B232,'SINAPI INSUMOS'!B:J,6,0), VLOOKUP(B232,'SINAPI COMP'!B:M,6,0))=0,VLOOKUP(B232,'OUTRAS BASES'!C:D,2,0),IF(A232="Insumo", VLOOKUP(B232,'SINAPI INSUMOS'!B:J,6,0),VLOOKUP(B232,'SINAPI COMP'!B:M,6,0))), VLOOKUP(B232,'OUTRAS BASES'!C:D,2,0)) -> 36.64 | J232: 73.28
A233: Insumo | B233: 6028 | C233: SINAPI | D233: REGISTRO GAVETA BRUTO EM LATAO FORJADO, BITOLA 2 " (REF 1509) | E233: Material | G233: UN | H233: 1 | I233: =IF(C233="SINAPI", IF( IF(A233="Insumo", VLOOKUP(B233,'SINAPI INSUMOS'!B:J,6,0), VLOOKUP(B233,'SINAPI COMP'!B:M,6,0))=0,VLOOKUP(B233,'OUTRAS BASES'!C:D,2,0),IF(A233="Insumo", VLOOKUP(B233,'SINAPI INSUMOS'!B:J,6,0),VLOOKUP(B233,'SINAPI COMP'!B:M,6,0))), VLOOKUP(B233,'OUTRAS BASES'!C:D,2,0)) -> 142.87 | J233: 142.87
A234: Insumo | B234: 12775 | C234: SINAPI | D234: HIDROMETRO MULTIJATO / MEDIDOR DE AGUA, DN 1", VAZAO MAXIMA DE 7 M3/H, PARA AGUA POTAVEL FRIA, RELOJOARIA PLANA, CLASSE B, HORIZONTAL (SEM CONEXOES) | E234: Material | G234: UN | H234: 1 | I234: =IF(C234="SINAPI", IF( IF(A234="Insumo", VLOOKUP(B234,'SINAPI INSUMOS'!B:J,6,0), VLOOKUP(B234,'SINAPI COMP'!B:M,6,0))=0,VLOOKUP(B234,'OUTRAS BASES'!C:D,2,0),IF(A234="Insumo", VLOOKUP(B234,'SINAPI INSUMOS'!B:J,6,0),VLOOKUP(B234,'SINAPI COMP'!B:M,6,0))), VLOOKUP(B234,'OUTRAS BASES'!C:D,2,0)) -> 420.58 | J234: 420.58
A235: Insumo | B235: 771 | C235: SINAPI | D235: BUCHA DE REDUCAO DE FERRO GALVANIZADO, COM ROSCA BSP, DE 2" X 1" | E235: Material | G235: UN | H235: 2 | I235: =IF(C235="SINAPI", IF( IF(A235="Insumo", VLOOKUP(B235,'SINAPI INSUMOS'!B:J,6,0), VLOOKUP(B235,'SINAPI COMP'!B:M,6,0))=0,VLOOKUP(B235,'OUTRAS BASES'!C:D,2,0),IF(A235="Insumo", VLOOKUP(B235,'SINAPI INSUMOS'!B:J,6,0),VLOOKUP(B235,'SINAPI COMP'!B:M,6,0))), VLOOKUP(B235,'OUTRAS BASES'!C:D,2,0)) -> 26.9 | J235: 53.8
A236: Insumo | B236: 6305 | C236: SINAPI | D236: TE DE REDUCAO DE FERRO GALVANIZADO, COM ROSCA BSP, DE 2" X 1" | E236: Material | G236: UN | H236: 1 | I236: =IF(C236="SINAPI", IF( IF(A236="Insumo", VLOOKUP(B236,'SINAPI INSUMOS'!B:J,6,0), VLOOKUP(B236,'SINAPI COMP'!B:M,6,0))=0,VLOOKUP(B236,'OUTRAS BASES'!C:D,2,0),IF(A236="Insumo", VLOOKUP(B236,'SINAPI INSUMOS'!B:J,6,0),VLOOKUP(B236,'SINAPI COMP'!B:M,6,0))), VLOOKUP(B236,'OUTRAS BASES'!C:D,2,0)) -> 71.12 | J236: 71.12
A237: Insumo | B237: 764 | C237: SINAPI | D237: BUCHA DE REDUCAO DE FERRO GALVANIZADO, COM ROSCA BSP, DE 1" X 1/2" | E237: Material | G237: UN | H237: 1 | I237: =IF(C237="SINAPI", IF( IF(A237="Insumo", VLOOKUP(B237,'SINAPI INSUMOS'!B:J,6,0), VLOOKUP(B237,'SINAPI COMP'!B:M,6,0))=0,VLOOKUP(B237,'OUTRAS BASES'!C:D,2,0),IF(A237="Insumo", VLOOKUP(B237,'SINAPI INSUMOS'!B:J,6,0),VLOOKUP(B237,'SINAPI COMP'!B:M,6,0))), VLOOKUP(B237,'OUTRAS BASES'!C:D,2,0)) -> 9.69 | J237: 9.69
A238: Insumo | B238: 5128 | C238: ORSE | D238: Tampa de poço galvanizada em 6" | E238: Material | G238: UN | H238: 1 | I238: =IF(C238="SINAPI", IF( IF(A238="Insumo", VLOOKUP(B238,'SINAPI INSUMOS'!B:J,6,0), VLOOKUP(B238,'SINAPI COMP'!B:M,6,0))=0,VLOOKUP(B238,'OUTRAS BASES'!C:D,2,0),IF(A238="Insumo", VLOOKUP(B238,'SINAPI INSUMOS'!B:J,6,0),VLOOKUP(B238,'SINAPI COMP'!B:M,6,0))), VLOOKUP(B238,'OUTRAS BASES'!C:D,2,0)) -> 107.28 | J238: 107.28
A239: Insumo | B239: 1160 | C239: ORSE | D239: Joelho 45° ferro galvanizado d=2" | E239: Material | G239: UN | H239: 2 | I239: =IF(C239="SINAPI", IF( IF(A239="Insumo", VLOOKUP(B239,'SINAPI INSUMOS'!B:J,6,0), VLOOKUP(B239,'SINAPI COMP'!B:M,6,0))=0,VLOOKUP(B239,'OUTRAS BASES'!C:D,2,0),IF(A239="Insumo", VLOOKUP(B239,'SINAPI INSUMOS'!B:J,6,0),VLOOKUP(B239,'SINAPI COMP'!B:M,6,0))), VLOOKUP(B239,'OUTRAS BASES'!C:D,2,0)) -> 54.39 | J239: 108.78
A240: Insumo | B240: 53688 | C240: SBC | D240: VALVULA DE RETENCAO HORIZONTAL EM LATAO, ROSCA BSP 2" | E240: Material | G240: UN | H240: 1 | I240: =IF(C240="SINAPI", IF( IF(A240="Insumo", VLOOKUP(B240,'SINAPI INSUMOS'!B:J,6,0), VLOOKUP(B240,'SINAPI COMP'!B:M,6,0))=0,VLOOKUP(B240,'OUTRAS BASES'!C:D,2,0),IF(A240="Insumo", VLOOKUP(B240,'SINAPI INSUMOS'!B:J,6,0),VLOOKUP(B240,'SINAPI COMP'!B:M,6,0))), VLOOKUP(B240,'OUTRAS BASES'!C:D,2,0)) -> 192.66 | J240: 192.66
A241: Insumo | B241: 4194 | C241: SINAPI | D241: NIPLE DE REDUCAO DE FERRO GALVANIZADO, COM ROSCA BSP, DE 2" X 1 1/2" | E241: Material | G241: UN | H241: 1 | I241: =IF(C241="SINAPI", IF( IF(A241="Insumo", VLOOKUP(B241,'SINAPI INSUMOS'!B:J,6,0), VLOOKUP(B241,'SINAPI COMP'!B:M,6,0))=0,VLOOKUP(B241,'OUTRAS BASES'!C:D,2,0),IF(A241="Insumo", VLOOKUP(B241,'SINAPI INSUMOS'!B:J,6,0),VLOOKUP(B241,'SINAPI COMP'!B:M,6,0))), VLOOKUP(B241,'OUTRAS BASES'!C:D,2,0)) -> 43.61 | J241: 43.61
A242: Insumo | B242: 12464 | C242: ORSE | D242: Clorador dosador de cloro de pastilhas automático | E242: Material | G242: un | H242: 1 | I242: =IF(C242="SINAPI", IF( IF(A242="Insumo", VLOOKUP(B242,'SINAPI INSUMOS'!B:J,6,0), VLOOKUP(B242,'SINAPI COMP'!B:M,6,0))=0,VLOOKUP(B242,'OUTRAS BASES'!C:D,2,0),IF(A242="Insumo", VLOOKUP(B242,'SINAPI INSUMOS'!B:J,6,0),VLOOKUP(B242,'SINAPI COMP'!B:M,6,0))), VLOOKUP(B242,'OUTRAS BASES'!C:D,2,0)) -> 250.97 | J242: 250.97
A247: 9 | D247: INSTALAÇÕES HIDRÁULICAS
A248: 9.1 | B248: Código | C248: Banco | D248: Descrição | E248: Tipo | G248: Und | H248: Quant. | I248: Valor Unit | J248: Total
A249: Composição | B249: COMPOSIÇÃO - 15 | C249: Próprio | D249: Instalação da rede adutora poço-reservatório-bebedouro em PN80 e DN50MM | E249: SEDI - SERVIÇOS DIVERSOS | G249: m | H249: 1 | I249: =SUM(J250:J252) -> 6.207 | J249: =I249*H249 -> 6.207
A250: Composição Auxiliar | B250: 88316 | C250: SINAPI | D250: SERVENTE COM ENCARGOS COMPLEMENTARES | E250: Livro SINAPI: Cálculos e Parâmetros | G250: H | H250: 0.05 | I250: =IF(C250="SINAPI", IF( IF(A250="Insumo", VLOOKUP(B250,'SINAPI INSUMOS'!B:J,6,0), VLOOKUP(B250,'SINAPI COMP'!B:M,6,0))=0,VLOOKUP(B250,'OUTRAS BASES'!C:D,2,0),IF(A250="Insumo", VLOOKUP(B250,'SINAPI INSUMOS'!B:J,6,0),VLOOKUP(B250,'SINAPI COMP'!B:M,6,0))), VLOOKUP(B250,'OUTRAS BASES'!C:D,2,0)) -> 21.62 | J250: 1.081
A251: Composição Auxiliar | B251: 93358 | C251: SINAPI | D251: ESCAVAÇÃO MANUAL DE VALA COM PROFUNDIDADE MENOR OU IGUAL A 1,30 M. AF_02/2021 | E251: Escavação de Valas | G251: m³ | H251: 0.05 | I251: =IF(C251="SINAPI", IF( IF(A251="Insumo", VLOOKUP(B251,'SINAPI INSUMOS'!B:J,6,0), VLOOKUP(B251,'SINAPI COMP'!B:M,6,0))=0,VLOOKUP(B251,'OUTRAS BASES'!C:D,2,0),IF(A251="Insumo", VLOOKUP(B251,'SINAPI INSUMOS'!B:J,6,0),VLOOKUP(B251,'SINAPI COMP'!B:M,6,0))), VLOOKUP(B251,'OUTRAS BASES'!C:D,2,0)) -> 85.52 | J251: 4.276
A252: Insumo | B252: 119 | C252: SINAPI | D252: ADESIVO PLASTICO PARA PVC, BISNAGA COM 75 GR | E252: Material | G252: UN | H252: 0.1 | I252: =IF(C252="SINAPI", IF( IF(A252="Insumo", VLOOKUP(B252,'SINAPI INSUMOS'!B:J,6,0), VLOOKUP(B252,'SINAPI COMP'!B:M,6,0))=0,VLOOKUP(B252,'OUTRAS BASES'!C:D,2,0),IF(A252="Insumo", VLOOKUP(B252,'SINAPI INSUMOS'!B:J,6,0),VLOOKUP(B252,'SINAPI COMP'!B:M,6,0))), VLOOKUP(B252,'OUTRAS BASES'!C:D,2,0)) -> 8.5 | J252: 0.85
A254: 9.2 | B254: Código | C254: Banco | D254: Descrição | E254: Tipo | G254: Und | H254: Quant. | I254: Valor Unit | J254: Total
A255: Insumo | B255: 9875 | C255: SINAPI | D255: TUBO PVC, SOLDAVEL, DE 50 MM, AGUA FRIA (NBR-5648) | E255: MATERIAL | G255: un | H255: 1 | I255: =IF(C255="SINAPI", IF( IF(A255="Insumo", VLOOKUP(B255,'SINAPI INSUMOS'!B:J,6,0), VLOOKUP(B255,'SINAPI COMP'!B:M,6,0))=0,VLOOKUP(B255,'OUTRAS BASES'!C:D,2,0),IF(A255="Insumo", VLOOKUP(B255,'SINAPI INSUMOS'!B:J,6,0),VLOOKUP(B255,'SINAPI COMP'!B:M,6,0))), VLOOKUP(B255,'OUTRAS BASES'!C:D,2,0)) -> 15.46 | J255: =I255*H255 -> 15.46
A260: 9.3 | B260: Código | C260: Banco | D260: Descrição | E260: Tipo | G260: Und | H260: Quant. | I260: Valor Unit | J260: Total
A261: Composição | B261: COMPOSIÇÃO - 16 | C261: Próprio | D261: Montagem hidráulica do equipamento de bombeamento | E261: INHI - INSTALAÇÕES HIDROS SANITÁRIAS | G261: un | H261: 1 | I261: =SUM(J262:J263) -> 164.37 | J261: =I261*H261 -> 164.37
A262: Composição Auxiliar | B262: 88267 | C262: SINAPI | D262: ENCANADOR OU BOMBEIRO HIDRÁULICO COM ENCARGOS COMPLEMENTARES | E262: Livro SINAPI: Cálculos e Parâmetros | G262: H | H262: 3 | I262: =IF(C262="SINAPI", IF( IF(A262="Insumo", VLOOKUP(B262,'SINAPI INSUMOS'!B:J,6,0), VLOOKUP(B262,'SINAPI COMP'!B:M,6,0))=0,VLOOKUP(B262,'OUTRAS BASES'!C:D,2,0),IF(A262="Insumo", VLOOKUP(B262,'SINAPI INSUMOS'!B:J,6,0),VLOOKUP(B262,'SINAPI COMP'!B:M,6,0))), VLOOKUP(B262,'OUTRAS BASES'!C:D,2,0)) -> 30.28 | J262: 90.84
A263: Composição Auxiliar | B263: 88248 | C263: SINAPI | D263: AUXILIAR DE ENCANADOR OU BOMBEIRO HIDRÁULICO COM ENCARGOS COMPLEMENTARES | E263: Livro SINAPI: Cálculos e Parâmetros | G263: H | H263: 3 | I263: =IF(C263="SINAPI", IF( IF(A263="Insumo", VLOOKUP(B263,'SINAPI INSUMOS'!B:J,6,0), VLOOKUP(B263,'SINAPI COMP'!B:M,6,0))=0,VLOOKUP(B263,'OUTRAS BASES'!C:D,2,0),IF(A263="Insumo", VLOOKUP(B263,'SINAPI INSUMOS'!B:J,6,0),VLOOKUP(B263,'SINAPI COMP'!B:M,6,0))), VLOOKUP(B263,'OUTRAS BASES'!C:D,2,0)) -> 24.51 | J263: 73.53
A268: 9.4 | B268: Código | C268: Banco | D268: Descrição | E268: Tipo | G268: Und | H268: Quant. | I268: Valor Unit | J268: Total
A269: Insumo | B269: 38200 | C269: SINAPI | D269: CORDA DE POLIAMIDA 12 MM TIPO BOMBEIRO, PARA TRABALHO EM ALTURA | E269: Material | G269: 100M | H269: 1 | I269: =IF(C269="SINAPI", IF( IF(A269="Insumo", VLOOKUP(B269,'SINAPI INSUMOS'!B:J,6,0), VLOOKUP(B269,'SINAPI COMP'!B:M,6,0))=0,VLOOKUP(B269,'OUTRAS BASES'!C:D,2,0),IF(A269="Insumo", VLOOKUP(B269,'SINAPI INSUMOS'!B:J,6,0),VLOOKUP(B269,'SINAPI COMP'!B:M,6,0))), VLOOKUP(B269,'OUTRAS BASES'!C:D,2,0)) -> 477.34 | J269: =I269*H269 -> 477.34
A274: 9.5 | B274: Código | C274: Banco | D274: Descrição | E274: Tipo | G274: Und | H274: Quant. | I274: Valor Unit | J274: Total
A275: Insumo | B275: 9860 | C275: SINAPI | D275: TUBO PVC, ROSCAVEL, 2", PARA AGUA FRIA PREDIAL | E275: Material | G275: M | H275: 1 | I275: =IF(C275="SINAPI", IF( IF(A275="Insumo", VLOOKUP(B275,'SINAPI INSUMOS'!B:J,6,0), VLOOKUP(B275,'SINAPI COMP'!B:M,6,0))=0,VLOOKUP(B275,'OUTRAS BASES'!C:D,2,0),IF(A275="Insumo", VLOOKUP(B275,'SINAPI INSUMOS'!B:J,6,0),VLOOKUP(B275,'SINAPI COMP'!B:M,6,0))), VLOOKUP(B275,'OUTRAS BASES'!C:D,2,0)) -> 44.92 | J275: =I275*H275 -> 44.92
A280: 9.6 | B280: Código | C280: Banco | D280: Descrição | E280: Tipo | G280: Und | H280: Quant. | I280: Valor Unit | J280: Total
A281: Insumo | B281: 3912 | C281: SINAPI | D281: LUVA DE FERRO GALVANIZADO, COM ROSCA BSP, DE 2" | E281: Material | G281: UN | H281: 1 | I281: =IF(C281="SINAPI", IF( IF(A281="Insumo", VLOOKUP(B281,'SINAPI INSUMOS'!B:J,6,0), VLOOKUP(B281,'SINAPI COMP'!B:M,6,0))=0,VLOOKUP(B281,'OUTRAS BASES'!C:D,2,0),IF(A281="Insumo", VLOOKUP(B281,'SINAPI INSUMOS'!B:J,6,0),VLOOKUP(B281,'SINAPI COMP'!B:M,6,0))), VLOOKUP(B281,'OUTRAS BASES'!C:D,2,0)) -> 34.02 | J281: =I281*H281 -> 34.02
A286: 9.7 | B286: Código | C286: Banco | D286: Descrição | E286: Tipo | G286: Und | H286: Quant. | I286: Valor Unit | J286: Total
A287: Insumo | B287: 5128 | C287: ORSE | D287: Tampa de poço galvanizada em 6" un | E287: Serviços | G287: un | H287: 1 | I287: =IF(C287="SINAPI", IF( IF(A287="Insumo", VLOOKUP(B287,'SINAPI INSUMOS'!B:J,6,0), VLOOKUP(B287,'SINAPI COMP'!B:M,6,0))=0,VLOOKUP(B287,'OUTRAS BASES'!C:D,2,0),IF(A287="Insumo", VLOOKUP(B287,'SINAPI INSUMOS'!B:J,6,0),VLOOKUP(B287,'SINAPI COMP'!B:M,6,0))), VLOOKUP(B287,'OUTRAS BASES'!C:D,2,0)) -> 107.28 | J287: =I287*H287 -> 107.28
A292: 10 | D292: ESTRUTURA DE FIXAÇÃO PARA MÓDULOS FOTOVOLTÁICOS
A293: 10.1 | B293: Código | C293: Banco | D293: Descrição | E293: Tipo | G293: Und | H293: Quant. | I293: Valor Unit | J293: Total
A294: Composição | B294: COMPOSIÇÃO - 17 | C294: Próprio | D294: Serviço de fixação de estruturas para os módulos fotovoltaicos e suportes de concreto, incluso materiais. | E294: SEDI - SERVIÇOS DIVERSOS | G294: m² | H294: 1 | I294: =SUM(J295:J297) -> 105.488704 | J294: =I294*H294 -> 105.488704
A295: Composição Auxiliar | B295: 94975 | C295: SINAPI | D295: CONCRETO FCK = 15MPA, TRAÇO 1:3,4:3,5 (EM MASSA SECA DE CIMENTO/ AREIA MÉDIA/ BRITA 1) - PREPARO MANUAL. AF_05/2021 | E295: Produção de Concreto | G295: m³ | H295: 0.09 | I295: =IF(C295="SINAPI", IF( IF(A295="Insumo", VLOOKUP(B295,'SINAPI INSUMOS'!B:J,6,0), VLOOKUP(B295,'SINAPI COMP'!B:M,6,0))=0,VLOOKUP(B295,'OUTRAS BASES'!C:D,2,0),IF(A295="Insumo", VLOOKUP(B295,'SINAPI INSUMOS'!B:J,6,0),VLOOKUP(B295,'SINAPI COMP'!B:M,6,0))), VLOOKUP(B295,'OUTRAS BASES'!C:D,2,0)) -> 578.55 | J295: 52.0695
A296: Composição Auxiliar | B296: 96522 | C296: SINAPI | D296: ESCAVAÇÃO MANUAL PARA BLOCO DE COROAMENTO OU SAPATA (SEM ESCAVAÇÃO PARA COLOCAÇÃO DE FÔRMAS). AF_01/2024 | E296: Fundações Rasas (Blocos, Sapatas, Vigas Baldrame) | G296: m³ | H296: 0.0062 | I296: =IF(C296="SINAPI", IF( IF(A296="Insumo", VLOOKUP(B296,'SINAPI INSUMOS'!B:J,6,0), VLOOKUP(B296,'SINAPI COMP'!B:M,6,0))=0,VLOOKUP(B296,'OUTRAS BASES'!C:D,2,0),IF(A296="Insumo", VLOOKUP(B296,'SINAPI INSUMOS'!B:J,6,0),VLOOKUP(B296,'SINAPI COMP'!B:M,6,0))), VLOOKUP(B296,'OUTRAS BASES'!C:D,2,0)) -> 143.42 | J296: 0.889204
A297: Insumo | B297: 4183 | C297: SBC | D297: ESTRUTURA METALICA EM TESOURAS OU TRELICAS, VÃO LIVRE DE 12M, FORNECIMENTO E MONTAGEM | E297: Material | G297: m² | H297: 1 | I297: =IF(C297="SINAPI", IF( IF(A297="Insumo", VLOOKUP(B297,'SINAPI INSUMOS'!B:J,6,0), VLOOKUP(B297,'SINAPI COMP'!B:M,6,0))=0,VLOOKUP(B297,'OUTRAS BASES'!C:D,2,0),IF(A297="Insumo", VLOOKUP(B297,'SINAPI INSUMOS'!B:J,6,0),VLOOKUP(B297,'SINAPI COMP'!B:M,6,0))), VLOOKUP(B297,'OUTRAS BASES'!C:D,2,0)) -> 52.53 | J297: 52.53
